Workbook

Sheet 新能源补贴 (hidden)
A1: 企业名称 | B1: 企业申报的推广数量 | F1: 专东组核定的推广数量 | J1: 通过率
B2: 乘用车 | C2: 客车 | D2: 专用车 | E2: 合计 | F2: 乘用车 | G2: 客车 | H2: 专用车 | I2: 合计
A3: 北汽乘用车 | B3: 15227 | D3: 6 | E3: =SUM(B3:D3) -> 15233 | F3: 15227 | H3: 6 | I3: =SUM(F3:H3) -> 15233 | J3: =I3/E3 -> 100%
A4: 江淮汽车 | B4: 14368 | E4: =SUM(B4:D4) -> 14368 | F4: 14288 | I4: =SUM(F4:H4) -> 14288 | J4: =I4/E4 -> 99%
A5: 吉利汽车 | B5: 13272 | E5: 13272 | F5: 12403 | I5: 12403 | J5: 93%
A6: 江铃控股 | B6: 12087 | E6: 12087 | F6: 12087 | I6: 12087 | J6: 100%
A7: 众泰汽车 | B7: 9144 | E7: 9144 | F7: 9144 | I7: 9144 | J7: 100%
A8: 奇瑞汽车 | B8: 5608 | D8: 2 | E8: 5610 | F8: 5592 | H8: 0 | I8: 5592 | J8: 100%
A9: 上海汽车 | B9: 10693 | E9: 10693 | F9: 3985 | I9: 3985 | J9: 37%
A10: 中通客车 | C10: 2157 | E10: 2157 | G10: 2129 | I10: 2129 | J10: 99%
A11: 郑州宇通 | C11: 2087 | E11: 2087 | G11: 2087 | I11: 2087 | J11: 100%
A12: 江铃汽车 | B12: 1400 | E12: 1400 | F12: 1400 | I12: 1400 | J12: 100%
A13: 东风汽车 | B13: 762 | C13: 309 | D13: 207 | E13: 1278 | F13: 646 | G13: 309 | H13: 205 | I13: 1160 | J13: 91%
A14: 东风日产 | B14: 1133 | E14: 1133 | F14: 1133 | I14: 1133 | J14: 100%
A15: 长安汽车 | B15: 510 | C15: 50 | E15: 560 | F15: 510 | G15: 20 | I15: 530 | J15: 95%
A16: 江苏九龙 | C16: 505 | E16: 505 | G16: 505 | I16: 505 | J16: 100%
A17: 南车时代 | C17: 477 | E17: 477 | G17: 477 | I17: 477 | J17: 100%
A18: 安徽安凯 | C18: 370 | E18: 370 | G18: 370 | I18: 370 | J18: 100%
A19: 华晨宝马 | B19: 264 | E19: 264 | F19: 264 | I19: 264 | J19: 100%
A20: 扬州亚星 | C20: 260 | E20: 260 | G20: 260 | I20: 260 | J20: 100%
A21: 厦门金龙 | C21: 320 | E21: 320 | G21: 256 | I21: 256 | J21: 80%
A22: 河北御捷 | B22: 224 | E22: 224 | F22: 224 | I22: 224 | J22: 100%
A23: 山西皇城相府 | C23: 209 | E23: 209 | G23: 209 | I23: 209 | J23: 100%
A24: 莲花汽车 | B24: 191 | E24: 191 | F24: 191 | I24: 191 | J24: 100%
A25: 厦门金旅 | C25: 178 | E25: 178 | G25: 178 | I25: 178 | J25: 100%
A26: 华泰汽车 | B26: 167 | E26: 167 | F26: 167 | I26: 167 | J26: 100%
A27: 北汽新能源 | B27: 153 | E27: 153 | F27: 153 | I27: 153 | J27: 100%
A28: 北汽福田 | C28: 137 | E28: 137 | G28: 137 | I28: 137 | J28: 100%
A29: 中国重汽 | C29: 126 | E29: 126 | G29: 126 | I29: 126 | J29: 100%
A30: 比亚迪 | C30: 422 | E30: 422 | G30: 50 | I30: 50 | J30: 12%
A31: 江西博能 | C31: 42 | E31: 42 | G31: 42 | I31: 42 | J31: 100%
A32: 北京华林 | D32: 163 | E32: 163 | H32: 35 | I32: 35 | J32: 21%
A33: 恒通客车 | C33: 34 | E33: 34 | G33: 34 | I33: 34 | J33: 100%
A34: 重庆瑞驰 | D34: 34 | E34: 34 | H34: 34 | I34: 34 | J34: 100%
A35: 山东沂星 | C35: 27 | E35: 27 | G35: 27 | I35: 27 | J35: 100%
A36: 芜湖宝骐 | D36: 26 | E36: 26 | H36: 26 | I36: 26 | J36: 100%
A37: 烟台舒驰 | C37: 21 | E37: 21 | G37: 21 | I37: 21 | J37: 100%
A38: 上汽大通 | C38: 16 | D38: 7 | E38: 23 | G38: 13 | H38: 7 | I38: 20 | J38: 87%
A39: 东南汽车 | B39: 20 | E39: 20 | F39: 20 | I39: 20 | J39: 100%
A40: 山东凯马 | D40: 37 | E40: 37 | H40: 19 | I40: 19 | J40: 51%
A41: 黑龙江龙华 | C41: 214 | E41: 214 | G41: 17 | I41: 17 | J41: 8%
A42: 东风特种 | C42: 14 | E42: 14 | G42: 14 | I42: 14 | J42: 100%
A43: 上海申沃 | C43: 14 | E43: 14 | G43: 14 | I43: 14 | J43: 100%
A44: 江苏奥新 | D44: 11 | E44: 11 | H44: 11 | I44: 11 | J44: 100%
A45: 郑州宇通重工 | D45: 5 | E45: 5 | H45: 5 | I45: 5 | J45: 100%
A46: 赣州汽车改装 | D46: 71 | E46: 71 | H46: 5 | I46: 5 | J46: 7%
A47: 南京金龙 | C47: 26 | E47: 26 | G47: 3 | I47: 3 | J47: 12%
A48: 丹东黄海 | C48: 3 | E48: 3 | G48: 3 | I48: 3 | J48: 100%
A49: 华晨汽车 | B49: 2 | E49: 2 | F49: 2 | I49: 2 | J49: 100%
A50: 山东吉海 | D50: 1 | E50: 1 | H50: 1 | I50: 1 | J50: 100%
A51: 东营蒙德金马 | D51: 1 | E51: 1 | H51: 1 | I51: 1 | J51: 100%
A52: 湖北新楚风 | D52: 37 | E52: 37 | H52: 1 | I52: 1 | J52: 3%
A53: 重庆长帆 | D53: 1 | E53: 1 | H53: 1 | I53: 1 | J53: 100%
A54: 中联重科 | D54: 76 | E54: 76 | H54: 0 | I54: 0 | J54: 0%
A55: 上海沪光客车 | D55: 22 | E55: 22 | H55: 0 | I55: 0 | J55: 0%
A56: 河北红星 | B56: 19 | E56: 19 | F56: 0 | I56: 0 | J56: 0%
A57: 云南五龙 | C57: 1 | E57: 1 | G57: 0 | I57: 0 | J57: 0%
A58: 长沙梅花 | C58: 2 | E58: 2 | G58: 0 | I58: 0 | J58: 0%
A59: 天津清源 | D59: 87 | E59: 87 | H59: 0 | I59: 0 | J59: 0%
A60: 浙江宝成机械 | D60: 7 | E60: 7 | H60: 0 | I60: 0 | J60: 0%
A61: 郑州海马 | B61: 6 | E61: 6 | F61: 0 | I61: 0 | J61: 0%
A62: 总计 | B62: 85250 | C62: 8021 | D62: 801 | E62: 94072 | F62: 77436 | G62: 7301 | H62: 357 | I62: 85094 | J62: 90%

Sheet 节能网-美国市场 (hidden)
C1: 返回首页
B3: EV销量表 | D3: 车型 | E3: 2015全年 | F3: 2016-01-01 | G3: 2016-02-01 | H3: 2016-03-01 | I3: 2016-04-01 | J3: 2016-05-01 | K3: 2016-06-01 | L3: 2016-07-01 | M3: 2016-08-01 | N3: 2016-09-01 | O3: 2016-10-01 | P3: 2016-11-01 | Q3: 2016-12-01 | R3: 环比 | S3: 同比 | T3: YTD | U3: 12月占比 | V3: 2017-01-01 | W3: 2017-02-01
C4: 日产 | D4: Leaf | E4: 17,269 | F4: 755 | G4: 930 | H4: 1,246 | I4: 787 | J4: 979 | K4: 1,096 | L4: 1,063 | M4: 1,066 | N4: 1,316 | O4: 1,412 | P4: 1,457 | Q4: 1,899 | R4: 30% | S4: 41% | T4: 14,006 | U4: 23.3% | V4: 772 | W4: 1,037
C5: 特斯拉 | D5: Model S* | E5: 26,400 | F5: 1,300 | G5: 1,900 | H5: 3,000 | I5: 1,700 | J5: 1,500 | K5: 2,800 | L5: 2,400 | M5: 3,200 | N5: 4,100 | O5: 1,200 | P5: 1,800 | Q5: 5,300 | R5: 194% | S5: 66% | T5: 29,156 | U5: 40.5% | V5: 1,200 | W5: 1,700
C6: 特斯拉 | D6: Model X | E6: - | F6: 400 | G6: 500 | H6: 1,500 | I6: 1,500 | J6: 2,000 | K6: 2,000 | L6: 1,500 | M6: 1,900 | N6: 2,600 | O6: 1,000 | P6: 1,400 | Q6: 3,300 | R6: 136% | S6: 1764% | T6: 18,028 | U6: 25.2% | V6: 1,000 | W6: 800
C7: 宝马 | D7: i3 | E7: 11,024 | F7: 182 | G7: 248 | H7: 332 | I7: 814 | J7: 696 | K7: 608 | L7: 1,479 | M7: 1,013 | N7: 391 | O7: 442 | P7: 629 | Q7: 791 | R7: 26% | S7: -44% | T7: 7,625 | U7: 6.1% | V7: 382 | W7: 318
C8: Smart | D8: forTwoEV | E8: 1,387 | F8: 48 | G8: 54 | H8: 70 | I8: 66 | J8: 75 | K8: 53 | L8: 62 | M8: 55 | N8: 44 | O8: 43 | P8: 47 | Q8: 40 | R8: -15% | S8: -78% | T8: 657 | U8: 0.3% | V8: 15 | W8: 22
C9: 菲亚特 | D9: 500E | E9: 4,516 | F9: 217 | G9: 195 | H9: 373 | I9: 372 | J9: 388 | K9: 278 | L9: 274 | M9: 311 | N9: 370 | O9: 319 | P9: 287 | Q9: 353 | R9: 23% | S9: 13% | T9: 3,897 | U9: 2.7% | V9: 305 | W9: 283
C10: VW | D10: e-Golf | E10: 4,232 | F10: 328 | G10: 198 | H10: 86 | I10: 326 | J10: 269 | K10: 248 | L10: 344 | M10: 454 | N10: 529 | O10: 407 | P10: 305 | Q10: 443 | R10: 45% | S10: -27% | T10: 3,937 | U10: 3.4% | V10: 332 | W10: 293
C11: 福特 | D11: Focus EV | E11: 1,582 | F11: 66 | G11: 81 | H11: 110 | I11: 81 | J11: 54 | K11: 54 | L11: 58 | M11: 75 | N11: 82 | O11: 73 | P11: 66 | Q11: 101 | R11: 53% | S11: 5% | T11: 872 | U11: 0.8% | V11: 56 | W11: 228
C12: 雪佛兰 | D12: Spark | E12: 2,629 | F12: 139 | G12: 216 | H12: 252 | I12: 419 | J12: 394 | K12: 359 | L12: 333 | M12: 292 | N12: 315 | O12: 260 | P12: 39 | Q12: 17 | R12: -56% | S12: -89% | T12: 3,035 | U12: 0.1% | V12: 4 | W12: 4
D13: Chevrolet Bolt | V13: 1,162 | W13: 952
C14: 三菱 | D14: i-MiEV | V14: 0 | W14: 1
C15: Kia | D15: Soul EV | E15: 69 | F15: 81 | G15: 60 | H15: 79 | I15: 139 | J15: 120 | K15: 134 | L15: 179 | M15: 153 | N15: 217 | O15: 190 | P15: 179 | Q15: 197 | R15: 10% | S15: 105% | T15: 1,728 | U15: 1.5% | V15: 117 | W15: 152
C16: 奔驰 | D16: ElectricB-Class | E16: 1,906 | F16: 58 | G16: 37 | H16: 66 | I16: 56 | J16: 49 | K16: 44 | L16: 50 | M16: 57 | N16: 51 | O16: 58 | P16: 52 | Q16: 54 | R16: 4% | S16: -44% | T16: 632 | U16: 0.4% | V16: 53 | W16: 56
C17: 当月机动车总销量 | E17: 17,386,331 | F17: 1,142,164 | G17: 1,335,704 | H17: 1,585,432 | I17: 1,497,232 | J17: 1,527,564 | K17: 1,506,256 | L17: 1,514,107 | M17: 1,505,867 | N17: 1,427,812 | O17: 1,364,294 | P17: 1,372,402 | Q17: 1,679,483 | R17: 22% | S17: 3% | T17: 17,465,020 | V17: 5,398 | W17: 5,846
C18: 当月电动车总销量 | E18: 72,303 | F18: 3,576 | G18: 4,424 | H18: 7,115 | I18: 6,266 | J18: 6,526 | K18: 7,678 | L18: 7,762 | M18: 8,601 | N18: 10,032 | O18: 5,408 | P18: 6,266 | Q18: 13,077 | R18: 109% | S18: 62% | T18: 84,246
C19: 占机车市场比重 | E19: 0.42% | F19: 0.31% | G19: 0.33% | H19: 0.45% | I19: 0.42% | J19: 0.43% | K19: 0.51% | L19: 0.51% | M19: 0.57% | N19: 0.70% | O19: 0.40% | P19: 0.46% | Q19: 0.78% | T19: =T18/T17 -> 0.5%
C20: *特斯拉 | D20: Model S*和 Model X 两款车仅为预估数，非实际销售量,累计数据每月或有变化。
B23: PHEV销量表 | D23: 车型 | E23: 2015全年 | F23: 2016-01-01 | G23: 2016-02-01 | H23: 2016-03-01 | I23: 2016-04-01 | J23: 2016-05-01 | K23: 2016-06-01 | L23: 2016-07-01 | M23: 2016-08-01 | N23: 2016-09-01 | O23: 2016-10-01 | P23: 2016-11-01 | Q23: 2016-12-01 | R23: 环比 | S23: 同比 | T23: YTD | U23: 12月占比 | V23: 2017-01-01 | W23: 2017-02-01
C24: 雪佛兰 | D24: Volt | E24: 15,393 | F24: 996 | G24: 1,126 | H24: 1,865 | I24: 1,983 | J24: 1,901 | K24: 1,937 | L24: 2,406 | M24: 2,081 | N24: 2,031 | O24: 2,191 | P24: 2,531 | Q24: 3,691 | R24: 46% | S24: 75% | T24: 24,739 | U24: 36.2% | V24: 1,611 | W24: 1,820
C25: 福特 | D25: FusionEnergi | E25: 9,750 | F25: 581 | G25: 932 | H25: 1,238 | I25: 1,331 | J25: 1,453 | K25: 1,700 | L25: 1,341 | M25: 1,422 | N25: 1,652 | O25: 1,372 | P25: 1,817 | Q25: 1,099 | R25: -40% | S25: 4% | T25: 15,938 | U25: 10.8% | V25: 606 | W25: 837
C26: 福特 | D26: EnergiC-Max | E26: 7,591 | F26: 350 | G26: 490 | H26: 610 | I26: 607 | J26: 538 | K26: 630 | L26: 755 | M26: 707 | N26: 689 | O26: 571 | P26: 721 | Q26: 1,289 | R26: 79% | S26: 123% | T26: 7,957 | U26: 12.6% | V26: 473 | W26: 639
C27: Audi | D27: A3 InPlug | E27: 49 | F27: 327 | G27: 248 | H27: 332 | I27: 321 | J27: 361 | K27: 353 | L27: 349 | M27: 346 | N27: 312 | O27: 348 | P27: 394 | Q27: 589 | R27: 50% | S27: 1102% | T27: 4,280 | U27: 5.8% | V27: 387 | W27: 400
C28: Hyundai | D28: PlugSonataIn | E28: 150 | F28: 175 | G28: 200 | H28: 275 | I28: 250 | J28: 250 | K28: 200 | L28: 350 | M28: 250 | N28: 275 | O28: 250 | P28: 275 | Q28: 250 | R28: -9% | S28: 85% | T28: 3,000 | U28: 2.5% | V28: 150 | W28: 250
C29: BMW | D29: X5 | E29: 892 | F29: 181 | G29: 345 | H29: 313 | I29: 655 | J29: 500 | K29: 583 | L29: 649 | M29: 876 | N29: 482 | O29: 406 | P29: 436 | Q29: 569 | R29: 31% | S29: -6% | T29: 5,995 | U29: 5.6% | V29: 262 | W29: 275
C30: BMW | D30: i8 | E30: 2,265 | F30: 32 | G30: 54 | H30: 89 | I30: 130 | J30: 146 | K30: 169 | L30: 166 | M30: 145 | N30: 158 | O30: 199 | P30: 173 | Q30: 133 | R30: -23% | S30: -80% | T30: 1,594 | U30: 1.3% | V30: 50 | W30: 58
D31: 3 Series | V31: 129 | W31: 144
D32: BMW 7 Series | V32: 18 | W32: 35
C33: Cadillac | D33: Cadillac ELR | V33: 3 | W33: 0
C34: Porsche (2013-) | D34: Cayenne | V34: 177 | W34: 121
D35: Panamera | V35: 2 | W35: 1
C36: 丰田 | D36: Prius | V36: 1,366 | W36: 1,362
C37: 梅赛德斯奔驰 | D37: C-Class | V37: 210 | W37: 51
D38: GLE-Class (M-Class/ML-Class) | V38: 52 | W38: 59
D39: S-Class | V39: 55 | W39: 51
C40: 起亚 | D40: Optima | V40: 40 | W40: 61
C41: 沃尔沃汽车 (2011-) | D41: XC90 (Volvo Cars (2011-)) | V41: 96 | W41: 83
C42: 当月机动车总销量 | E42: 17,386,331 | F42: 1,142,164 | G42: 1,335,704 | H42: 1,585,432 | I42: 1,497,232 | J42: 1,527,564 | K42: 1,506,256 | L42: 1,514,107 | M42: 1,505,867 | N42: 1,427,812 | O42: 1,364,294 | P42: 1,372,402 | Q42: 1,679,483 | R42: 22% | S42: 3% | T42: 17,465,020 | V42: 5,687 | W42: 6,247
C43: 当月 PHEV 总销量 | E43: 42,959 | F43: 3,137 | G43: 3,909 | H43: 5,290 | I43: 5,842 | J43: 5,619 | K43: 6,094 | L43: 6,525 | M43: 6,372 | N43: 6,037 | O43: 5,943 | P43: 7,858 | Q43: 10,211 | R43: 30% | S43: 82% | T43: 72,935
C44: 占机车市场比重 | E44: 0.25% | F44: 0.27% | G44: 0.29% | H44: 0.33% | I44: 0.39% | J44: 0.37% | K44: 0.40% | L44: 0.43% | M44: 0.42% | N44: 0.42% | O44: 0.44% | P44: 0.57% | Q44: 0.61% | T44: =T43/T42 -> 0.4%
B47: 混动 | D47: 车型 | E47: 2015全年 | F47: 2016-01-01 | G47: 2016-02-01 | H47: 2016-03-01 | I47: 2016-04-01 | J47: 2016-05-01 | K47: 2016-06-01 | L47: 2016-07-01 | M47: 2016-08-01 | N47: 2016-09-01 | O47: 2016-10-01 | P47: 2016-11-01 | Q47: 2016-12-01 | R47: 环比 | S47: 同比 | T47: YTD | U47: 12月占比 | V47: 2017-01-01 | W47: 2017-02-01
C48: 丰田 | D48: Prius Liftback | E48: 113,829 | F48: 6,333 | G48: 7,169 | H48: 8,130 | I48: 8,923 | J48: 9,389 | K48: 8,531 | L48: 9,930 | M48: 10,177 | N48: 9,790 | O48: 5,421 | P48: 7,284 | Q48: 7,786 | R48: 7% | S48: -23% | T48: 98,863 | V48: 4,553 | W48: 5,418
C49: 丰田 | D49: Camry Hybrid | E49: 30,640 | F49: 1,256 | G49: 1,599 | H49: 1,746 | I49: 1,975 | J49: 2,055 | K49: 1,649 | L49: 2,214 | M49: 2,155 | N49: 1,902 | O49: 1,802 | P49: 1,693 | Q49: 2,181 | R49: 29% | S49: 17% | T49: 22,227 | V49: 1,238 | W49: 1,333
C50: 丰田 | D50: Prius C | E50: 38,484 | F50: 1,763 | G50: 2,263 | H50: 2,607 | I50: 1,676 | J50: 1,909 | K50: 1,355 | L50: 1,402 | M50: 1,459 | N50: 1,459 | O50: 1,543 | P50: 1,372 | Q50: 1,644 | R50: 20% | S50: -43% | T50: 20,452 | V50: 1,143 | W50: 1,372
C51: 福特 | D51: Fusion Hybrid | E51: 24,681 | F51: 1,373 | G51: 1,764 | H51: 2,057 | I51: 2,035 | J51: 1,716 | K51: 2,542 | L51: 3,519 | M51: 3,002 | N51: 3,776 | O51: 4,915 | P51: 3,372 | Q51: 3,577 | R51: 6% | S51: 83% | T51: 33,648 | V51: 4,856 | W51: 4,939
C52: 丰田 | D52: Prius V | E52: 28,290 | F52: 1,205 | G52: 1,112 | H52: 1,331 | I52: 1,322 | J52: 1,215 | K52: 1,130 | L52: 1,358 | M52: 1,346 | N52: 1,222 | O52: 1,168 | P52: 1,058 | Q52: 1,373 | R52: 30% | S52: -33% | T52: 14,840 | V52: 767 | W52: 892
D53: RAV4 | V53: 2,898 | W53: 3,080
C54: 现代 | D54: Sonata | E54: 19,908 | F54: 964 | G54: 1,588 | H54: 1,884 | I54: 1,788 | J54: 2,513 | K54: 1,242 | L54: 1,301 | M54: 1,146 | N54: 1,815 | O54: 1,479 | P54: 1,867 | Q54: 1,374 | R54: -26% | S54: 21% | T54: 18,961 | V54: 1,113 | W54: 1,471
D55: Ioniq | V55: 0 | W55: 1
C56: 福特 | D56: C-Max Hybrid | E56: 14,177 | F56: 637 | G56: 880 | H56: 1,092 | I56: 1,621 | J56: 1,327 | K56: 1,486 | L56: 1,112 | M56: 879 | N56: 739 | O56: 398 | P56: 811 | Q56: 895 | R56: 10% | S56: 7% | T56: 11,877 | V56: 473 | W56: 676
C57: 丰田 | D57: Avalon Hybrid | E57: 11,956 | F57: 583 | G57: 590 | H57: 776 | I57: 715 | J57: 660 | K57: 619 | L57: 707 | M57: 775 | N57: 688 | O57: 673 | P57: 639 | Q57: 1,026 | R57: 61% | S57: 10% | T57: 8,451 | V57: 448 | W57: 464
C58: 本田 | D58: Accord Hybrid | E58: 11,065 | F58: 71 | G58: 68 | H58: 51 | I58: 29 | J58: 15 | K58: 31 | L58: 565 | M58: 890 | N58: 1,160 | O58: 1,296 | P58: 1,879 | Q58: 3,124 | R58: 66% | S58: 1301% | T58: 9,179 | V58: 1,711 | W58: 1,867
C59: 雷克萨斯 | D59: ES Hybrid | E59: 11,241 | F59: 622 | G59: 633 | H59: 894 | I59: 700 | J59: 735 | K59: 646 | L59: 705 | M59: 692 | N59: 497 | O59: 353 | P59: 434 | Q59: 734 | R59: 69% | S59: -49% | T59: 7,645 | V59: 242 | W59: 330
D60: Lexus GS | V60: 6 | W60: 5
D61: Lexus NX | V61: 179 | W61: 184
C62: 起亚 | D62: Optima Hybrid | E62: 11,492 | F62: 469 | G62: 386 | H62: 436 | I62: 483 | J62: 570 | K62: 483 | L62: 768 | M62: 654 | N62: 591 | O62: 482 | P62: 423 | Q62: 397 | R62: -6% | S62: -54% | T62: 6,142 | V62: 279 | W62: 257
D63: NIRO | V63: 42 | W63: 2,143
C64: 雷克萨斯 | D64: CT200h | E64: 14,657 | F64: 622 | G64: 762 | H64: 972 | I64: 577 | J64: 797 | K64: 785 | L64: 849 | M64: 819 | N64: 638 | O64: 564 | P64: 550 | Q64: 968 | R64: 76% | S64: -34% | T64: 8,903 | V64: 393 | W64: 458
C65: 林肯 | D65: MKZ | E65: 8,403 | F65: 491 | G65: 585 | H65: 608 | I65: 613 | J65: 805 | K65: 766 | L65: 681 | M65: 541 | N65: 460 | O65: 450 | P65: 552 | Q65: 667 | R65: 21% | S65: -23% | T65: 7,219 | V65: 467 | W65: 570
C66: 别克 | D66: Lacrosse Hybrid | E66: 4,042 | F66: 118 | G66: 87 | H66: 83 | I66: 115 | J66: 42 | K66: 60 | L66: 55 | M66: 60 | N66: 35 | O66: 53 | P66: 31 | Q66: 26 | R66: -16% | S66: -82% | T66: 739 | V66: 18 | W66: 12
D67: Regal | V67: 3 | W67: 0
C68: 斯巴鲁 | D68: Crosstrek Hybrid | E68: 5,589 | F68: 261 | G68: 278 | H68: 329 | I68: 303 | J68: 303 | K68: 214 | L68: 193 | M68: 117 | N68: 79 | O68: 44 | P68: 27 | Q68: 25 | R68: -7% | S68: -94% | T68: 2,173
D69: XV | V69: 13 | W69: 6
C70: 本田 | D70: HybridCivic | E70: 4,887 | F70: 161 | G70: 143 | H70: 166 | I70: 92 | J70: 83 | K70: 62 | L70: 60 | M70: 50 | N70: 38 | O70: 14 | P70: 15 | Q70: 12 | R70: -20% | S70: -95% | T70: 985 | V70: 16 | W70: 8
C71: 本田 | D71: Insight | E71: 1,458 | F71: 19 | G71: - | H71: 2 | I71: 9 | J71: 9 | K71: 9 | L71: 5 | M71: 9 | N71: 1 | O71: - | P71: 3 | Q71: 9 | R71: 200% | S71: -59% | T71: 75 | V71: 1 | W71: 0
C72: 丰田 | D72: HighlanderHybrid | E72: 4,015 | F72: 375 | G72: 396 | H72: 492 | I72: 442 | J72: 473 | K72: 528 | L72: 524 | M72: 506 | N72: 383 | O72: 356 | P72: 483 | Q72: 1,018 | R72: 111% | S72: 97% | T72: 5,976 | V72: 571 | W72: 1,339
C73: 雷克萨斯 | D73: RX 400 /450 h | E73: 7,722 | F73: 790 | G73: 752 | H73: 886 | I73: 899 | J73: 719 | K73: 684 | L73: 684 | M73: 574 | N73: 387 | O73: 535 | P73: 666 | Q73: 985 | R73: 48% | S73: -34% | T73: 8,561 | V73: 443 | W73: 507
C74: 本田 | D74: CR-Z | E74: 3,073 | F74: 192 | G74: 128 | H74: 163 | I74: 253 | J74: 234 | K74: 235 | L74: 272 | M74: 222 | N74: 165 | O74: 168 | P74: 146 | Q74: 160 | R74: 10% | S74: -49% | T74: 2,338 | V74: 89 | W74: 118
C75: 英菲尼迪 | D75: Q50 Hybrid | E75: 4,012 | F75: 175 | G75: 202 | H75: 335 | I75: 147 | J75: 95 | K75: 94 | L75: 112 | M75: 150 | N75: 174 | O75: 148 | P75: 134 | Q75: 232 | R75: 73% | S75: -17% | T75: 1,998 | V75: 128 | W75: 138
D76: Infiniti Q70 (M) | V76: 5 | W76: 4
C77: 日产 | D77: PathfinderHybrid* | E77: 2,245 | F77: 65 | G77: 72 | H77: 87 | I77: 56 | J77: 60 | K77: 57 | L77: 55 | M77: 58 | N77: 80 | O77: 64 | P77: 68 | Q77: 94 | R77: 38% | S77: 12% | T77: 816 | V77: 73 | W77: 90
C78: 大众 | D78: HybridJetta | E78: 740 | F78: 46 | G78: 39 | H78: 47 | I78: 46 | J78: 47 | K78: 44 | L78: 87 | M78: 128 | N78: 76 | O78: 48 | P78: 45 | Q78: 56 | R78: 24% | S78: -14% | T78: 709 | V78: 13 | W78: 12
C79: GMC | D79: GMC Sierra | V79: 0 | W79: 1
C80: 讴歌 | D80: Acura RLX | V80: 11 | W80: 27
D81: NSX | V81: 50 | W81: 46
C82: 梅赛德斯奔驰 | D82: E-Class | V82: 1 | W82: 0
C83: 雪佛兰 | D83: Malibu | V83: 339 | W83: 534
C84: 英菲尼迪 | D84: QX60 Hybrid* | E84: 2,356 | F84: 119 | G84: 137 | H84: 195 | I84: 147 | J84: 85 | K84: 88 | L84: 74 | M84: 65 | N84: 63 | O84: 59 | P84: 64 | Q84: 99 | R84: 55% | S84: -60% | T84: 1,114 | V84: 44 | W84: 53
C85: 当月机动车总销量 | E85: 17,386,331 | F85: 1,142,164 | G85: 1,335,704 | H85: 1,585,432 | I85: 1,497,232 | J85: 1,527,564 | K85: 1,506,256 | L85: 1,514,107 | M85: 1,505,867 | N85: 1,427,812 | O85: 1,364,294 | P85: 1,372,402 | Q85: 1,679,483 | R85: 22% | S85: 3% | T85: 17,465,020 | V85: 22,626 | W85: 28,355
C86: 混合动力车型总销量 | E86: 384,404 | F86: 20,967 | G86: 24,371 | H86: 28,756 | I86: 28,988 | J86: 30,573 | K86: 27,679 | L86: 32,633 | M86: 32,206 | N86: 31,286 | O86: 26,484 | P86: 28,498 | Q86: 34,507 | R86: 21% | S86: 7% | T86: 347,029
C87: 占机车市场比重 | E87: 2.21% | F87: 1.84% | G87: 1.82% | H87: 1.81% | I87: 1.94% | J87: 2.00% | K87: 1.84% | L87: 2.16% | M87: 2.14% | N87: 2.19% | O87: 1.94% | P87: 2.08% | Q87: 2.05% | T87: =T86/T85 -> 2.0%
B89: FCV | D89: 车型 | E89: 2015全年 | F89: 2016-01-01 | G89: 2016-02-01 | H89: 2016-03-01 | I89: 2016-04-01 | J89: 2016-05-01 | K89: 2016-06-01 | L89: 2016-07-01 | M89: 2016-08-01 | N89: 2016-09-01 | O89: 2016-10-01 | P89: 2016-11-01 | Q89: 2016-12-01 | R89: 环比 | S89: 同比 | T89: YTD | U89: 12月占比 | V89: 2017-01-01 | W89: 2017-02-01
C90: 本田 | D90: Clarity Fuel Cell | V90: 42 | W90: 27
C91: 丰田 | D91: MIRAI | V91: 83 | W91: 110
C92: 现代 | D92: Tucson (ix35) | V92: 2 | W92: 5
C93: 当月机动车总销量 | V93: 127 | W93: 142
C94: 当月 FCV 总销量
C95: 占机车市场比重
C98: (数据来源：www.hybridecars.com)

Sheet 节能网-全球市场（不含中国日本） (hidden)
C1: 返回首页
B3: EV销量表 | D3: 车型 | E3: 2017-01-01 | F3: 2017-02-01 | G3: 环比 | H3: 同比 | I3: YTD | J3: 12月占比
C4: Garia | D4: Utility City | E4: 1 | F4: 1
C5: Goupil | D5: N/A | E5: 0 | F5: 2
C6: Renault Samsung | D6: SM3 | E6: 39 | F6: 56
C7: smart | D7: fortwo | E7: 15 | F7: 22
C8: Stimbo | D8: ET 1000 | E8: 0 | F8: 1
C9: Tesla | D9: Model S | E9: 1,951 | F9: 2,386
D10: Model X | E10: 1,765 | F10: 1,210
D11: N/A | E11: 14 | F11: 36
C12: 宝马 | D12: BMW i Series | E12: 4 | F12: 1
D13: BMW i3 | E13: 2,289 | F13: 1,354
C14: 标致 | D14: Peugeot iOn | E14: 201 | F14: 171
D15: Peugeot Partner | E15: 50 | F15: 49
C16: 大众 | D16: Golf | E16: 359 | F16: 339
D17: up! | E17: 141 | F17: 132
C18: 菲亚特 | D18: Fiat 500 | E18: 305 | F18: 283
C19: 福特 | D19: Focus | E19: 56 | F19: 228
C20: 雷诺 | D20: Kangoo | E20: 138 | F20: 125
D21: Twizy | E21: 1 | F21: 7
D22: ZOE | E22: 2,638 | F22: 2,540
C23: 梅赛德斯奔驰 | D23: B-Class | E23: 170 | F23: 151
C24: 起亚 | D24: Ray | E24: 3 | F24: 5
D25: Soul | E25: 482 | F25: 669
C26: 日产 | D26: Leaf | E26: 2,380 | F26: 2,158
D27: NV200 | E27: 173 | F27: 133
C28: 三菱 | D28: i-MiEV | E28: 44 | F28: 18
C29: 现代 | D29: Ioniq | E29: 255 | F29: 304
C30: 雪佛兰 | D30: Chevrolet Bolt | E30: 1,168 | F30: 1,038
D31: Spark | E31: 4 | F31: 4
C32: 雪铁龙 | D32: Berlingo | E32: 20 | F32: 17
D33: C-ZERO | E33: 136 | F33: 112
D34: E-Mehari | E34: 13 | F34: 20
C35: 当月机动车总销量 | E35: 14,815 | F35: 13,572
C36: 当月电动车总销量
C37: 占机车市场比重
B41: PHEV销量表 | D41: 车型 | E41: 2017-01-01 | F41: 2017-02-01 | G41: 环比 | H41: 同比 | I41: YTD | J41: 12月占比
C42: Cadillac | D42: Cadillac ELR | E42: 3 | F42: 0
C43: Porsche (2013-) | D43: Cayenne | E43: 347 | F43: 188
D44: Panamera | E44: 21 | F44: 10
C45: 奥迪 | D45: Audi A3 | E45: 671 | F45: 641
D46: Audi Q7 | E46: 200 | F46: 72
C47: 宝马 | D47: 2 Series | E47: 501 | F47: 438
D48: 3 Series | E48: 495 | F48: 575
D49: BMW 7 Series | E49: 119 | F49: 87
D50: BMW i8 | E50: 142 | F50: 113
D51: X5 | E51: 595 | F51: 397
C52: 大众 | D52: Golf | E52: 99 | F52: 75
D53: Passat (Santana) | E53: 902 | F53: 560
C54: 丰田 | D54: Prius | E54: 1,390 | F54: 1,362
D55: Prius/Prius alpha | E55: 15 | F55: 11
C56: 福特 | D56: C-MAX | E56: 473 | F56: 639
D57: Fusion | E57: 606 | F57: 837
C58: 梅赛德斯奔驰 | D58: C-Class | E58: 399 | F58: 187
D59: E-Class | E59: 161 | F59: 105
D60: GLC-Class (GLK-Class) | E60: 283 | F60: 218
D61: GLE-Class (M-Class/ML-Class) | E61: 152 | F61: 118
D62: S/CL-Class | E62: 24 | F62: 8
D63: S-Class | E63: 76 | F63: 75
C64: 欧宝 | D64: Ampera | E64: 13 | F64: 15
C65: 起亚 | D65: Optima | E65: 80 | F65: 86
C66: 三菱 | D66: Outlander | E66: 944 | F66: 589
C67: 沃尔沃汽车 (2011-) | D67: 60 series (Volvo Cars (2011-)) | E67: 7 | F67: 13
D68: S60 (Volvo Cars (2011-)) | E68: 0 | F68: 0
D69: S60/V60 (Volvo Cars (2011-)) | E69: 141 | F69: 108
D70: V60 (Volvo Cars (2011-)) | E70: 7 | F70: 0
D71: XC90 (Volvo Cars (2011-)) | E71: 692 | F71: 309
C72: 现代 | D72: Sonata | E72: 150 | F72: 250
D73: Sonata/YF Sonata/LF Sonata | E73: 4 | F73: 5
C74: 雪佛兰 | D74: Volt | E74: 1,872 | F74: 2,119
C75: 当月机动车总销量 | E75: 11,584 | F75: 10,210
C76: 当月 PHEV 总销量
C77: 占机车市场比重
B80: 混动 | D80: 车型 | E80: 2017-01-01 | F80: 2017-02-01 | G80: 环比 | H80: 同比 | I80: YTD | J80: 12月占比
C81: DS | D81: DS5 | E81: 19 | F81: 22
C82: Ferrari | D82: LaFerrari | E82: 1 | F82: 1
C83: GMC | D83: GMC Sierra | E83: 0 | F83: 1
C84: Lincoln | D84: Lincoln MKZ | E84: 505 | F84: 597
C85: 宝马 | D85: BMW 5 Series | E85: 2 | F85: 11
C86: 本田 | D86: Accord | E86: 1,893 | F86: 1,958
D87: Civic | E87: 16 | F87: 8
D88: CR-Z | E88: 93 | F88: 120
D89: Insight | E89: 1 | F89: 0
D90: NSX | E90: 12 | F90: 6
C91: 标致 | D91: Peugeot 508 | E91: 20 | F91: 17
C92: 别克 | D92: LaCrosse | E92: 18 | F92: 12
D93: Regal | E93: 3 | F93: 0
C94: 大众 | D94: Jetta | E94: 13 | F94: 12
C95: 丰田 | D95: Aqua (Prius C) | E95: 1,277 | F95: 1,557
D96: Auris | E96: 1,851 | F96: 1,501
D97: Avalon | E97: 448 | F97: 464
D98: Camry | E98: 1,447 | F98: 1,474
D99: C-HR | E99: 2,354 | F99: 2,239
D100: Highlander | E100: 571 | F100: 1,339
D101: Prius | E101: 6,475 | F101: 7,094
D102: Prius alpha (Prius v/Prius +) | E102: 153 | F102: 109
D103: Prius Plus | E103: 10 | F103: 0
D104: Prius v | E104: 767 | F104: 892
D105: Prius/Prius alpha | E105: 408 | F105: 310
D106: RAV4 | E106: 4,081 | F106: 3,884
D107: Vitz (Yaris) | E107: 2,645 | F107: 2,431
C108: 福特 | D108: C-MAX | E108: 473 | F108: 676
D109: Fusion | E109: 4,891 | F109: 4,968
D110: Mondeo | E110: 24 | F110: 12
C111: 雷克萨斯 | D111: Lexus CT | E111: 1,140 | F111: 980
D112: Lexus ES | E112: 680 | F112: 947
D113: Lexus GS | E113: 10 | F113: 10
D114: Lexus IS | E114: 18 | F114: 6
D115: Lexus LS | E115: 3 | F115: 4
D116: Lexus NX | E116: 344 | F116: 328
D117: Lexus RC | E117: 2 | F117: 1
D118: Lexus RX | E118: 538 | F118: 604
C119: 铃木 | D119: Baleno | E119: 6 | F119: 10
D120: Ignis | E120: 201 | F120: 142
C121: 路虎 (2008-) | D121: Range Rover (Land Rover (2008-)) | E121: 2 | F121: 5
D122: Range Rover Sport (Land Rover (2008-)) | E122: 1 | F122: 0
C123: 梅赛德斯奔驰 | D123: C-Class | E123: 332 | F123: 122
D124: E-Class | E124: 1 | F124: 0
D125: S-Class | E125: 0 | F125: 1
C126: 讴歌 | D126: Acura RLX | E126: 11 | F126: 27
D127: NSX | E127: 51 | F127: 46
C128: 起亚 | D128: K5 | E128: 145 | F128: 174
D129: K7 | E129: 636 | F129: 697
D130: NIRO | E130: 3,892 | F130: 6,022
D131: Optima | E131: 279 | F131: 257
C132: 日产 | D132: Pathfinder | E132: 73 | F132: 90
C133: 斯巴鲁 | D133: XV | E133: 13 | F133: 6
C134: 现代 | D134: Hyundai Grandeur | E134: 211 | F134: 159
D135: Ioniq | E135: 941 | F135: 832
D136: Sonata | E136: 1,113 | F136: 1,471
D137: Sonata/YF Sonata/LF Sonata | E137: 224 | F137: 331
C138: 雪佛兰 | D138: Malibu | E138: 370 | F138: 566
C139: 英菲尼迪 | D139: Infiniti Q50 | E139: 206 | F139: 221
D140: Infiniti Q70 (M) | E140: 5 | F140: 4
D141: Infiniti QX60 (JX) | E141: 44 | F141: 53
C142: 当月机动车总销量 | E142: 41,963 | F142: 45,831
C143: 混合动力车型总销量
C144: 占机车市场比重
B147: FCV销量表 | D147: 车型 | E147: 2017-01-01 | F147: 2017-02-01 | G147: 环比 | H147: 同比 | I147: YTD | J147: 12月占比
C148: 本田 | D148: Clarity Fuel Cell | E148: 42 | F148: 29
C149: 丰田 | D149: MIRAI | E149: 100 | F149: 111
C150: 现代 | D150: Tucson (ix35) | E150: 7 | F150: 6
C151: 当月机动车总销量 | E151: 149 | F151: 146
C152: 当月 FCV 总销量
C153: 占机车市场比重

Sheet 节能网-欧洲市场（不含中国日本） (hidden)
C1: 返回首页
B3: EV销量表 | D3: 车型 | E3: 2017-01-01 | F3: 2017-02-01 | G3: 环比 | H3: 同比 | I3: YTD | J3: 12月占比
C4: Garia | D4: Utility City | E4: 1 | F4: 1
C5: Goupil | D5: N/A | E5: 0 | F5: 2
C6: smart | D6: fortwo | E6: 0 | F6: 0
C7: Stimbo | D7: ET 1000 | E7: 0 | F7: 1
C8: Tesla | D8: Model S | E8: 551 | F8: 583
D9: Model X | E9: 545 | F9: 210
D10: N/A | E10: 11 | F10: 15
C11: 宝马 | D11: BMW i3 | E11: 1,843 | F11: 987
C12: 标致 | D12: Peugeot iOn | E12: 201 | F12: 171
D13: Peugeot Partner | E13: 50 | F13: 49
C14: 大众 | D14: Golf | E14: 27 | F14: 46
D15: up! | E15: 141 | F15: 132
C16: 福特 | D16: Focus | E16: 0 | F16: 0
C17: 雷诺 | D17: Kangoo | E17: 138 | F17: 125
D18: ZOE | E18: 2,638 | F18: 2,540
C19: 梅赛德斯奔驰 | D19: B-Class | E19: 117 | F19: 95
C20: 起亚 | D20: Soul | E20: 328 | F20: 401
C21: 日产 | D21: Leaf | E21: 1,503 | F21: 995
D22: NV200 | E22: 173 | F22: 133
C23: 三菱 | D23: i-MiEV | E23: 38 | F23: 14
C24: 雪铁龙 | D24: Berlingo | E24: 20 | F24: 17
D25: C-ZERO | E25: 136 | F25: 112
D26: E-Mehari | E26: 13 | F26: 20
C27: 当月机动车总销量 | E27: 8,474 | F27: 6,649
C28: 当月电动车总销量
C29: 占机车市场比重
B33: PHEV销量表 | D33: 车型 | E33: 2017-01-01 | F33: 2017-02-01 | G33: 环比 | H33: 同比 | I33: YTD | J33: 12月占比
C34: Porsche (2013-) | D34: Cayenne | E34: 170 | F34: 67
D35: Panamera | E35: 19 | F35: 9
C36: 奥迪 | D36: Audi A3 | E36: 284 | F36: 241
D37: Audi Q7 | E37: 200 | F37: 72
C38: 宝马 | D38: 2 Series | E38: 501 | F38: 438
D39: 3 Series | E39: 366 | F39: 431
D40: BMW 7 Series | E40: 101 | F40: 52
D41: BMW i8 | E41: 82 | F41: 45
D42: X5 | E42: 333 | F42: 122
C43: 大众 | D43: Golf | E43: 99 | F43: 75
D44: Passat (Santana) | E44: 902 | F44: 560
C45: 丰田 | D45: Prius | E45: 24 | F45: 0
D46: Prius/Prius alpha | E46: 15 | F46: 11
C47: 梅赛德斯奔驰 | D47: C-Class | E47: 189 | F47: 136
D48: E-Class | E48: 161 | F48: 105
D49: GLC-Class (GLK-Class) | E49: 283 | F49: 218
D50: GLE-Class (M-Class/ML-Class) | E50: 100 | F50: 59
D51: S/CL-Class | E51: 24 | F51: 8
D52: S-Class | E52: 21 | F52: 24
C53: 欧宝 | D53: Ampera | E53: 13 | F53: 15
C54: 起亚 | D54: Optima | E54: 40 | F54: 25
C55: 三菱 | D55: Outlander | E55: 944 | F55: 589
C56: 沃尔沃汽车 (2011-) | D56: 60 series (Volvo Cars (2011-)) | E56: 7 | F56: 13
D57: S60 (Volvo Cars (2011-)) | E57: 0 | F57: 0
D58: S60/V60 (Volvo Cars (2011-)) | E58: 141 | F58: 108
D59: V60 (Volvo Cars (2011-)) | E59: 7 | F59: 0
D60: XC90 (Volvo Cars (2011-)) | E60: 596 | F60: 226
C61: 当月机动车总销量 | E61: 5,622 | F61: 3,649
C62: 当月 PHEV 总销量
C63: 占机车市场比重
B66: 混动 | D66: 车型 | E66: 2017-01-01 | F66: 2017-02-01 | G66: 环比 | H66: 同比 | I66: YTD | J66: 12月占比
C67: DS | D67: DS5 | E67: 19 | F67: 22
C68: Ferrari | D68: LaFerrari | E68: 1 | F68: 1
C69: 宝马 | D69: BMW 5 Series | E69: 2 | F69: 11
C70: 本田 | D70: NSX | E70: 12 | F70: 5
C71: 标致 | D71: Peugeot 508 | E71: 20 | F71: 17
C72: 丰田 | D72: Auris | E72: 1,851 | F72: 1,501
D73: C-HR | E73: 2,354 | F73: 2,239
D74: Prius | E74: 1,206 | F74: 744
D75: Prius alpha (Prius v/Prius +) | E75: 153 | F75: 109
D76: Prius Plus | E76: 10 | F76: 0
D77: Prius/Prius alpha | E77: 408 | F77: 310
D78: RAV4 | E78: 1,115 | F78: 699
D79: Vitz (Yaris) | E79: 2,645 | F79: 2,431
C80: 福特 | D80: Mondeo | E80: 24 | F80: 12
C81: 雷克萨斯 | D81: Lexus CT | E81: 614 | F81: 427
D82: Lexus GS | E82: 1 | F82: 2
D83: Lexus IS | E83: 18 | F83: 6
D84: Lexus NX | E84: 70 | F84: 68
D85: Lexus RC | E85: 2 | F85: 1
D86: Lexus RX | E86: 21 | F86: 18
C87: 铃木 | D87: Baleno | E87: 6 | F87: 10
D88: Ignis | E88: 201 | F88: 142
C89: 路虎 (2008-) | D89: Range Rover (Land Rover (2008-)) | E89: 2 | F89: 5
D90: Range Rover Sport (Land Rover (2008-)) | E90: 1 | F90: 0
C91: 梅赛德斯奔驰 | D91: C-Class | E91: 332 | F91: 122
D92: S-Class | E92: 0 | F92: 1
C93: 起亚 | D93: NIRO | E93: 2,877 | F93: 2,550
C94: 现代 | D94: Ioniq | E94: 671 | F94: 590
C95: 当月机动车总销量 | E95: 14,636 | F95: 12,043
C96: 混合动力车型总销量
C97: 占机车市场比重
B100: FCV | D100: 车型 | E100: 2017-01-01 | F100: 2017-02-01 | G100: 环比 | H100: 同比 | I100: YTD | J100: 12月占比
C101: 本田 | D101: Clarity Fuel Cell | E101: 0 | F101: 2
C102: 丰田 | D102: MIRAI | E102: 17 | F102: 1
C103: 现代 | D103: Tucson (ix35) | E103: 0 | F103: 1
C104: 当月机动车总销量 | E104: 17 | F104: 4
C105: 当月 FCV 总销量
C106: 占机车市场比重

Sheet 节能网-日本市场 (hidden)
C1: 返回首页
B3: 新能源汽车销量表 | D3: 车型 | E3: 2017-01-01 | F3: 2017-02-01 | G3: 环比 | H3: 同比 | I3: YTD | J3: 12月占比
C4: Daihatsu | D4: HV | E4: 4 | F4: 9
C5: Honda | D5: EV | E5: 1
D6: FCV | E6: 10 | F6: 25
D7: HV | E7: 16,460 | F7: 16,748
C8: Imported Cars | D8: EV | E8: 75 | F8: 129
D9: HV | E9: 110 | F9: 124
D10: PHV | E10: 300 | F10: 277
C11: Mazda | D11: HV | E11: 69 | F11: 57
C12: Mitsubishi | D12: HV | E12: 611 | F12: 775
D13: PHV | E13: 190 | F13: 459
C14: Nissan | D14: EV | E14: 1,431 | F14: 1,711
D15: HV | E15: 21,586 | F15: 22,254
C16: Subaru | D16: HV | E16: 187 | F16: 115
C17: Suzuki | D17: HV | E17: 6,359 | F17: 6,456
C18: Toyota | D18: FCV | E18: 104 | F18: 111
D19: HV | E19: 43,189 | F19: 57,330
D20: PHV | E20: 25 | F20: 3,230
C21: 当月机动车总销量 | E21: 90,711 | F21: 109,810
C22: 当月电动车总销量
C23: 占机车市场比重
B25: 说明：2017年开始日本的新能源汽车销量数据源一直在做调整，没有具体的细分数据。因此，无法统一到全球的列表中去。

Sheet _xltb_storage_ (hidden)
A1: XL Toolbox Settings
B2: export_preset | C2: <?xml version="1.0" encoding="utf-16"?> <Preset xmlns:xsd="http://www.w3.org/2001/XMLSchema" xmlns:xsi="http://www.w3.org/2001/XMLSchema-instance"> <Name>Png, 300 dpi, RGB, White canvas</Name> <Dpi>300</Dpi> <FileType>Png</FileType> <ColorSpace>Rgb</ColorSpace> <Transparency>WhiteCanvas</Transparency> <UseColorProfile>false</UseColorProfile> <ColorProfile>ProPhoto</ColorProfile> </Preset>
B3: export_path | C3: C:\Users\Administrator\Desktop\1111.png

Sheet 锂电材料价格变化汇总表
A1: 返回首页
EB4: ）
C6: 钴：长江有色市场（万/吨） | D6: 钴：钴粉（万/吨）SMM | E6: 钴：金川赞比亚（万/吨） | F6: 钴：电解钴（万/吨）SMM | G6: 钴：金属钴（万/吨）百川 | H6: 钴:MB钴(高级)(美元/磅） | I6: 钴:MB钴(低级)(美元/磅） | J6: 镍：上海金属网（万/吨） | K6: 锰：长江有色市场（万/吨） | L6: 碳酸锂：国产（99.5%）（万/吨） | M6: 碳酸锂：工业级（万/吨）百川 | N6: 碳酸锂：工业级（万/吨）SMM | O6: 碳酸锂：电池级（万/吨）百川 | P6: 碳酸锂：电池级（万/吨）SMM | Q6: 碳酸锂：国产主流厂商（万/吨） | R6: 金属锂（万/吨）百川 | S6: 金属锂（万/吨）SMM | T6: 氢氧化锂（万/吨）百川 | U6: 氢氧化锂（万/吨）SMM | V6: 氢氧化锂：国产（万/吨） | W6: 电解液：百川（万元/吨） | X6: 电解液：磷酸铁锂SMM（万元/吨） | Y6: 电解液：三元SMM（万元/吨） | Z6: 六氟磷酸锂：SMM（万/吨） | AA6: 六氟磷酸锂：百川（万/吨） | AB6: 碳酸二甲脂（万/吨） | AC6: 碳酸二甲脂（万/吨） | AD6: 碳酸乙烯酯（万/吨） | AE6: 前驱体：磷酸铁（万/吨）百川 | AF6: 前驱体：三元523型（万/吨） | AG6: 前驱体：三元622型（万/吨） | AH6: 前驱体：氧化钴（万/吨）SMM | AI6: 前驱体：四氧化三钴（万/吨）SMM | AJ6: 前驱体：氯化钴（万/吨） SMM | AK6: 前驱体：硫酸钴（万/吨） SMM | AL6: 前驱体：硫酸钴（万/吨） | AM6: 前驱体：硫酸镍（万/吨） | AN6: 正极：钴酸锂（万/吨）SMM | AO6: 正极：锰酸锂（万/吨）SMM | AP6: 正极：三元111型（万/吨） | AQ6: 正极：三元523型（万/吨） | AR6: 正极：三元622型（万/吨） | AS6: 正极：三元811型（万/吨） | AT6: 正极：磷酸铁锂（万/吨）SMM | AU6: 负极：人造石墨高端（万/吨） | AV6: 负极：人造石墨低端（万/吨） | AW6: 负极：人造石墨中端（万/吨） | AX6: 负极：天然石墨高端（万/吨） | AY6: 负极：天然石墨低端（万/吨） | AZ6: 负极：天然石墨中端（万/吨） | BA6: 碳负极材料（万/吨）（百川） | BB6: 针状焦（万/吨）（百川） | BC6: 石油焦（万/吨）（百川） | BD6: 负极：钛酸锂（万/吨） | BE6: 隔膜-湿法-百川（元/平） | BF6: 隔膜-干法-百川（元/平） | BG6: 隔膜：5um湿法/国产（元/平） | BH6: 隔膜：7um湿法/国产（元/平） | BI6: 隔膜：9um湿法/国产（元/平） | BJ6: 隔膜：14um干法/国产（元/平） | BK6: 电池：方形-三元-电池包（元/kwh） | BL6: 电池：软包-三元-电池包（元/kwh） | BM6: 电池：方形-铁锂-电池包（元/kwh） | BN6: 电池：圆柱18650-2500mAh（元/支） | BO6: 铜箔8μm（元/公斤） | BP6: 铜箔6μm（元/公斤） | BQ6: PVDF：LFP（万元/吨） | BR6: PVDF：三元（万元/吨） | BS6: 电解液：三元（万/吨） | BT6: 电解液：锰酸锂（万/吨） | BU6: 电解液：磷酸铁锂（万/吨）
B7: 2016-10-31 | C7: =IF((VLOOKUP(B7,镍钴锰价格!$N$4:$O$6007,2,FALSE)/10000)=0,"",(VLOOKUP(B7,镍钴锰价格!$N$4:$O$6007,2,FALSE)/10000)) -> 21.5 | D7: =IF((VLOOKUP(B7,镍钴锰价格!$Z$2581:$AO$4676,16,FALSE)/10)=0,"",(VLOOKUP(B7,镍钴锰价格!$Z$2581:$AO$4676,16,FALSE)/10)) -> 21.25 | E7: =IF((VLOOKUP(B7,镍钴锰价格!$N$4:$R$6007,5,FALSE)/10000)=0,"",(VLOOKUP(B7,镍钴锰价格!$N$4:$R$6007,5,FALSE)/10000)) -> 21.35 | F7: =IF((VLOOKUP(B7,镍钴锰价格!Z2581:AC4051,4,FALSE)/10000)=0,"",(VLOOKUP(B7,镍钴锰价格!Z2581:AC4051,4,FALSE)/10000)) -> 21.35 | G7: =IF((VLOOKUP(B7,镍钴锰价格!$N$4:$X$6007,11,FALSE)/10000)=0,"",(VLOOKUP(B7,镍钴锰价格!$N$4:$X$6007,11,FALSE)/10000)) -> 21.2 | H7: =IF((VLOOKUP(B7,镍钴锰价格!$AT$4:$AU$4571,2,FALSE))=0,"",(VLOOKUP(B7,镍钴锰价格!$AT$4:$AU$4571,2,FALSE))) ->  | I7: =IF((VLOOKUP(B7,镍钴锰价格!$AT$4:$AV$4571,3,FALSE))=0,"",(VLOOKUP(B7,镍钴锰价格!$AT$4:$AV$4571,3,FALSE))) ->  | J7: =IF(VLOOKUP(B7,镍钴锰价格!$C$4:$D$4800,2,FALSE)/10000=0,"",VLOOKUP(B7,镍钴锰价格!$C$4:$D$4800,2,FALSE)/10000) -> 8.225 | K7: =IF(VLOOKUP(B7,镍钴锰价格!$AQ$4:$AR$6007,2,FALSE)/10000=0,"",VLOOKUP(B7,镍钴锰价格!$AQ$4:$AR$6007,2,FALSE)/10000) -> 1.305 | L7: =IF(VLOOKUP(锂电材料价格变化汇总表!B7,前驱体价格!$G$4:$J$2480,4,FALSE)/10=0,"",VLOOKUP(锂电材料价格变化汇总表!B7,前驱体价格!$G$4:$J$2480,4,FALSE)/10) -> 11.5 | M7: =IF(VLOOKUP(锂电材料价格变化汇总表!B7,锂盐价格!$B$7:$Q$6005,16,FALSE)/10000=0,"",VLOOKUP(锂电材料价格变化汇总表!B7,锂盐价格!$B$7:$Q$6005,16,FALSE)/10000) -> 11.1 | N7: =IF(VLOOKUP(锂电材料价格变化汇总表!B7,锂盐价格!$B$3000:$U$6005,20,FALSE)/10000=0,"",VLOOKUP(锂电材料价格变化汇总表!B7,锂盐价格!$B$3000:$U$6005,20,FALSE)/10000) ->  | O7: =IF(VLOOKUP(锂电材料价格变化汇总表!B7,锂盐价格!$B$7:$R$6005,17,FALSE)/10000=0,"",VLOOKUP(锂电材料价格变化汇总表!B7,锂盐价格!$B$7:$R$6005,17,FALSE)/10000) -> 12.825 | P7: =IF(VLOOKUP(锂电材料价格变化汇总表!B7,锂盐价格!$B$3000:$V$6005,21,FALSE)/10000=0,"",VLOOKUP(锂电材料价格变化汇总表!B7,锂盐价格!$B$3000:$V$6005,21,FALSE)/10000) ->  | Q7: =IF(VLOOKUP(锂电材料价格变化汇总表!B7,前驱体价格!$G$4:$S$2480,13,FALSE)/10=0,"",VLOOKUP(锂电材料价格变化汇总表!B7,前驱体价格!$G$4:$S$2480,13,FALSE)/10) -> 12.75 | R7: =IF(VLOOKUP(锂电材料价格变化汇总表!B7,锂盐价格!$B$7:$P$6005,15,FALSE)/10000=0,"",VLOOKUP(锂电材料价格变化汇总表!B7,锂盐价格!$B$7:$P$6005,15,FALSE)/10000) -> 62.5 | S7: =IF(VLOOKUP(锂电材料价格变化汇总表!B7,锂盐价格!$B$3000:$T$6005,19,FALSE)=0,"",VLOOKUP(锂电材料价格变化汇总表!B7,锂盐价格!$B$3000:$T$6005,19,FALSE)) ->  | T7: =IF(VLOOKUP(B7,锂盐价格!$B7:$S4997,18,FALSE)/10000=0,"",VLOOKUP(B7,锂盐价格!$B7:$S4997,18,FALSE)/10000) -> 15.8 | U7: =IF(VLOOKUP(锂电材料价格变化汇总表!B7,锂盐价格!$B$3000:$W$6005,22,FALSE)=0,"",VLOOKUP(锂电材料价格变化汇总表!B7,锂盐价格!$B$3000:$W$6005,22,FALSE)) ->  | V7: =IF(VLOOKUP(锂电材料价格变化汇总表!B7,前驱体价格!$G$4:$V$2480,16,FALSE)/10=0,"",VLOOKUP(锂电材料价格变化汇总表!B7,前驱体价格!$G$4:$V$2480,16,FALSE)/10) -> 15.65 | W7: =VLOOKUP(B7,电解液价格!$B$3:$D$10000,2,FALSE)/10000 ->  | X7: =VLOOKUP(B7,电解液价格!$E$3:$G$10000,2,FALSE)/10000 ->  | Y7: =VLOOKUP(B7,电解液价格!$E$3:$G$10000,3,FALSE)/10000 ->  | Z7: =VLOOKUP(B7,六氟磷酸锂价格!$H$4:$I$2256,2,FALSE)/10000 ->  | AA7: =VLOOKUP(B7,六氟磷酸锂价格!$B$698:$F$99997,5,FALSE)/10000 ->  | AB7: =IF(VLOOKUP(锂电材料价格变化汇总表!B7,碳酸二甲酯!$B$4:$C$2996,2,FALSE)/10000=0,"",VLOOKUP(锂电材料价格变化汇总表!B7,碳酸二甲酯!$B$4:$C$2996,2,FALSE)/10000) -> 0.64 | AC7: =VLOOKUP(B7,碳酸二甲酯!$B$592:$O$3303,14,FALSE) -> 0.00 | AD7: =VLOOKUP(B7,碳酸二甲酯!$B$592:$M$2996,12,FALSE)/10000 -> 1.05 | AE7: =VLOOKUP(B7,前驱体价格!$BL$4:$BP$8848,5,FALSE) ->  | AF7: =VLOOKUP(B7,前驱体价格!$AD$4:$AP$8848,13,FALSE)/10 ->  | AG7: =IF(VLOOKUP(B7,前驱体价格!$BL$4:$BO$8848,4,FALSE)=0,"",VLOOKUP(B7,前驱体价格!$BL$4:$BO$8848,4,FALSE)) ->  | AH7: =IF(VLOOKUP(锂电材料价格变化汇总表!B7,前驱体价格!$BC$4:$BF$7671,4,FALSE)/10000=0,"",VLOOKUP(锂电材料价格变化汇总表!B7,前驱体价格!$BC$4:$BF$670,4,FALSE)/10000) -> 13.75 | AI7: =IF(VLOOKUP(B7,前驱体价格!$X$4:$AA$8848,4,FALSE)/10=0,"",VLOOKUP(B7,前驱体价格!$X$4:$AA$8848,4,FALSE)/10) -> 15.15 | AJ7: =IF(VLOOKUP(B7,前驱体价格!AW294:AZ779643,4,FALSE)/10=0,"",VLOOKUP(B7,前驱体价格!AW294:AZ779643,4,FALSE)/10) -> 4.6 | AK7: =IF(VLOOKUP(B7,前驱体价格!AR285:AU3563,4,FALSE)/10=0,"",VLOOKUP(B7,前驱体价格!AR285:AU3563,4,FALSE)/10) -> 4.0 | AL7: =IF(VLOOKUP(B7,前驱体价格!$AD$4:$AG$8848,4,FALSE)/10=0,"",VLOOKUP(B7,前驱体价格!$AD$4:$AG$8848,4,FALSE)/10) ->  | AM7: =VLOOKUP(B7,前驱体价格!$AD$4:$AJ$8848,6,FALSE)/10 ->  | AN7: =VLOOKUP(B7,正极材料价格!B:E,4,FALSE)/10 -> 19.4 | AO7: =VLOOKUP(B7,正极材料价格!AC:AE,2,FALSE)/10000 ->  | AP7: =VLOOKUP(B7,正极材料价格!I:P,4,) ->  | AQ7: =VLOOKUP(B7,正极材料价格!I:O,7,) ->  | AR7: =VLOOKUP(B7,正极材料价格!I:R,10,) ->  | AS7: =VLOOKUP(B7,正极材料价格!I:U,13,FALSE) ->  | AT7: =VLOOKUP(B7,正极材料价格!AC:AE,3,FALSE)/10000 ->  | AU7: =VLOOKUP(B7,负极价格!$K$6:$T$10000,4,FALSE)/10000 ->  | AV7: =VLOOKUP(B7,负极价格!$K$6:$T$10000,7,FALSE)/10000 ->  | AW7: =VLOOKUP(B7,负极价格!$K$6:$T$10000,10,FALSE)/10000 ->  | AX7: =VLOOKUP(B7,负极价格!$V$6:$AE$10000,10,FALSE)/10000 ->  | AY7: =VLOOKUP(B7,负极价格!$V$6:$AE$10000,7,FALSE)/10000 ->  | AZ7: =VLOOKUP(B7,负极价格!$V$6:$AE$10000,4,FALSE)/10000 ->  | BA7: =VLOOKUP(B7,负极价格!$A$4:$B$3240,2,FALSE)/10000 ->  | BD7: =VLOOKUP(B7,负极价格!$F$4:$I$2390,4,FALSE)/10000 ->  | BE7: =VLOOKUP(B7,隔膜价格!$A$1:$C$99434,2,FALSE) ->  | BF7: =VLOOKUP(B7,隔膜价格!$A$1:$C$99434,3,FALSE) ->  | BG7: =VLOOKUP(B7,隔膜价格!$Q$1:$U$99434,2,FALSE) ->  | BH7: =VLOOKUP(B7,隔膜价格!$Q$1:$U$99434,3,FALSE) ->  | BI7: =VLOOKUP(B7,隔膜价格!$Q$1:$U$99434,4,FALSE) ->  | BJ7: =VLOOKUP(B7,隔膜价格!$Q$1:$U$99434,5,FALSE) ->  | BK7: =VLOOKUP($B7,锂电池价格!$B$1:$F$1003,2,FALSE) ->  | BL7: =VLOOKUP($B7,锂电池价格!$B$1:$F$1003,3,FALSE) ->  | BM7: =VLOOKUP($B7,锂电池价格!$B$1:$F$1003,4,FALSE) ->  | BN7: =VLOOKUP($B7,锂电池价格!$B$1:$F$1003,5,FALSE) ->  | BO7: =VLOOKUP(B7,锂电辅料价格!Q:T,4,FALSE) ->  | BP7: =VLOOKUP(B7,锂电辅料价格!Q:W,7,FALSE) ->  | BQ7: =VLOOKUP(B7,锂电辅料价格!BB:BK,10,FALSE) ->  | BR7: =VLOOKUP(B7,锂电辅料价格!BB:BN,13,FALSE) ->  | BS7: =VLOOKUP(B7,电解液价格!$B$4:$B$4185,7,FALSE)/10000 ->  | BT7: =VLOOKUP(B7,电解液价格!$B$4:$B$4185,10,FALSE)/10000 ->  | BU7: =VLOOKUP(B7,电解液价格!$B$4:$B$4185,13,FALSE)/10000 -> 
B8: 2016-11-30 | C8: =IF((VLOOKUP(B8,镍钴锰价格!$N$4:$O$6007,2,FALSE)/10000)=0,"",(VLOOKUP(B8,镍钴锰价格!$N$4:$O$6007,2,FALSE)/10000)) -> 23.35 | D8: =IF((VLOOKUP(B8,镍钴锰价格!$Z$2581:$AO$4676,16,FALSE)/10)=0,"",(VLOOKUP(B8,镍钴锰价格!$Z$2581:$AO$4676,16,FALSE)/10)) -> 23.15 | E8: =IF((VLOOKUP(B8,镍钴锰价格!$N$4:$R$6007,5,FALSE)/10000)=0,"",(VLOOKUP(B8,镍钴锰价格!$N$4:$R$6007,5,FALSE)/10000)) -> 23.4 | F8: =IF((VLOOKUP(B8,镍钴锰价格!Z2582:AC4052,4,FALSE)/10000)=0,"",(VLOOKUP(B8,镍钴锰价格!Z2582:AC4052,4,FALSE)/10000)) -> 23.4 | G8: =IF((VLOOKUP(B8,镍钴锰价格!$N$4:$X$6007,11,FALSE)/10000)=0,"",(VLOOKUP(B8,镍钴锰价格!$N$4:$X$6007,11,FALSE)/10000)) -> 23 | H8: =IF((VLOOKUP(B8,镍钴锰价格!$AT$4:$AU$4571,2,FALSE))=0,"",(VLOOKUP(B8,镍钴锰价格!$AT$4:$AU$4571,2,FALSE))) -> 14.025 | I8: =IF((VLOOKUP(B8,镍钴锰价格!$AT$4:$AV$4571,3,FALSE))=0,"",(VLOOKUP(B8,镍钴锰价格!$AT$4:$AV$4571,3,FALSE))) -> 13.625 | J8: =IF(VLOOKUP(B8,镍钴锰价格!$C$4:$D$4800,2,FALSE)/10000=0,"",VLOOKUP(B8,镍钴锰价格!$C$4:$D$4800,2,FALSE)/10000) -> 9.125 | K8: =IF(VLOOKUP(B8,镍钴锰价格!$AQ$4:$AR$6007,2,FALSE)/10000=0,"",VLOOKUP(B8,镍钴锰价格!$AQ$4:$AR$6007,2,FALSE)/10000) -> 1.595 | L8: =IF(VLOOKUP(锂电材料价格变化汇总表!B8,前驱体价格!$G$4:$J$2480,4,FALSE)/10=0,"",VLOOKUP(锂电材料价格变化汇总表!B8,前驱体价格!$G$4:$J$2480,4,FALSE)/10) -> 11.7 | M8: =IF(VLOOKUP(锂电材料价格变化汇总表!B8,锂盐价格!$B$7:$Q$6005,16,FALSE)/10000=0,"",VLOOKUP(锂电材料价格变化汇总表!B8,锂盐价格!$B$7:$Q$6005,16,FALSE)/10000) -> 11.4 | N8: =IF(VLOOKUP(锂电材料价格变化汇总表!B8,锂盐价格!$B$3000:$U$6005,20,FALSE)/10000=0,"",VLOOKUP(锂电材料价格变化汇总表!B8,锂盐价格!$B$3000:$U$6005,20,FALSE)/10000) ->  | O8: =IF(VLOOKUP(锂电材料价格变化汇总表!B8,锂盐价格!$B$7:$R$6005,17,FALSE)/10000=0,"",VLOOKUP(锂电材料价格变化汇总表!B8,锂盐价格!$B$7:$R$6005,17,FALSE)/10000) -> 12.925 | P8: =IF(VLOOKUP(锂电材料价格变化汇总表!B8,锂盐价格!$B$3000:$V$6005,21,FALSE)/10000=0,"",VLOOKUP(锂电材料价格变化汇总表!B8,锂盐价格!$B$3000:$V$6005,21,FALSE)/10000) ->  | Q8: =IF(VLOOKUP(锂电材料价格变化汇总表!B8,前驱体价格!$G$4:$S$2480,13,FALSE)/10=0,"",VLOOKUP(锂电材料价格变化汇总表!B8,前驱体价格!$G$4:$S$2480,13,FALSE)/10) -> 12.9 | R8: =IF(VLOOKUP(锂电材料价格变化汇总表!B8,锂盐价格!$B$7:$P$6005,15,FALSE)/10000=0,"",VLOOKUP(锂电材料价格变化汇总表!B8,锂盐价格!$B$7:$P$6005,15,FALSE)/10000) -> 62.5 | S8: =IF(VLOOKUP(锂电材料价格变化汇总表!B8,锂盐价格!$B$3000:$T$6005,19,FALSE)=0,"",VLOOKUP(锂电材料价格变化汇总表!B8,锂盐价格!$B$3000:$T$6005,19,FALSE)) ->  | T8: =IF(VLOOKUP(B8,锂盐价格!$B8:$S4998,18,FALSE)/10000=0,"",VLOOKUP(B8,锂盐价格!$B8:$S4998,18,FALSE)/10000) -> 15.8 | U8: =IF(VLOOKUP(锂电材料价格变化汇总表!B8,锂盐价格!$B$3000:$W$6005,22,FALSE)=0,"",VLOOKUP(锂电材料价格变化汇总表!B8,锂盐价格!$B$3000:$W$6005,22,FALSE)) ->  | V8: =IF(VLOOKUP(锂电材料价格变化汇总表!B8,前驱体价格!$G$4:$V$2480,16,FALSE)/10=0,"",VLOOKUP(锂电材料价格变化汇总表!B8,前驱体价格!$G$4:$V$2480,16,FALSE)/10) -> 16.25 | W8: =VLOOKUP(B8,电解液价格!$B$3:$D$10000,2,FALSE)/10000 ->  | X8: =VLOOKUP(B8,电解液价格!$E$3:$G$10000,2,FALSE)/10000 ->  | Y8: =VLOOKUP(B8,电解液价格!$E$3:$G$10000,3,FALSE)/10000 ->  | Z8: =VLOOKUP(B8,六氟磷酸锂价格!$H$4:$I$2256,2,FALSE)/10000 ->  | AA8: =VLOOKUP(B8,六氟磷酸锂价格!$B$698:$F$99997,5,FALSE)/10000 ->  | AB8: =IF(VLOOKUP(锂电材料价格变化汇总表!B8,碳酸二甲酯!$B$4:$C$2996,2,FALSE)/10000=0,"",VLOOKUP(锂电材料价格变化汇总表!B8,碳酸二甲酯!$B$4:$C$2996,2,FALSE)/10000) -> 0.62 | AC8: =VLOOKUP(B8,碳酸二甲酯!$B$592:$O$3303,14,FALSE) -> 0.00 | AD8: =VLOOKUP(B8,碳酸二甲酯!$B$592:$M$2996,12,FALSE)/10000 -> 1.05 | AE8: =VLOOKUP(B8,前驱体价格!$BL$4:$BP$8848,5,FALSE) ->  | AF8: =VLOOKUP(B8,前驱体价格!$AD$4:$AP$8848,13,FALSE)/10 ->  | AG8: =IF(VLOOKUP(B8,前驱体价格!$BL$4:$BO$8848,4,FALSE)=0,"",VLOOKUP(B8,前驱体价格!$BL$4:$BO$8848,4,FALSE)) ->  | AH8: =IF(VLOOKUP(锂电材料价格变化汇总表!B8,前驱体价格!$BC$4:$BF$7671,4,FALSE)/10000=0,"",VLOOKUP(锂电材料价格变化汇总表!B8,前驱体价格!$BC$4:$BF$670,4,FALSE)/10000) -> 16.45 | AI8: =IF(VLOOKUP(B8,前驱体价格!$X$4:$AA$8848,4,FALSE)/10=0,"",VLOOKUP(B8,前驱体价格!$X$4:$AA$8848,4,FALSE)/10) -> 16.65 | AJ8: =IF(VLOOKUP(B8,前驱体价格!AW295:AZ779644,4,FALSE)/10=0,"",VLOOKUP(B8,前驱体价格!AW295:AZ779644,4,FALSE)/10) -> 5.1 | AK8: =IF(VLOOKUP(B8,前驱体价格!AR286:AU3564,4,FALSE)/10=0,"",VLOOKUP(B8,前驱体价格!AR286:AU3564,4,FALSE)/10) -> 4.4 | AL8: =IF(VLOOKUP(B8,前驱体价格!$AD$4:$AG$8848,4,FALSE)/10=0,"",VLOOKUP(B8,前驱体价格!$AD$4:$AG$8848,4,FALSE)/10) ->  | AM8: =VLOOKUP(B8,前驱体价格!$AD$4:$AJ$8848,6,FALSE)/10 ->  | AN8: =VLOOKUP(B8,正极材料价格!B:E,4,FALSE)/10 -> 20.3 | AO8: =VLOOKUP(B8,正极材料价格!AC:AE,2,FALSE)/10000 ->  | AP8: =VLOOKUP(B8,正极材料价格!I:P,4,) ->  | AQ8: =VLOOKUP(B8,正极材料价格!I:O,7,) ->  | AR8: =VLOOKUP(B8,正极材料价格!I:R,10,) ->  | AS8: =VLOOKUP(B8,正极材料价格!I:U,13,FALSE) ->  | AT8: =VLOOKUP(B8,正极材料价格!AC:AE,3,FALSE)/10000 ->  | AU8: =VLOOKUP(B8,负极价格!$K$6:$T$10000,4,FALSE)/10000 ->  | AV8: =VLOOKUP(B8,负极价格!$K$6:$T$10000,7,FALSE)/10000 ->  | AW8: =VLOOKUP(B8,负极价格!$K$6:$T$10000,10,FALSE)/10000 ->  | AX8: =VLOOKUP(B8,负极价格!$V$6:$AE$10000,10,FALSE)/10000 ->  | AY8: =VLOOKUP(B8,负极价格!$V$6:$AE$10000,7,FALSE)/10000 ->  | AZ8: =VLOOKUP(B8,负极价格!$V$6:$AE$10000,4,FALSE)/10000 ->  | BA8: =VLOOKUP(B8,负极价格!$A$4:$B$3240,2,FALSE)/10000 ->  | BD8: =VLOOKUP(B8,负极价格!$F$4:$I$2390,4,FALSE)/10000 ->  | BE8: =VLOOKUP(B8,隔膜价格!$A$1:$C$99434,2,FALSE) ->  | BF8: =VLOOKUP(B8,隔膜价格!$A$1:$C$99434,3,FALSE) ->  | BG8: =VLOOKUP(B8,隔膜价格!$Q$1:$U$99434,2,FALSE) ->  | BH8: =VLOOKUP(B8,隔膜价格!$Q$1:$U$99434,3,FALSE) ->  | BI8: =VLOOKUP(B8,隔膜价格!$Q$1:$U$99434,4,FALSE) ->  | BJ8: =VLOOKUP(B8,隔膜价格!$Q$1:$U$99434,5,FALSE) ->  | BK8: =VLOOKUP(B8,锂电池价格!$B$1:$F$1003,2,FALSE) ->  | BL8: =VLOOKUP($B8,锂电池价格!$B$1:$F$1003,3,FALSE) ->  | BM8: =VLOOKUP($B8,锂电池价格!$B$1:$F$1003,4,FALSE) ->  | BN8: =VLOOKUP($B8,锂电池价格!$B$1:$F$1003,5,FALSE) ->  | BO8: =VLOOKUP(B8,锂电辅料价格!Q:T,4,FALSE) ->  | BP8: =VLOOKUP(B8,锂电辅料价格!Q:W,7,FALSE) ->  | BQ8: =VLOOKUP(B8,锂电辅料价格!BB:BK,10,FALSE) ->  | BR8: =VLOOKUP(B8,锂电辅料价格!BB:BN,13,FALSE) ->  | BS8: =VLOOKUP(B8,电解液价格!$B$4:$B$4185,7,FALSE)/10000 ->  | BT8: =VLOOKUP(B8,电解液价格!$B$4:$B$4185,10,FALSE)/10000 ->  | BU8: =VLOOKUP(B8,电解液价格!$B$4:$B$4185,13,FALSE)/10000 -> 
B9: 2016-12-30 | C9: =IF((VLOOKUP(B9,镍钴锰价格!$N$4:$O$6007,2,FALSE)/10000)=0,"",(VLOOKUP(B9,镍钴锰价格!$N$4:$O$6007,2,FALSE)/10000)) -> 27.25 | D9: =IF((VLOOKUP(B9,镍钴锰价格!$Z$2581:$AO$4676,16,FALSE)/10)=0,"",(VLOOKUP(B9,镍钴锰价格!$Z$2581:$AO$4676,16,FALSE)/10)) -> 28.55 | E9: =IF((VLOOKUP(B9,镍钴锰价格!$N$4:$R$6007,5,FALSE)/10000)=0,"",(VLOOKUP(B9,镍钴锰价格!$N$4:$R$6007,5,FALSE)/10000)) -> 27.1 | F9: =IF((VLOOKUP(B9,镍钴锰价格!Z2583:AC4053,4,FALSE)/10000)=0,"",(VLOOKUP(B9,镍钴锰价格!Z2583:AC4053,4,FALSE)/10000)) -> 27.1 | G9: =IF((VLOOKUP(B9,镍钴锰价格!$N$4:$X$6007,11,FALSE)/10000)=0,"",(VLOOKUP(B9,镍钴锰价格!$N$4:$X$6007,11,FALSE)/10000)) -> 27.3 | H9: =IF((VLOOKUP(B9,镍钴锰价格!$AT$4:$AU$4571,2,FALSE))=0,"",(VLOOKUP(B9,镍钴锰价格!$AT$4:$AU$4571,2,FALSE))) ->  | I9: =IF((VLOOKUP(B9,镍钴锰价格!$AT$4:$AV$4571,3,FALSE))=0,"",(VLOOKUP(B9,镍钴锰价格!$AT$4:$AV$4571,3,FALSE))) ->  | J9: =IF(VLOOKUP(B9,镍钴锰价格!$C$4:$D$4800,2,FALSE)/10000=0,"",VLOOKUP(B9,镍钴锰价格!$C$4:$D$4800,2,FALSE)/10000) -> 8.535 | K9: =IF(VLOOKUP(B9,镍钴锰价格!$AQ$4:$AR$6007,2,FALSE)/10000=0,"",VLOOKUP(B9,镍钴锰价格!$AQ$4:$AR$6007,2,FALSE)/10000) -> 1.685 | L9: =IF(VLOOKUP(锂电材料价格变化汇总表!B9,前驱体价格!$G$4:$J$2480,4,FALSE)/10=0,"",VLOOKUP(锂电材料价格变化汇总表!B9,前驱体价格!$G$4:$J$2480,4,FALSE)/10) -> 11.7 | M9: =IF(VLOOKUP(锂电材料价格变化汇总表!B9,锂盐价格!$B$7:$Q$6005,16,FALSE)/10000=0,"",VLOOKUP(锂电材料价格变化汇总表!B9,锂盐价格!$B$7:$Q$6005,16,FALSE)/10000) -> 11.65 | N9: =IF(VLOOKUP(锂电材料价格变化汇总表!B9,锂盐价格!$B$3000:$U$6005,20,FALSE)/10000=0,"",VLOOKUP(锂电材料价格变化汇总表!B9,锂盐价格!$B$3000:$U$6005,20,FALSE)/10000) ->  | O9: =IF(VLOOKUP(锂电材料价格变化汇总表!B9,锂盐价格!$B$7:$R$6005,17,FALSE)/10000=0,"",VLOOKUP(锂电材料价格变化汇总表!B9,锂盐价格!$B$7:$R$6005,17,FALSE)/10000) -> 13.075 | P9: =IF(VLOOKUP(锂电材料价格变化汇总表!B9,锂盐价格!$B$3000:$V$6005,21,FALSE)/10000=0,"",VLOOKUP(锂电材料价格变化汇总表!B9,锂盐价格!$B$3000:$V$6005,21,FALSE)/10000) ->  | Q9: =IF(VLOOKUP(锂电材料价格变化汇总表!B9,前驱体价格!$G$4:$S$2480,13,FALSE)/10=0,"",VLOOKUP(锂电材料价格变化汇总表!B9,前驱体价格!$G$4:$S$2480,13,FALSE)/10) -> 12.9 | R9: =IF(VLOOKUP(锂电材料价格变化汇总表!B9,锂盐价格!$B$7:$P$6005,15,FALSE)/10000=0,"",VLOOKUP(锂电材料价格变化汇总表!B9,锂盐价格!$B$7:$P$6005,15,FALSE)/10000) -> 65 | S9: =IF(VLOOKUP(锂电材料价格变化汇总表!B9,锂盐价格!$B$3000:$T$6005,19,FALSE)=0,"",VLOOKUP(锂电材料价格变化汇总表!B9,锂盐价格!$B$3000:$T$6005,19,FALSE)) ->  | T9: =IF(VLOOKUP(B9,锂盐价格!$B9:$S4999,18,FALSE)/10000=0,"",VLOOKUP(B9,锂盐价格!$B9:$S4999,18,FALSE)/10000) -> 15.8 | U9: =IF(VLOOKUP(锂电材料价格变化汇总表!B9,锂盐价格!$B$3000:$W$6005,22,FALSE)=0,"",VLOOKUP(锂电材料价格变化汇总表!B9,锂盐价格!$B$3000:$W$6005,22,FALSE)) ->  | V9: =IF(VLOOKUP(锂电材料价格变化汇总表!B9,前驱体价格!$G$4:$V$2480,16,FALSE)/10=0,"",VLOOKUP(锂电材料价格变化汇总表!B9,前驱体价格!$G$4:$V$2480,16,FALSE)/10) -> 16.25 | W9: =VLOOKUP(B9,电解液价格!$B$3:$D$10000,2,FALSE)/10000 ->  | X9: =VLOOKUP(B9,电解液价格!$E$3:$G$10000,2,FALSE)/10000 ->  | Y9: =VLOOKUP(B9,电解液价格!$E$3:$G$10000,3,FALSE)/10000 ->  | Z9: =VLOOKUP(B9,六氟磷酸锂价格!$H$4:$I$2256,2,FALSE)/10000 ->  | AA9: =VLOOKUP(B9,六氟磷酸锂价格!$B$698:$F$99997,5,FALSE)/10000 ->  | AB9: =IF(VLOOKUP(锂电材料价格变化汇总表!B9,碳酸二甲酯!$B$4:$C$2996,2,FALSE)/10000=0,"",VLOOKUP(锂电材料价格变化汇总表!B9,碳酸二甲酯!$B$4:$C$2996,2,FALSE)/10000) -> 0.63 | AC9: =VLOOKUP(B9,碳酸二甲酯!$B$592:$O$3303,14,FALSE) -> 0.00 | AD9: =VLOOKUP(B9,碳酸二甲酯!$B$592:$M$2996,12,FALSE)/10000 -> 1.05 | AE9: =VLOOKUP(B9,前驱体价格!$BL$4:$BP$8848,5,FALSE) ->  | AF9: =VLOOKUP(B9,前驱体价格!$AD$4:$AP$8848,13,FALSE)/10 ->  | AG9: =IF(VLOOKUP(B9,前驱体价格!$BL$4:$BO$8848,4,FALSE)=0,"",VLOOKUP(B9,前驱体价格!$BL$4:$BO$8848,4,FALSE)) ->  | AH9: =IF(VLOOKUP(锂电材料价格变化汇总表!B9,前驱体价格!$BC$4:$BF$7671,4,FALSE)/10000=0,"",VLOOKUP(锂电材料价格变化汇总表!B9,前驱体价格!$BC$4:$BF$7671,4,FALSE)/10000) -> 17.95 | AI9: =IF(VLOOKUP(B9,前驱体价格!$X$4:$AA$8848,4,FALSE)/10=0,"",VLOOKUP(B9,前驱体价格!$X$4:$AA$8848,4,FALSE)/10) -> 19.05 | AJ9: =IF(VLOOKUP(B9,前驱体价格!AW296:AZ779645,4,FALSE)/10=0,"",VLOOKUP(B9,前驱体价格!AW296:AZ779645,4,FALSE)/10) -> 6.1 | AK9: =IF(VLOOKUP(B9,前驱体价格!AR287:AU3565,4,FALSE)/10=0,"",VLOOKUP(B9,前驱体价格!AR287:AU3565,4,FALSE)/10) -> 5.4 | AL9: =IF(VLOOKUP(B9,前驱体价格!$AD$4:$AG$8848,4,FALSE)/10=0,"",VLOOKUP(B9,前驱体价格!$AD$4:$AG$8848,4,FALSE)/10) ->  | AM9: =VLOOKUP(B9,前驱体价格!$AD$4:$AJ$8848,6,FALSE)/10 ->  | AN9: =VLOOKUP(B9,正极材料价格!B:E,4,FALSE)/10 -> 22.2 | AO9: =VLOOKUP(B9,正极材料价格!AC:AE,2,FALSE)/10000 ->  | AP9: =VLOOKUP(B9,正极材料价格!I:P,4,) ->  | AQ9: =VLOOKUP(B9,正极材料价格!I:O,7,) ->  | AR9: =VLOOKUP(B9,正极材料价格!I:R,10,) ->  | AS9: =VLOOKUP(B9,正极材料价格!I:U,13,FALSE) ->  | AT9: =VLOOKUP(B9,正极材料价格!AC:AE,3,FALSE)/10000 ->  | AU9: =VLOOKUP(B9,负极价格!$K$6:$T$10000,4,FALSE)/10000 ->  | AV9: =VLOOKUP(B9,负极价格!$K$6:$T$10000,7,FALSE)/10000 ->  | AW9: =VLOOKUP(B9,负极价格!$K$6:$T$10000,10,FALSE)/10000 ->  | AX9: =VLOOKUP(B9,负极价格!$V$6:$AE$10000,10,FALSE)/10000 ->  | AY9: =VLOOKUP(B9,负极价格!$V$6:$AE$10000,7,FALSE)/10000 ->  | AZ9: =VLOOKUP(B9,负极价格!$V$6:$AE$10000,4,FALSE)/10000 ->  | BA9: =VLOOKUP(B9,负极价格!$A$4:$B$3240,2,FALSE)/10000 ->  | BD9: =VLOOKUP(B9,负极价格!$F$4:$I$2390,4,FALSE)/10000 ->  | BE9: =VLOOKUP(B9,隔膜价格!$A$1:$C$99434,2,FALSE) ->  | BF9: =VLOOKUP(B9,隔膜价格!$A$1:$C$99434,3,FALSE) ->  | BG9: =VLOOKUP(B9,隔膜价格!$Q$1:$U$99434,2,FALSE) ->  | BH9: =VLOOKUP(B9,隔膜价格!$Q$1:$U$99434,3,FALSE) ->  | BI9: =VLOOKUP(B9,隔膜价格!$Q$1:$U$99434,4,FALSE) ->  | BJ9: =VLOOKUP(B9,隔膜价格!$Q$1:$U$99434,5,FALSE) ->  | BK9: =VLOOKUP(B9,锂电池价格!$B$1:$F$1003,2,FALSE) ->  | BL9: =VLOOKUP($B9,锂电池价格!$B$1:$F$1003,3,FALSE) ->  | BM9: =VLOOKUP($B9,锂电池价格!$B$1:$F$1003,4,FALSE) ->  | BN9: =VLOOKUP($B9,锂电池价格!$B$1:$F$1003,5,FALSE) ->  | BO9: =VLOOKUP(B9,锂电辅料价格!Q:T,4,FALSE) ->  | BP9: =VLOOKUP(B9,锂电辅料价格!Q:W,7,FALSE) ->  | BQ9: =VLOOKUP(B9,锂电辅料价格!BB:BK,10,FALSE) ->  | BR9: =VLOOKUP(B9,锂电辅料价格!BB:BN,13,FALSE) ->  | BS9: =VLOOKUP(B9,电解液价格!$B$4:$B$4185,7,FALSE)/10000 ->  | BT9: =VLOOKUP(B9,电解液价格!$B$4:$B$4185,10,FALSE)/10000 ->  | BU9: =VLOOKUP(B9,电解液价格!$B$4:$B$4185,13,FALSE)/10000 -> 
A10: 年初 | B10: 2023-01-03 | C10: =IF((VLOOKUP(B10,镍钴锰价格!$N$4:$O$6007,2,FALSE)/10000)=0,"",(VLOOKUP(B10,镍钴锰价格!$N$4:$O$6007,2,FALSE)/10000)) -> 32.6 | D10: =IF((VLOOKUP(B10,镍钴锰价格!$Z$2581:$AO$4676,16,FALSE)/10)=0,"",(VLOOKUP(B10,镍钴锰价格!$Z$2581:$AO$4676,16,FALSE)/10)) -> 30.95 | E10: =IF((VLOOKUP(B10,镍钴锰价格!$N$4:$R$6007,5,FALSE)/10000)=0,"",(VLOOKUP(B10,镍钴锰价格!$N$4:$R$6007,5,FALSE)/10000)) -> 32.2 | F10: =IF((VLOOKUP(B10,镍钴锰价格!Z2584:AC5150,4,FALSE)/10000)=0,"",(VLOOKUP(B10,镍钴锰价格!Z2584:AC5150,4,FALSE)/10000)) -> 32.2 | G10: =IF((VLOOKUP(B10,镍钴锰价格!$N$4:$X$6007,11,FALSE)/10000)=0,"",(VLOOKUP(B10,镍钴锰价格!$N$4:$X$6007,11,FALSE)/10000)) -> 32.45 | H10: =IF((VLOOKUP(B10,镍钴锰价格!$AT$4:$AU$4571,2,FALSE))=0,"",(VLOOKUP(B10,镍钴锰价格!$AT$4:$AU$4571,2,FALSE))) -> 21.75 | I10: =IF((VLOOKUP(B10,镍钴锰价格!$AT$4:$AV$4571,3,FALSE))=0,"",(VLOOKUP(B10,镍钴锰价格!$AT$4:$AV$4571,3,FALSE))) -> 19.35 | J10: =IF(VLOOKUP(B10,镍钴锰价格!$C$4:$D$4800,2,FALSE)/10000=0,"",VLOOKUP(B10,镍钴锰价格!$C$4:$D$4800,2,FALSE)/10000) -> 23.66 | K10: =IF(VLOOKUP(B10,镍钴锰价格!$AQ$4:$AR$6007,2,FALSE)/10000=0,"",VLOOKUP(B10,镍钴锰价格!$AQ$4:$AR$6007,2,FALSE)/10000) -> 1.71 | L10: =IF(VLOOKUP(锂电材料价格变化汇总表!B10,前驱体价格!$G$4:$J$2480,4,FALSE)/10=0,"",VLOOKUP(锂电材料价格变化汇总表!B10,前驱体价格!$G$4:$J$2480,4,FALSE)/10) -> 48.75 | M10: =IF(VLOOKUP(锂电材料价格变化汇总表!B10,锂盐价格!$B$7:$Q$6005,16,FALSE)/10000=0,"",VLOOKUP(锂电材料价格变化汇总表!B10,锂盐价格!$B$7:$Q$6005,16,FALSE)/10000) -> 48 | N10: =IF(VLOOKUP(锂电材料价格变化汇总表!B10,锂盐价格!$B$3000:$U$6005,20,FALSE)/10000=0,"",VLOOKUP(锂电材料价格变化汇总表!B10,锂盐价格!$B$3000:$U$6005,20,FALSE)/10000) -> 47.55 | O10: =IF(VLOOKUP(锂电材料价格变化汇总表!B10,锂盐价格!$B$7:$R$6005,17,FALSE)/10000=0,"",VLOOKUP(锂电材料价格变化汇总表!B10,锂盐价格!$B$7:$R$6005,17,FALSE)/10000) -> 49 | P10: =IF(VLOOKUP(锂电材料价格变化汇总表!B10,锂盐价格!$B$3000:$V$6005,21,FALSE)/10000=0,"",VLOOKUP(锂电材料价格变化汇总表!B10,锂盐价格!$B$3000:$V$6005,21,FALSE)/10000) -> 51 | Q10: =IF(VLOOKUP(锂电材料价格变化汇总表!B10,前驱体价格!$G$4:$S$2480,13,FALSE)/10=0,"",VLOOKUP(锂电材料价格变化汇总表!B10,前驱体价格!$G$4:$S$2480,13,FALSE)/10) -> 50.75 | R10: =IF(VLOOKUP(锂电材料价格变化汇总表!B10,锂盐价格!$B$7:$P$6005,15,FALSE)/10000=0,"",VLOOKUP(锂电材料价格变化汇总表!B10,锂盐价格!$B$7:$P$6005,15,FALSE)/10000) -> 295 | S10: =IF(VLOOKUP(锂电材料价格变化汇总表!B10,锂盐价格!$B$3000:$T$6005,19,FALSE)=0,"",VLOOKUP(锂电材料价格变化汇总表!B10,锂盐价格!$B$3000:$T$6005,19,FALSE)) -> 293 | T10: =IF(VLOOKUP(B10,锂盐价格!$B10:$S5000,18,FALSE)/10000=0,"",VLOOKUP(B10,锂盐价格!$B10:$S5000,18,FALSE)/10000) -> 55.1 | U10: =IF(VLOOKUP(锂电材料价格变化汇总表!B10,锂盐价格!$B$3000:$W$6005,22,FALSE)=0,"",VLOOKUP(锂电材料价格变化汇总表!B10,锂盐价格!$B$3000:$W$6005,22,FALSE)) -> 53.8 | V10: =IF(VLOOKUP(锂电材料价格变化汇总表!B10,前驱体价格!$G$4:$V$2480,16,FALSE)/10=0,"",VLOOKUP(锂电材料价格变化汇总表!B10,前驱体价格!$G$4:$V$2480,16,FALSE)/10) -> 52.5 | W10: =VLOOKUP(B10,电解液价格!$B$3:$D$10000,2,FALSE)/10000 -> 5.6 | X10: =VLOOKUP(B10,电解液价格!$E$3:$G$10000,2,FALSE)/10000 -> 5.25 | Y10: =VLOOKUP(B10,电解液价格!$E$3:$G$10000,3,FALSE)/10000 -> 6.9 | Z10: =VLOOKUP(B10,六氟磷酸锂价格!$H$4:$I$2256,2,FALSE)/10000 -> 23 | AA10: =VLOOKUP(B10,六氟磷酸锂价格!$B$698:$F$99997,5,FALSE)/10000 -> 24.2 | AB10: =IF(VLOOKUP(锂电材料价格变化汇总表!B10,碳酸二甲酯!$B$4:$C$5996,2,FALSE)/10000=0,"",VLOOKUP(锂电材料价格变化汇总表!B10,碳酸二甲酯!$B$4:$C$5996,2,FALSE)/10000) -> 0.52 | AC10: =VLOOKUP(B10,碳酸二甲酯!$B$592:$O$3303,14,FALSE) -> 0.55 | AD10: =VLOOKUP(B10,碳酸二甲酯!$B$592:$M$5996,12,FALSE)/10000 -> 0.54 | AE10: =VLOOKUP(B10,前驱体价格!$BL$4:$BP$8848,5,FALSE)/10000 -> 2.2 | AF10: =VLOOKUP(B10,前驱体价格!$AD$4:$AP$8848,13,FALSE)/10 -> 10.3 | AG10: =IF(VLOOKUP(B10,前驱体价格!$BL$4:$BO$8848,4,FALSE)=0,"",VLOOKUP(B10,前驱体价格!$BL$4:$BO$8848,4,FALSE)) -> 11.5 | AH10: =IF(VLOOKUP(锂电材料价格变化汇总表!B10,前驱体价格!$BC$4:$BF$7671,4,FALSE)/10000=0,"",VLOOKUP(锂电材料价格变化汇总表!B10,前驱体价格!$BC$4:$BF$7671,4,FALSE)/10000) -> 19.55 | AI10: =IF(VLOOKUP(B10,前驱体价格!$X$4:$AA$8848,4,FALSE)/10=0,"",VLOOKUP(B10,前驱体价格!$X$4:$AA$8848,4,FALSE)/10) -> 19.65 | AJ10: =IF(VLOOKUP(B10,前驱体价格!AW297:AZ779646,4,FALSE)/10=0,"",VLOOKUP(B10,前驱体价格!AW297:AZ779646,4,FALSE)/10) -> 5.7 | AK10: =IF(VLOOKUP(B10,前驱体价格!AR288:AU3566,4,FALSE)/10=0,"",VLOOKUP(B10,前驱体价格!AR288:AU3566,4,FALSE)/10) -> 4.8 | AL10: =IF(VLOOKUP(B10,前驱体价格!$AD$4:$AG$8848,4,FALSE)/10=0,"",VLOOKUP(B10,前驱体价格!$AD$4:$AG$8848,4,FALSE)/10) -> 4.9 | AM10: =VLOOKUP(B10,前驱体价格!$AD$4:$AJ$8848,6,FALSE)/10 -> 3.9 | AN10: =VLOOKUP(B10,正极材料价格!B:E,4,FALSE)/10 -> 42.5 | AO10: =VLOOKUP(B10,正极材料价格!AC:AE,2,FALSE)/10000 -> 14.3 | AP10: =VLOOKUP(B10,正极材料价格!I:P,4,) -> 34.9 | AQ10: =VLOOKUP(B10,正极材料价格!I:O,7,) -> 35 | AR10: =VLOOKUP(B10,正极材料价格!I:R,10,) -> 37.6 | AS10: =VLOOKUP(B10,正极材料价格!I:U,13,FALSE) -> 40 | AT10: =VLOOKUP(B10,正极材料价格!AC:AE,3,FALSE)/10000 -> 16.4 | AU10: =VLOOKUP(B10,负极价格!$K$6:$T$10000,4,FALSE)/10000 -> 7.25 | AV10: =VLOOKUP(B10,负极价格!$K$6:$T$10000,7,FALSE)/10000 -> 3.6 | AW10: =VLOOKUP(B10,负极价格!$K$6:$T$10000,10,FALSE)/10000 -> 5.55 | AX10: =VLOOKUP(B10,负极价格!$V$6:$AE$10000,10,FALSE)/10000 -> 6.1 | AY10: =VLOOKUP(B10,负极价格!$V$6:$AE$10000,7,FALSE)/10000 -> 3.25 | AZ10: =VLOOKUP(B10,负极价格!$V$6:$AE$10000,4,FALSE)/10000 -> 5.1 | BA10: =VLOOKUP(B10,负极价格!$A$4:$B$3240,2,FALSE)/10000 -> 5.32 | BB10: =VLOOKUP(B10,负极价格!$A$4:$D$3240,3,FALSE)/10000 -> 1.17 | BC10: =VLOOKUP(B10,负极价格!$A$4:$D$3240,4,FALSE)/10000 -> 0.36 | BD10: =VLOOKUP(B10,负极价格!$F$4:$I$2390,4,FALSE)/10000 -> 11.5 | BE10: =VLOOKUP(B10,隔膜价格!$A$1:$C$99434,2,FALSE) -> 1.35 | BF10: =VLOOKUP(B10,隔膜价格!$A$1:$C$99434,3,FALSE) -> 0.95 | BG10: =VLOOKUP(B10,隔膜价格!$Q$1:$U$99434,2,FALSE) -> 2.95 | BH10: =VLOOKUP(B10,隔膜价格!$Q$1:$U$99434,3,FALSE) -> 1.95 | BI10: =VLOOKUP(B10,隔膜价格!$Q$1:$U$99434,4,FALSE) -> 1.28 | BJ10: =VLOOKUP(B10,隔膜价格!$Q$1:$U$99434,5,FALSE) -> 0.83 | BK10: =VLOOKUP(B10,锂电池价格!$B$1:$F$1003,2,FALSE) -> 1.1 | BL10: =VLOOKUP($B10,锂电池价格!$B$1:$F$1003,3,FALSE) -> 1.15 | BM10: =VLOOKUP($B10,锂电池价格!$B$1:$F$1003,4,FALSE) -> 0.99 | BN10: =VLOOKUP($B10,锂电池价格!$B$1:$F$1003,5,FALSE) -> 10.35 | BO10: =VLOOKUP(B10,锂电辅料价格!Q:Z,10,FALSE) -> 29.5 | BP10: =VLOOKUP(B10,锂电辅料价格!Q:AC,13,FALSE) -> 36 | BQ10: =VLOOKUP(B10,锂电辅料价格!BB:BK,10,FALSE) -> 36.5 | BR10: =VLOOKUP(B10,锂电辅料价格!BB:BN,13,FALSE) -> 47.5 | BS10: =VLOOKUP(B10,电解液价格!$B$4:$B$4185,7,FALSE)/10000 ->  | BT10: =VLOOKUP(B10,电解液价格!$B$4:$B$4185,10,FALSE)/10000 ->  | BU10: =VLOOKUP(B10,电解液价格!$B$4:$B$4185,13,FALSE)/10000 -> 
B11: 2019-09-30 | C11: =IF((VLOOKUP(B11,镍钴锰价格!$N$4:$O$6007,2,FALSE)/10000)=0,"",(VLOOKUP(B11,镍钴锰价格!$N$4:$O$6007,2,FALSE)/10000)) -> 31 | D11: =IF((VLOOKUP(B11,镍钴锰价格!$Z$2581:$AO$4676,16,FALSE)/10)=0,"",(VLOOKUP(B11,镍钴锰价格!$Z$2581:$AO$4676,16,FALSE)/10)) -> 30.5 | E11: =IF((VLOOKUP(B11,镍钴锰价格!$N$4:$R$6007,5,FALSE)/10000)=0,"",(VLOOKUP(B11,镍钴锰价格!$N$4:$R$6007,5,FALSE)/10000)) -> 29 | F11: =IF((VLOOKUP(B11,镍钴锰价格!Z2584:AC4054,4,FALSE)/10000)=0,"",(VLOOKUP(B11,镍钴锰价格!Z2584:AC4054,4,FALSE)/10000)) -> 29 | G11: =IF((VLOOKUP(B11,镍钴锰价格!$N$4:$X$6007,11,FALSE)/10000)=0,"",(VLOOKUP(B11,镍钴锰价格!$N$4:$X$6007,11,FALSE)/10000)) -> 28.35 | H11: =IF((VLOOKUP(B11,镍钴锰价格!$AT$4:$AU$4571,2,FALSE))=0,"",(VLOOKUP(B11,镍钴锰价格!$AT$4:$AU$4571,2,FALSE))) -> 18.25 | I11: =IF((VLOOKUP(B11,镍钴锰价格!$AT$4:$AV$4571,3,FALSE))=0,"",(VLOOKUP(B11,镍钴锰价格!$AT$4:$AV$4571,3,FALSE))) -> 17.85 | J11: =IF(VLOOKUP(B11,镍钴锰价格!$C$4:$D$4800,2,FALSE)/10000=0,"",VLOOKUP(B11,镍钴锰价格!$C$4:$D$4800,2,FALSE)/10000) -> 13.72 | K11: =IF(VLOOKUP(B11,镍钴锰价格!$AQ$4:$AR$6007,2,FALSE)/10000=0,"",VLOOKUP(B11,镍钴锰价格!$AQ$4:$AR$6007,2,FALSE)/10000) -> 1.245 | L11: =IF(VLOOKUP(锂电材料价格变化汇总表!B11,前驱体价格!$G$4:$J$2480,4,FALSE)/10=0,"",VLOOKUP(锂电材料价格变化汇总表!B11,前驱体价格!$G$4:$J$2480,4,FALSE)/10) -> 5.05 | M11: =IF(VLOOKUP(锂电材料价格变化汇总表!B11,锂盐价格!$B$7:$Q$6005,16,FALSE)/10000=0,"",VLOOKUP(锂电材料价格变化汇总表!B11,锂盐价格!$B$7:$Q$6005,16,FALSE)/10000) -> 5.03 | N11: =IF(VLOOKUP(锂电材料价格变化汇总表!B11,锂盐价格!$B$3000:$U$6005,20,FALSE)/10000=0,"",VLOOKUP(锂电材料价格变化汇总表!B11,锂盐价格!$B$3000:$U$6005,20,FALSE)/10000) ->  | O11: =IF(VLOOKUP(锂电材料价格变化汇总表!B11,锂盐价格!$B$7:$R$6005,17,FALSE)/10000=0,"",VLOOKUP(锂电材料价格变化汇总表!B11,锂盐价格!$B$7:$R$6005,17,FALSE)/10000) -> 5.95 | P11: =IF(VLOOKUP(锂电材料价格变化汇总表!B11,锂盐价格!$B$3000:$V$6005,21,FALSE)/10000=0,"",VLOOKUP(锂电材料价格变化汇总表!B11,锂盐价格!$B$3000:$V$6005,21,FALSE)/10000) ->  | Q11: =IF(VLOOKUP(锂电材料价格变化汇总表!B11,前驱体价格!$G$4:$S$2480,13,FALSE)/10=0,"",VLOOKUP(锂电材料价格变化汇总表!B11,前驱体价格!$G$4:$S$2480,13,FALSE)/10) -> 5.75 | R11: =IF(VLOOKUP(锂电材料价格变化汇总表!B11,锂盐价格!$B$7:$P$6005,15,FALSE)/10000=0,"",VLOOKUP(锂电材料价格变化汇总表!B11,锂盐价格!$B$7:$P$6005,15,FALSE)/10000) -> 62 | S11: =IF(VLOOKUP(锂电材料价格变化汇总表!B11,锂盐价格!$B$3000:$T$6005,19,FALSE)=0,"",VLOOKUP(锂电材料价格变化汇总表!B11,锂盐价格!$B$3000:$T$6005,19,FALSE)) -> 58.5 | T11: =IF(VLOOKUP(B11,锂盐价格!$B11:$S5001,18,FALSE)/10000=0,"",VLOOKUP(B11,锂盐价格!$B11:$S5001,18,FALSE)/10000) -> 6.9 | U11: =IF(VLOOKUP(锂电材料价格变化汇总表!B11,锂盐价格!$B$3000:$W$6005,22,FALSE)=0,"",VLOOKUP(锂电材料价格变化汇总表!B11,锂盐价格!$B$3000:$W$6005,22,FALSE)) -> 5.5 | V11: =IF(VLOOKUP(锂电材料价格变化汇总表!B11,前驱体价格!$G$4:$V$2480,16,FALSE)/10=0,"",VLOOKUP(锂电材料价格变化汇总表!B11,前驱体价格!$G$4:$V$2480,16,FALSE)/10) -> 6.65 | W11: =VLOOKUP(B11,电解液价格!$B$3:$D$10000,2,FALSE)/10000 -> 3.9 | X11: =VLOOKUP(B11,电解液价格!$E$3:$G$10000,2,FALSE)/10000 ->  | Y11: =VLOOKUP(B11,电解液价格!$E$3:$G$10000,3,FALSE)/10000 ->  | Z11: =VLOOKUP(B11,六氟磷酸锂价格!$H$4:$I$2256,2,FALSE)/10000 ->  | AA11: =VLOOKUP(B11,六氟磷酸锂价格!$B$698:$F$99997,5,FALSE)/10000 -> 9.5 | AB11: =IF(VLOOKUP(锂电材料价格变化汇总表!B11,碳酸二甲酯!$B$4:$C$2996,2,FALSE)/10000=0,"",VLOOKUP(锂电材料价格变化汇总表!B11,碳酸二甲酯!$B$4:$C$2996,2,FALSE)/10000) -> 0.82 | AC11: =VLOOKUP(B11,碳酸二甲酯!$B$592:$O$3303,14,FALSE) -> 0.00 | AD11: =VLOOKUP(B11,碳酸二甲酯!$B$592:$M$2996,12,FALSE)/10000 -> 1.28 | AE11: =VLOOKUP(B11,前驱体价格!$BL$4:$BP$8848,5,FALSE) -> 0 | AF11: =VLOOKUP(B11,前驱体价格!$AD$4:$AP$8848,13,FALSE)/10 -> 10.15 | AG11: =IF(VLOOKUP(B11,前驱体价格!$BL$4:$BO$8848,4,FALSE)=0,"",VLOOKUP(B11,前驱体价格!$BL$4:$BO$8848,4,FALSE)) -> 10.9 | AH11: =IF(VLOOKUP(锂电材料价格变化汇总表!B11,前驱体价格!$BC$4:$BF$7671,4,FALSE)/10000=0,"",VLOOKUP(锂电材料价格变化汇总表!B11,前驱体价格!$BC$4:$BF$7671,4,FALSE)/10000) -> 22 | AI11: =IF(VLOOKUP(B11,前驱体价格!$X$4:$AA$8848,4,FALSE)/10=0,"",VLOOKUP(B11,前驱体价格!$X$4:$AA$8848,4,FALSE)/10) -> 22.3 | AJ11: =IF(VLOOKUP(B11,前驱体价格!AW297:AZ779646,4,FALSE)/10=0,"",VLOOKUP(B11,前驱体价格!AW297:AZ779646,4,FALSE)/10) -> 7.3 | AK11: =IF(VLOOKUP(B11,前驱体价格!AR288:AU3566,4,FALSE)/10=0,"",VLOOKUP(B11,前驱体价格!AR288:AU3566,4,FALSE)/10) -> 5.8 | AL11: =IF(VLOOKUP(B11,前驱体价格!$AD$4:$AG$8848,4,FALSE)/10=0,"",VLOOKUP(B11,前驱体价格!$AD$4:$AG$8848,4,FALSE)/10) -> 6.0 | AM11: =VLOOKUP(B11,前驱体价格!$AD$4:$AJ$8848,6,FALSE)/10 -> 3.20 | AN11: =VLOOKUP(B11,正极材料价格!B:E,4,FALSE)/10 -> 23.5 | AO11: =VLOOKUP(B11,正极材料价格!AC:AE,2,FALSE)/10000 -> 4.4 | AP11: =VLOOKUP(B11,正极材料价格!I:P,4,) -> 16.75 | AQ11: =VLOOKUP(B11,正极材料价格!I:O,7,) -> 15.25 | AR11: =VLOOKUP(B11,正极材料价格!I:R,10,) -> 17.75 | AS11: =VLOOKUP(B11,正极材料价格!I:U,13,FALSE) -> 0 | AT11: =VLOOKUP(B11,正极材料价格!AC:AE,3,FALSE)/10000 -> 4.55 | AU11: =VLOOKUP(B11,负极价格!$K$6:$T$10000,4,FALSE)/10000 -> 7 | AV11: =VLOOKUP(B11,负极价格!$K$6:$T$10000,7,FALSE)/10000 -> 2.55 | AW11: =VLOOKUP(B11,负极价格!$K$6:$T$10000,10,FALSE)/10000 -> 4.7 | AX11: =VLOOKUP(B11,负极价格!$V$6:$AE$10000,10,FALSE)/10000 -> 6.75 | AY11: =VLOOKUP(B11,负极价格!$V$6:$AE$10000,7,FALSE)/10000 -> 2.4 | AZ11: =VLOOKUP(B11,负极价格!$V$6:$AE$10000,4,FALSE)/10000 -> 4.5 | BA11: =VLOOKUP(B11,负极价格!$A$4:$B$3240,2,FALSE)/10000 -> 4.43 | BB11: =VLOOKUP(B11,负极价格!$A$4:$D$3240,3,FALSE)/10000 -> 0.00 | BC11: =VLOOKUP(B11,负极价格!$A$4:$D$3240,4,FALSE)/10000 -> 0.00 | BD11: =VLOOKUP(B11,负极价格!$F$4:$I$2390,4,FALSE)/10000 -> 11.50 | BE11: =VLOOKUP(B11,隔膜价格!$A$1:$C$99434,2,FALSE) -> 1.90 | BF11: =VLOOKUP(B11,隔膜价格!$A$1:$C$99434,3,FALSE) -> 1.10 | BG11: =VLOOKUP(B11,隔膜价格!$Q$1:$U$99434,2,FALSE) ->  | BH11: =VLOOKUP(B11,隔膜价格!$Q$1:$U$99434,3,FALSE) ->  | BI11: =VLOOKUP(B11,隔膜价格!$Q$1:$U$99434,4,FALSE) ->  | BJ11: =VLOOKUP(B11,隔膜价格!$Q$1:$U$99434,5,FALSE) ->  | BK11: =VLOOKUP(B11,锂电池价格!$B$1:$F$1003,2,FALSE) ->  | BL11: =VLOOKUP($B11,锂电池价格!$B$1:$F$1003,3,FALSE) ->  | BM11: =VLOOKUP($B11,锂电池价格!$B$1:$F$1003,4,FALSE) ->  | BN11: =VLOOKUP($B11,锂电池价格!$B$1:$F$1003,5,FALSE) ->  | BO11: =VLOOKUP(B11,锂电辅料价格!Q:Z,10,FALSE) -> 0 | BP11: =VLOOKUP(B11,锂电辅料价格!Q:AC,13,FALSE) -> 0 | BQ11: =VLOOKUP(B11,锂电辅料价格!BB:BK,10,FALSE) -> 37 | BR11: =VLOOKUP(B11,锂电辅料价格!BB:BN,13,FALSE) -> 23.5 | BS11: =VLOOKUP(B11,电解液价格!$B$4:$B$4185,7,FALSE)/10000 ->  | BT11: =VLOOKUP(B11,电解液价格!$B$4:$B$4185,10,FALSE)/10000 ->  | BU11: =VLOOKUP(B11,电解液价格!$B$4:$B$4185,13,FALSE)/10000 -> 
A12: 月初 | B12: 2023-02-01 | C12: =IF((VLOOKUP(B12,镍钴锰价格!$N$4:$O$6007,2,FALSE)/10000)=0,"",(VLOOKUP(B12,镍钴锰价格!$N$4:$O$6007,2,FALSE)/10000)) -> 29.9 | D12: =IF((VLOOKUP(B12,镍钴锰价格!$Z$2581:$AO$4676,16,FALSE)/10)=0,"",(VLOOKUP(B12,镍钴锰价格!$Z$2581:$AO$4676,16,FALSE)/10)) -> 28.5 | E12: =IF((VLOOKUP(B12,镍钴锰价格!$N$4:$R$6007,5,FALSE)/10000)=0,"",(VLOOKUP(B12,镍钴锰价格!$N$4:$R$6007,5,FALSE)/10000)) -> 29.6 | F12: =IF((VLOOKUP(B12,镍钴锰价格!Z4:AC5003,4,FALSE)/10000)=0,"",(VLOOKUP(B12,镍钴锰价格!Z4:AC5003,4,FALSE)/10000)) -> 29.6 | G12: =IF((VLOOKUP(B12,镍钴锰价格!$N$4:$X$6007,11,FALSE)/10000)=0,"",(VLOOKUP(B12,镍钴锰价格!$N$4:$X$6007,11,FALSE)/10000)) -> 30 | H12: =IF((VLOOKUP(B12,镍钴锰价格!$AT$4:$AU$4571,2,FALSE))=0,"",(VLOOKUP(B12,镍钴锰价格!$AT$4:$AU$4571,2,FALSE))) -> 18.38 | I12: =IF((VLOOKUP(B12,镍钴锰价格!$AT$4:$AV$4571,3,FALSE))=0,"",(VLOOKUP(B12,镍钴锰价格!$AT$4:$AV$4571,3,FALSE))) -> 17.4 | J12: =IF(VLOOKUP(B12,镍钴锰价格!$C$4:$D$4800,2,FALSE)/10000=0,"",VLOOKUP(B12,镍钴锰价格!$C$4:$D$4800,2,FALSE)/10000) -> 23.34 | K12: =IF(VLOOKUP(B12,镍钴锰价格!$AQ$4:$AR$6007,2,FALSE)/10000=0,"",VLOOKUP(B12,镍钴锰价格!$AQ$4:$AR$6007,2,FALSE)/10000) -> 1.7 | L12: =IF(VLOOKUP(锂电材料价格变化汇总表!B12,前驱体价格!$G$4:$J$2480,4,FALSE)/10=0,"",VLOOKUP(锂电材料价格变化汇总表!B12,前驱体价格!$G$4:$J$2480,4,FALSE)/10) -> 45.5 | M12: =IF(VLOOKUP(锂电材料价格变化汇总表!B12,锂盐价格!$B$3000:$Q$6005,16,FALSE)/10000=0,"",VLOOKUP(锂电材料价格变化汇总表!B12,锂盐价格!$B$3000:$Q$6005,16,FALSE)/10000) -> 45 | N12: =IF(VLOOKUP(锂电材料价格变化汇总表!B12,锂盐价格!$B$3000:$U$6005,20,FALSE)/10000=0,"",VLOOKUP(锂电材料价格变化汇总表!B12,锂盐价格!$B$3000:$U$6005,20,FALSE)/10000) -> 43.9 | O12: =IF(VLOOKUP(锂电材料价格变化汇总表!B12,锂盐价格!$B$3000:$R$6005,17,FALSE)/10000=0,"",VLOOKUP(锂电材料价格变化汇总表!B12,锂盐价格!$B$3000:$R$6005,17,FALSE)/10000) -> 46.5 | P12: =IF(VLOOKUP(锂电材料价格变化汇总表!B12,锂盐价格!$B$3000:$V$6005,21,FALSE)/10000=0,"",VLOOKUP(锂电材料价格变化汇总表!B12,锂盐价格!$B$3000:$V$6005,21,FALSE)/10000) -> 46.75 | Q12: =IF(VLOOKUP(锂电材料价格变化汇总表!B12,前驱体价格!$G$4:$S$2480,13,FALSE)/10=0,"",VLOOKUP(锂电材料价格变化汇总表!B12,前驱体价格!$G$4:$S$2480,13,FALSE)/10) -> 47.7 | R12: =IF(VLOOKUP(锂电材料价格变化汇总表!B12,锂盐价格!$B$3000:$P$6005,15,FALSE)/10000=0,"",VLOOKUP(锂电材料价格变化汇总表!B12,锂盐价格!$B$3000:$P$6005,15,FALSE)/10000) -> 294 | S12: =IF(VLOOKUP(锂电材料价格变化汇总表!B12,锂盐价格!$B$3000:$T$6005,19,FALSE)=0,"",VLOOKUP(锂电材料价格变化汇总表!B12,锂盐价格!$B$3000:$T$6005,19,FALSE)) -> 291.25 | T12: =IF(VLOOKUP(B12,锂盐价格!$B2996:$S5001,18,FALSE)/10000=0,"",VLOOKUP(B12,锂盐价格!$B2996:$S5001,18,FALSE)/10000) -> 51.1 | U12: =IF(VLOOKUP(锂电材料价格变化汇总表!B12,锂盐价格!$B$3000:$W$6005,22,FALSE)=0,"",VLOOKUP(锂电材料价格变化汇总表!B12,锂盐价格!$B$3000:$W$6005,22,FALSE)) -> 48.2 | V12: =IF(VLOOKUP(锂电材料价格变化汇总表!B12,前驱体价格!$G$4:$V$2480,16,FALSE)/10=0,"",VLOOKUP(锂电材料价格变化汇总表!B12,前驱体价格!$G$4:$V$2480,16,FALSE)/10) -> 48.45 | W12: =VLOOKUP(B12,电解液价格!$B$3:$D$10000,2,FALSE)/10000 -> 4.9 | X12: =VLOOKUP(B12,电解液价格!$E$3:$G$10000,2,FALSE)/10000 -> 5.00 | Y12: =VLOOKUP(B12,电解液价格!$E$3:$G$10000,3,FALSE)/10000 -> 6.9 | Z12: =VLOOKUP(B12,六氟磷酸锂价格!$H$4:$I$2256,2,FALSE)/10000 -> 21.65 | AA12: =VLOOKUP(B12,六氟磷酸锂价格!$B$698:$F$99997,5,FALSE)/10000 -> 20 | AB12: =IF(VLOOKUP(锂电材料价格变化汇总表!B12,碳酸二甲酯!$B$4:$C$3303,2,FALSE)/10000=0,"",VLOOKUP(锂电材料价格变化汇总表!B12,碳酸二甲酯!$B$4:$C$3303,2,FALSE)/10000) -> 0.52 | AC12: =VLOOKUP(B12,碳酸二甲酯!$B$592:$O$3303,14,FALSE) -> 0.56 | AD12: =VLOOKUP(B12,碳酸二甲酯!$B$592:$M$3303,12,FALSE)/10000 -> 0.51 | AE12: =VLOOKUP(B12,前驱体价格!$BL$4:$BP$8848,5,FALSE)/10000 -> 1.875 | AF12: =VLOOKUP(B12,前驱体价格!$AD$4:$AP$8848,13,FALSE)/10 -> 9.35 | AG12: =IF(VLOOKUP(B12,前驱体价格!$BL$4:$BO$8848,4,FALSE)=0,"",VLOOKUP(B12,前驱体价格!$BL$4:$BO$8848,4,FALSE)) -> 10.35 | AH12: =IF(VLOOKUP(锂电材料价格变化汇总表!B12,前驱体价格!$BC$4:$BF$10001,4,FALSE)/10000=0,"",VLOOKUP(锂电材料价格变化汇总表!B12,前驱体价格!$BC$4:$BF$10001,4,FALSE)/10000) -> 17.5 | AI12: =IF(VLOOKUP(B12,前驱体价格!$X$4:$AA$8848,4,FALSE)/10=0,"",VLOOKUP(B12,前驱体价格!$X$4:$AA$8848,4,FALSE)/10) -> 17.5 | AJ12: =IF(VLOOKUP(B12,前驱体价格!AW297:AZ779646,4,FALSE)/10=0,"",VLOOKUP(B12,前驱体价格!AW297:AZ779646,4,FALSE)/10) -> 5.0 | AK12: =IF(VLOOKUP(B12,前驱体价格!AR288:AU3566,4,FALSE)/10=0,"",VLOOKUP(B12,前驱体价格!AR288:AU3566,4,FALSE)/10) -> 4.1 | AL12: =IF(VLOOKUP(B12,前驱体价格!$AD$4:$AG$8848,4,FALSE)/10=0,"",VLOOKUP(B12,前驱体价格!$AD$4:$AG$8848,4,FALSE)/10) -> 4.2 | AM12: =VLOOKUP(B12,前驱体价格!$AD$4:$AJ$8848,6,FALSE)/10 -> 3.75 | AN12: =VLOOKUP(B12,正极材料价格!B:E,4,FALSE)/10 -> 41.7 | AO12: =VLOOKUP(B12,正极材料价格!AC:AE,2,FALSE)/10000 -> 12.55 | AP12: =VLOOKUP(B12,正极材料价格!I:P,4,) -> 32.6 | AQ12: =VLOOKUP(B12,正极材料价格!I:O,7,) -> 32.7 | AR12: =VLOOKUP(B12,正极材料价格!I:R,10,) -> 35.75 | AS12: =VLOOKUP(B12,正极材料价格!I:U,13,FALSE) -> 38.5 | AT12: =VLOOKUP(B12,正极材料价格!AC:AE,3,FALSE)/10000 -> 14.8 | AU12: =VLOOKUP(B12,负极价格!$K$6:$T$10000,4,FALSE)/10000 -> 7.25 | AV12: =VLOOKUP(B12,负极价格!$K$6:$T$10000,7,FALSE)/10000 -> 3.6 | AW12: =VLOOKUP(B12,负极价格!$K$6:$T$10000,10,FALSE)/10000 -> 5.55 | AX12: =VLOOKUP(B12,负极价格!$V$6:$AE$10000,10,FALSE)/10000 -> 6.1 | AY12: =VLOOKUP(B12,负极价格!$V$6:$AE$10000,7,FALSE)/10000 -> 3.05 | AZ12: =VLOOKUP(B12,负极价格!$V$6:$AE$10000,4,FALSE)/10000 -> 4.9 | BA12: =VLOOKUP(B12,负极价格!$A$4:$B$3240,2,FALSE)/10000 -> 5.32 | BB12: =VLOOKUP(B12,负极价格!$A$4:$D$3240,3,FALSE)/10000 -> 1.16 | BC12: =VLOOKUP(B12,负极价格!$A$4:$D$3240,4,FALSE)/10000 -> 0.36 | BD12: =VLOOKUP(B12,负极价格!$F$4:$I$2390,4,FALSE)/10000 -> 11.50 | BE12: =VLOOKUP(B12,隔膜价格!$A$1:$C$99434,2,FALSE) -> 1.35 | BF12: =VLOOKUP(B12,隔膜价格!$A$1:$C$99434,3,FALSE) -> 0.95 | BG12: =VLOOKUP(B12,隔膜价格!$Q$1:$U$99434,2,FALSE) -> 2.95 | BH12: =VLOOKUP(B12,隔膜价格!$Q$1:$U$99434,3,FALSE) -> 1.95 | BI12: =VLOOKUP(B12,隔膜价格!$Q$1:$U$99434,4,FALSE) -> 1.28 | BJ12: =VLOOKUP(B12,隔膜价格!$Q$1:$U$99434,5,FALSE) -> 0.83 | BK12: =VLOOKUP(B12,锂电池价格!$B$1:$F$1003,2,FALSE) -> 1.07 | BL12: =VLOOKUP($B12,锂电池价格!$B$1:$F$1003,3,FALSE) -> 1.12 | BM12: =VLOOKUP($B12,锂电池价格!$B$1:$F$1003,4,FALSE) -> 0.95 | BN12: =VLOOKUP($B12,锂电池价格!$B$1:$F$1003,5,FALSE) -> 10.25 | BO12: =VLOOKUP(B12,锂电辅料价格!Q:Z,10,FALSE) -> 26.5 | BP12: =VLOOKUP(B12,锂电辅料价格!Q:AC,13,FALSE) -> 35 | BQ12: =VLOOKUP(B12,锂电辅料价格!BB:BK,10,FALSE) -> 33.5 | BR12: =VLOOKUP(B12,锂电辅料价格!BB:BN,13,FALSE) -> 47.5 | BS12: =VLOOKUP(B12,电解液价格!$B$4:$B$4185,7,FALSE)/10000 ->  | BT12: =VLOOKUP(B12,电解液价格!$B$4:$B$4185,10,FALSE)/10000 ->  | BU12: =VLOOKUP(B12,电解液价格!$B$4:$B$4185,13,FALSE)/10000 -> 
B13: 2021-11-23 | C13: =IF((VLOOKUP(B13,镍钴锰价格!$N$4:$O$6007,2,FALSE)/10000)=0,"",(VLOOKUP(B13,镍钴锰价格!$N$4:$O$6007,2,FALSE)/10000)) -> 42.7 | D13: =IF((VLOOKUP(B13,镍钴锰价格!$Z$2581:$AO$4676,16,FALSE)/10)=0,"",(VLOOKUP(B13,镍钴锰价格!$Z$2581:$AO$4676,16,FALSE)/10)) -> 48 | E13: =IF((VLOOKUP(B13,镍钴锰价格!$N$4:$R$6007,5,FALSE)/10000)=0,"",(VLOOKUP(B13,镍钴锰价格!$N$4:$R$6007,5,FALSE)/10000)) -> 41.35 | F13: =IF((VLOOKUP(B13,镍钴锰价格!Z2585:AC4155,4,FALSE)/10000)=0,"",(VLOOKUP(B13,镍钴锰价格!Z2585:AC4155,4,FALSE)/10000)) -> 41.35 | G13: =IF((VLOOKUP(B13,镍钴锰价格!$N$4:$X$6007,11,FALSE)/10000)=0,"",(VLOOKUP(B13,镍钴锰价格!$N$4:$X$6007,11,FALSE)/10000)) -> 43.23 | H13: =IF((VLOOKUP(B13,镍钴锰价格!$AT$4:$AU$4571,2,FALSE))=0,"",(VLOOKUP(B13,镍钴锰价格!$AT$4:$AU$4571,2,FALSE))) -> 30.25 | I13: =IF((VLOOKUP(B13,镍钴锰价格!$AT$4:$AV$4571,3,FALSE))=0,"",(VLOOKUP(B13,镍钴锰价格!$AT$4:$AV$4571,3,FALSE))) -> 30.25 | J13: =IF(VLOOKUP(B13,镍钴锰价格!$C$4:$D$4800,2,FALSE)/10000=0,"",VLOOKUP(B13,镍钴锰价格!$C$4:$D$4800,2,FALSE)/10000) -> 15.36 | K13: =IF(VLOOKUP(B13,镍钴锰价格!$AQ$4:$AR$6007,2,FALSE)/10000=0,"",VLOOKUP(B13,镍钴锰价格!$AQ$4:$AR$6007,2,FALSE)/10000) -> 4.21 | L13: =IF(VLOOKUP(锂电材料价格变化汇总表!B13,前驱体价格!$G$4:$J$2480,4,FALSE)/10=0,"",VLOOKUP(锂电材料价格变化汇总表!B13,前驱体价格!$G$4:$J$2480,4,FALSE)/10) -> 19.25 | M13: =IF(VLOOKUP(锂电材料价格变化汇总表!B13,锂盐价格!$B$3000:$Q$6005,16,FALSE)/10000=0,"",VLOOKUP(锂电材料价格变化汇总表!B13,锂盐价格!$B$3000:$Q$6005,16,FALSE)/10000) -> 19 | N13: =IF(VLOOKUP(锂电材料价格变化汇总表!B13,锂盐价格!$B$3000:$U$6005,20,FALSE)/10000=0,"",VLOOKUP(锂电材料价格变化汇总表!B13,锂盐价格!$B$3000:$U$6005,20,FALSE)/10000) -> 18.95 | O13: =IF(VLOOKUP(锂电材料价格变化汇总表!B13,锂盐价格!$B$3000:$R$6005,17,FALSE)/10000=0,"",VLOOKUP(锂电材料价格变化汇总表!B13,锂盐价格!$B$3000:$R$6005,17,FALSE)/10000) -> 20.2362 | P13: =IF(VLOOKUP(锂电材料价格变化汇总表!B13,锂盐价格!$B$3000:$V$6005,21,FALSE)/10000=0,"",VLOOKUP(锂电材料价格变化汇总表!B13,锂盐价格!$B$3000:$V$6005,21,FALSE)/10000) -> 20 | Q13: =IF(VLOOKUP(锂电材料价格变化汇总表!B13,前驱体价格!$G$4:$S$2480,13,FALSE)/10=0,"",VLOOKUP(锂电材料价格变化汇总表!B13,前驱体价格!$G$4:$S$2480,13,FALSE)/10) -> 19.75 | R13: =IF(VLOOKUP(锂电材料价格变化汇总表!B13,锂盐价格!$B$3000:$P$6005,15,FALSE)/10000=0,"",VLOOKUP(锂电材料价格变化汇总表!B13,锂盐价格!$B$3000:$P$6005,15,FALSE)/10000) -> 110 | S13: =IF(VLOOKUP(锂电材料价格变化汇总表!B13,锂盐价格!$B$3000:$T$6005,19,FALSE)=0,"",VLOOKUP(锂电材料价格变化汇总表!B13,锂盐价格!$B$3000:$T$6005,19,FALSE)) -> 105.5 | T13: =IF(VLOOKUP(B13,锂盐价格!$B2997:$S5002,18,FALSE)/10000=0,"",VLOOKUP(B13,锂盐价格!$B2997:$S5002,18,FALSE)/10000) -> 19.9 | U13: =IF(VLOOKUP(锂电材料价格变化汇总表!B13,锂盐价格!$B$3000:$W$6005,22,FALSE)=0,"",VLOOKUP(锂电材料价格变化汇总表!B13,锂盐价格!$B$3000:$W$6005,22,FALSE)) -> 18.8 | V13: =IF(VLOOKUP(锂电材料价格变化汇总表!B13,前驱体价格!$G$4:$V$2480,16,FALSE)/10=0,"",VLOOKUP(锂电材料价格变化汇总表!B13,前驱体价格!$G$4:$V$2480,16,FALSE)/10) -> 19.35 | W13: =VLOOKUP(B13,电解液价格!$B$3:$D$10000,2,FALSE)/10000 -> 11.8 | X13: =VLOOKUP(B13,电解液价格!$E$3:$G$10000,2,FALSE)/10000 -> 11.90 | Y13: =VLOOKUP(B13,电解液价格!$E$3:$G$10000,3,FALSE)/10000 -> 12.8 | Z13: =VLOOKUP(B13,六氟磷酸锂价格!$H$4:$I$2256,2,FALSE)/10000 -> 55 | AA13: =VLOOKUP(B13,六氟磷酸锂价格!$B$698:$F$99997,5,FALSE)/10000 -> 55 | AB13: =IF(VLOOKUP(锂电材料价格变化汇总表!B13,碳酸二甲酯!$B$4:$C$2996,2,FALSE)/10000=0,"",VLOOKUP(锂电材料价格变化汇总表!B13,碳酸二甲酯!$B$4:$C$2996,2,FALSE)/10000) -> 1.1 | AC13: =VLOOKUP(B13,碳酸二甲酯!$B$592:$O$3303,14,FALSE) -> 1.45 | AD13: =VLOOKUP(B13,碳酸二甲酯!$B$592:$M$3303,12,FALSE)/10000 -> 1.95 | AE13: =VLOOKUP(B13,前驱体价格!$BL$4:$BP$8848,5,FALSE)/10000 -> 2.4 | AF13: =VLOOKUP(B13,前驱体价格!$AD$4:$AP$8848,13,FALSE)/10 -> 13.2 | AG13: =IF(VLOOKUP(B13,前驱体价格!$BL$4:$BO$8848,4,FALSE)=0,"",VLOOKUP(B13,前驱体价格!$BL$4:$BO$8848,4,FALSE)) -> 13.75 | AH13: =IF(VLOOKUP(锂电材料价格变化汇总表!B13,前驱体价格!$BC$4:$BF$6721,4,FALSE)/10000=0,"",VLOOKUP(锂电材料价格变化汇总表!B13,前驱体价格!$BC$4:$BF$6721,4,FALSE)/10000) -> 33.75 | AI13: =IF(VLOOKUP(B13,前驱体价格!$X$4:$AA$8848,4,FALSE)/10=0,"",VLOOKUP(B13,前驱体价格!$X$4:$AA$8848,4,FALSE)/10) -> 34.15 | AJ13: =IF(VLOOKUP(B13,前驱体价格!AW298:AZ779647,4,FALSE)/10=0,"",VLOOKUP(B13,前驱体价格!AW298:AZ779647,4,FALSE)/10) -> 10.9 | AK13: =IF(VLOOKUP(B13,前驱体价格!AR289:AU3567,4,FALSE)/10=0,"",VLOOKUP(B13,前驱体价格!AR289:AU3567,4,FALSE)/10) -> 9.3 | AL13: =IF(VLOOKUP(B13,前驱体价格!$AD$4:$AG$8848,4,FALSE)/10=0,"",VLOOKUP(B13,前驱体价格!$AD$4:$AG$8848,4,FALSE)/10) -> 9.4 | AM13: =VLOOKUP(B13,前驱体价格!$AD$4:$AJ$8848,6,FALSE)/10 -> 3.70 | AN13: =VLOOKUP(B13,正极材料价格!B:E,4,FALSE)/10 -> 39.5 | AO13: =VLOOKUP(B13,正极材料价格!AC:AE,2,FALSE)/10000 -> 7.35 | AP13: =VLOOKUP(B13,正极材料价格!I:P,4,) -> 24.8 | AQ13: =VLOOKUP(B13,正极材料价格!I:O,7,) -> 23.75 | AR13: =VLOOKUP(B13,正极材料价格!I:R,10,) -> 24.95 | AS13: =VLOOKUP(B13,正极材料价格!I:U,13,FALSE) -> 27.15 | AT13: =VLOOKUP(B13,正极材料价格!AC:AE,3,FALSE)/10000 -> 8.85 | AU13: =VLOOKUP(B13,负极价格!$K$6:$T$10000,4,FALSE)/10000 -> 7.15 | AV13: =VLOOKUP(B13,负极价格!$K$6:$T$10000,7,FALSE)/10000 -> 3.35 | AW13: =VLOOKUP(B13,负极价格!$K$6:$T$10000,10,FALSE)/10000 -> 5.35 | AX13: =VLOOKUP(B13,负极价格!$V$6:$AE$10000,10,FALSE)/10000 -> 5.55 | AY13: =VLOOKUP(B13,负极价格!$V$6:$AE$10000,7,FALSE)/10000 -> 2.4 | AZ13: =VLOOKUP(B13,负极价格!$V$6:$AE$10000,4,FALSE)/10000 -> 3.85 | BA13: =VLOOKUP(B13,负极价格!$A$4:$B$3240,2,FALSE)/10000 -> 5.22 | BB13: =VLOOKUP(B13,负极价格!$A$4:$D$3240,3,FALSE)/10000 -> 1.01 | BC13: =VLOOKUP(B13,负极价格!$A$4:$D$3240,4,FALSE)/10000 -> 0.30 | BD13: =VLOOKUP(B13,负极价格!$F$4:$I$2390,4,FALSE)/10000 -> 10.50 | BE13: =VLOOKUP(B13,隔膜价格!$A$1:$C$99434,2,FALSE) -> 1.23 | BF13: =VLOOKUP(B13,隔膜价格!$A$1:$C$99434,3,FALSE) -> 0.93 | BG13: =VLOOKUP(B13,隔膜价格!$Q$1:$U$99434,2,FALSE) -> 2.9 | BH13: =VLOOKUP(B13,隔膜价格!$Q$1:$U$99434,3,FALSE) -> 2 | BI13: =VLOOKUP(B13,隔膜价格!$Q$1:$U$99434,4,FALSE) -> 1.35 | BJ13: =VLOOKUP(B13,隔膜价格!$Q$1:$U$99434,5,FALSE) -> 0.95 | BK13: =VLOOKUP(B13,锂电池价格!$B$1:$F$1003,2,FALSE) ->  | BL13: =VLOOKUP($B13,锂电池价格!$B$1:$F$1003,3,FALSE) ->  | BM13: =VLOOKUP($B13,锂电池价格!$B$1:$F$1003,4,FALSE) ->  | BN13: =VLOOKUP($B13,锂电池价格!$B$1:$F$1003,5,FALSE) ->  | BO13: =VLOOKUP(B13,锂电辅料价格!Q:Z,10,FALSE) -> 38.5 | BP13: =VLOOKUP(B13,锂电辅料价格!Q:AC,13,FALSE) -> 48.5 | BQ13: =VLOOKUP(B13,锂电辅料价格!BB:BK,10,FALSE) -> 42 | BR13: =VLOOKUP(B13,锂电辅料价格!BB:BN,13,FALSE) -> 57 | BS13: =VLOOKUP(B13,电解液价格!$B$4:$B$4185,7,FALSE)/10000 ->  | BT13: =VLOOKUP(B13,电解液价格!$B$4:$B$4185,10,FALSE)/10000 ->  | BU13: =VLOOKUP(B13,电解液价格!$B$4:$B$4185,13,FALSE)/10000 -> 
A14: 周 | B14: 2023-02-03 | C14: =IF((VLOOKUP(B14,镍钴锰价格!$N$4:$O$6007,2,FALSE)/10000)=0,"",(VLOOKUP(B14,镍钴锰价格!$N$4:$O$6007,2,FALSE)/10000)) -> 29.8 | D14: =IF((VLOOKUP(B14,镍钴锰价格!$Z$2581:$AO$4676,16,FALSE)/10)=0,"",(VLOOKUP(B14,镍钴锰价格!$Z$2581:$AO$4676,16,FALSE)/10)) -> 28.1 | E14: =IF((VLOOKUP(B14,镍钴锰价格!$N$4:$R$6007,5,FALSE)/10000)=0,"",(VLOOKUP(B14,镍钴锰价格!$N$4:$R$6007,5,FALSE)/10000)) -> 29.6 | F14: =IF((VLOOKUP(B14,镍钴锰价格!Z2586:AC4998,4,FALSE)/10000)=0,"",(VLOOKUP(B14,镍钴锰价格!Z2586:AC4998,4,FALSE)/10000)) -> 29.6 | G14: =IF((VLOOKUP(B14,镍钴锰价格!$N$4:$X$6007,11,FALSE)/10000)=0,"",(VLOOKUP(B14,镍钴锰价格!$N$4:$X$6007,11,FALSE)/10000)) -> 29.9 | H14: =IF((VLOOKUP(B14,镍钴锰价格!$AT$4:$AU$4571,2,FALSE))=0,"",(VLOOKUP(B14,镍钴锰价格!$AT$4:$AU$4571,2,FALSE))) -> 17.8 | I14: =IF((VLOOKUP(B14,镍钴锰价格!$AT$4:$AV$4571,3,FALSE))=0,"",(VLOOKUP(B14,镍钴锰价格!$AT$4:$AV$4571,3,FALSE))) -> 17.15 | J14: =IF(VLOOKUP(B14,镍钴锰价格!$C$4:$D$4800,2,FALSE)/10000=0,"",VLOOKUP(B14,镍钴锰价格!$C$4:$D$4800,2,FALSE)/10000) -> 22.84 | K14: =IF(VLOOKUP(B14,镍钴锰价格!$AQ$4:$AR$6007,2,FALSE)/10000=0,"",VLOOKUP(B14,镍钴锰价格!$AQ$4:$AR$6007,2,FALSE)/10000) -> 1.7 | L14: =IF(VLOOKUP(锂电材料价格变化汇总表!B14,前驱体价格!$G$4:$J$2480,4,FALSE)/10=0,"",VLOOKUP(锂电材料价格变化汇总表!B14,前驱体价格!$G$4:$J$2480,4,FALSE)/10) -> 45.3 | M14: =IF(VLOOKUP(锂电材料价格变化汇总表!B14,锂盐价格!$B$3000:$Q$6005,16,FALSE)/10000=0,"",VLOOKUP(锂电材料价格变化汇总表!B14,锂盐价格!$B$3000:$Q$6005,16,FALSE)/10000) -> 44 | N14: =IF(VLOOKUP(锂电材料价格变化汇总表!B14,锂盐价格!$B$3000:$U$6005,20,FALSE)/10000=0,"",VLOOKUP(锂电材料价格变化汇总表!B14,锂盐价格!$B$3000:$U$6005,20,FALSE)/10000) -> 43.55 | O14: =IF(VLOOKUP(锂电材料价格变化汇总表!B14,锂盐价格!$B$3000:$R$6005,17,FALSE)/10000=0,"",VLOOKUP(锂电材料价格变化汇总表!B14,锂盐价格!$B$3000:$R$6005,17,FALSE)/10000) -> 46.4 | P14: =IF(VLOOKUP(锂电材料价格变化汇总表!B14,锂盐价格!$B$3000:$V$6005,21,FALSE)/10000=0,"",VLOOKUP(锂电材料价格变化汇总表!B14,锂盐价格!$B$3000:$V$6005,21,FALSE)/10000) -> 46.4 | Q14: =IF(VLOOKUP(锂电材料价格变化汇总表!B14,前驱体价格!$G$4:$S$2480,13,FALSE)/10=0,"",VLOOKUP(锂电材料价格变化汇总表!B14,前驱体价格!$G$4:$S$2480,13,FALSE)/10) -> 47.5 | R14: =IF(VLOOKUP(锂电材料价格变化汇总表!B14,锂盐价格!$B$3000:$P$6005,15,FALSE)/10000=0,"",VLOOKUP(锂电材料价格变化汇总表!B14,锂盐价格!$B$3000:$P$6005,15,FALSE)/10000) -> 292 | S14: =IF(VLOOKUP(锂电材料价格变化汇总表!B14,锂盐价格!$B$3000:$T$6005,19,FALSE)=0,"",VLOOKUP(锂电材料价格变化汇总表!B14,锂盐价格!$B$3000:$T$6005,19,FALSE)) -> 290 | T14: =IF(VLOOKUP(B14,锂盐价格!$B2998:$S5003,18,FALSE)/10000=0,"",VLOOKUP(B14,锂盐价格!$B2998:$S5003,18,FALSE)/10000) -> 50.1 | U14: =IF(VLOOKUP(锂电材料价格变化汇总表!B14,锂盐价格!$B$3000:$W$6005,22,FALSE)=0,"",VLOOKUP(锂电材料价格变化汇总表!B14,锂盐价格!$B$3000:$W$6005,22,FALSE)) -> 47.8 | V14: =IF(VLOOKUP(锂电材料价格变化汇总表!B14,前驱体价格!$G$4:$V$2480,16,FALSE)/10=0,"",VLOOKUP(锂电材料价格变化汇总表!B14,前驱体价格!$G$4:$V$2480,16,FALSE)/10) -> 48.25 | W14: =VLOOKUP(B14,电解液价格!$B$3:$D$10000,2,FALSE)/10000 -> 4.9 | X14: =VLOOKUP(B14,电解液价格!$E$3:$G$10000,2,FALSE)/10000 -> 5.00 | Y14: =VLOOKUP(B14,电解液价格!$E$3:$G$10000,3,FALSE)/10000 -> 6.9 | Z14: =VLOOKUP(B14,六氟磷酸锂价格!$H$4:$I$2256,2,FALSE)/10000 -> 20.50 | AA14: =VLOOKUP(B14,六氟磷酸锂价格!$B$698:$F$99997,5,FALSE)/10000 -> 19.5 | AB14: =IF(VLOOKUP(锂电材料价格变化汇总表!B14,碳酸二甲酯!$B$4:$C$3303,2,FALSE)/10000=0,"",VLOOKUP(锂电材料价格变化汇总表!B14,碳酸二甲酯!$B$4:$C$3303,2,FALSE)/10000) -> 0.52 | AC14: =VLOOKUP(B14,碳酸二甲酯!$B$592:$O$3303,14,FALSE) -> 0.56 | AD14: =VLOOKUP(B14,碳酸二甲酯!$B$592:$M$3303,12,FALSE)/10000 -> 0.51 | AE14: =VLOOKUP(B14,前驱体价格!$BL$4:$BP$8848,5,FALSE)/10000 -> 1.875 | AF14: =VLOOKUP(B14,前驱体价格!$AD$4:$AP$8848,13,FALSE)/10 -> 9.4 | AG14: =IF(VLOOKUP(B14,前驱体价格!$BL$4:$BO$8848,4,FALSE)=0,"",VLOOKUP(B14,前驱体价格!$BL$4:$BO$8848,4,FALSE)) -> 10.25 | AH14: =IF(VLOOKUP(锂电材料价格变化汇总表!B14,前驱体价格!$BC$4:$BF$10001,4,FALSE)/10000=0,"",VLOOKUP(锂电材料价格变化汇总表!B14,前驱体价格!$BC$4:$BF$10001,4,FALSE)/10000) -> 17.3 | AI14: =IF(VLOOKUP(B14,前驱体价格!$X$4:$AA$8848,4,FALSE)/10=0,"",VLOOKUP(B14,前驱体价格!$X$4:$AA$8848,4,FALSE)/10) -> 17.5 | AJ14: =IF(VLOOKUP(B14,前驱体价格!AW299:AZ779648,4,FALSE)/10=0,"",VLOOKUP(B14,前驱体价格!AW299:AZ779648,4,FALSE)/10) -> 4.9 | AK14: =IF(VLOOKUP(B14,前驱体价格!AR290:AU3568,4,FALSE)/10=0,"",VLOOKUP(B14,前驱体价格!AR290:AU3568,4,FALSE)/10) -> 4.1 | AL14: =IF(VLOOKUP(B14,前驱体价格!$AD$4:$AG$8848,4,FALSE)/10=0,"",VLOOKUP(B14,前驱体价格!$AD$4:$AG$8848,4,FALSE)/10) -> 4.1 | AM14: =VLOOKUP(B14,前驱体价格!$AD$4:$AJ$8848,6,FALSE)/10 -> 3.80 | AN14: =VLOOKUP(B14,正极材料价格!B:E,4,FALSE)/10 -> 40.7 | AO14: =VLOOKUP(B14,正极材料价格!AC:AE,2,FALSE)/10000 -> 12.25 | AP14: =VLOOKUP(B14,正极材料价格!I:P,4,) -> 32.4 | AQ14: =VLOOKUP(B14,正极材料价格!I:O,7,) -> 32.6 | AR14: =VLOOKUP(B14,正极材料价格!I:R,10,) -> 35.3 | AS14: =VLOOKUP(B14,正极材料价格!I:U,13,FALSE) -> 38.45 | AT14: =VLOOKUP(B14,正极材料价格!AC:AE,3,FALSE)/10000 -> 14.8 | AU14: =VLOOKUP(B14,负极价格!$K$6:$T$10000,4,FALSE)/10000 -> 7.25 | AV14: =VLOOKUP(B14,负极价格!$K$6:$T$10000,7,FALSE)/10000 -> 3.6 | AW14: =VLOOKUP(B14,负极价格!$K$6:$T$10000,10,FALSE)/10000 -> 5.55 | AX14: =VLOOKUP(B14,负极价格!$V$6:$AE$10000,10,FALSE)/10000 -> 6.1 | AY14: =VLOOKUP(B14,负极价格!$V$6:$AE$10000,7,FALSE)/10000 -> 3.05 | AZ14: =VLOOKUP(B14,负极价格!$V$6:$AE$10000,4,FALSE)/10000 -> 4.9 | BA14: =VLOOKUP(B14,负极价格!$A$4:$B$3240,2,FALSE)/10000 -> 5.32 | BB14: =VLOOKUP(B14,负极价格!$A$4:$D$3240,3,FALSE)/10000 -> 1.16 | BC14: =VLOOKUP(B14,负极价格!$A$4:$D$3240,4,FALSE)/10000 -> 0.36 | BD14: =VLOOKUP(B14,负极价格!$F$4:$I$2390,4,FALSE)/10000 -> 11.50 | BE14: =VLOOKUP(B14,隔膜价格!$A$1:$C$99434,2,FALSE) -> 1.35 | BF14: =VLOOKUP(B14,隔膜价格!$A$1:$C$99434,3,FALSE) -> 0.95 | BG14: =VLOOKUP(B14,隔膜价格!$Q$1:$U$99434,2,FALSE) -> 2.95 | BH14: =VLOOKUP(B14,隔膜价格!$Q$1:$U$99434,3,FALSE) -> 1.95 | BI14: =VLOOKUP(B14,隔膜价格!$Q$1:$U$99434,4,FALSE) -> 1.28 | BJ14: =VLOOKUP(B14,隔膜价格!$Q$1:$U$99434,5,FALSE) -> 0.83 | BK14: =VLOOKUP(B14,锂电池价格!$B$1:$F$1003,2,FALSE) -> 1.05 | BL14: =VLOOKUP($B14,锂电池价格!$B$1:$F$1003,3,FALSE) -> 1.1 | BM14: =VLOOKUP($B14,锂电池价格!$B$1:$F$1003,4,FALSE) -> 0.93 | BN14: =VLOOKUP($B14,锂电池价格!$B$1:$F$1003,5,FALSE) -> 10.2 | BO14: =VLOOKUP(B14,锂电辅料价格!Q:Z,10,FALSE) -> 26.5 | BP14: =VLOOKUP(B14,锂电辅料价格!Q:AC,13,FALSE) -> 35 | BQ14: =VLOOKUP(B14,锂电辅料价格!BB:BK,10,FALSE) -> 30 | BR14: =VLOOKUP(B14,锂电辅料价格!BB:BN,13,FALSE) -> 42.5 | BS14: =VLOOKUP(B14,电解液价格!$B$4:$B$4185,7,FALSE)/10000 ->  | BT14: =VLOOKUP(B14,电解液价格!$B$4:$B$4185,10,FALSE)/10000 ->  | BU14: =VLOOKUP(B14,电解液价格!$B$4:$B$4185,13,FALSE)/10000 -> 
B15: 2023-02-06 | C15: =IF((VLOOKUP(B15,镍钴锰价格!$N$4:$O$6007,2,FALSE)/10000)=0,"",(VLOOKUP(B15,镍钴锰价格!$N$4:$O$6007,2,FALSE)/10000)) -> 29.8 | D15: =IF((VLOOKUP(B15,镍钴锰价格!$Z$2581:$AO$4676,16,FALSE)/10)=0,"",(VLOOKUP(B15,镍钴锰价格!$Z$2581:$AO$4676,16,FALSE)/10)) -> 28.1 | E15: =IF((VLOOKUP(B15,镍钴锰价格!$N$4:$R$6007,5,FALSE)/10000)=0,"",(VLOOKUP(B15,镍钴锰价格!$N$4:$R$6007,5,FALSE)/10000)) -> 29.6 | F15: =IF((VLOOKUP(B15,镍钴锰价格!Z2587:AC4999,4,FALSE)/10000)=0,"",(VLOOKUP(B15,镍钴锰价格!Z2587:AC4999,4,FALSE)/10000)) -> 29.6 | G15: =IF((VLOOKUP(B15,镍钴锰价格!$N$4:$X$6007,11,FALSE)/10000)=0,"",(VLOOKUP(B15,镍钴锰价格!$N$4:$X$6007,11,FALSE)/10000)) -> 29.65 | H15: =IF((VLOOKUP(B15,镍钴锰价格!$AT$4:$AU$4571,2,FALSE))=0,"",(VLOOKUP(B15,镍钴锰价格!$AT$4:$AU$4571,2,FALSE))) -> 17.55 | I15: =IF((VLOOKUP(B15,镍钴锰价格!$AT$4:$AV$4571,3,FALSE))=0,"",(VLOOKUP(B15,镍钴锰价格!$AT$4:$AV$4571,3,FALSE))) -> 16.75 | J15: =IF(VLOOKUP(B15,镍钴锰价格!$C$4:$D$4800,2,FALSE)/10000=0,"",VLOOKUP(B15,镍钴锰价格!$C$4:$D$4800,2,FALSE)/10000) -> 21.8 | K15: =IF(VLOOKUP(B15,镍钴锰价格!$AQ$4:$AR$6007,2,FALSE)/10000=0,"",VLOOKUP(B15,镍钴锰价格!$AQ$4:$AR$6007,2,FALSE)/10000) -> 1.7 | L15: =IF(VLOOKUP(锂电材料价格变化汇总表!B15,前驱体价格!$G$4:$J$2480,4,FALSE)/10=0,"",VLOOKUP(锂电材料价格变化汇总表!B15,前驱体价格!$G$4:$J$2480,4,FALSE)/10) -> 45.1 | M15: =IF(VLOOKUP(锂电材料价格变化汇总表!B15,锂盐价格!$B$3000:$Q$6005,16,FALSE)/10000=0,"",VLOOKUP(锂电材料价格变化汇总表!B15,锂盐价格!$B$3000:$Q$6005,16,FALSE)/10000) -> 43.6 | N15: =IF(VLOOKUP(锂电材料价格变化汇总表!B15,锂盐价格!$B$3000:$U$6005,20,FALSE)/10000=0,"",VLOOKUP(锂电材料价格变化汇总表!B15,锂盐价格!$B$3000:$U$6005,20,FALSE)/10000) -> 43.3 | O15: =IF(VLOOKUP(锂电材料价格变化汇总表!B15,锂盐价格!$B$3000:$R$6005,17,FALSE)/10000=0,"",VLOOKUP(锂电材料价格变化汇总表!B15,锂盐价格!$B$3000:$R$6005,17,FALSE)/10000) -> 46.3 | P15: =IF(VLOOKUP(锂电材料价格变化汇总表!B15,锂盐价格!$B$3000:$V$6005,21,FALSE)/10000=0,"",VLOOKUP(锂电材料价格变化汇总表!B15,锂盐价格!$B$3000:$V$6005,21,FALSE)/10000) -> 46.3 | Q15: =IF(VLOOKUP(锂电材料价格变化汇总表!B15,前驱体价格!$G$4:$S$2480,13,FALSE)/10=0,"",VLOOKUP(锂电材料价格变化汇总表!B15,前驱体价格!$G$4:$S$2480,13,FALSE)/10) -> 47.3 | R15: =IF(VLOOKUP(锂电材料价格变化汇总表!B15,锂盐价格!$B$3000:$P$6005,15,FALSE)/10000=0,"",VLOOKUP(锂电材料价格变化汇总表!B15,锂盐价格!$B$3000:$P$6005,15,FALSE)/10000) -> 290 | S15: =IF(VLOOKUP(锂电材料价格变化汇总表!B15,锂盐价格!$B$3000:$T$6005,19,FALSE)=0,"",VLOOKUP(锂电材料价格变化汇总表!B15,锂盐价格!$B$3000:$T$6005,19,FALSE)) -> 289.25 | T15: =IF(VLOOKUP(B15,锂盐价格!$B2999:$S5004,18,FALSE)/10000=0,"",VLOOKUP(B15,锂盐价格!$B2999:$S5004,18,FALSE)/10000) -> 49.6 | U15: =IF(VLOOKUP(锂电材料价格变化汇总表!B15,锂盐价格!$B$3000:$W$6005,22,FALSE)=0,"",VLOOKUP(锂电材料价格变化汇总表!B15,锂盐价格!$B$3000:$W$6005,22,FALSE)) -> 47.5 | V15: =IF(VLOOKUP(锂电材料价格变化汇总表!B15,前驱体价格!$G$4:$V$2480,16,FALSE)/10=0,"",VLOOKUP(锂电材料价格变化汇总表!B15,前驱体价格!$G$4:$V$2480,16,FALSE)/10) -> 48.05 | W15: =VLOOKUP(B15,电解液价格!$B$3:$D$10000,2,FALSE)/10000 -> 4.7 | X15: =VLOOKUP(B15,电解液价格!$E$3:$G$10000,2,FALSE)/10000 -> 5.00 | Y15: =VLOOKUP(B15,电解液价格!$E$3:$G$10000,3,FALSE)/10000 -> 6.9 | Z15: =VLOOKUP(B15,六氟磷酸锂价格!$H$4:$I$2256,2,FALSE)/10000 -> 20 | AA15: =VLOOKUP(B15,六氟磷酸锂价格!$B$698:$F$99997,5,FALSE)/10000 -> 19.5 | AB15: =IF(VLOOKUP(锂电材料价格变化汇总表!B15,碳酸二甲酯!$B$4:$C$3303,2,FALSE)/10000=0,"",VLOOKUP(锂电材料价格变化汇总表!B15,碳酸二甲酯!$B$4:$C$3303,2,FALSE)/10000) -> 0.52 | AC15: =VLOOKUP(B15,碳酸二甲酯!$B$592:$O$3303,14,FALSE) -> 0.56 | AD15: =VLOOKUP(B15,碳酸二甲酯!$B$592:$M$3303,12,FALSE)/10000 -> 0.51 | AE15: =VLOOKUP(B15,前驱体价格!$BL$4:$BP$8848,5,FALSE)/10000 -> 1.825 | AF15: =VLOOKUP(B15,前驱体价格!$AD$4:$AP$8848,13,FALSE)/10 -> 9.4 | AG15: =IF(VLOOKUP(B15,前驱体价格!$BL$4:$BO$8848,4,FALSE)=0,"",VLOOKUP(B15,前驱体价格!$BL$4:$BO$8848,4,FALSE)) -> 10.25 | AH15: =IF(VLOOKUP(锂电材料价格变化汇总表!B15,前驱体价格!$BC$4:$BF$10001,4,FALSE)/10000=0,"",VLOOKUP(锂电材料价格变化汇总表!B15,前驱体价格!$BC$4:$BF$10001,4,FALSE)/10000) -> 17.25 | AI15: =IF(VLOOKUP(B15,前驱体价格!$X$4:$AA$8848,4,FALSE)/10=0,"",VLOOKUP(B15,前驱体价格!$X$4:$AA$8848,4,FALSE)/10) -> 17.5 | AJ15: =IF(VLOOKUP(B15,前驱体价格!AW300:AZ779649,4,FALSE)/10=0,"",VLOOKUP(B15,前驱体价格!AW300:AZ779649,4,FALSE)/10) -> 4.9 | AK15: =IF(VLOOKUP(B15,前驱体价格!AR291:AU3569,4,FALSE)/10=0,"",VLOOKUP(B15,前驱体价格!AR291:AU3569,4,FALSE)/10) -> 4.0 | AL15: =IF(VLOOKUP(B15,前驱体价格!$AD$4:$AG$8848,4,FALSE)/10=0,"",VLOOKUP(B15,前驱体价格!$AD$4:$AG$8848,4,FALSE)/10) -> 4.1 | AM15: =VLOOKUP(B15,前驱体价格!$AD$4:$AJ$8848,6,FALSE)/10 -> 3.80 | AN15: =VLOOKUP(B15,正极材料价格!B:E,4,FALSE)/10 -> 40.3 | AO15: =VLOOKUP(B15,正极材料价格!AC:AE,2,FALSE)/10000 -> 12.25 | AP15: =VLOOKUP(B15,正极材料价格!I:P,4,) -> 32.4 | AQ15: =VLOOKUP(B15,正极材料价格!I:O,7,) -> 32.6 | AR15: =VLOOKUP(B15,正极材料价格!I:R,10,) -> 35.3 | AS15: =VLOOKUP(B15,正极材料价格!I:U,13,FALSE) -> 38.45 | AT15: =VLOOKUP(B15,正极材料价格!AC:AE,3,FALSE)/10000 -> 14.7 | AU15: =VLOOKUP(B15,负极价格!$K$6:$T$10000,4,FALSE)/10000 -> 7.25 | AV15: =VLOOKUP(B15,负极价格!$K$6:$T$10000,7,FALSE)/10000 -> 3.6 | AW15: =VLOOKUP(B15,负极价格!$K$6:$T$10000,10,FALSE)/10000 -> 5.55 | AX15: =VLOOKUP(B15,负极价格!$V$6:$AE$10000,10,FALSE)/10000 -> 6.1 | AY15: =VLOOKUP(B15,负极价格!$V$6:$AE$10000,7,FALSE)/10000 -> 3.05 | AZ15: =VLOOKUP(B15,负极价格!$V$6:$AE$10000,4,FALSE)/10000 -> 4.9 | BA15: =VLOOKUP(B15,负极价格!$A$4:$B$3240,2,FALSE)/10000 -> 5.32 | BB15: =VLOOKUP(B15,负极价格!$A$4:$D$3240,3,FALSE)/10000 -> 1.16 | BC15: =VLOOKUP(B15,负极价格!$A$4:$D$3240,4,FALSE)/10000 -> 0.36 | BD15: =VLOOKUP(B15,负极价格!$F$4:$I$2390,4,FALSE)/10000 -> 11.50 | BE15: =VLOOKUP(B15,隔膜价格!$A$1:$C$99434,2,FALSE) -> 1.35 | BF15: =VLOOKUP(B15,隔膜价格!$A$1:$C$99434,3,FALSE) -> 0.95 | BG15: =VLOOKUP(B15,隔膜价格!$Q$1:$U$99434,2,FALSE) -> 2.95 | BH15: =VLOOKUP(B15,隔膜价格!$Q$1:$U$99434,3,FALSE) -> 1.95 | BI15: =VLOOKUP(B15,隔膜价格!$Q$1:$U$99434,4,FALSE) -> 1.28 | BJ15: =VLOOKUP(B15,隔膜价格!$Q$1:$U$99434,5,FALSE) -> 0.83 | BK15: =VLOOKUP(B15,锂电池价格!$B$1:$F$1003,2,FALSE) -> 1.05 | BL15: =VLOOKUP($B15,锂电池价格!$B$1:$F$1003,3,FALSE) -> 1.1 | BM15: =VLOOKUP($B15,锂电池价格!$B$1:$F$1003,4,FALSE) -> 0.93 | BN15: =VLOOKUP($B15,锂电池价格!$B$1:$F$1003,5,FALSE) -> 10.2 | BO15: =VLOOKUP(B15,锂电辅料价格!Q:Z,10,FALSE) -> 26.5 | BP15: =VLOOKUP(B15,锂电辅料价格!Q:AC,13,FALSE) -> 35 | BQ15: =VLOOKUP(B15,锂电辅料价格!BB:BK,10,FALSE) -> 30 | BR15: =VLOOKUP(B15,锂电辅料价格!BB:BN,13,FALSE) -> 42.5 | BS15: =VLOOKUP(B15,电解液价格!$B$4:$B$4185,7,FALSE)/10000 ->  | BT15: =VLOOKUP(B15,电解液价格!$B$4:$B$4185,10,FALSE)/10000 ->  | BU15: =VLOOKUP(B15,电解液价格!$B$4:$B$4185,13,FALSE)/10000 -> 
B16: 2023-02-07 | C16: =IF((VLOOKUP(B14,镍钴锰价格!$N$4:$O$6007,2,FALSE)/10000)=0,"",(VLOOKUP(B16,镍钴锰价格!$N$4:$O$6007,2,FALSE)/10000)) -> 29.3 | D16: =IF((VLOOKUP(B16,镍钴锰价格!$Z$2581:$AO$4676,16,FALSE)/10)=0,"",(VLOOKUP(B16,镍钴锰价格!$Z$2581:$AO$4676,16,FALSE)/10)) -> 28 | E16: =IF((VLOOKUP(B16,镍钴锰价格!$N$4:$R$6007,5,FALSE)/10000)=0,"",(VLOOKUP(B16,镍钴锰价格!$N$4:$R$6007,5,FALSE)/10000)) -> 29.6 | F16: =IF((VLOOKUP(B16,镍钴锰价格!Z2588:AC5000,4,FALSE)/10000)=0,"",(VLOOKUP(B16,镍钴锰价格!Z2588:AC5000,4,FALSE)/10000)) -> 29.6 | G16: =IF((VLOOKUP(B16,镍钴锰价格!$N$4:$X$6007,11,FALSE)/10000)=0,"",(VLOOKUP(B16,镍钴锰价格!$N$4:$X$6007,11,FALSE)/10000)) -> 29.5 | H16: =IF((VLOOKUP(B16,镍钴锰价格!$AT$4:$AU$4571,2,FALSE))=0,"",(VLOOKUP(B16,镍钴锰价格!$AT$4:$AU$4571,2,FALSE))) -> 17.5 | I16: =IF((VLOOKUP(B16,镍钴锰价格!$AT$4:$AV$4571,3,FALSE))=0,"",(VLOOKUP(B16,镍钴锰价格!$AT$4:$AV$4571,3,FALSE))) -> 16.75 | J16: =IF(VLOOKUP(B16,镍钴锰价格!$C$4:$D$4800,2,FALSE)/10000=0,"",VLOOKUP(B16,镍钴锰价格!$C$4:$D$4800,2,FALSE)/10000) -> 21.695 | K16: =IF(VLOOKUP(B16,镍钴锰价格!$AQ$4:$AR$6007,2,FALSE)/10000=0,"",VLOOKUP(B16,镍钴锰价格!$AQ$4:$AR$6007,2,FALSE)/10000) -> 1.7 | L16: =IF(VLOOKUP(锂电材料价格变化汇总表!B16,前驱体价格!$G$4:$J$2480,4,FALSE)/10=0,"",VLOOKUP(锂电材料价格变化汇总表!B16,前驱体价格!$G$4:$J$2480,4,FALSE)/10) -> 45.1 | M16: =IF(VLOOKUP(锂电材料价格变化汇总表!B16,锂盐价格!$B$3000:$Q$6005,16,FALSE)/10000=0,"",VLOOKUP(锂电材料价格变化汇总表!B16,锂盐价格!$B$3000:$Q$6005,16,FALSE)/10000) -> 43.5 | N16: =IF(VLOOKUP(锂电材料价格变化汇总表!B16,锂盐价格!$B$3000:$U$6005,20,FALSE)/10000=0,"",VLOOKUP(锂电材料价格变化汇总表!B16,锂盐价格!$B$3000:$U$6005,20,FALSE)/10000) -> 42.7 | O16: =IF(VLOOKUP(锂电材料价格变化汇总表!B16,锂盐价格!$B$3000:$R$6005,17,FALSE)/10000=0,"",VLOOKUP(锂电材料价格变化汇总表!B16,锂盐价格!$B$3000:$R$6005,17,FALSE)/10000) -> 46.2 | P16: =IF(VLOOKUP(锂电材料价格变化汇总表!B16,锂盐价格!$B$3000:$V$6005,21,FALSE)/10000=0,"",VLOOKUP(锂电材料价格变化汇总表!B16,锂盐价格!$B$3000:$V$6005,21,FALSE)/10000) -> 46.05 | Q16: =IF(VLOOKUP(锂电材料价格变化汇总表!B16,前驱体价格!$G$4:$S$2480,13,FALSE)/10=0,"",VLOOKUP(锂电材料价格变化汇总表!B16,前驱体价格!$G$4:$S$2480,13,FALSE)/10) -> 47.3 | R16: =IF(VLOOKUP(锂电材料价格变化汇总表!B16,锂盐价格!$B$3000:$P$6005,15,FALSE)/10000=0,"",VLOOKUP(锂电材料价格变化汇总表!B16,锂盐价格!$B$3000:$P$6005,15,FALSE)/10000) -> 290 | S16: =IF(VLOOKUP(锂电材料价格变化汇总表!B16,锂盐价格!$B$3000:$T$6005,19,FALSE)=0,"",VLOOKUP(锂电材料价格变化汇总表!B16,锂盐价格!$B$3000:$T$6005,19,FALSE)) -> 288.75 | T16: =IF(VLOOKUP(B16,锂盐价格!$B3000:$S5005,18,FALSE)/10000=0,"",VLOOKUP(B16,锂盐价格!$B3000:$S5005,18,FALSE)/10000) -> 49.1 | U16: =IF(VLOOKUP(锂电材料价格变化汇总表!B16,锂盐价格!$B$3000:$W$6005,22,FALSE)=0,"",VLOOKUP(锂电材料价格变化汇总表!B16,锂盐价格!$B$3000:$W$6005,22,FALSE)) -> 47.0 | V16: =IF(VLOOKUP(锂电材料价格变化汇总表!B16,前驱体价格!$G$4:$V$2480,16,FALSE)/10=0,"",VLOOKUP(锂电材料价格变化汇总表!B16,前驱体价格!$G$4:$V$2480,16,FALSE)/10) -> 48.05 | W16: =VLOOKUP(B16,电解液价格!$B$3:$D$10000,2,FALSE)/10000 -> 4.7 | X16: =VLOOKUP(B16,电解液价格!$E$3:$G$10000,2,FALSE)/10000 -> 5.00 | Y16: =VLOOKUP(B16,电解液价格!$E$3:$G$10000,3,FALSE)/10000 -> 6.9 | Z16: =VLOOKUP(B16,六氟磷酸锂价格!$H$4:$I$2256,2,FALSE)/10000 -> 19.8 | AA16: =VLOOKUP(B16,六氟磷酸锂价格!$B$698:$F$99997,5,FALSE)/10000 -> 19.5 | AB16: =IF(VLOOKUP(锂电材料价格变化汇总表!B16,碳酸二甲酯!$B$4:$C$3303,2,FALSE)/10000=0,"",VLOOKUP(锂电材料价格变化汇总表!B16,碳酸二甲酯!$B$4:$C$3303,2,FALSE)/10000) -> 0.52 | AC16: =VLOOKUP(B16,碳酸二甲酯!$B$592:$O$3303,14,FALSE) -> 0.56 | AD16: =VLOOKUP(B16,碳酸二甲酯!$B$592:$M$3303,12,FALSE)/10000 -> 0.51 | AE16: =VLOOKUP(B16,前驱体价格!$BL$4:$BP$8848,5,FALSE)/10000 -> 1.775 | AF16: =VLOOKUP(B16,前驱体价格!$AD$4:$AP$8848,13,FALSE)/10 -> 9.4 | AG16: =IF(VLOOKUP(B16,前驱体价格!$BL$4:$BO$8848,4,FALSE)=0,"",VLOOKUP(B16,前驱体价格!$BL$4:$BO$8848,4,FALSE)) -> 10.2 | AH16: =IF(VLOOKUP(锂电材料价格变化汇总表!B16,前驱体价格!$BC$4:$BF$10001,4,FALSE)/10000=0,"",VLOOKUP(锂电材料价格变化汇总表!B16,前驱体价格!$BC$4:$BF$10001,4,FALSE)/10000) -> 17.25 | AI16: =IF(VLOOKUP(B16,前驱体价格!$X$4:$AA$8848,4,FALSE)/10=0,"",VLOOKUP(B16,前驱体价格!$X$4:$AA$8848,4,FALSE)/10) -> 17.5 | AJ16: =IF(VLOOKUP(B16,前驱体价格!AW301:AZ779650,4,FALSE)/10=0,"",VLOOKUP(B16,前驱体价格!AW301:AZ779650,4,FALSE)/10) -> 4.8 | AK16: =IF(VLOOKUP(B16,前驱体价格!AR292:AU3570,4,FALSE)/10=0,"",VLOOKUP(B16,前驱体价格!AR292:AU3570,4,FALSE)/10) -> 3.9 | AL16: =IF(VLOOKUP(B16,前驱体价格!$AD$4:$AG$8848,4,FALSE)/10=0,"",VLOOKUP(B16,前驱体价格!$AD$4:$AG$8848,4,FALSE)/10) -> 4.1 | AM16: =VLOOKUP(B16,前驱体价格!$AD$4:$AJ$8848,6,FALSE)/10 -> 3.80 | AN16: =VLOOKUP(B16,正极材料价格!B:E,4,FALSE)/10 -> 39.8 | AO16: =VLOOKUP(B16,正极材料价格!AC:AE,2,FALSE)/10000 -> 12.15 | AP16: =VLOOKUP(B16,正极材料价格!I:P,4,) -> 32.4 | AQ16: =VLOOKUP(B16,正极材料价格!I:O,7,) -> 32.6 | AR16: =VLOOKUP(B16,正极材料价格!I:R,10,) -> 35.3 | AS16: =VLOOKUP(B16,正极材料价格!I:U,13,FALSE) -> 38.45 | AT16: =VLOOKUP(B16,正极材料价格!AC:AE,3,FALSE)/10000 -> 14.6 | AU16: =VLOOKUP(B16,负极价格!$K$6:$T$10000,4,FALSE)/10000 -> 7.25 | AV16: =VLOOKUP(B16,负极价格!$K$6:$T$10000,7,FALSE)/10000 -> 3.6 | AW16: =VLOOKUP(B16,负极价格!$K$6:$T$10000,10,FALSE)/10000 -> 5.55 | AX16: =VLOOKUP(B16,负极价格!$V$6:$AE$10000,10,FALSE)/10000 -> 6.1 | AY16: =VLOOKUP(B16,负极价格!$V$6:$AE$10000,7,FALSE)/10000 -> 3.05 | AZ16: =VLOOKUP(B16,负极价格!$V$6:$AE$10000,4,FALSE)/10000 -> 4.9 | BA16: =VLOOKUP(B16,负极价格!$A$4:$B$3240,2,FALSE)/10000 -> 4.97 | BB16: =VLOOKUP(B16,负极价格!$A$4:$D$3240,3,FALSE)/10000 -> 1.16 | BC16: =VLOOKUP(B16,负极价格!$A$4:$D$3240,4,FALSE)/10000 -> 0.36 | BD16: =VLOOKUP(B16,负极价格!$F$4:$I$2390,4,FALSE)/10000 -> 11.50 | BE16: =VLOOKUP(B16,隔膜价格!$A$1:$C$99434,2,FALSE) -> 1.35 | BF16: =VLOOKUP(B16,隔膜价格!$A$1:$C$99434,3,FALSE) -> 0.95 | BG16: =VLOOKUP(B16,隔膜价格!$Q$1:$U$99434,2,FALSE) -> 2.95 | BH16: =VLOOKUP(B16,隔膜价格!$Q$1:$U$99434,3,FALSE) -> 1.95 | BI16: =VLOOKUP(B16,隔膜价格!$Q$1:$U$99434,4,FALSE) -> 1.28 | BJ16: =VLOOKUP(B16,隔膜价格!$Q$1:$U$99434,5,FALSE) -> 0.83 | BK16: =VLOOKUP(B16,锂电池价格!$B$1:$F$1003,2,FALSE) -> 1.05 | BL16: =VLOOKUP($B16,锂电池价格!$B$1:$F$1003,3,FALSE) -> 1.1 | BM16: =VLOOKUP($B16,锂电池价格!$B$1:$F$1003,4,FALSE) -> 0.93 | BN16: =VLOOKUP($B16,锂电池价格!$B$1:$F$1003,5,FALSE) -> 10.2 | BO16: =VLOOKUP(B16,锂电辅料价格!Q:Z,10,FALSE) -> 26.5 | BP16: =VLOOKUP(B16,锂电辅料价格!Q:AC,13,FALSE) -> 35 | BQ16: =VLOOKUP(B16,锂电辅料价格!BB:BK,10,FALSE) -> 30 | BR16: =VLOOKUP(B16,锂电辅料价格!BB:BN,13,FALSE) -> 42.5 | BS16: =VLOOKUP(B16,电解液价格!$B$4:$B$4185,7,FALSE)/10000 ->  | BT16: =VLOOKUP(B16,电解液价格!$B$4:$B$4185,10,FALSE)/10000 ->  | BU16: =VLOOKUP(B16,电解液价格!$B$4:$B$4185,13,FALSE)/10000 -> 
B17: 2023-02-08 | C17: =IF((VLOOKUP(B17,镍钴锰价格!$N$4:$O$8000,2,FALSE)/10000)=0,"",(VLOOKUP(B17,镍钴锰价格!$N$4:$O$8000,2,FALSE)/10000)) -> 29.3 | D17: =IF((VLOOKUP(B17,镍钴锰价格!$Z$2581:$AO$4676,16,FALSE)/10)=0,"",(VLOOKUP(B17,镍钴锰价格!$Z$2581:$AO$4676,16,FALSE)/10)) -> 28 | E17: =IF((VLOOKUP(B17,镍钴锰价格!$N$4:$R$6007,5,FALSE)/10000)=0,"",(VLOOKUP(B17,镍钴锰价格!$N$4:$R$6007,5,FALSE)/10000)) -> 29.6 | F17: =IF((VLOOKUP(B17,镍钴锰价格!Z2589:AC5001,4,FALSE)/10000)=0,"",(VLOOKUP(B17,镍钴锰价格!Z2589:AC5001,4,FALSE)/10000)) -> 29.6 | G17: =IF((VLOOKUP(B17,镍钴锰价格!$N$4:$X$6007,11,FALSE)/10000)=0,"",(VLOOKUP(B17,镍钴锰价格!$N$4:$X$6007,11,FALSE)/10000)) -> 29.5 | H17: =IF((VLOOKUP(B17,镍钴锰价格!$AT$4:$AU$4571,2,FALSE))=0,"",(VLOOKUP(B17,镍钴锰价格!$AT$4:$AU$4571,2,FALSE))) -> 17.48 | I17: =IF((VLOOKUP(B17,镍钴锰价格!$AT$4:$AV$4571,3,FALSE))=0,"",(VLOOKUP(B17,镍钴锰价格!$AT$4:$AV$4571,3,FALSE))) -> 16.5 | J17: =IF(VLOOKUP(B17,镍钴锰价格!$C$4:$D$4800,2,FALSE)/10000=0,"",VLOOKUP(B17,镍钴锰价格!$C$4:$D$4800,2,FALSE)/10000) -> 21.885 | K17: =IF(VLOOKUP(B17,镍钴锰价格!$AQ$4:$AR$6007,2,FALSE)/10000=0,"",VLOOKUP(B17,镍钴锰价格!$AQ$4:$AR$6007,2,FALSE)/10000) -> 1.7 | L17: =IF(VLOOKUP(锂电材料价格变化汇总表!B17,前驱体价格!$G$4:$J$2480,4,FALSE)/10=0,"",VLOOKUP(锂电材料价格变化汇总表!B17,前驱体价格!$G$4:$J$2480,4,FALSE)/10) -> 44.8 | M17: =IF(VLOOKUP(锂电材料价格变化汇总表!B17,锂盐价格!$B$3000:$Q$6005,16,FALSE)/10000=0,"",VLOOKUP(锂电材料价格变化汇总表!B17,锂盐价格!$B$3000:$Q$6005,16,FALSE)/10000) -> 43 | N17: =IF(VLOOKUP(锂电材料价格变化汇总表!B17,锂盐价格!$B$3000:$U$6005,20,FALSE)/10000=0,"",VLOOKUP(锂电材料价格变化汇总表!B17,锂盐价格!$B$3000:$U$6005,20,FALSE)/10000) -> 42.65 | O17: =IF(VLOOKUP(锂电材料价格变化汇总表!B17,锂盐价格!$B$3000:$R$6005,17,FALSE)/10000=0,"",VLOOKUP(锂电材料价格变化汇总表!B17,锂盐价格!$B$3000:$R$6005,17,FALSE)/10000) -> 46.1 | P17: =IF(VLOOKUP(锂电材料价格变化汇总表!B17,锂盐价格!$B$3000:$V$6005,21,FALSE)/10000=0,"",VLOOKUP(锂电材料价格变化汇总表!B17,锂盐价格!$B$3000:$V$6005,21,FALSE)/10000) -> 45.85 | Q17: =IF(VLOOKUP(锂电材料价格变化汇总表!B17,前驱体价格!$G$4:$S$2480,13,FALSE)/10=0,"",VLOOKUP(锂电材料价格变化汇总表!B17,前驱体价格!$G$4:$S$2480,13,FALSE)/10) -> 47.2 | R17: =IF(VLOOKUP(锂电材料价格变化汇总表!B17,锂盐价格!$B$3000:$P$6005,15,FALSE)/10000=0,"",VLOOKUP(锂电材料价格变化汇总表!B17,锂盐价格!$B$3000:$P$6005,15,FALSE)/10000) -> 290 | S17: =IF(VLOOKUP(锂电材料价格变化汇总表!B17,锂盐价格!$B$3000:$T$6005,19,FALSE)=0,"",VLOOKUP(锂电材料价格变化汇总表!B17,锂盐价格!$B$3000:$T$6005,19,FALSE)) -> 288.5 | T17: =IF(VLOOKUP(B17,锂盐价格!$B3001:$S5006,18,FALSE)/10000=0,"",VLOOKUP(B17,锂盐价格!$B3001:$S5006,18,FALSE)/10000) -> 48.6 | U17: =IF(VLOOKUP(锂电材料价格变化汇总表!B17,锂盐价格!$B$3000:$W$6005,22,FALSE)=0,"",VLOOKUP(锂电材料价格变化汇总表!B17,锂盐价格!$B$3000:$W$6005,22,FALSE)) -> 47.0 | V17: =IF(VLOOKUP(锂电材料价格变化汇总表!B17,前驱体价格!$G$4:$V$2480,16,FALSE)/10=0,"",VLOOKUP(锂电材料价格变化汇总表!B17,前驱体价格!$G$4:$V$2480,16,FALSE)/10) -> 48.05 | W17: =VLOOKUP(B17,电解液价格!$B$3:$D$10000,2,FALSE)/10000 -> 4.7 | X17: =VLOOKUP(B17,电解液价格!$E$3:$G$10000,2,FALSE)/10000 -> 5 | Y17: =VLOOKUP(B17,电解液价格!$E$3:$G$10000,3,FALSE)/10000 -> 6.9 | Z17: =VLOOKUP(B17,六氟磷酸锂价格!$H$4:$I$2256,2,FALSE)/10000 -> 19.5 | AA17: =VLOOKUP(B17,六氟磷酸锂价格!$B$698:$F$99997,5,FALSE)/10000 -> 19.5 | AB17: =IF(VLOOKUP(锂电材料价格变化汇总表!B17,碳酸二甲酯!$B$4:$C$3303,2,FALSE)/10000=0,"",VLOOKUP(锂电材料价格变化汇总表!B17,碳酸二甲酯!$B$4:$C$3303,2,FALSE)/10000) -> 0.52 | AC17: =VLOOKUP(B17,碳酸二甲酯!$B$592:$O$3303,14,FALSE) -> 0.56 | AD17: =VLOOKUP(B17,碳酸二甲酯!$B$592:$M$3303,12,FALSE)/10000 -> 0.51 | AE17: =VLOOKUP(B17,前驱体价格!$BL$4:$BP$8848,5,FALSE)/10000 -> 1.775 | AF17: =VLOOKUP(B17,前驱体价格!$AD$4:$AP$8848,13,FALSE)/10 -> 9.3 | AG17: =IF(VLOOKUP(B17,前驱体价格!$BL$4:$BO$8848,4,FALSE)=0,"",VLOOKUP(B17,前驱体价格!$BL$4:$BO$8848,4,FALSE)) -> 10.2 | AH17: =IF(VLOOKUP(锂电材料价格变化汇总表!B17,前驱体价格!$BC$4:$BF$10001,4,FALSE)/10000=0,"",VLOOKUP(锂电材料价格变化汇总表!B17,前驱体价格!$BC$4:$BF$10001,4,FALSE)/10000) -> 17.15 | AI17: =IF(VLOOKUP(B17,前驱体价格!$X$4:$AA$8848,4,FALSE)/10=0,"",VLOOKUP(B17,前驱体价格!$X$4:$AA$8848,4,FALSE)/10) -> 17.5 | AJ17: =IF(VLOOKUP(B17,前驱体价格!AW302:AZ779651,4,FALSE)/10=0,"",VLOOKUP(B17,前驱体价格!AW302:AZ779651,4,FALSE)/10) -> 4.8 | AK17: =IF(VLOOKUP(B17,前驱体价格!AR293:AU3571,4,FALSE)/10=0,"",VLOOKUP(B17,前驱体价格!AR293:AU3571,4,FALSE)/10) -> 3.9 | AL17: =IF(VLOOKUP(B17,前驱体价格!$AD$4:$AG$8848,4,FALSE)/10=0,"",VLOOKUP(B17,前驱体价格!$AD$4:$AG$8848,4,FALSE)/10) -> 4.0 | AM17: =VLOOKUP(B17,前驱体价格!$AD$4:$AJ$8848,6,FALSE)/10 -> 3.85 | AN17: =VLOOKUP(B17,正极材料价格!B:E,4,FALSE)/10 -> 39.8 | AO17: =VLOOKUP(B17,正极材料价格!AC:AE,2,FALSE)/10000 -> 12.14 | AP17: =VLOOKUP(B17,正极材料价格!I:P,4,) -> 31.75 | AQ17: =VLOOKUP(B17,正极材料价格!I:O,7,) -> 32.2 | AR17: =VLOOKUP(B17,正极材料价格!I:R,10,) -> 34.9 | AS17: =VLOOKUP(B17,正极材料价格!I:U,13,FALSE) -> 37.95 | AT17: =VLOOKUP(B17,正极材料价格!AC:AE,3,FALSE)/10000 -> 14.5 | AU17: =VLOOKUP(B17,负极价格!$K$6:$T$10000,4,FALSE)/10000 -> 7.25 | AV17: =VLOOKUP(B17,负极价格!$K$6:$T$10000,7,FALSE)/10000 -> 3.6 | AW17: =VLOOKUP(B17,负极价格!$K$6:$T$10000,10,FALSE)/10000 -> 5.55 | AX17: =VLOOKUP(B17,负极价格!$V$6:$AE$10000,10,FALSE)/10000 -> 6.1 | AY17: =VLOOKUP(B17,负极价格!$V$6:$AE$10000,7,FALSE)/10000 -> 3.05 | AZ17: =VLOOKUP(B17,负极价格!$V$6:$AE$10000,4,FALSE)/10000 -> 4.9 | BA17: =VLOOKUP(B17,负极价格!$A$4:$B$3240,2,FALSE)/10000 -> 4.97 | BB17: =VLOOKUP(B17,负极价格!$A$4:$D$3240,3,FALSE)/10000 -> 1.16 | BC17: =VLOOKUP(B17,负极价格!$A$4:$D$3240,4,FALSE)/10000 -> 0.36 | BD17: =VLOOKUP(B17,负极价格!$F$4:$I$2390,4,FALSE)/10000 -> 11.50 | BE17: =VLOOKUP(B17,隔膜价格!$A$1:$C$99434,2,FALSE) -> 1.35 | BF17: =VLOOKUP(B17,隔膜价格!$A$1:$C$99434,3,FALSE) -> 0.95 | BG17: =VLOOKUP(B17,隔膜价格!$Q$1:$U$99434,2,FALSE) -> 2.95 | BH17: =VLOOKUP(B17,隔膜价格!$Q$1:$U$99434,3,FALSE) -> 1.95 | BI17: =VLOOKUP(B17,隔膜价格!$Q$1:$U$99434,4,FALSE) -> 1.28 | BJ17: =VLOOKUP(B17,隔膜价格!$Q$1:$U$99434,5,FALSE) -> 0.83 | BK17: =VLOOKUP(B17,锂电池价格!$B$1:$F$1003,2,FALSE) -> 1.05 | BL17: =VLOOKUP($B17,锂电池价格!$B$1:$F$1003,3,FALSE) -> 1.1 | BM17: =VLOOKUP($B17,锂电池价格!$B$1:$F$1003,4,FALSE) -> 0.93 | BN17: =VLOOKUP($B17,锂电池价格!$B$1:$F$1003,5,FALSE) -> 10.2 | BO17: =VLOOKUP(B17,锂电辅料价格!Q:Z,10,FALSE) -> 26.5 | BP17: =VLOOKUP(B17,锂电辅料价格!Q:AC,13,FALSE) -> 35 | BQ17: =VLOOKUP(B17,锂电辅料价格!BB:BK,10,FALSE) -> 30 | BR17: =VLOOKUP(B17,锂电辅料价格!BB:BN,13,FALSE) -> 42.5 | BS17: =VLOOKUP(B17,电解液价格!$B$4:$B$4185,7,FALSE)/10000 ->  | BT17: =VLOOKUP(B17,电解液价格!$B$4:$B$4185,10,FALSE)/10000 ->  | BU17: =VLOOKUP(B17,电解液价格!$B$4:$B$4185,13,FALSE)/10000 -> 
B18: 2023-02-09 | C18: =IF((VLOOKUP(B18,镍钴锰价格!$N$4:$O$8000,2,FALSE)/10000)=0,"",(VLOOKUP(B18,镍钴锰价格!$N$4:$O$8000,2,FALSE)/10000)) -> 29.3 | D18: =IF((VLOOKUP(B18,镍钴锰价格!$Z$2581:$AO$4676,16,FALSE)/10)=0,"",(VLOOKUP(B18,镍钴锰价格!$Z$2581:$AO$4676,16,FALSE)/10)) -> 27.9 | E18: =IF((VLOOKUP(B18,镍钴锰价格!$N$4:$R$6007,5,FALSE)/10000)=0,"",(VLOOKUP(B18,镍钴锰价格!$N$4:$R$6007,5,FALSE)/10000)) -> 29.25 | F18: =IF((VLOOKUP(B18,镍钴锰价格!Z2590:AC5002,4,FALSE)/10000)=0,"",(VLOOKUP(B18,镍钴锰价格!Z2590:AC5002,4,FALSE)/10000)) -> 29.25 | G18: =IF((VLOOKUP(B18,镍钴锰价格!$N$4:$X$6007,11,FALSE)/10000)=0,"",(VLOOKUP(B18,镍钴锰价格!$N$4:$X$6007,11,FALSE)/10000)) -> 29.5 | H18: =IF((VLOOKUP(B18,镍钴锰价格!$AT$4:$AU$4571,2,FALSE))=0,"",(VLOOKUP(B18,镍钴锰价格!$AT$4:$AU$4571,2,FALSE))) -> 17.43 | I18: =IF((VLOOKUP(B18,镍钴锰价格!$AT$4:$AV$4571,3,FALSE))=0,"",(VLOOKUP(B18,镍钴锰价格!$AT$4:$AV$4571,3,FALSE))) -> 16.55 | J18: =IF(VLOOKUP(B18,镍钴锰价格!$C$4:$D$4800,2,FALSE)/10000=0,"",VLOOKUP(B18,镍钴锰价格!$C$4:$D$4800,2,FALSE)/10000) -> 21.755 | K18: =IF(VLOOKUP(B18,镍钴锰价格!$AQ$4:$AR$6007,2,FALSE)/10000=0,"",VLOOKUP(B18,镍钴锰价格!$AQ$4:$AR$6007,2,FALSE)/10000) -> 1.7 | L18: =IF(VLOOKUP(锂电材料价格变化汇总表!B18,前驱体价格!$G$4:$J$2480,4,FALSE)/10=0,"",VLOOKUP(锂电材料价格变化汇总表!B18,前驱体价格!$G$4:$J$2480,4,FALSE)/10) -> 44.8 | M18: =IF(VLOOKUP(锂电材料价格变化汇总表!B18,锂盐价格!$B$3000:$Q$6005,16,FALSE)/10000=0,"",VLOOKUP(锂电材料价格变化汇总表!B18,锂盐价格!$B$3000:$Q$6005,16,FALSE)/10000) -> 42.8 | N18: =IF(VLOOKUP(锂电材料价格变化汇总表!B18,锂盐价格!$B$3000:$U$6005,20,FALSE)/10000=0,"",VLOOKUP(锂电材料价格变化汇总表!B18,锂盐价格!$B$3000:$U$6005,20,FALSE)/10000) -> 42.6 | O18: =IF(VLOOKUP(锂电材料价格变化汇总表!B18,锂盐价格!$B$3000:$R$6005,17,FALSE)/10000=0,"",VLOOKUP(锂电材料价格变化汇总表!B18,锂盐价格!$B$3000:$R$6005,17,FALSE)/10000) -> 46 | P18: =IF(VLOOKUP(锂电材料价格变化汇总表!B18,锂盐价格!$B$3000:$V$6005,21,FALSE)/10000=0,"",VLOOKUP(锂电材料价格变化汇总表!B18,锂盐价格!$B$3000:$V$6005,21,FALSE)/10000) -> 45.75 | Q18: =IF(VLOOKUP(锂电材料价格变化汇总表!B18,前驱体价格!$G$4:$S$2480,13,FALSE)/10=0,"",VLOOKUP(锂电材料价格变化汇总表!B18,前驱体价格!$G$4:$S$2480,13,FALSE)/10) -> 47.2 | R18: =IF(VLOOKUP(锂电材料价格变化汇总表!B18,锂盐价格!$B$3000:$P$6005,15,FALSE)/10000=0,"",VLOOKUP(锂电材料价格变化汇总表!B18,锂盐价格!$B$3000:$P$6005,15,FALSE)/10000) -> 290 | S18: =IF(VLOOKUP(锂电材料价格变化汇总表!B18,锂盐价格!$B$3000:$T$6005,19,FALSE)=0,"",VLOOKUP(锂电材料价格变化汇总表!B18,锂盐价格!$B$3000:$T$6005,19,FALSE)) -> 286.5 | T18: =IF(VLOOKUP(B18,锂盐价格!$B3002:$S5007,18,FALSE)/10000=0,"",VLOOKUP(B18,锂盐价格!$B3002:$S5007,18,FALSE)/10000) -> 48.1 | U18: =IF(VLOOKUP(锂电材料价格变化汇总表!B18,锂盐价格!$B$3000:$W$6005,22,FALSE)=0,"",VLOOKUP(锂电材料价格变化汇总表!B18,锂盐价格!$B$3000:$W$6005,22,FALSE)) -> 46.9 | V18: =IF(VLOOKUP(锂电材料价格变化汇总表!B18,前驱体价格!$G$4:$V$2480,16,FALSE)/10=0,"",VLOOKUP(锂电材料价格变化汇总表!B18,前驱体价格!$G$4:$V$2480,16,FALSE)/10) -> 48.05 | W18: =VLOOKUP(B18,电解液价格!$B$3:$D$10000,2,FALSE)/10000 -> 4.7 | X18: =VLOOKUP(B18,电解液价格!$E$3:$G$10000,2,FALSE)/10000 -> 5 | Y18: =VLOOKUP(B18,电解液价格!$E$3:$G$10000,3,FALSE)/10000 -> 6.9 | Z18: =VLOOKUP(B18,六氟磷酸锂价格!$H$4:$I$2256,2,FALSE)/10000 -> 19.5 | AA18: =VLOOKUP(B18,六氟磷酸锂价格!$B$698:$F$99997,5,FALSE)/10000 -> 19.5 | AB18: =IF(VLOOKUP(锂电材料价格变化汇总表!B18,碳酸二甲酯!$B$4:$C$3303,2,FALSE)/10000=0,"",VLOOKUP(锂电材料价格变化汇总表!B18,碳酸二甲酯!$B$4:$C$3303,2,FALSE)/10000) -> 0.52 | AC18: =VLOOKUP(B18,碳酸二甲酯!$B$592:$O$3303,14,FALSE) -> 0.56 | AD18: =VLOOKUP(B18,碳酸二甲酯!$B$592:$M$3303,12,FALSE)/10000 -> 0.51 | AE18: =VLOOKUP(B18,前驱体价格!$BL$4:$BP$8848,5,FALSE)/10000 -> 1.775 | AF18: =VLOOKUP(B18,前驱体价格!$AD$4:$AP$8848,13,FALSE)/10 -> 9.3 | AG18: =IF(VLOOKUP(B18,前驱体价格!$BL$4:$BO$8848,4,FALSE)=0,"",VLOOKUP(B18,前驱体价格!$BL$4:$BO$8848,4,FALSE)) -> 10.2 | AH18: =IF(VLOOKUP(锂电材料价格变化汇总表!B18,前驱体价格!$BC$4:$BF$10001,4,FALSE)/10000=0,"",VLOOKUP(锂电材料价格变化汇总表!B18,前驱体价格!$BC$4:$BF$10001,4,FALSE)/10000) -> 17.05 | AI18: =IF(VLOOKUP(B18,前驱体价格!$X$4:$AA$8848,4,FALSE)/10=0,"",VLOOKUP(B18,前驱体价格!$X$4:$AA$8848,4,FALSE)/10) -> 17.5 | AJ18: =IF(VLOOKUP(B18,前驱体价格!AW303:AZ779652,4,FALSE)/10=0,"",VLOOKUP(B18,前驱体价格!AW303:AZ779652,4,FALSE)/10) -> 4.8 | AK18: =IF(VLOOKUP(B18,前驱体价格!AR294:AU3572,4,FALSE)/10=0,"",VLOOKUP(B18,前驱体价格!AR294:AU3572,4,FALSE)/10) -> 3.9 | AL18: =IF(VLOOKUP(B18,前驱体价格!$AD$4:$AG$8848,4,FALSE)/10=0,"",VLOOKUP(B18,前驱体价格!$AD$4:$AG$8848,4,FALSE)/10) -> 4.0 | AM18: =VLOOKUP(B18,前驱体价格!$AD$4:$AJ$8848,6,FALSE)/10 -> 3.85 | AN18: =VLOOKUP(B18,正极材料价格!B:E,4,FALSE)/10 -> 39.3 | AO18: =VLOOKUP(B18,正极材料价格!AC:AE,2,FALSE)/10000 -> 12.125 | AP18: =VLOOKUP(B18,正极材料价格!I:P,4,) -> 31.75 | AQ18: =VLOOKUP(B18,正极材料价格!I:O,7,) -> 32.2 | AR18: =VLOOKUP(B18,正极材料价格!I:R,10,) -> 34.9 | AS18: =VLOOKUP(B18,正极材料价格!I:U,13,FALSE) -> 37.95 | AT18: =VLOOKUP(B18,正极材料价格!AC:AE,3,FALSE)/10000 -> 14.4 | AU18: =VLOOKUP(B18,负极价格!$K$6:$T$10000,4,FALSE)/10000 -> 7.25 | AV18: =VLOOKUP(B18,负极价格!$K$6:$T$10000,7,FALSE)/10000 -> 3.6 | AW18: =VLOOKUP(B18,负极价格!$K$6:$T$10000,10,FALSE)/10000 -> 5.55 | AX18: =VLOOKUP(B18,负极价格!$V$6:$AE$10000,10,FALSE)/10000 -> 6.1 | AY18: =VLOOKUP(B18,负极价格!$V$6:$AE$10000,7,FALSE)/10000 -> 3.05 | AZ18: =VLOOKUP(B18,负极价格!$V$6:$AE$10000,4,FALSE)/10000 -> 4.9 | BA18: =VLOOKUP(B18,负极价格!$A$4:$B$3240,2,FALSE)/10000 -> 4.97 | BB18: =VLOOKUP(B18,负极价格!$A$4:$D$3240,3,FALSE)/10000 -> 1.16 | BC18: =VLOOKUP(B18,负极价格!$A$4:$D$3240,4,FALSE)/10000 -> 0.36 | BD18: =VLOOKUP(B18,负极价格!$F$4:$I$2390,4,FALSE)/10000 -> 11.50 | BE18: =VLOOKUP(B18,隔膜价格!$A$1:$C$99434,2,FALSE) -> 1.35 | BF18: =VLOOKUP(B18,隔膜价格!$A$1:$C$99434,3,FALSE) -> 0.95 | BG18: =VLOOKUP(B18,隔膜价格!$Q$1:$U$99434,2,FALSE) -> 2.95 | BH18: =VLOOKUP(B18,隔膜价格!$Q$1:$U$99434,3,FALSE) -> 1.95 | BI18: =VLOOKUP(B18,隔膜价格!$Q$1:$U$99434,4,FALSE) -> 1.28 | BJ18: =VLOOKUP(B18,隔膜价格!$Q$1:$U$99434,5,FALSE) -> 0.83 | BK18: =VLOOKUP(B18,锂电池价格!$B$1:$F$1003,2,FALSE) -> 1.05 | BL18: =VLOOKUP($B18,锂电池价格!$B$1:$F$1003,3,FALSE) -> 1.1 | BM18: =VLOOKUP($B18,锂电池价格!$B$1:$F$1003,4,FALSE) -> 0.93 | BN18: =VLOOKUP($B18,锂电池价格!$B$1:$F$1003,5,FALSE) -> 10.2 | BO18: =VLOOKUP(B18,锂电辅料价格!Q:Z,10,FALSE) -> 26.5 | BP18: =VLOOKUP(B18,锂电辅料价格!Q:AC,13,FALSE) -> 35 | BQ18: =VLOOKUP(B18,锂电辅料价格!BB:BK,10,FALSE) -> 30 | BR18: =VLOOKUP(B18,锂电辅料价格!BB:BN,13,FALSE) -> 42.5 | BS18: =VLOOKUP(B18,电解液价格!$B$4:$B$4185,7,FALSE)/10000 ->  | BT18: =VLOOKUP(B18,电解液价格!$B$4:$B$4185,10,FALSE)/10000 ->  | BU18: =VLOOKUP(B18,电解液价格!$B$4:$B$4185,13,FALSE)/10000 -> 
B19: 2023-02-10 | C19: =IF((VLOOKUP(B19,镍钴锰价格!$N$4:$O$8000,2,FALSE)/10000)=0,"",(VLOOKUP(B19,镍钴锰价格!$N$4:$O$8000,2,FALSE)/10000)) -> 29.2 | D19: =IF((VLOOKUP(B19,镍钴锰价格!$Z$2581:$AO$4676,16,FALSE)/10)=0,"",(VLOOKUP(B19,镍钴锰价格!$Z$2581:$AO$4676,16,FALSE)/10)) -> 27.6 | E19: =IF((VLOOKUP(B19,镍钴锰价格!$N$4:$R$6007,5,FALSE)/10000)=0,"",(VLOOKUP(B19,镍钴锰价格!$N$4:$R$6007,5,FALSE)/10000)) -> 29.25 | F19: =IF((VLOOKUP(B19,镍钴锰价格!Z2591:AC5003,4,FALSE)/10000)=0,"",(VLOOKUP(B19,镍钴锰价格!Z2591:AC5003,4,FALSE)/10000)) -> 29.25 | G19: =IF((VLOOKUP(B19,镍钴锰价格!$N$4:$X$6007,11,FALSE)/10000)=0,"",(VLOOKUP(B19,镍钴锰价格!$N$4:$X$6007,11,FALSE)/10000)) -> 29.5 | H19: =IF((VLOOKUP(B19,镍钴锰价格!$AT$4:$AU$4571,2,FALSE))=0,"",(VLOOKUP(B19,镍钴锰价格!$AT$4:$AU$4571,2,FALSE))) -> 17.43 | I19: =IF((VLOOKUP(B19,镍钴锰价格!$AT$4:$AV$4571,3,FALSE))=0,"",(VLOOKUP(B19,镍钴锰价格!$AT$4:$AV$4571,3,FALSE))) -> 16.35 | J19: =IF(VLOOKUP(B19,镍钴锰价格!$C$4:$D$4800,2,FALSE)/10000=0,"",VLOOKUP(B19,镍钴锰价格!$C$4:$D$4800,2,FALSE)/10000) -> 22.445 | K19: =IF(VLOOKUP(B19,镍钴锰价格!$AQ$4:$AR$6007,2,FALSE)/10000=0,"",VLOOKUP(B19,镍钴锰价格!$AQ$4:$AR$6007,2,FALSE)/10000) -> 1.7 | L19: =IF(VLOOKUP(锂电材料价格变化汇总表!B19,前驱体价格!$G$4:$J$2480,4,FALSE)/10=0,"",VLOOKUP(锂电材料价格变化汇总表!B19,前驱体价格!$G$4:$J$2480,4,FALSE)/10) -> 44.8 | M19: =IF(VLOOKUP(锂电材料价格变化汇总表!B19,锂盐价格!$B$3000:$Q$6005,16,FALSE)/10000=0,"",VLOOKUP(锂电材料价格变化汇总表!B19,锂盐价格!$B$3000:$Q$6005,16,FALSE)/10000) -> 42.4 | N19: =IF(VLOOKUP(锂电材料价格变化汇总表!B19,锂盐价格!$B$3000:$U$6005,20,FALSE)/10000=0,"",VLOOKUP(锂电材料价格变化汇总表!B19,锂盐价格!$B$3000:$U$6005,20,FALSE)/10000) -> 42.4 | O19: =IF(VLOOKUP(锂电材料价格变化汇总表!B19,锂盐价格!$B$3000:$R$6005,17,FALSE)/10000=0,"",VLOOKUP(锂电材料价格变化汇总表!B19,锂盐价格!$B$3000:$R$6005,17,FALSE)/10000) -> 45.5 | P19: =IF(VLOOKUP(锂电材料价格变化汇总表!B19,锂盐价格!$B$3000:$V$6005,21,FALSE)/10000=0,"",VLOOKUP(锂电材料价格变化汇总表!B19,锂盐价格!$B$3000:$V$6005,21,FALSE)/10000) -> 45.55 | Q19: =IF(VLOOKUP(锂电材料价格变化汇总表!B19,前驱体价格!$G$4:$S$2480,13,FALSE)/10=0,"",VLOOKUP(锂电材料价格变化汇总表!B19,前驱体价格!$G$4:$S$2480,13,FALSE)/10) -> 47.2 | R19: =IF(VLOOKUP(锂电材料价格变化汇总表!B19,锂盐价格!$B$3000:$P$6005,15,FALSE)/10000=0,"",VLOOKUP(锂电材料价格变化汇总表!B19,锂盐价格!$B$3000:$P$6005,15,FALSE)/10000) -> 288 | S19: =IF(VLOOKUP(锂电材料价格变化汇总表!B19,锂盐价格!$B$3000:$T$6005,19,FALSE)=0,"",VLOOKUP(锂电材料价格变化汇总表!B19,锂盐价格!$B$3000:$T$6005,19,FALSE)) -> 286 | T19: =IF(VLOOKUP(B19,锂盐价格!$B3003:$S5008,18,FALSE)/10000=0,"",VLOOKUP(B19,锂盐价格!$B3003:$S5008,18,FALSE)/10000) -> 47.6 | U19: =IF(VLOOKUP(锂电材料价格变化汇总表!B19,锂盐价格!$B$3000:$W$6005,22,FALSE)=0,"",VLOOKUP(锂电材料价格变化汇总表!B19,锂盐价格!$B$3000:$W$6005,22,FALSE)) -> 46.8 | V19: =IF(VLOOKUP(锂电材料价格变化汇总表!B19,前驱体价格!$G$4:$V$2480,16,FALSE)/10=0,"",VLOOKUP(锂电材料价格变化汇总表!B19,前驱体价格!$G$4:$V$2480,16,FALSE)/10) -> 48.05 | W19: =VLOOKUP(B19,电解液价格!$B$3:$D$10000,2,FALSE)/10000 -> 4.7 | X19: =VLOOKUP(B19,电解液价格!$E$3:$G$10000,2,FALSE)/10000 -> 5 | Y19: =VLOOKUP(B19,电解液价格!$E$3:$G$10000,3,FALSE)/10000 -> 6.9 | Z19: =VLOOKUP(B19,六氟磷酸锂价格!$H$4:$I$2256,2,FALSE)/10000 -> 19.3 | AA19: =VLOOKUP(B19,六氟磷酸锂价格!$B$698:$F$99997,5,FALSE)/10000 -> 19 | AB19: =IF(VLOOKUP(锂电材料价格变化汇总表!B19,碳酸二甲酯!$B$4:$C$3303,2,FALSE)/10000=0,"",VLOOKUP(锂电材料价格变化汇总表!B19,碳酸二甲酯!$B$4:$C$3303,2,FALSE)/10000) -> 0.52 | AC19: =VLOOKUP(B19,碳酸二甲酯!$B$592:$O$3303,14,FALSE) -> 0.56 | AD19: =VLOOKUP(B19,碳酸二甲酯!$B$592:$M$3303,12,FALSE)/10000 -> 0.51 | AE19: =VLOOKUP(B19,前驱体价格!$BL$4:$BP$8848,5,FALSE)/10000 -> 1.775 | AF19: =VLOOKUP(B19,前驱体价格!$AD$4:$AP$8848,13,FALSE)/10 -> 9.3 | AG19: =IF(VLOOKUP(B19,前驱体价格!$BL$4:$BO$8848,4,FALSE)=0,"",VLOOKUP(B19,前驱体价格!$BL$4:$BO$8848,4,FALSE)) -> 10.2 | AH19: =IF(VLOOKUP(锂电材料价格变化汇总表!B19,前驱体价格!$BC$4:$BF$10001,4,FALSE)/10000=0,"",VLOOKUP(锂电材料价格变化汇总表!B19,前驱体价格!$BC$4:$BF$10001,4,FALSE)/10000) -> 16.9 | AI19: =IF(VLOOKUP(B19,前驱体价格!$X$4:$AA$8848,4,FALSE)/10=0,"",VLOOKUP(B19,前驱体价格!$X$4:$AA$8848,4,FALSE)/10) -> 17.5 | AJ19: =IF(VLOOKUP(B19,前驱体价格!AW304:AZ779653,4,FALSE)/10=0,"",VLOOKUP(B19,前驱体价格!AW304:AZ779653,4,FALSE)/10) -> 4.8 | AK19: =IF(VLOOKUP(B19,前驱体价格!AR295:AU3573,4,FALSE)/10=0,"",VLOOKUP(B19,前驱体价格!AR295:AU3573,4,FALSE)/10) -> 3.9 | AL19: =IF(VLOOKUP(B19,前驱体价格!$AD$4:$AG$8848,4,FALSE)/10=0,"",VLOOKUP(B19,前驱体价格!$AD$4:$AG$8848,4,FALSE)/10) -> 4.0 | AM19: =VLOOKUP(B19,前驱体价格!$AD$4:$AJ$8848,6,FALSE)/10 -> 3.85 | AN19: =VLOOKUP(B19,正极材料价格!B:E,4,FALSE)/10 -> 38.8 | AO19: =VLOOKUP(B19,正极材料价格!AC:AE,2,FALSE)/10000 -> 12.105 | AP19: =VLOOKUP(B19,正极材料价格!I:P,4,) -> 31.75 | AQ19: =VLOOKUP(B19,正极材料价格!I:O,7,) -> 32.2 | AR19: =VLOOKUP(B19,正极材料价格!I:R,10,) -> 34.9 | AS19: =VLOOKUP(B19,正极材料价格!I:U,13,FALSE) -> 37.95 | AT19: =VLOOKUP(B19,正极材料价格!AC:AE,3,FALSE)/10000 -> 14.3 | AU19: =VLOOKUP(B19,负极价格!$K$6:$T$10000,4,FALSE)/10000 -> 7.25 | AV19: =VLOOKUP(B19,负极价格!$K$6:$T$10000,7,FALSE)/10000 -> 3.6 | AW19: =VLOOKUP(B19,负极价格!$K$6:$T$10000,10,FALSE)/10000 -> 5.55 | AX19: =VLOOKUP(B19,负极价格!$V$6:$AE$10000,10,FALSE)/10000 -> 6.1 | AY19: =VLOOKUP(B19,负极价格!$V$6:$AE$10000,7,FALSE)/10000 -> 3.05 | AZ19: =VLOOKUP(B19,负极价格!$V$6:$AE$10000,4,FALSE)/10000 -> 4.9 | BA19: =VLOOKUP(B19,负极价格!$A$4:$B$3240,2,FALSE)/10000 -> 4.97 | BB19: =VLOOKUP(B19,负极价格!$A$4:$D$3240,3,FALSE)/10000 -> 1.16 | BC19: =VLOOKUP(B19,负极价格!$A$4:$D$3240,4,FALSE)/10000 -> 0.36 | BD19: =VLOOKUP(B19,负极价格!$F$4:$I$2390,4,FALSE)/10000 -> 11.50 | BE19: =VLOOKUP(B19,隔膜价格!$A$1:$C$99434,2,FALSE) -> 1.35 | BF19: =VLOOKUP(B19,隔膜价格!$A$1:$C$99434,3,FALSE) -> 0.95 | BG19: =VLOOKUP(B19,隔膜价格!$Q$1:$U$99434,2,FALSE) -> 2.95 | BH19: =VLOOKUP(B19,隔膜价格!$Q$1:$U$99434,3,FALSE) -> 1.95 | BI19: =VLOOKUP(B19,隔膜价格!$Q$1:$U$99434,4,FALSE) -> 1.28 | BJ19: =VLOOKUP(B19,隔膜价格!$Q$1:$U$99434,5,FALSE) -> 0.83 | BK19: =VLOOKUP(B19,锂电池价格!$B$1:$F$1003,2,FALSE) -> 1.05 | BL19: =VLOOKUP($B19,锂电池价格!$B$1:$F$1003,3,FALSE) -> 1.1 | BM19: =VLOOKUP($B19,锂电池价格!$B$1:$F$1003,4,FALSE) -> 0.93 | BN19: =VLOOKUP($B19,锂电池价格!$B$1:$F$1003,5,FALSE) -> 10.2 | BO19: =VLOOKUP(B19,锂电辅料价格!Q:Z,10,FALSE) -> 26.5 | BP19: =VLOOKUP(B19,锂电辅料价格!Q:AC,13,FALSE) -> 35 | BQ19: =VLOOKUP(B19,锂电辅料价格!BB:BK,10,FALSE) -> 30 | BR19: =VLOOKUP(B19,锂电辅料价格!BB:BN,13,FALSE) -> 42.5 | BS19: =VLOOKUP(B19,电解液价格!$B$4:$B$4185,7,FALSE)/10000 ->  | BT19: =VLOOKUP(B19,电解液价格!$B$4:$B$4185,10,FALSE)/10000 ->  | BU19: =VLOOKUP(B19,电解液价格!$B$4:$B$4185,13,FALSE)/10000 -> 
B20: 周环比% | C20: =IF(ISNUMBER(C19),C19/C14-1,C18/C14-1) -> -2.0% | D20: =IF(ISNUMBER(D19),D19/D14-1,D18/D14-1) -> -1.8% | E20: =IF(ISNUMBER(E19),E19/E14-1,E18/E14-1) -> -1.2% | F20: =IF(ISNUMBER(F19),F19/F14-1,F18/F14-1) -> -1.2% | G20: -1.3% | H20: -2.1% | I20: -4.7% | J20: -1.7% | K20: 0.0% | L20: -1.1% | M20: -3.6% | N20: -2.6% | O20: -1.9% | P20: -1.8% | Q20: -0.6% | R20: -1.4% | S20: -1.4% | T20: -5.0% | U20: -2.1% | V20: -0.4% | W20: -4.1% | X20: =IF(ISNUMBER(X19),X19/X14-1,X18/X14-1) -> 0.0% | Y20: 0.0% | Z20: -5.9% | AA20: -2.6% | AB20: 0.0% | AC20: 0.0% | AD20: 0.0% | AE20: =IF(ISNUMBER(AE19),AE19/AE14-1,AE18/AE14-1) -> -5.3% | AF20: -1.1% | AG20: -0.5% | AH20: -2.3% | AI20: 0.0% | AJ20: -2.1% | AK20: -4.9% | AL20: -2.5% | AM20: 1.3% | AN20: -4.7% | AO20: -1.2% | AP20: =IF(ISNUMBER(AP19),AP19/AP14-1,AP18/AP14-1) -> -2.0% | AQ20: -1.2% | AR20: -1.1% | AS20: -1.3% | AT20: -3.4% | AU20: 0.0% | AV20: 0.0% | AW20: 0.0% | AX20: 0.0% | AY20: 0.0% | AZ20: 0.0% | BA20: -6.5% | BB20: 0.0% | BC20: 0.1% | BD20: 0.0% | BE20: 0.0% | BF20: 0.0% | BG20: 0.0% | BH20: 0.0% | BI20: 0.0% | BJ20: 0.0% | BK20: 0.0% | BL20: =IF(ISNUMBER(BL19),BL19/BL14-1,BL18/BL14-1) -> 0.0% | BM20: 0.0% | BN20: 0.0% | BO20: =IF(ISNUMBER(BO19),BO19/BO14-1,BO18/BO14-1) -> 0.0% | BP20: 0.0% | BQ20: 0.0% | BR20: 0.0%
B21: 月初环比% | C21: =C19/C12-1 -> -2.3% | D21: =D19/D12-1 -> -3.2% | E21: =E19/E12-1 -> -1.2% | F21: -1.2% | G21: -1.7% | H21: -5.2% | I21: -6.0% | J21: -3.8% | K21: 0.0% | L21: -1.5% | M21: -5.8% | N21: -3.4% | O21: -2.2% | P21: -2.6% | Q21: -1.0% | R21: -2.0% | S21: -1.8% | T21: -6.9% | U21: -2.9% | V21: -0.8% | W21: -4.1% | X21: =X19/X12-1 -> 0.0% | Y21: 0.0% | Z21: -10.9% | AA21: -5.0% | AB21: 0.0% | AC21: 0.0% | AD21: 0.0% | AE21: =AE19/AE12-1 -> -5.3% | AF21: -0.5% | AG21: -1.4% | AH21: -3.4% | AI21: 0.0% | AJ21: -4.0% | AK21: =AK19/AK12-1 -> -6.1% | AL21: -6.0% | AM21: 2.7% | AN21: -7.0% | AO21: -3.5% | AP21: =AP19/AP12-1 -> -2.6% | AQ21: -1.5% | AR21: -2.4% | AS21: -1.4% | AT21: -3.4% | AU21: 0.0% | AV21: 0.0% | AW21: 0.0% | AX21: 0.0% | AY21: 0.0% | AZ21: 0.0% | BA21: -6.5% | BB21: 0.0% | BC21: -0.4% | BD21: 0.0% | BE21: 0.0% | BF21: 0.0% | BG21: 0.0% | BH21: 0.0% | BI21: 0.0% | BJ21: 0.0% | BK21: -1.9% | BL21: =BL19/BL12-1 -> -1.8% | BM21: -2.1% | BN21: -0.5% | BO21: =BO19/BO12-1 -> 0.0% | BP21: 0.0% | BQ21: -10.4% | BR21: -10.5%
B22: 年初环比% | C22: =C19/C10-1 -> -10.4% | D22: =D19/D10-1 -> -10.8% | E22: -9.2% | F22: -9.2% | G22: -9.1% | H22: -19.9% | I22: -15.5% | J22: -5.1% | K22: -0.6% | L22: -8.1% | M22: -11.7% | N22: -10.8% | O22: -7.1% | P22: -10.7% | Q22: -7.0% | R22: -2.4% | S22: -2.4% | T22: -13.7% | U22: -13.1% | V22: -8.5% | W22: -16.1% | X22: =X19/X10-1 -> -4.8% | Y22: 0.0% | Z22: -16.1% | AA22: =AA19/AA10-1 -> -21.5% | AB22: 0.0% | AC22: 1.8% | AD22: -4.7% | AE22: =AE19/AE10-1 -> -19.3% | AF22: -9.7% | AG22: -11.3% | AH22: -13.6% | AI22: -10.9% | AJ22: -15.9% | AK22: =AK19/AK10-1 -> -18.9% | AL22: -19.4% | AM22: -1.3% | AN22: -8.8% | AO22: -15.3% | AP22: -9.0% | AQ22: -8.0% | AR22: -7.2% | AS22: -5.1% | AT22: -12.8% | AU22: 0.0% | AV22: 0.0% | AW22: 0.0% | AX22: 0.0% | AY22: -6.2% | AZ22: -3.9% | BA22: -6.5% | BB22: -0.8% | BC22: 0.0% | BD22: 0.0% | BE22: 0.0% | BF22: 0.0% | BG22: 0.0% | BH22: 0.0% | BI22: 0.0% | BJ22: 0.0% | BK22: -4.5% | BL22: =BL19/BL10-1 -> -4.3% | BM22: -6.1% | BN22: -1.4% | BO22: =BO19/BO10-1 -> -10.2% | BP22: -2.8% | BQ22: -17.8% | BR22: -10.5%
B23: 低点环比 | C23: =C19/(MIN(镍钴锰价格!O7:O3498)/10000)-1 -> 9733233.3% | D23: =D19/(MIN(镍钴锰价格!AO7:AO3500)/10)-1 -> 29.9% | E23: =E19/(MIN(镍钴锰价格!R7:R3498)/10000)-1 -> -29253709.9% | F23: =F19/(MIN(镍钴锰价格!AC7:AC3500)/10000)-1 -> 348562400.0% | G23: =G19/(MIN(镍钴锰价格!X7:X6007)/10000)-1 -> 1538.9% | H23: =H19/(MIN(镍钴锰价格!AU7:AU1534))-1 -> 72.6% | I23: =I19/(MIN(镍钴锰价格!AV7:AV1534))-1 -> 65.2% | J23: =J19/(MIN(镍钴锰价格!D7:D3499)/10000)-1 -> 1402712.5% | K23: =K19/(MIN(镍钴锰价格!AR7:AR3500)/10000)-1 -> 62.7% | L23: =L19/(MIN(前驱体价格!J7:J3501)/10)-1 ->  | M23: =M19/(MIN(锂盐价格!Q7:Q6005)/10000)-1 -> 14133233.3% | O23: =V19/(MIN(锂盐价格!R7:R6005)/10000)-1 ->  | Q23: =Q19/(MIN(前驱体价格!S7:S3501)/10)-1 -> 11005.9% | R23: =R19/(MIN(锂盐价格!P7:P6005)/10000)-1 -> 95999900.0% | T23: =T19/((MIN(锂盐价格!S7:S3240))/10000)-1 -> 15863233.3% | V23: =V19/(MIN(前驱体价格!V7:V3501)/10)-1 -> 890.7% | W23: =W19/(MIN(前驱体价格!W7:W3501)/10)-1 ->  | Z23: =IF(VLOOKUP(锂电材料价格变化汇总表!B23,六氟磷酸锂价格!$B$4:$E$2256,4,FALSE)/10000=0,"",VLOOKUP(锂电材料价格变化汇总表!B23,六氟磷酸锂价格!$B$4:$E$2256,4,FALSE)/10000) ->  | AB23: =AB19/(MIN(碳酸二甲酯!C7:C3005)/10000)-1 -> 32400.0% | AD23: =AD19/(MIN(碳酸二甲酯!D7:D3005)/10000)-1 -> 31775.0% | AF23: =AF19/(MIN(碳酸二甲酯!D7:D3005)/10000)-1 -> 581150.0% | AG23: =AG19/(MIN(碳酸二甲酯!E7:E3005)/10000)-1 -> 679900.0% | AH23: =AH19/(MIN(前驱体价格!BF7:BF720)/10000)-1 -> 35.7% | AI23: =AI19/(MIN(前驱体价格!AA7:AA3001)/10)-1 -> 39.4% | AJ23: =AJ19/(MIN(前驱体价格!AZ7:AZ3001)/10)-1 -> 22.6% | AK23: =AK19/(MIN(前驱体价格!AU7:AU3001)/10)-1 -> 13.2% | AL23: =AL19/(MIN(前驱体价格!AG7:AG3001)/10)-1 -> 8.2% | AM23: =AM19/(MIN(前驱体价格!AJ7:AJ3001)/10)-1 -> 79.9% | AN23: =AN19/((MIN(正极材料价格!F7:F1968))/10000)-1 -> 106.7% | AO23: =AO19/(MIN(正极材料价格!#REF!)/10000)-1 ->  | AP23: =AP19/(MIN(正极材料价格!#REF!)/10000)-1 ->  | AQ23: =AQ19/(MIN(正极材料价格!#REF!)/10000)-1 ->  | AR23: =AR19/(MIN(正极材料价格!#REF!)/10000)-1 ->  | AU23: =AT19/(MIN(正极材料价格!#REF!)/10000)-1 ->  | AV23: =AU19/(MIN(负极价格!#REF!)/10000)-1 ->  | AW23: =AV19/(MIN(负极价格!#REF!)/10000)-1 ->  | AX23: =AW19/(MIN(负极价格!#REF!)/10000)-1 ->  | AY23: =AX19/(MIN(负极价格!#REF!)/10000)-1 ->  | AZ23: =AY19/(MIN(负极价格!#REF!)/10000)-1 ->  | BA23: =AZ19/(MIN(负极价格!#REF!)/10000)-1 ->  | BB23: =BA19/(MIN(负极价格!B6:B2794)/10000)-1 -> 12.2% | BD23: =BD19/(MIN(负极价格!E7:E2999)/10000)-1 -> 662724.2% | BE23: =BE19/(MIN(负极价格!F6:F2036)/10000)-1 -> -68.7% | BF23: =BF19/(MIN(负极价格!G6:G2036)/10000)-1 -> -90.0% | BG23: =BG19/(MIN(#REF!))-1 ->  | BI23: =BI21/BI14-1 -> -100.0% | BJ23: =BJ19/(MIN(#REF!))-1 ->  | BK23: =#REF!/(MIN(#REF!))-1 ->  | BL23: =#REF!/(MIN(#REF!))-1 ->  | BM23: =BK19/(MIN(#REF!))-1 ->  | BN23: =BM19/(MIN(#REF!))-1 ->  | BO23: =IF(ISNUMBER(BU22),BU22/BU17-1,BU21/BU17-1) ->  | BP23: =IF(ISNUMBER(BO22),BO22/BO17-1,BO21/BO17-1) -> -100.4% | BQ23: =IF(ISNUMBER(BP22),BP22/BP17-1,BP21/BP17-1) -> -100.1% | BR23: =IF(ISNUMBER(BQ22),BQ22/BQ17-1,BQ21/BQ17-1) -> -100.6% | BS23: =BN19/(MIN(#REF!))-1 ->  | BT23: =IF(ISNUMBER(BS22),BS22/BS17-1,BS21/BS17-1) ->  | BU23: =IF(ISNUMBER(BT22),BT22/BT17-1,BT21/BT17-1) -> 
B25: 【东吴电新】锂电材料价格每周涨跌（20170519）
C26: 2016-10-31 | D26: 2016-11-30 | E26: 2016-12-30 | F26: 2017-01-03 | G26: 2017-04-21 | H26: 2017-04-28 | I26: 2017-05-15 | J26: 2017-05-16 | K26: 2017-05-17 | L26: 2017-05-18 | M26: 2017-05-19 | O26: 周环比% | Q26: 月初环比% | R26: 年初环比% | T26: 低点环比
B27: 钴：长江有色市场（万/吨） | C27: 21.5 | D27: 23.35 | E27: 27.25 | F27: 27.25 | G27: 37 | H27: 37.5 | I27: 36.75 | J27: 36.75 | K27: 36.75 | L27: 36.25 | M27: 35.75 | O27: -3.6% | Q27: -3.9% | R27: 31.2% | T27: 83.3%
B28: 钴：钴粉（万/吨）SMM | C28: 21.25 | D28: 23.15 | E28: 28.55 | F28: 28.55 | G28: 51.5 | H28: 51.5 | I28: 51.5 | J28: 51.5 | K28: 51.5 | L28: 51.5 | M28: 51.5 | O28: 0.0% | Q28: 0.0% | R28: 80.4% | T28: 142.4%
B29: 钴：金川赞比亚（万/吨） | C29: 21.35 | D29: 23.4 | E29: 27.1 | F29: 27.1 | G29: 38.6 | H29: 38 | I29: 36.75 | J29: 36.75 | K29: 36.75 | L29: 36.75 | M29: 36.75 | O29: -0.7% | Q29: -2.6% | R29: 35.6% | T29: 93.9%
B30: 钴：电解钴（万/吨）SMM | C30: 21.35 | D30: 23.4 | E30: 27.1 | F30: 27.1 | G30: 38.6 | H30: 38 | I30: 36.75 | J30: 36.75 | K30: 36.75 | L30: 36.75 | M30: 36.75 | O30: -0.7% | Q30: -2.6% | R30: 35.6% | T30: 93.9%
B31: 钴：谦比西电解钴（万/吨）格派 | D31: 25 | E31: 29 | F31: 29 | G31: 44 | H31: 44 | I31: 40 | M31: 37.5 | O31: -6.3% | Q31: -6.3% | R31: 29.3% | T31: 1495.7%
B32: 钴：金川电解钴（万/吨）格派 | D32: 25 | E32: 29 | F32: 29 | G32: 44 | H32: 44 | I32: 38 | M32: 37.5 | O32: -1.3% | Q32: -6.3% | R32: 29.3% | T32: 59.6% | BV32: 0 | BW32: -0.01951219512 | BY32: 0.07329842932 | BZ32: 0.2258064516 | CA32: 0.223880597 | CB32: -0.02409638554 | CC32: 0.03821656051 | CD32: 0 | CE32: 0 | CF32: -0.01298701299 | CG32: -0.1052631579 | CH32: 0 | CI32: 0 | CJ32: 0 | CK32: 0 | CL32: 0 | CM32: 0 | CN32: 0 | CP32: 0 | CQ32: 0 | CR32: 0 | CS32: 0 | CT32: 0 | CU32: 0 | CV32: 0
B33: 钴：凯实电解钴（万/吨）格派 | D33: 23.25 | E33: 26.5 | F33: 26.5 | G33: 44 | H33: 44 | I33: 37 | M33: 37 | O33: 0.0% | Q33: -7.5% | R33: 39.6% | T33: 74.1%
B34: 钴：金属钴（万/吨）百川 | C34: 21.2 | D34: 23 | E34: 27.3 | F34: 27.3 | G34: 41 | H34: 41 | I34: 39 | J34: 38 | K34: 38 | L34: 38 | M34: 38 | O34: -2.6% | Q34: -7.3% | R34: 39.2% | T34: 100.5%
B35: 镍：上海金属网（万/吨） | C35: 8.225 | D35: 9.125 | E35: 8.535 | F35: 8.575 | G35: 7.915 | H35: 7.855 | I35: 7.675 | J35: 7.625 | K35: 7.625 | L35: 7.51 | M35: 7.57 | O35: -1.5% | Q35: 0.7% | R35: -11.7% | T35: 18.1%
B36: 锰：长江有色市场（万/吨） | C36: 1.305 | D36: 1.595 | E36: 1.685 | F36: 1.575 | G36: 1.395 | H36: 1.415 | I36: 1.425 | J36: 1.405 | K36: 1.385 | L36: 1.385 | M36: 1.385 | O36: -4.8% | Q36: -4.8% | R36: -12.1% | T36: 32.5%
B37: 碳酸锂：国产（99.5%）（万/吨） | C37: 11.5 | D37: 11.7 | E37: 11.7 | F37: 11.7 | G37: 11.7 | H37: 12 | I37: 12.75 | J37: 12.75 | K37: 12.75 | L37: 12.75 | M37: 12.75 | O37: 0.0% | Q37: 6.3% | R37: 9.0% | T37: 160.2%
B38: 碳酸锂：工业级（万/吨）百川 | C38: 11.1 | D38: 11.4 | E38: 11.65 | F38: 11.65 | G38: 11.85 | H38: 11.85 | I38: 12.25 | J38: 12.25 | K38: 12.25 | L38: 12.35 | M38: 12.35 | O38: 0.8% | Q38: 0.8% | R38: 6.0% | T38: 11.3%
B39: 碳酸锂：电池级（万/吨）百川 | C39: 12.825 | D39: 12.925 | E39: 13.075 | F39: 13.075 | G39: 12.775 | H39: 12.775 | I39: 13.075 | J39: 13.075 | K39: 13.075 | L39: 14 | M39: 14 | O39: 7.1% | Q39: 7.1% | R39: 7.1% | T39: 24.3%
B40: 碳酸锂：国产主流厂商（万/吨） | C40: 12.75 | D40: 12.9 | E40: 12.9 | F40: 12.9 | G40: 13 | H40: 13.5 | I40: 13.75 | J40: 13.75 | K40: 13.75 | L40: 13.75 | M40: 13.75 | O40: 0.0% | Q40: 1.9% | R40: 6.6% | T40: 7.8%
B41: 金属锂（万/吨）百川 | C41: 62.5 | D41: 62.5 | E41: 65 | F41: 65 | G41: 68 | H41: 68 | I41: 70 | J41: 70 | K41: 70 | L41: 70 | M41: 70 | O41: 0.0% | Q41: 0.0% | R41: 7.7% | T41: 44.3%
B42: 氢氧化锂（万/吨）百川 | C42: 15.8 | D42: 15.8 | E42: 15.8 | F42: 15.8 | G42: 15.8 | H42: 15.8 | I42: 15.8 | J42: 15.8 | K42: 15.8 | L42: 15.8 | M42: 15.8 | O42: 0.0% | Q42: 0.0% | R42: 0.0% | T42: 31.7%
B43: 氢氧化锂：国产（万/吨） | C43: 15.65 | D43: 16.25 | E43: 16.25 | F43: 16.25 | G43: 15.5 | H43: 15.75 | I43: 15.75 | J43: 15.75 | K43: 15.75 | L43: 15.75 | M43: 15.75 | O43: 0.0% | Q43: 0.0% | R43: -3.1% | T43: 191.7%
B44: 六氟磷酸锂（万/吨） | C44: 39.5 | D44: 39.5 | E44: 39.5 | F44: 39.5 | G44: 35 | H44: 27.5 | I44: 21.5 | J44: 21.5 | K44: 21.5 | L44: 21.5 | M44: 21.5 | O44: 0.0% | Q44: -21.8% | R44: -45.6% | T44: 0.0%
B45: 碳酸二甲脂（万/吨） | C45: 0.64 | D45: 0.62 | E45: 0.6 | F45: 0.57 | G45: 0.48 | H45: 0.46 | I45: 0.43 | J45: 0.42 | K45: 0.42 | L45: 0.42 | M45: 0.43 | O45: 0.0% | Q45: -6.5% | R45: -24.6% | T45: 16.2%
B46: 前驱体：氧化钴（万/吨）SMM | C46: 13.75 | D46: 16.45 | E46: 17.95 | F46: 17.95 | G46: 31.5 | H46: 31.5 | I46: 30.5 | J46: 30.5 | K46: 30.5 | L46: 30.5 | M46: 30.5 | O46: 0.0% | Q46: -3.2% | R46: 69.9% | T46: 145.0%
B47: 前驱体：四氧化三钴（万/吨）SMM | C47: 15.15 | D47: 16.65 | E47: 19.05 | F47: 19.05 | G47: 39 | H47: 38.5 | I47: 37 | J47: 37 | K47: 37 | L47: 37 | M47: 37 | O47: 0.0% | Q47: -2.6% | R47: 94.2% | T47: 194.8%
B48: 前驱体：四氧化三钴（万/吨）百川 | C48: 14.75 | D48: 16 | E48: 18.8 | F48: 18.8 | G48: 39 | H48: 39 | I48: 36 | J48: 35 | K48: 35 | L48: 35 | M48: 35 | O48: -2.8% | Q48: -10.3% | R48: 86.2% | T48: 178.9%
B49: 前驱体：氯化钴（万/吨） SMM | C49: 4.625 | D49: 5.1 | E49: 6.1 | F49: 6.1 | G49: 10.75 | H49: 10.65 | I49: 10.45 | J49: 10.45 | K49: 10.2 | L49: 10.2 | M49: 10.2 | O49: -2.4% | Q49: -4.2% | R49: 67.2% | T49: 163.2%
B50: 前驱体：氯化钴（万/吨）格派 | C50: 4.875 | D50: 4.875 | E50: 6.1 | F50: 6.1 | G50: 11.9 | H50: 11.9 | I50: 11.9 | M50: 9.3 | O50: -21.8% | Q50: -21.8% | R50: 52.5% | T50: 129.6%
B51: 前驱体：氯化钴（万/吨）百川 | C51: 4.6 | D51: 5 | E51: 5.75 | F51: 5.75 | G51: 11.25 | H51: 11.25 | I51: 10.55 | J51: 10.25 | K51: 10.25 | L51: 10.25 | M51: 10.25 | O51: -2.8% | Q51: -8.9% | R51: 78.3% | T51: 164.5%
B52: 前驱体：硫酸钴（万/吨） SMM | C52: 4.025 | D52: 4.425 | E52: 5.35 | F52: 5.35 | G52: 9.05 | H52: 8.75 | I52: 8.55 | J52: 8.55 | K52: 8.55 | L52: 8.1 | M52: 8.1 | O52: -5.3% | Q52: -7.4% | R52: 51.4% | T52: 138.2%
B53: 前驱体：硫酸钴（万/吨） 格派 | C53: 4.125 | D53: 4.125 | E53: 5.6 | F53: 5.6 | G53: 10 | H53: 10 | I53: 10 | M53: 7.9 | O53: -21.0% | Q53: -21.0% | R53: 41.1% | T53: 119.4%
B54: 前驱体：硫酸钴（万/吨） | G54: 9.05 | H54: 8.95 | I54: 8.55 | J54: 8.55 | K54: 8.55 | L54: 8.15 | M54: 8.15 | O54: -4.7% | Q54: -8.9% | T54: 50.9%
B55: 前驱体：碳酸钴（万/吨）百川 | C55: 9.675 | D55: 9.675 | E55: 9.75 | F55: 9.75 | G55: 19 | H55: 19 | I55: 17.5 | J55: 17.5 | K55: 17.5 | L55: 17.5 | M55: 17.5 | O55: 0.0% | Q55: -7.9% | R55: 79.5% | T55: 81.8%
B56: 正极：钴酸锂（万/吨）百川 | C56: 19 | D56: 19 | E56: 22.8 | F56: 22.8 | G56: 41 | H56: 41 | I56: 39 | J56: 39 | K56: 39 | L56: 39 | M56: 39 | O56: 0.0% | Q56: -4.9% | R56: 71.1% | T56: 119.1%
B57: 正极：钴酸锂（万/吨） | C57: 20 | D57: 21.5 | E57: 22.25 | F57: 22.25 | G57: 40.5 | H57: 41.25 | I57: 40.5 | J57: 40.5 | K57: 40.5 | L57: 40.5 | M57: 40.5 | O57: 0.0% | Q57: 0.0% | R57: 82.0% | T57: 139.6%
B58: 正极：钴酸锂（万/吨） SMM | C58: 19.35 | D58: 20.3 | E58: 22.2 | F58: 22.75 | G58: 40.75 | H58: 40.75 | I58: 39.5 | J58: 39.5 | K58: 39.5 | L58: 39.5 | M58: 39.5 | O58: 0.0% | Q58: -3.1% | R58: 73.6% | T58: 112.9%
B59: 正极：锰酸锂（万/吨） | C59: 6.3 | D59: 6.3 | E59: 6.3 | F59: 6.3 | G59: 6.3 | H59: 7.2 | I59: 7.2 | J59: 7.2 | K59: 7.2 | L59: 7.2 | M59: 7.2 | O59: 0.0% | Q59: 0.0% | R59: 14.3% | T59: 89.5%
B60: 正极：三元111型（万/吨） | C60: 15.375 | D60: 15.525 | E60: 15.7 | F60: 15.7 | G60: 20.25 | H60: 20.25 | I60: 19.85 | J60: 19.85 | K60: 19.85 | L60: 19.85 | M60: 19.85 | O60: 0.0% | Q60: -2.0% | R60: 26.4% | T60: 29.7%
B61: 正极：三元532型（万/吨） | C61: 14.75 | D61: 15 | E61: 15 | F61: 15 | G61: 19 | H61: 18.9 | I61: 18.9 | J61: 18.9 | K61: 18.9 | L61: 18.9 | M61: 18.9 | O61: 0.0% | Q61: 0.0% | R61: 26.0% | T61: 47.7%
B62: 正极：磷酸铁锂（万/吨） | C62: 10.25 | D62: 10.25 | E62: 10.25 | F62: 10.25 | G62: 8.5 | H62: 8.5 | I62: 8.5 | J62: 8.5 | K62: 8.5 | L62: 8.5 | M62: 8.5 | O62: 0.0% | Q62: 0.0% | R62: -17.1% | T62: 0.0%
B63: 负极：人造石墨高端（万/吨） | C63: 7 | D63: 7 | E63: 7 | F63: 7 | G63: 7 | H63: 7 | I63: 7 | J63: 7 | K63: 7 | L63: 7 | M63: 7 | O63: 0.0% | Q63: 0.0% | R63: 0.0% | T63: 0.0%
B64: 负极：人造石墨中端（万/吨） | C64: 4.5 | D64: 4.5 | E64: 4.5 | F64: 4.5 | G64: 4.5 | H64: 4.5 | I64: 4.5 | J64: 4.5 | K64: 4.5 | L64: 4.5 | M64: 4.5 | O64: 0.0% | Q64: 0.0% | R64: 0.0% | T64: 0.0%
B65: 负极：人造石墨低端（万/吨） | C65: 2 | D65: 2 | E65: 2 | F65: 2 | G65: 2 | H65: 2 | I65: 2 | J65: 2 | K65: 2 | L65: 2 | M65: 2 | O65: 0.0% | Q65: 0.0% | R65: 0.0% | T65: 0.0%
B66: 负极：天然石墨高端（万/吨） | C66: 6.5 | D66: 6.5 | E66: 6.5 | F66: 6.5 | G66: 6.5 | H66: 6.5 | I66: 6.5 | J66: 6.5 | K66: 6.5 | L66: 6.5 | M66: 6.5 | O66: 0.0% | Q66: 0.0% | R66: 0.0% | T66: 0.0%
B67: 负极：天然石墨中端（万/吨） | C67: 4.5 | D67: 4.5 | E67: 4.5 | F67: 4.5 | G67: 4.25 | H67: 4.25 | I67: 4.25 | J67: 4.25 | K67: 4.25 | L67: 4.25 | M67: 4.25 | O67: 0.0% | Q67: 0.0% | R67: -5.6% | T67: 0.0%
B68: 负极：天然石墨低端（万/吨） | C68: 3 | D68: 3 | E68: 3 | F68: 3 | G68: 2.5 | H68: 2.5 | I68: 2.5 | J68: 2.5 | K68: 2.5 | L68: 2.5 | M68: 2.5 | O68: 0.0% | Q68: 0.0% | R68: -16.7% | T68: 0.0%
B69: 隔膜：16um国产干法高端（元/平） | C69: 5.5 | D69: 5.5 | E69: 5.5 | F69: 5.5 | G69: 4 | H69: 4 | I69: 4 | J69: 4 | K69: 0 | L69: 4 | M69: 0 | O69: -100.0% | Q69: -100.0% | R69: -100.0% | T69: -100.0%
B70: 隔膜：16um国产干法中端（元/平） | C70: 4.5 | D70: 4.5 | E70: 4.5 | F70: 4.5 | G70: 0 | H70: 0 | I70: 0 | J70: 0 | K70: 0 | L70: 0 | M70: 0 | R70: -100.0%
B71: 隔膜：16um国产干法低端（元/平） | C71: 3.5 | D71: 3.5 | E71: 3.5 | F71: 3.5 | G71: 3 | H71: 3 | I71: 3 | J71: 3 | K71: 0 | L71: 3 | M71: 0 | O71: -100.0% | Q71: -100.0% | R71: -100.0% | T71: -100.0%
B72: 隔膜：16um国产湿法中端（元/平） | C72: 5 | D72: 5 | E72: 5 | F72: 5 | G72: 4 | H72: 4 | I72: 4 | J72: 4 | K72: 0 | L72: 4 | M72: 0 | O72: -100.0% | Q72: -100.0% | R72: -100.0% | T72: -100.0%
B73: 隔膜：16um进口干法（元/平） | C73: 8 | D73: 8 | E73: 8 | F73: 8 | G73: 6 | H73: 6 | I73: 6 | J73: 6 | K73: 0 | L73: 6 | M73: 0 | O73: -100.0% | Q73: -100.0% | R73: -100.0% | T73: -100.0%
B74: 隔膜：16um进口湿法（元/平） | C74: 5.5 | D74: 5.5 | E74: 5.5 | F74: 5.5 | G74: 6.5 | H74: 6.5 | I74: 6.5 | J74: 6.5 | K74: 0 | L74: 6.5 | M74: 0 | O74: -100.0% | Q74: -100.0% | R74: -100.0% | T74: -100.0%
B75: 电解液：三元（万/吨） | C75: 6.7 | D75: 6.7 | E75: 6.7 | F75: 6.7 | G75: 6.7 | H75: 6.7 | I75: 6.7 | J75: 6.7 | K75: 6.7 | L75: 6.7 | M75: 6.7 | O75: 0.0% | Q75: 0.0% | R75: 0.0% | T75: 0.0%
B76: 电解液：锰酸锂（万/吨） | C76: 6.6 | D76: 6.6 | E76: 6.6 | F76: 6.6 | G76: 6.6 | H76: 6.6 | I76: 6.6 | J76: 6.6 | K76: 6.6 | L76: 6.6 | M76: 6.6 | O76: 0.0% | Q76: 0.0% | R76: 0.0% | T76: 0.0%
B77: 电解液：磷酸铁锂（万/吨） | C77: 8.35 | D77: 8.35 | E77: 8.35 | F77: 8.35 | G77: 8.25 | H77: 8.25 | I77: 8.25 | J77: 8.25 | K77: 8.25 | L77: 8.25 | M77: 8.25 | O77: 0.0% | Q77: 0.0% | R77: -1.2% | T77: 0.0%
B78: 数据来源：wind，CIAPS，长江有色市场
B80: 【东吴电新】锂电材料价格每日涨跌(2023/2/10)
B81: 曾朵红18616656981/阮巧燕18926085133/岳斯瑶/刘晓恬
C82: =B15 -> 2023-02-06 | D82: =B16 -> 2023-02-07 | E82: =B17 -> 2023-02-08 | F82: =B18 -> 2023-02-09 | G82: =B19 -> 2023-02-10 | H82: 日环比% | I82: 周环比% | J82: 月初环比% | K82: 年初环比%
B83: 钴：长江有色市场（万/吨） | C83: =INDEX(C$15:BR$15,0,ROW(A1)) -> 29.8 | D83: =INDEX(C$16:BR$16,0,ROW(A1)) -> 29.3 | E83: =INDEX(C$17:BR$17,0,ROW(A1)) -> 29.3 | F83: =INDEX(C$18:BR$18,0,ROW(A1)) -> 29.3 | G83: =INDEX(C$19:BR$19,0,ROW(A1)) -> 29.2 | H83: =(G83-F83)/F83 -> -0.3% | I83: =INDEX(C$20:BR$20,0,ROW(A1)) -> -2.0% | J83: =INDEX(C$21:BR$21,0,ROW(A1)) -> -2.3% | K83: =INDEX(C$22:BR$22,0,ROW(A1)) -> -10.4%
B84: 钴：钴粉（万/吨）SMM | C84: =INDEX(C$15:BR$15,0,ROW(A2)) -> 28.1 | D84: 28 | E84: 28 | F84: 27.9 | G84: =INDEX(C$19:BR$19,0,ROW(A2)) -> 27.6 | H84: =(G84-F84)/F84 -> -1.1% | I84: -1.8% | J84: -3.2% | K84: -10.8%
B85: 钴：金川赞比亚（万/吨） | C85: =INDEX(C$15:BR$15,0,ROW(A3)) -> 29.6 | D85: 29.6 | E85: =INDEX(C$17:BR$17,0,ROW(A3)) -> 29.6 | F85: 29.25 | G85: =INDEX(C$19:BR$19,0,ROW(A3)) -> 29.25 | H85: =(G85-F85)/F85 -> 0.0% | I85: -1.2% | J85: -1.2% | K85: -9.2%
B86: 钴：电解钴（万/吨）SMM | C86: 29.6 | D86: 29.6 | E86: 29.6 | F86: 29.25 | G86: =INDEX(C$19:BR$19,0,ROW(A4)) -> 29.25 | H86: =(G86-F86)/F86 -> 0.0% | I86: -1.2% | J86: -1.2% | K86: -9.2%
B87: 钴：金属钴（万/吨）百川 | C87: 29.65 | D87: 29.5 | E87: 29.5 | F87: 29.5 | G87: =INDEX(C$19:BR$19,0,ROW(A5)) -> 29.5 | H87: =(G87-F87)/F87 -> 0.0% | I87: =INDEX(C$20:BR$20,0,ROW(A5)) -> -1.3% | J87: -1.7% | K87: -9.1%
B88: 钴：MB钴(高级)(美元/磅） | C88: 17.55 | D88: 17.5 | E88: 17.48 | F88: 17.43 | G88: 17.43 | H88: =(G88-F88)/F88 -> 0.0% | I88: -2.1% | J88: -5.2% | K88: -19.9%
B89: 钴：MB钴(低级)(美元/磅） | C89: 16.75 | D89: 16.75 | E89: 16.5 | F89: 16.55 | G89: 16.35 | H89: =(G89-F89)/F89 -> -1.2% | I89: -4.7% | J89: -6.0% | K89: -15.5%
B90: 镍：上海金属网（万/吨） | C90: 21.80 | D90: 21.70 | E90: 21.89 | F90: =INDEX(C$18:BR$18,0,ROW(A8)) -> 21.76 | G90: 22.45 | H90: =(G90-F90)/F90 -> 3.2% | I90: -1.7% | J90: -3.8% | K90: -5.1%
B91: 锰：长江有色市场（万/吨） | C91: 1.7 | D91: 1.7 | E91: 1.7 | F91: 1.7 | G91: 1.7 | H91: 0.0% | I91: 0.0% | J91: 0.0% | K91: -0.6%
B92: 碳酸锂：国产（99.5%）（万/吨） | C92: 45.1 | D92: 45.1 | E92: 44.8 | F92: 44.8 | G92: 44.8 | H92: 0.0% | I92: =INDEX(C$20:BR$20,0,ROW(A10)) -> -1.1% | J92: -1.5% | K92: -8.1%
B93: 碳酸锂：工业级（万/吨）百川 | C93: 43.6 | D93: 43.5 | E93: 43 | F93: 42.8 | G93: 42.4 | H93: -0.9% | I93: -3.6% | J93: -5.8% | K93: -11.7%
B94: 碳酸锂：工业级（万/吨）SMM | C94: 43.3 | D94: 42.7 | E94: 42.65 | F94: 42.6 | G94: 42.4 | H94: -0.5% | I94: -2.6% | J94: -3.4% | K94: -10.8%
B95: 碳酸锂：电池级（万/吨）百川 | C95: 46.30 | D95: 46.20 | E95: 46.10 | F95: 46.00 | G95: 45.50 | H95: -1.1% | I95: -1.9% | J95: -2.2% | K95: -7.1%
B96: 碳酸锂：电池级（万/吨）SMM | C96: 46.3 | D96: 46.05 | E96: 45.85 | F96: 45.75 | G96: 45.55 | H96: -0.4% | I96: -1.8% | J96: -2.6% | K96: -10.7%
B97: 碳酸锂：国产主流厂商（万/吨） | C97: 47.3 | D97: 47.3 | E97: 47.2 | F97: 47.2 | G97: 47.2 | H97: 0.0% | I97: -0.6% | J97: -1.0% | K97: -7.0%
B98: 金属锂：（万/吨）百川 | C98: 290 | D98: 290 | E98: 290 | F98: 290 | G98: 288 | H98: -0.7% | I98: -1.4% | J98: -2.0% | K98: -2.4%
B99: 金属锂：（万/吨）SMM | C99: 289.25 | D99: 288.75 | E99: 288.5 | F99: 286.5 | G99: 286 | H99: -0.2% | I99: -1.4% | J99: -1.8% | K99: -2.4%
B100: 氢氧化锂（万/吨）百川 | C100: 49.59 | D100: 49.09 | E100: 48.59 | F100: 48.09 | G100: 47.59 | H100: -1.0% | I100: -5.0% | J100: -6.9% | K100: -13.7%
B101: 氢氧化锂：国产（万/吨）SMM | C101: 47.5 | D101: 47 | E101: 46.95 | F101: 46.85 | G101: 46.75 | H101: -0.2% | I101: -2.1% | J101: -2.9% | K101: -13.1%
B102: 氢氧化锂：国产（万/吨） | C102: 48.05 | D102: 48.05 | E102: 48.05 | F102: 48.05 | G102: =INDEX(C$19:BR$19,0,ROW(A20)) -> 48.05 | H102: 0.0% | I102: -0.4% | J102: -0.8% | K102: -8.5%
B103: 电解液：磷酸铁锂（万/吨）百川 | C103: 4.7 | D103: 4.7 | E103: 4.7 | F103: 4.7 | G103: 4.7 | H103: 0.0% | I103: -4.1% | J103: -4.1% | K103: -16.1%
B104: 电解液：磷酸铁锂（万/吨）SMM | C104: 5 | D104: 5 | E104: 5 | F104: 5 | G104: 5 | H104: 0.0% | I104: 0.0% | J104: 0.0% | K104: -4.8%
B105: 电解液：三元动力（万/吨）SMM | C105: 6.9 | D105: 6.9 | E105: 6.9 | F105: 6.9 | G105: 6.9 | H105: 0.0% | I105: 0.0% | J105: 0.0% | K105: 0.0%
B106: 六氟磷酸锂：SMM（万/吨） | C106: 20 | D106: 19.8 | E106: 19.5 | F106: 19.5 | G106: 19.3 | H106: -1.0% | I106: -5.9% | J106: -10.9% | K106: -16.1%
B107: 六氟磷酸锂：百川（万/吨） | C107: 19.5 | D107: 19.5 | E107: 19.5 | F107: 19.5 | G107: 19 | H107: -2.6% | I107: -2.6% | J107: -5.0% | K107: -21.5%
B108: DMC碳酸二甲酯：工业级（万/吨） | C108: 0.52 | D108: 0.52 | E108: 0.52 | F108: 0.52 | G108: 0.52 | H108: 0.0% | I108: 0.0% | J108: 0.0% | K108: 0.0%
B109: DMC碳酸二甲酯：电池级（万/吨）SMM | C109: 0.56 | D109: 0.56 | E109: 0.56 | F109: 0.56 | G109: 0.56 | H109: 0.0% | I109: 0.0% | J109: 0.0% | K109: 1.8%
B110: EC碳酸乙烯脂（万/吨） | C110: 0.51 | D110: 0.51 | E110: 0.51 | F110: 0.51 | G110: 0.51 | H110: 0.0% | I110: 0.0% | J110: 0.0% | K110: -4.7%
B111: 前驱体：磷酸铁（万/吨）百川 | C111: 1.825 | D111: 1.775 | E111: 1.775 | F111: 1.775 | G111: 1.775 | H111: 0.0% | I111: -5.3% | J111: -5.3% | K111: -19.3%
B112: 前驱体：三元523型（万/吨） | C112: 9.4 | D112: 9.4 | E112: 9.3 | F112: 9.3 | G112: 9.3 | H112: 0.0% | I112: -1.1% | J112: -0.5% | K112: -9.7%
B113: 前驱体：氧化钴（万/吨）SMM | C113: =INDEX(C$15:BR$15,0,ROW(A32)) -> 17.25 | D113: =INDEX(C$16:BR$16,0,ROW(A32)) -> 17.25 | E113: =INDEX(C$17:BR$17,0,ROW(A32)) -> 17.15 | F113: =INDEX(C$18:BR$18,0,ROW(A32)) -> 17.05 | G113: =INDEX(C$19:BR$19,0,ROW(A32)) -> 16.9 | H113: -0.9% | I113: =INDEX(C$20:BR$20,0,ROW(A32)) -> -2.3% | J113: =INDEX(C$21:BR$21,0,ROW(A32)) -> -3.4% | K113: =INDEX(C$22:BR$22,0,ROW(A32)) -> -13.6%
B114: 前驱体：四氧化三钴（万/吨）SMM | C114: =INDEX(C$15:BR$15,0,ROW(A33)) -> 17.5 | D114: =INDEX(C$16:BR$16,0,ROW(A33)) -> 17.5 | E114: =INDEX(C$17:BR$17,0,ROW(A33)) -> 17.5 | F114: =INDEX(C$18:BR$18,0,ROW(A33)) -> 17.5 | G114: =INDEX(C$19:BR$19,0,ROW(A33)) -> 17.5 | H114: 0.0% | I114: =INDEX(C$20:BR$20,0,ROW(A33)) -> 0.0% | J114: =INDEX(C$21:BR$21,0,ROW(A33)) -> 0.0% | K114: =INDEX(C$22:BR$22,0,ROW(A33)) -> -10.9%
B115: 前驱体：氯化钴（万/吨） SMM | C115: =INDEX(C$15:BR$15,0,ROW(A34)) -> 4.85 | D115: =INDEX(C$16:BR$16,0,ROW(A34)) -> 4.75 | E115: =INDEX(C$17:BR$17,0,ROW(A34)) -> 4.75 | F115: =INDEX(C$18:BR$18,0,ROW(A34)) -> 4.75 | G115: =INDEX(C$19:BR$19,0,ROW(A34)) -> 4.75 | H115: 0.0% | I115: =INDEX(C$20:BR$20,0,ROW(A34)) -> -2.1% | J115: =INDEX(C$21:BR$21,0,ROW(A34)) -> -4.0% | K115: =INDEX(C$22:BR$22,0,ROW(A34)) -> -15.9%
B116: 前驱体：硫酸镍（万/吨） | C116: =INDEX(C$15:BR$15,0,ROW(A37)) -> 3.8 | D116: =INDEX(C$16:BR$16,0,ROW(A37)) -> 3.8 | E116: =INDEX(C$17:BR$17,0,ROW(A37)) -> 3.85 | F116: =INDEX(C$18:BR$18,0,ROW(A37)) -> 3.85 | G116: =INDEX(C$19:BR$19,0,ROW(A37)) -> 3.85 | H116: 0.0% | I116: =INDEX(C$20:BR$20,0,ROW(A37)) -> 1.3% | J116: =INDEX(C$21:BR$21,0,ROW(A37)) -> 2.7% | K116: =INDEX(C$22:BR$22,0,ROW(A37)) -> -1.3%
B117: 正极：钴酸锂（万/吨）百川 | C117: =INDEX(C$15:BR$15,0,ROW(A37)) -> 3.8 | D117: =INDEX(C$16:BR$16,0,ROW(A37)) -> 3.8 | E117: =INDEX(C$17:BR$17,0,ROW(A37)) -> 3.85 | F117: =INDEX(C$18:BR$18,0,ROW(A37)) -> 3.85 | G117: =INDEX(C$19:BR$19,0,ROW(A37)) -> 3.85 | H117: 0.0% | I117: =INDEX(C$20:BR$20,0,ROW(A37)) -> 1.3% | J117: =INDEX(C$21:BR$21,0,ROW(A37)) -> 2.7% | K117: =INDEX(C$22:BR$22,0,ROW(A37)) -> -1.3%
B118: 正极：钴酸锂（万/吨） SMM | C118: 40.25 | D118: 39.75 | E118: 39.75 | F118: 39.25 | G118: 38.75 | H118: -1.3% | I118: -4.7% | J118: -7.0% | K118: -8.8%
B119: 正极：锰酸锂-动力（万/吨）SMM | C119: 12.25 | D119: 12.15 | E119: 12.14 | F119: 12.125 | G119: 12.105 | H119: -0.2% | I119: -1.2% | J119: -3.5% | K119: -15.3%
B120: 正极：三元111型（万/吨） | C120: 32.4 | D120: 32.4 | E120: 31.75 | F120: 31.75 | G120: 31.75 | H120: 0.0% | I120: -2.0% | J120: -2.6% | K120: -9.0%
B121: 正极：三元523型（单晶型，万/吨） | C121: 32.6 | D121: 32.6 | E121: 32.2 | F121: 32.2 | G121: =INDEX(C$19:BR$19,0,ROW(A41)) -> 32.2 | H121: 0.0% | I121: -1.2% | J121: -1.5% | K121: -8.0%
B122: 正极：三元622型（单晶型，万/吨） | C122: 35.3 | D122: 35.3 | E122: 34.9 | F122: 34.9 | G122: =INDEX(C$19:BR$19,0,ROW(A42)) -> 34.9 | H122: 0.0% | I122: -1.1% | J122: -2.4% | K122: -7.2%
B123: 正极：三元811型（单晶型，万/吨） | C123: 38.45 | D123: 38.45 | E123: 37.95 | F123: 37.95 | G123: =INDEX(C$19:BR$19,0,ROW(A43)) -> 37.95 | H123: 0.0% | I123: -1.3% | J123: -1.4% | K123: -5.1%
B124: 正极：磷酸铁锂-动力（万/吨）SMM | C124: 14.7 | D124: 14.6 | E124: 14.5 | F124: 14.4 | G124: 14.3 | H124: -0.7% | I124: -3.4% | J124: -3.4% | K124: -12.8%
B125: 负极：人造石墨高端（万/吨） | C125: 7.25 | D125: 7.25 | E125: 7.25 | F125: 7.25 | G125: 7.25 | H125: 0.0% | I125: 0.0% | J125: 0.0% | K125: 0.0%
B126: 负极：人造石墨低端（万/吨） | C126: 3.6 | D126: 3.6 | E126: 3.6 | F126: 3.6 | G126: 3.6 | H126: 0.0% | I126: 0.0% | J126: 0.0% | K126: 0.0%
B127: 负极：人造石墨中端（万/吨） | C127: 5.55 | D127: 5.55 | E127: 5.55 | F127: 5.55 | G127: 5.55 | H127: 0.0% | I127: 0.0% | J127: 0.0% | K127: 0.0%
B128: 负极：天然石墨高端（万/吨） | C128: 6.1 | D128: 6.1 | E128: 6.1 | F128: 6.1 | G128: 6.1 | H128: 0.0% | I128: 0.0% | J128: 0.0% | K128: 0.0%
B129: 负极：天然石墨低端（万/吨） | C129: 3.05 | D129: 3.05 | E129: 3.05 | F129: 3.05 | G129: 3.05 | H129: 0.0% | I129: 0.0% | J129: 0.0% | K129: -6.2%
B130: 负极：天然石墨中端（万/吨） | C130: 4.9 | D130: 4.9 | E130: 4.9 | F130: 4.9 | G130: 4.9 | H130: 0.0% | I130: 0.0% | J130: 0.0% | K130: -3.9%
B131: 负极：碳负极材料（万/吨）百川 | C131: 5.32 | D131: 4.97 | E131: 4.97 | F131: 4.97 | G131: 4.97 | H131: 0.0% | I131: -6.5% | J131: -6.5% | K131: -6.5%
B132: 负极：针状焦（万/吨）百川 | C132: 1.16 | D132: 1.16 | E132: 1.16 | F132: 1.16 | G132: 1.16 | H132: 0.0% | I132: 0.0% | J132: 0.0% | K132: -0.8%
B133: 负极：石油焦（万/吨）百川 | C133: 0.36 | D133: 0.36 | E133: 0.36 | F133: 0.36 | G133: 0.36 | H133: 0.4% | I133: 0.1% | J133: -0.4% | K133: 0.0%
B134: 负极：钛酸锂（万/吨） | C134: 11.5 | D134: 11.5 | E134: 11.5 | F134: 11.5 | G134: 11.5 | H134: 0.0% | I134: 0.0% | J134: 0.0% | K134: 0.0%
B135: 隔膜：湿法：百川（元/平） | C135: 1.35 | D135: 1.35 | E135: 1.35 | F135: 1.35 | G135: 1.35 | H135: 0.0% | I135: 0.0% | J135: 0.0% | K135: 0.0%
B136: 隔膜：干法：百川（元/平） | C136: 0.95 | D136: 0.95 | E136: 0.95 | F136: 0.95 | G136: 0.95 | H136: 0.0% | I136: 0.0% | J136: 0.0% | K136: 0.0%
B137: 隔膜：5um湿法/国产（元/平）SMM | C137: 2.95 | D137: 2.95 | E137: 2.95 | F137: 2.95 | G137: 2.95 | H137: 0.0% | I137: 0.0% | J137: 0.0% | K137: 0.0%
B138: 隔膜：7um湿法/国产（元/平）SMM | C138: 1.95 | D138: 1.95 | E138: 1.95 | F138: 1.95 | G138: 1.95 | H138: 0.0% | I138: 0.0% | J138: 0.0% | K138: 0.0%
B139: 隔膜：9um湿法/国产（元/平）SMM | C139: 1.28 | D139: 1.28 | E139: 1.28 | F139: 1.28 | G139: 1.28 | H139: 0.0% | I139: 0.0% | J139: 0.0% | K139: 0.0%
B140: 隔膜：16um干法/国产（元/平）SMM | C140: 0.83 | D140: 0.83 | E140: 0.83 | F140: 0.83 | G140: 0.83 | H140: 0.0% | I140: 0.0% | J140: 0.0% | K140: 0.0%
B141: 电池：方形-三元523（元/wh）SMM | C141: 1.05 | D141: 1.05 | E141: 1.05 | F141: 1.05 | G141: 1.05 | H141: 0.0% | I141: 0.0% | J141: -1.9% | K141: -4.5%
B142: 电池：软包-三元523（元/wh）SMM | C142: 1.1 | D142: 1.1 | E142: 1.1 | F142: 1.1 | G142: 1.1 | H142: 0.0% | I142: 0.0% | J142: -1.8% | K142: -4.3%
B143: 电池：方形-铁锂（元/wh）SMM | C143: 0.93 | D143: 0.93 | E143: 0.93 | F143: 0.93 | G143: 0.93 | H143: 0.0% | I143: 0.0% | J143: -2.1% | K143: -6.1%
B144: 电池：圆柱18650-2500mAh（元/支） | C144: 10.2 | D144: 10.2 | E144: =INDEX(C$17:BR$17,0,ROW(A64)) -> 10.2 | F144: 10.2 | G144: 10.2 | H144: 0.0% | I144: 0.0% | J144: -0.5% | K144: -1.4%
B145: 铜箔：8μm国产加工费（元/公斤） | C145: 26.5 | D145: =INDEX(C$16:BR$16,0,ROW(A65)) -> 26.5 | E145: 26.5 | F145: 26.5 | G145: 26.5 | H145: 0.0% | I145: 0.0% | J145: 0.0% | K145: -10.2%
B146: 铜箔：6μm国产加工费（元/公斤） | C146: 35 | D146: 35 | E146: 35 | F146: 35 | G146: 35 | H146: 0.0% | I146: 0.0% | J146: 0.0% | K146: -2.8%
B147: PVDF：LFP（万元/吨） | C147: 30 | D147: 30 | E147: 30 | F147: 30 | G147: 30 | H147: 0.0% | I147: 0.0% | J147: -10.4% | K147: -17.8%
B148: PVDF：三元（万元/吨） | C148: 42.5 | D148: 42.5 | E148: 42.5 | F148: 42.5 | G148: 42.5 | H148: 0.0% | I148: 0.0% | J148: -10.5% | K148: -10.5%
B149: 数据来源：WIND，鑫椤资讯，百川，SMM
B506: 2018-03-19
B507: 2018-03-20
B508: 2018-03-21
B509: 2018-03-22
B510: 2018-03-23
B787: 2018-03-19 | CF787: 2018-03-19 | CG787: 136 | CH787: 140 | CN787: 2018-03-19 | CO787: 156 | CP787: 160
B788: 2018-03-20 | BH788: 2018-03-19 | BI788: 465 | BJ788: 475 | CF788: 2018-03-20 | CG788: 136 | CH788: 140 | CN788: 2018-03-20 | CO788: 156 | CP788: 160
B789: 2018-03-21 | BH789: 2018-03-20 | BI789: 465 | BJ789: 475 | BO789: 145 | BP789: 145 | BQ789: 145 | BR789: 145 | BS789: 2018-03-19 | BT789: 137 | BU789: 145 | CF789: 2018-03-21 | CG789: 136 | CH789: 140 | CN789: 2018-03-21 | CO789: 159 | CP789: 163
B790: 2018-03-22 | BH790: 2018-03-21 | BI790: 475 | BJ790: 485 | BO790: 155 | BP790: 155 | BQ790: 155 | BR790: 155 | BS790: 2018-03-20 | BT790: 148 | BU790: 155 | CB790: 147 | CC790: 153 | CF790: 2018-03-22 | CG790: 136 | CH790: 140 | CN790: 2018-03-22 | CO790: 160 | CP790: 164 | CU790: 162500
B791: 2018-03-23 | BH791: 2018-03-22 | BI791: 485 | BJ791: 495 | BM791: 485000 | BO791: 155 | BP791: 155 | BQ791: 155 | BR791: 155 | BS791: 2018-03-21 | BT791: 148 | BU791: 155 | CB791: 147 | CC791: 153 | CF791: 2018-03-23 | CG791: 136 | CH791: 140 | CN791: 2018-03-23 | CO791: 160 | CP791: 164 | CU791: 162500
BH792: 2018-03-23 | BI792: 485 | BJ792: 495 | BM792: 485000 | BO792: 155 | BP792: 155 | BQ792: 155 | BR792: 155 | BS792: 2018-03-22 | BT792: 148 | BU792: 155 | CB792: 147 | CC792: 153
BO793: 155 | BP793: 155 | BQ793: 155 | BR793: 155 | BS793: 2018-03-23 | BT793: 148 | BU793: 155 | CB793: 147 | CC793: 153
CI1101: 2018-03-19 | DU1101: 2018-03-19 | EB1101: 2018-03-19 | EC1101: 2018-03-19 | FF1101: 2018-03-19
CI1102: 2018-03-20 | DU1102: 2018-03-20 | EB1102: 2018-03-20 | EC1102: 2018-03-20 | FF1102: 2018-03-20
CI1103: 2018-03-21 | DU1103: 2018-03-21 | EB1103: 2018-03-21 | EC1103: 2018-03-21 | FF1103: 2018-03-21
CI1104: 2018-03-22 | DU1104: 2018-03-22 | EB1104: 2018-03-22 | EC1104: 2018-03-22 | FF1104: 2018-03-22
CI1105: 2018-03-23 | DU1105: 2018-03-23 | EB1105: 2018-03-23 | EC1105: 2018-03-23 | FF1105: 2018-03-23
B1616: 2018-03-19
B1617: 2018-03-20
B1618: 2018-03-21 | AI1618: 460 | AJ1618: 470 | AN1618: 2018-03-19 | CB1618: 2018-03-19 | EB1618: 2018-03-19 | EC1618: 2018-03-19
B1619: 2018-03-22 | AI1619: 460 | AJ1619: 470 | AN1619: 2018-03-20 | CB1619: 2018-03-20 | CF1619: 280000 | CG1619: 280000 | CI1619: 270000 | CJ1619: 275000 | CO1619: 265000 | CP1619: 270000 | CR1619: 270000 | CS1619: 270000 | CU1619: 235000 | CV1619: 235000 | CX1619: 230000 | CY1619: 235000 | DA1619: 240000 | DB1619: 250000 | DD1619: 230000 | DE1619: 235000 | DG1619: 235000 | DH1619: 235000 | DP1619: 240000 | DQ1619: 240000 | DS1619: 230000 | DT1619: 235000 | DV1619: 235000 | DW1619: 235000 | DY1619: 235000 | DZ1619: 235000 | EC1619: 2018-03-20
B1620: 2018-03-23 | AI1620: 465 | AJ1620: 475 | AL1620: 465000 | AN1620: 2018-03-21 | CB1620: 2018-03-21 | CF1620: 280000 | CG1620: 280000 | CI1620: 270000 | CJ1620: 275000 | CO1620: 265000 | CP1620: 270000 | CR1620: 270000 | CS1620: 270000 | CU1620: 235000 | CV1620: 235000 | CX1620: 230000 | CY1620: 235000 | DA1620: 240000 | DB1620: 250000 | DD1620: 230000 | DE1620: 235000 | DG1620: 235000 | DH1620: 235000 | DP1620: 240000 | DQ1620: 240000 | DS1620: 230000 | DT1620: 235000 | DV1620: 235000 | DW1620: 235000 | DY1620: 235000 | DZ1620: 235000 | EC1620: 2018-03-21
AI1621: 475 | AJ1621: 485 | AL1621: 485000 | AN1621: 2018-03-22 | CB1621: 2018-03-22 | CF1621: 280000 | CG1621: 280000 | CI1621: 270000 | CJ1621: 275000 | CO1621: 265000 | CP1621: 270000 | CR1621: 270000 | CS1621: 270000 | CU1621: 235000 | CV1621: 235000 | CX1621: 230000 | CY1621: 235000 | DA1621: 240000 | DB1621: 250000 | DD1621: 230000 | DE1621: 235000 | DG1621: 235000 | DH1621: 235000 | DP1621: 240000 | DQ1621: 240000 | DS1621: 230000 | DT1621: 235000 | DV1621: 235000 | DW1621: 235000 | DY1621: 235000 | DZ1621: 235000 | EC1621: 2018-03-22
AI1622: 475 | AJ1622: 485 | AL1622: 485000 | AN1622: 2018-03-23 | CB1622: 2018-03-23 | CF1622: 280000 | CG1622: 280000 | CI1622: 270000 | CJ1622: 275000 | CO1622: 265000 | CP1622: 270000 | CR1622: 270000 | CS1622: 270000 | CU1622: 235000 | CV1622: 235000 | CX1622: 230000 | CY1622: 235000 | DA1622: 240000 | DB1622: 250000 | DD1622: 230000 | DE1622: 235000 | DG1622: 235000 | DH1622: 235000 | DP1622: 240000 | DQ1622: 240000 | DS1622: 230000 | DT1622: 235000 | DV1622: 235000 | DW1622: 235000 | DY1622: 235000 | DZ1622: 235000 | EC1622: 2018-03-23
B1652: 2018-03-19
B1653: 2018-03-20
B1654: 2018-03-21
B1655: 2018-03-22
B1656: 2018-03-23
B1657: 2018-03-24
B1658: 2018-03-25
A1659: 2018-03-19 | B1659: 2018-03-26
A1660: 2018-03-20 | B1660: 2018-03-27
A1661: 2018-03-21 | B1661: 2018-03-28
A1662: 2018-03-22
A1663: 2018-03-23
B1872: 2018-03-19 | C1872: 6000 | F1872: 6200
B1873: 2018-03-20 | C1873: 6,000.00 | D1873: 6,100.00 | E1873: 5,700.00 | F1873: 6,100.00 | G1873: 6,100.00
B1874: 2018-03-21 | C1874: 6,000.00 | D1874: 6,000.00 | E1874: 5,700.00 | F1874: 6,000.00 | G1874: 6,000.00
B1875: 2018-03-22 | C1875: 6,000.00 | D1875: 6,000.00 | E1875: 5,700.00 | F1875: 6,000.00 | G1875: 6,000.00
B1876: 2018-03-23 | C1876: 6,000.00 | D1876: 6,000.00 | E1876: 5,700.00 | F1876: 6,000.00 | G1876: 6,000.00
DB2854: 2018-03-19
DB2855: 2018-03-20
DB2856: 2018-03-21
DB2857: 2018-03-22 | DC2857: 317500
DB2858: 2018-03-23 | DC2858: 317500
CW2864: 2018-03-19 | CX2864: 445000 | CY2864: 455000
CW2865: 2018-03-20 | CX2865: 445000 | CY2865: 455000
CW2866: 2018-03-21 | CX2866: 450000 | CY2866: 460000
CW2867: 2018-03-22 | CX2867: 455000 | CY2867: 465000
CW2868: 2018-03-23 | CX2868: 455000 | CY2868: 465000
Q2872: 665,000.00 | R2872: 64500000.0% | T2872: 64500000.0% | V2872: 63250000.0% | W2872: 68350.0% | Z2872: 71000.0% | AB2872: 56200.0% | AF2872: 635000
C2873: 2017-04-20 | Q2873: 667,500.00 | R2873: 64500000.0% | T2873: 64500000.0% | V2873: 63250000.0% | W2873: 67850.0% | Z2873: 71000.0% | AB2873: 56200.0% | AF2873: 635000
Q2874: 672,500.00 | R2874: 65000000.0% | T2874: 65000000.0% | V2874: 65000000.0% | W2874: 69050.0% | Z2874: 71500.0% | AB2874: 56200.0% | AF2874: 635000
Q2875: 677,500.00 | R2875: 65000000.0% | T2875: 65000000.0% | V2875: 65000000.0% | W2875: 69750.0% | Z2875: 71500.0% | AB2875: 53800.0% | AF2875: 670000
O2876: 2018-03-19 | AF2876: 670000
... 35 more rows

Sheet 锂盐价格
B1: 返回首页
B3: 数据来源:Wind资讯
B4: 时间 | C4: 新疆锂盐价格 | F4: BOCE碳酸锂 | J4: 碳酸锂(≥99.5%,电池级) | M4: 碳酸锂(≥99.0%,工业级) | P4: 金属锂 | Q4: 碳酸锂（工业级） | R4: 碳酸锂（电池级） | S4: 氢氧化锂 | T4: 金属锂SMM | U4: 碳酸锂（工业级）SMM | V4: 碳酸锂（电池级）SMM | W4: 氢氧化锂（电池级）SMM | DU4: ）
C5: 氢氧化锂56.5% | D5: 碳酸锂99% | E5: 金属锂≥99% | F5: 成交金额 | G5: 订货量 | H5: 成交量 | I5: 现货结算价 | J5: 出厂价：博睿锂业 | K5: 出厂价:四川国锂 | L5: 经销价:汇智锂能源 | M5: 出厂价:博睿锂业 | N5: 出厂价:同发荣 | O5: 经销价:中都化工 | P5: 百川 | Q5: 百川 | R5: 百川 | S5: 百川 | T5: SMM | U5: SMM | V5: SMM | W5: SMM
C6: 元/吨 | D6: 元/吨 | E6: 元/吨 | F6: 元 | G6: kg | H6: kg | I6: 元/kg | J6: 元/吨 | K6: 元/吨 | L6: 元/吨 | M6: 元/吨 | N6: 元/吨 | O6: 元/吨
B7: 2005-01-04 | C7: 27000 | D7: 23200 | E7: 500000
B8: 2005-01-05 | C8: 27000 | D8: 23200 | E8: 500000
B9: 2005-01-06 | C9: 27000 | D9: 23200 | E9: 500000
B10: 2005-01-07 | C10: 27000 | D10: 23200 | E10: 500000
B11: 2005-01-10 | C11: 27000 | D11: 23200 | E11: 500000
B12: 2005-01-11 | C12: 27000 | D12: 23204 | E12: 500000
B13: 2005-01-12 | C13: 27000 | D13: 23200 | E13: 500000
B14: 2005-01-13 | C14: 27000 | D14: 23200 | E14: 500000 | M14: 10 | T14: 15.5 | V14: 16 | AI14: 46.5 | AJ14: 46.5 | AO14: =MEDIAN(VLOOKUP([2]锂电材料价格变化汇总表!B14,[2]正极材料价格!#REF!,4,FALSE),VLOOKUP([2]锂电材料价格变化汇总表!B14,[2]正极材料价格!#REF!,7,FALSE),VLOOKUP([2]锂电材料价格变化汇总表!B14,[2]正极材料价格!#REF!,10,FALSE),VLOOKUP([2]锂电材料价格变化汇总表!B14,[2]正极材料价格!#REF!,13,FALSE),VLOOKUP([2]锂电材料价格变化汇总表!B14,[2]正极材料价格!#REF!,16,FALSE),VLOOKUP([2]锂电材料价格变化汇总表!B14,[2]正极材料价格!#REF!,19,FALSE),VLOOKUP([2]锂电材料价格变化汇总表!B14,[2]正极材料价格!#REF!,22,FALSE),VLOOKUP([2]锂电材料价格变化汇总表!B14,[2]正极材料价格!#REF!,25,FALSE))/10000 ->  | AT14: 4.25 | AY14: 3
B15: 2018-03-16 | C15: 27000 | D15: 23200 | E15: 500000 | V15: 16 | AO15: =MEDIAN(VLOOKUP([2]锂电材料价格变化汇总表!B15,[2]正极材料价格!#REF!,4,FALSE),VLOOKUP([2]锂电材料价格变化汇总表!B15,[2]正极材料价格!#REF!,7,FALSE),VLOOKUP([2]锂电材料价格变化汇总表!B15,[2]正极材料价格!#REF!,10,FALSE),VLOOKUP([2]锂电材料价格变化汇总表!B15,[2]正极材料价格!#REF!,13,FALSE),VLOOKUP([2]锂电材料价格变化汇总表!B15,[2]正极材料价格!#REF!,16,FALSE),VLOOKUP([2]锂电材料价格变化汇总表!B15,[2]正极材料价格!#REF!,19,FALSE),VLOOKUP([2]锂电材料价格变化汇总表!B15,[2]正极材料价格!#REF!,22,FALSE),VLOOKUP([2]锂电材料价格变化汇总表!B15,[2]正极材料价格!#REF!,25,FALSE))/10000 ->  | AY15: 3
B16: 2018-03-19 | C16: 27000 | D16: 23200 | E16: 500000 | V16: 16 | AJ16: =IF(VLOOKUP([2]锂电材料价格变化汇总表!B16,[2]正极材料价格!$B$473:$B$4534,16,FALSE)/10000=0,"",VLOOKUP([2]锂电材料价格变化汇总表!B16,[2]正极材料价格!$B$473:$B$4534,16,FALSE)/10000) ->  | AO16: =MEDIAN(VLOOKUP([2]锂电材料价格变化汇总表!B16,[2]正极材料价格!#REF!,4,FALSE),VLOOKUP([2]锂电材料价格变化汇总表!B16,[2]正极材料价格!#REF!,7,FALSE),VLOOKUP([2]锂电材料价格变化汇总表!B16,[2]正极材料价格!#REF!,10,FALSE),VLOOKUP([2]锂电材料价格变化汇总表!B16,[2]正极材料价格!#REF!,13,FALSE),VLOOKUP([2]锂电材料价格变化汇总表!B16,[2]正极材料价格!#REF!,16,FALSE),VLOOKUP([2]锂电材料价格变化汇总表!B16,[2]正极材料价格!#REF!,19,FALSE),VLOOKUP([2]锂电材料价格变化汇总表!B16,[2]正极材料价格!#REF!,22,FALSE),VLOOKUP([2]锂电材料价格变化汇总表!B16,[2]正极材料价格!#REF!,25,FALSE))/10000 ->  | AY16: 3
B17: 2018-03-20 | C17: 27000 | D17: 23200 | E17: 500000 | U17: =IF(VLOOKUP([2]锂电材料价格变化汇总表!B17,[2]前驱体价格!$G$4:$V$2480,16,FALSE)/10=0,"",VLOOKUP([2]锂电材料价格变化汇总表!B17,[2]前驱体价格!$G$4:$V$2480,16,FALSE)/10) -> 47.4 | V17: 16 | AO17: =MEDIAN(VLOOKUP([2]锂电材料价格变化汇总表!B17,[2]正极材料价格!#REF!,4,FALSE),VLOOKUP([2]锂电材料价格变化汇总表!B17,[2]正极材料价格!#REF!,7,FALSE),VLOOKUP([2]锂电材料价格变化汇总表!B17,[2]正极材料价格!#REF!,10,FALSE),VLOOKUP([2]锂电材料价格变化汇总表!B17,[2]正极材料价格!#REF!,13,FALSE),VLOOKUP([2]锂电材料价格变化汇总表!B17,[2]正极材料价格!#REF!,16,FALSE),VLOOKUP([2]锂电材料价格变化汇总表!B17,[2]正极材料价格!#REF!,19,FALSE),VLOOKUP([2]锂电材料价格变化汇总表!B17,[2]正极材料价格!#REF!,22,FALSE),VLOOKUP([2]锂电材料价格变化汇总表!B17,[2]正极材料价格!#REF!,25,FALSE))/10000 ->  | AY17: 3
B18: 2018-03-21 | C18: 27000 | D18: 23200 | E18: 500000 | R18: =IF(VLOOKUP([2]锂电材料价格变化汇总表!B18,[2]前驱体价格!$G$4:$S$2480,13,FALSE)/10=0,"",VLOOKUP([2]锂电材料价格变化汇总表!B18,[2]前驱体价格!$G$4:$S$2480,13,FALSE)/10) -> 48 | V18: 16 | AO18: =MEDIAN(VLOOKUP([2]锂电材料价格变化汇总表!B18,[2]正极材料价格!#REF!,4,FALSE),VLOOKUP([2]锂电材料价格变化汇总表!B18,[2]正极材料价格!#REF!,7,FALSE),VLOOKUP([2]锂电材料价格变化汇总表!B18,[2]正极材料价格!#REF!,10,FALSE),VLOOKUP([2]锂电材料价格变化汇总表!B18,[2]正极材料价格!#REF!,13,FALSE),VLOOKUP([2]锂电材料价格变化汇总表!B18,[2]正极材料价格!#REF!,16,FALSE),VLOOKUP([2]锂电材料价格变化汇总表!B18,[2]正极材料价格!#REF!,19,FALSE),VLOOKUP([2]锂电材料价格变化汇总表!B18,[2]正极材料价格!#REF!,22,FALSE),VLOOKUP([2]锂电材料价格变化汇总表!B18,[2]正极材料价格!#REF!,25,FALSE))/10000 ->  | AY18: 3
B19: 2018-03-22 | C19: 27000 | D19: 23200 | E19: 500000 | R19: =IF(VLOOKUP([2]锂电材料价格变化汇总表!B19,[2]前驱体价格!$G$4:$S$2480,13,FALSE)/10=0,"",VLOOKUP([2]锂电材料价格变化汇总表!B19,[2]前驱体价格!$G$4:$S$2480,13,FALSE)/10) -> 49 | V19: 16 | Z19: =IF(VLOOKUP(B19,[2]前驱体价格!$X297:$AB3575,5,FALSE)/10000=0,"",VLOOKUP(B19,[2]前驱体价格!$X297:$AB3575,5,FALSE)/10000) -> 48.5 | AO19: 8.5 | AY19: 3
B20: 2005-01-24 | C20: 27000 | D20: 23200 | E20: 500000 | R20: =IF(ISNUMBER(R19),R19/R14-1,R18/R14-1) ->  | U20: =IF(ISNUMBER(U19),U19/U14-1,U18/U14-1) ->  | V20: =IF(ISNUMBER(V19),V19/V14-1,V18/V14-1) -> 0 | AA20: =IF(ISNUMBER(AA19),AA19/AA14-1,AA18/AA14-1) ->  | AB20: =IF(ISNUMBER(AB19),AB19/AB14-1,AB18/AB14-1) ->  | AC20: =IF(ISNUMBER(AC19),AC19/AC14-1,AC18/AC14-1) ->  | AY20: =IF(ISNUMBER(AY19),AY19/AY14-1,AY18/AY14-1) -> 0
B21: 2005-01-25 | C21: 27000 | D21: 23200 | E21: 500000 | V21: =V19/V12-1 ->  | BC21: =BC19/BC12-1 ->  | BD21: =BD19/BD12-1 ->  | BE21: =BE19/BE12-1 -> 
B22: 2005-01-26 | C22: 27000 | D22: 23200 | E22: 500000 | V22: =V19/V10-1 ->  | AO22: =AO19/AO10-1 ->  | AP22: =AP19/AP10-1 -> 
B23: 2005-01-27 | C23: 27000 | D23: 23200 | E23: 500000 | V23: =V21/V14-1 -> 
B24: 2005-01-28 | C24: 27000 | D24: 23200 | E24: 500000
B25: 2005-01-31 | C25: 27000 | D25: 23200 | E25: 500000
B26: 2005-02-01 | C26: 27000 | D26: 23200 | E26: 500000
B27: 2005-02-02 | C27: 27000 | D27: 23200 | E27: 500000
B28: 2005-02-03 | C28: 27000 | D28: 23200 | E28: 500000
B29: 2005-02-04 | C29: 27000 | D29: 23200 | E29: 500000
B30: 2005-02-16 | C30: 27000 | D30: 23200 | E30: 500000
B31: 2005-02-17 | C31: 27000 | D31: 23200 | E31: 500000
B32: 2005-02-18 | C32: 27000 | D32: 23200 | E32: 500000
B33: 2005-02-21 | C33: 27000 | D33: 23200 | E33: 500000
B34: 2005-02-22 | C34: 27000 | D34: 23200 | E34: 500000
B35: 2005-02-23 | C35: 27000 | D35: 23200 | E35: 500000
B36: 2005-02-24 | C36: 27000 | D36: 23200 | E36: 500000
B37: 2005-02-25 | C37: 27000 | D37: 23200 | E37: 500000
B38: 2005-02-28 | C38: 27000 | D38: 23200 | E38: 500000
B39: 2005-03-01 | C39: 27000 | D39: 23200 | E39: 500000
B40: 2005-03-02 | C40: 27000 | D40: 23200 | E40: 500000
B41: 2005-03-03 | C41: 27000 | D41: 23200 | E41: 500000
B42: 2005-03-04 | C42: 27000 | D42: 23200 | E42: 500000
B43: 2005-03-07 | C43: 27000 | D43: 23200 | E43: 500000
B44: 2005-03-08 | C44: 27000 | D44: 23200 | E44: 500000
B45: 2005-03-09 | C45: 27000 | D45: 23200 | E45: 500000
B46: 2005-03-10 | C46: 27000 | D46: 23200 | E46: 500000
B47: 2005-03-11 | C47: 27000 | D47: 23200 | E47: 500000
B48: 2005-03-14 | C48: 27000 | D48: 23200 | E48: 500000
B49: 2005-03-15 | C49: 27000 | D49: 23200 | E49: 500000
B50: 2005-03-16 | C50: 27000 | D50: 23200 | E50: 500000
B51: 2005-03-17 | C51: 27000 | D51: 23200 | E51: 500000
B52: 2005-03-18 | C52: 27000 | D52: 23200 | E52: 500000
B53: 2005-03-21 | C53: 27000 | D53: 23200 | E53: 500000
B54: 2005-03-22 | C54: 27000 | D54: 23200 | E54: 500000
B55: 2005-03-23 | C55: 27000 | D55: 23200 | E55: 500000
B56: 2005-03-24 | C56: 27000 | D56: 23200 | E56: 500000
B57: 2005-03-25 | C57: 27000 | D57: 23200 | E57: 500000
B58: 2005-03-28 | C58: 27000 | D58: 23200 | E58: 500000
B59: 2005-03-29 | C59: 27000 | D59: 23200 | E59: 500000
B60: 2005-03-30 | C60: 27000 | D60: 23200 | E60: 500000
B61: 2005-03-31 | C61: 27000 | D61: 23200 | E61: 500000
B62: 2005-04-01 | C62: 27000 | D62: 23200 | E62: 500000
B63: 2005-04-04 | C63: 27000 | D63: 23200 | E63: 500000
B64: 2005-04-05 | C64: 27000 | D64: 23200 | E64: 500000
B65: 2005-04-06 | C65: 27000 | D65: 23200 | E65: 500000
B66: 2005-04-07 | C66: 27000 | D66: 23200 | E66: 500000
B67: 2005-04-08 | C67: 27000 | D67: 23200 | E67: 500000
B68: 2005-04-11 | C68: 27000 | D68: 23200 | E68: 500000
B69: 2005-04-12 | C69: 27000 | D69: 23200 | E69: 500000
B70: 2005-04-13 | C70: 27000 | D70: 23200 | E70: 500000
B71: 2005-04-14 | C71: 27000 | D71: 23200 | E71: 500000
B72: 2005-04-15 | C72: 27000 | D72: 23200 | E72: 500000
B73: 2005-04-18 | C73: 27000 | D73: 23200 | E73: 500000
B74: 2005-04-19 | C74: 27000 | D74: 23200 | E74: 500000
B75: 2005-04-20 | C75: 27000 | D75: 23200 | E75: 500000
B76: 2005-04-21 | C76: 27000 | D76: 23200 | E76: 500000
B77: 2005-04-22 | C77: 27000 | D77: 23200 | E77: 500000
B78: 2005-04-25 | C78: 27000 | D78: 23200 | E78: 500000
B79: 2005-04-26 | C79: 27000 | D79: 23200 | E79: 500000
B80: 【东吴电新】锂电材料价格每日涨跌（20180322） | C80: 27000 | D80: 23200 | E80: 500000
B81: 2005-04-28 | C81: 27000 | D81: 23200 | E81: 500000
B82: 2005-04-29 | C82: 43175 | D82: 43178 | E82: 43179 | F82: 43180 | G82: 43181 | O82: 43175 | P82: 43178 | Q82: 43179 | R82: 43180 | S82: 43181 | T82: 38376 | U82: 38377 | V82: 38378
B83: 2005-05-09 | C83: 27000 | D83: 27000 | E83: 27000 | F83: 27000 | G83: 27000 | H83: =G83/F83-1 -> 0 | O83: 27000 | P83: 27000 | Q83: 27000 | R83: 27000 | S83: 27000 | T83: 27000 | U83: 27000 | V83: 27000
B84: 2005-05-10 | C84: 23200 | D84: 23200 | E84: 23200 | F84: 23200 | G84: 23200 | H84: =G84/F84-1 -> 0 | L84: =G84/F84-1 -> 0 | O84: 23200 | P84: 23200 | Q84: 23200 | R84: 23200 | S84: 23200 | T84: 23200 | U84: 23200 | V84: 23200 | AB84: =16.3/13.9-1 -> 0.1726618705 | AC84: =15.5/14.3-1 -> 0.08391608392
B85: 2005-05-11 | C85: 500000 | D85: 500000 | E85: 500000 | F85: 500000 | G85: 500000 | O85: 500000 | P85: 500000 | Q85: 500000 | R85: 500000 | S85: 500000 | T85: 500000 | U85: 500000 | V85: 500000
B86: 2005-05-12
B87: 2005-05-13
B88: 2005-05-16
B89: 2005-05-17
B90: 2005-05-18
B91: 2005-05-19
B92: 2005-05-20
B93: 2005-05-23
B94: 2005-05-24
B95: 2005-05-25
B96: 2005-05-26
B97: 2005-05-27
B98: 2005-05-30 | F98: 16 | G98: 16 | H98: =G98/F98-1 -> 0 | R98: 16 | S98: 16
B99: 2005-05-31
B100: 2005-06-01
B101: 2005-06-02 | E101: 15 | Q101: 15
B102: 2005-06-03 | C102: 16 | D102: 16 | E102: 16 | F102: 16 | G102: 16 | O102: 16 | P102: 16 | Q102: 16 | R102: 16 | S102: 16 | T102: 0
B103: 2005-06-06
B104: 2005-06-07 | H104: =G104/F104-1 -> 
B105: 2005-06-08 | H105: =G105/F105-1 -> 
B106: 2005-06-09 | G106: 49 | H106: =G106/F106-1 ->  | S106: 49
B107: 2005-06-13
B108: 2005-06-14
B109: 2005-06-15 | H109: =G109/F109-1 ->  | I109: 0 | J109: 0 | K109: 0
B110: 2005-06-16
B111: 2005-06-17
B112: 2005-06-20
B113: 2005-06-21
B114: 2005-06-23
B115: 2005-06-24
B116: 2005-06-27 | D116: 51 | P116: 51
B117: 2005-06-28
B118: 2005-06-29
B119: 2005-06-30
B120: 2005-07-01
B121: 2005-07-04 | S121: 9
B122: 2005-07-05
B123: 2005-07-06
B124: 2005-07-07
B125: 2005-07-08
B126: 2005-07-11
B127: 2005-07-12
B128: 2005-07-13 | C128: 27000 | D128: 23200 | E128: 500000
B129: 2005-07-14 | C129: 27000 | D129: 23200 | E129: 500000
B130: 2005-07-15 | C130: 27000 | D130: 23200
B131: 2005-07-18 | C131: 27000 | D131: 23200 | E131: 500000 | O131: 3 | P131: 3 | Q131: 3 | R131: 3 | S131: 3 | T131: 0
B132: 2005-07-19 | C132: 27000 | D132: 23200 | E132: 500000
B133: 2005-07-20 | C133: 27000 | D133: 23200 | E133: 500000
B134: 2005-07-21 | E134: 500000
B135: 2005-07-22 | E135: 500000
B136: 2005-07-25 | E136: 500000
B137: 2005-07-26 | E137: 500000
B138: 2005-07-27 | E138: 500000
B139: 2005-07-28 | C139: 27000 | D139: 23200 | E139: 500000
B140: 2005-07-29 | C140: 27000 | D140: 23200 | E140: 500000
B141: 2005-08-01 | C141: 27000 | D141: 23200 | E141: 500000
B142: 2005-08-02 | C142: 27000 | D142: 23200 | E142: 500000
B143: 2005-08-03 | C143: 27000 | D143: 23200 | E143: 500000
B144: 2005-08-04 | C144: 27000 | D144: 23200 | E144: 500000
B145: 2005-08-05 | C145: 27000 | D145: 23200 | E145: 500000
B146: 2005-08-08 | C146: 27000 | D146: 23200 | E146: 500000
B147: 2005-08-09 | C147: 27000 | D147: 23200 | E147: 500000
B148: 2005-08-10 | C148: 27000 | D148: 23200 | E148: 500000
B149: 2005-08-11 | C149: 27000 | D149: 23200 | E149: 500000
B150: 2005-08-12 | C150: 27000 | D150: 23200 | E150: 500000
B151: 2005-08-15 | C151: 27000 | D151: 23200 | E151: 500000
B152: 2005-08-16 | C152: 27000 | D152: 23200 | E152: 500000
B153: 2005-08-17 | C153: 27000 | D153: 23200 | E153: 500000
B154: 2005-08-18 | C154: 27000 | D154: 23200 | E154: 500000
B155: 2005-08-19 | C155: 27000 | D155: 23200 | E155: 500000
B156: 2005-08-22 | C156: 27000 | D156: 23200 | E156: 500000
B157: 2005-08-23 | C157: 27000 | D157: 23200 | E157: 500000
B158: 2005-08-24 | C158: 27000 | D158: 23200 | E158: 500000
B159: 2005-08-25 | C159: 27000 | D159: 23200 | E159: 500000
B160: 2005-08-26 | C160: 27000 | D160: 23200 | E160: 500000
B161: 2005-08-29 | C161: 27000 | D161: 23200 | E161: 500000
B162: 2005-08-30 | C162: 27000 | D162: 23200 | E162: 500000
B163: 2005-08-31 | C163: 27000 | D163: 23200 | E163: 500000
B164: 2005-09-01 | C164: 27000 | D164: 23200 | E164: 500000
B165: 2005-09-02 | C165: 27000 | D165: 23200 | E165: 500000
B166: 2005-09-05 | C166: 27000 | D166: 23200 | E166: 500000
B167: 2005-09-06 | C167: 27000 | D167: 23200 | E167: 500000
B168: 2005-09-07 | C168: 27000 | D168: 23200 | E168: 500000
B169: 2005-09-08 | C169: 27000 | D169: 23200 | E169: 500000
B170: 2005-09-09 | C170: 27000 | D170: 23200 | E170: 500000
B171: 2005-09-12 | C171: 27000 | D171: 23200 | E171: 500000
B172: 2005-09-13 | C172: 27000 | D172: 23200 | E172: 500000
B173: 2005-09-14 | C173: 27000 | D173: 23200 | E173: 500000
B174: 2005-09-15 | C174: 27000 | D174: 23200 | E174: 500000
B175: 2005-09-16 | C175: 27000 | D175: 23200 | E175: 500000
B176: 2005-09-19 | C176: 27000 | D176: 23200 | E176: 500000
B177: 2005-09-20 | C177: 27000 | D177: 23200 | E177: 500000
B178: 2005-09-21 | C178: 27000 | D178: 23200 | E178: 500000
B179: 2005-09-22 | C179: 27000 | D179: 23200 | E179: 500000
B180: 2005-09-23 | C180: 27000 | D180: 23200 | E180: 500000
B181: 2005-09-26 | C181: 27000 | D181: 23200 | E181: 500000
B182: 2005-09-27 | C182: 27000 | D182: 23200 | E182: 500000
B183: 2005-09-28 | C183: 27000 | D183: 23200 | E183: 500000
B184: 2005-09-29 | C184: 27000 | D184: 23200 | E184: 500000
B185: 2005-09-30 | C185: 27000 | D185: 23200 | E185: 500000
B186: 2005-10-10 | C186: 27000 | D186: 23200 | E186: 500000
B187: 2005-10-11 | C187: 27000 | D187: 23200 | E187: 500000
B188: 2005-10-12 | C188: 27000 | D188: 23200 | E188: 500000
B189: 2005-10-13 | C189: 27000 | D189: 23200 | E189: 500000
B190: 2005-10-14 | C190: 27000 | D190: 23200 | E190: 500000
B191: 2005-10-17 | C191: 27000 | D191: 23200 | E191: 500000
B192: 2005-10-18 | C192: 27000 | D192: 23200 | E192: 500000
B193: 2005-10-19 | C193: 27000 | D193: 23200 | E193: 500000
B194: 2005-10-20 | C194: 27000 | D194: 23200 | E194: 500000
B195: 2005-10-21 | C195: 27000 | D195: 23200 | E195: 500000
B196: 2005-10-24 | C196: 27000 | D196: 23200 | E196: 500000
B197: 2005-10-25 | C197: 27000 | D197: 23200 | E197: 500000
B198: 2005-10-26 | C198: 27000 | D198: 23200 | E198: 500000
B199: 2005-10-27 | C199: 27000 | D199: 23200 | E199: 500000
B200: 2005-10-28 | C200: 27000 | D200: 23200 | E200: 500000
B201: 2005-10-31 | C201: 27000 | D201: 23200 | E201: 500000
... 4496 more rows

Sheet 镍钴锰价格
C1: 返回首页 | E1: 镍 | G1: 钴 | I1: 锰 | AS1: 1
A3: 近日 | C3: 来源:Wind | D3: 2020-03-12 | N3: 钴2020-3-10 | U3: 元/KG | W3: 返回 | AA3: 2020-03-10 | AQ3: 2020-03-10 | AU3: 近日
C4: 镍 | D4: 27 | E4: 长江有色市场 | I4: BOCE | J4: LME | N4: 钴 | O4: 长江有色市场 | P4: 广东南储 | Q4: 华南现货 | R4: 金川赞比亚 | S4: 无锡市场: | T4: 沪产 | U4: 上海 | V4: LME | X4: 金属钴 | AA4: 电解钴 | AD4: 谦比西电解钴 | AG4: 金川电解钴 | AJ4: 凯实电解钴 | AN4: 钴粉 | AQ4: 锰 | AR4: 长江有色市场 | AT4: 钴 | AU4: MB自由市场 | AV4: MB自由市场 | DT4: ）
C5: 指标名称 | D5: 平均价:镍:1# | E5: 平均价:镍板:1# | F5: 平均价:硫酸镍 | G5: :平均价:氯化镍:25Kg包装 | H5: 平均价:MB超细镍粉:200-6500目 | I5: 电解镍现货结算价 | J5: 期货收盘价:3个月镍 | K5: 总库存:镍 | L5: 现货结算价:镍 | N5: 指标名称 | O5: 平均价:钴:1# | P5: 平均价:1#电解钴(金川):佛山仓库 | Q5: 现货均价:电解钴:Co99.98:华南 | R5: 电解钴:≥99.8% | S5: 结算价:钴价指数:Co_I | T5: 价格:钴粉:-200目,-300目: | U5: 价格:氧化钴:CoO≥72% | V5: LME:库存 | W5: 期货结算价:3个月钴 | X5: 百川 | AB5: SMM | AE5: 格派 | AH5: 格派 | AK5: 格派 | AN5: SMM | AQ5: 指标名称 | AR5: 平均价:电解锰:1# | AT5: 指标名称 | AU5: MB钴(高级) | AV5: MB钴(低级)
C6: 单位 | D6: 元/吨 | E6: 元/吨 | F6: 元/吨 | G6: 元/吨 | H6: 元/千克 | I6: 元/千克 | J6: 美元/吨 | K6: 吨 | L6: 美元/吨 | N6: 单位 | O6: 元/吨 | P6: 元/吨 | Q6: 元/吨 | R6: 元/吨 | S6: 元/公斤 | T6: 元/公斤 | U6: 元/吨 | V6: 吨 | W6: 美元/吨 | AA6: 元/吨 | AE6: 万元/吨 | AH6: 万元/吨 | AK6: 万元/吨 | AN6: 元/kg | AQ6: 单位 | AR6: 日 | AT6: 单位 | AU6: 美元/磅 | AV6: 美元/磅
C7: 2007-01-04 | D7: 311500 | J7: 34050 | K7: 6234 | L7: 33955 | N7: 2007-01-04 | Q7: 385000 | R7: 395000 | T7: 450 | U7: 252000 | AQ7: 2005-01-04 | AT7: 2003-12-05 | AU7: 16.5 | AV7: 14
C8: 2007-01-05 | D8: 307000 | J8: 32765 | K8: 6084 | L8: 34805 | N8: 2007-01-05 | Q8: 385000 | R8: 387500 | T8: 450 | U8: 252000 | AQ8: 2005-01-05 | AT8: 2003-12-10 | AU8: 17.4 | AV8: 15.25
C9: 2007-01-08 | D9: 310000 | J9: 31050 | K9: 6798 | L9: 33210 | N9: 2007-01-08 | Q9: 385000 | R9: 382500 | T9: 450 | U9: 252000 | AQ9: 2005-01-06 | AT9: 2003-12-12 | AU9: 17.725 | AV9: 15.725
C10: 2007-01-09 | D10: 303500 | J10: 30650 | K10: 6690 | L10: 32900 | N10: 2007-01-09 | Q10: 380000 | R10: 382500 | T10: 450 | U10: 235000 | AQ10: 2005-01-07 | AT10: 2003-12-17 | AU10: 17.875 | AV10: 16.125
C11: 2007-01-10 | D11: 304000 | J11: 32950 | K11: 6456 | L11: 32900 | N11: 2007-01-10 | Q11: 375000 | R11: 382500 | T11: 450 | U11: 235000 | AQ11: 2005-01-10 | AT11: 2003-12-19 | AU11: 19 | AV11: 17
C12: 2007-01-11 | D12: 310500 | J12: 34500 | K12: 6300 | L12: 35255 | N12: 2007-01-11 | Q12: 375000 | R12: 382500 | U12: 235000 | AQ12: 2005-01-11 | AT12: 2004-01-02 | AU12: 22.25 | AV12: 20.5
C13: 2007-01-12 | D13: 310000 | J13: 32800 | K13: 5916 | L13: 36500 | N13: 2007-01-12 | Q13: 375000 | R13: 382500 | T13: 450 | U13: 235000 | AQ13: 2005-01-12 | AT13: 2004-01-07 | AU13: 22.5 | AV13: 20.5
C14: 2007-01-15 | D14: 309000 | J14: 33000 | K14: 5676 | L14: 35355 | M14: 10.35 | N14: 2007-01-15 | Q14: 375000 | R14: 382500 | T14: 15.5 | U14: 235000 | V14: 16 | AQ14: 2005-01-13 | AS14: 4.25 | AT14: 2004-01-09 | AU14: 24.125 | AV14: 22 | AX14: 3
B15: 2018-03-16 | C15: 2007-01-16 | D15: 309500 | J15: 33600 | K15: 5406 | L15: 35940 | N15: 2007-01-16 | Q15: 375000 | R15: 382500 | T15: 450 | U15: 235000 | V15: 16 | AQ15: 2005-01-14 | AT15: 2004-01-14 | AU15: 28.25 | AV15: 24 | AX15: 3
B16: 2018-03-19 | C16: 2007-01-17 | D16: 310500 | J16: 35500 | K16: 5316 | L16: 35880 | N16: 2007-01-17 | Q16: 375000 | R16: 382500 | U16: 235000 | V16: 16 | AQ16: 2005-01-18 | AT16: 2004-01-16 | AU16: 28.25 | AV16: 24.75 | AX16: 3
B17: 2018-03-20 | C17: 2007-01-18 | D17: 318500 | J17: 35200 | K17: 5322 | L17: 36600 | N17: 2007-01-18 | Q17: 375000 | R17: 380000 | T17: 450 | U17: =IF(VLOOKUP(锂电材料价格变化汇总表!B17,前驱体价格!$G$4:$V$2480,16,FALSE)/10=0,"",VLOOKUP(锂电材料价格变化汇总表!B17,前驱体价格!$G$4:$V$2480,16,FALSE)/10) -> 48 | V17: 16 | AQ17: 2005-01-19 | AT17: 2004-01-21 | AU17: 27.75 | AV17: 25 | AX17: 3
B18: 2018-03-21 | C18: 2007-01-19 | D18: 316000 | J18: 36200 | K18: 5178 | L18: 37300 | N18: 2007-01-19 | Q18: 375000 | R18: =IF(VLOOKUP(锂电材料价格变化汇总表!B18,前驱体价格!$G$4:$S$2480,13,FALSE)/10=0,"",VLOOKUP(锂电材料价格变化汇总表!B18,前驱体价格!$G$4:$S$2480,13,FALSE)/10) -> 47.2 | T18: 450 | U18: 235000 | V18: 16 | AQ18: 2005-01-20 | AT18: 2004-01-23 | AU18: 27.75 | AV18: 25.5 | AX18: 3
B19: 2018-03-22 | C19: 2007-01-22 | D19: 318500 | J19: 37150 | K19: 5052 | L19: 38650 | N19: 2007-01-22 | Q19: 375000 | R19: =IF(VLOOKUP(锂电材料价格变化汇总表!B19,前驱体价格!$G$4:$S$2480,13,FALSE)/10=0,"",VLOOKUP(锂电材料价格变化汇总表!B19,前驱体价格!$G$4:$S$2480,13,FALSE)/10) -> 47.2 | T19: 450 | U19: 235000 | V19: 16 | AQ19: 2005-01-21 | AT19: 2004-01-28 | AU19: 27.75 | AV19: 25.75 | AX19: 3
C20: 2007-01-23 | D20: 329000 | J20: 37800 | K20: 5064 | L20: 40605 | N20: 2007-01-23 | R20: =IF(ISNUMBER(R19),R19/R14-1,R18/R14-1) -> -0.9998766013 | T20: 450 | U20: =IF(ISNUMBER(U19),U19/U14-1,U18/U14-1) -> 0 | V20: =IF(ISNUMBER(V19),V19/V14-1,V18/V14-1) -> 0 | AQ20: 2005-01-24 | AT20: 2004-01-30 | AU20: 27.75 | AV20: 25.75 | AX20: =IF(ISNUMBER(AX19),AX19/AX14-1,AX18/AX14-1) -> 0
C21: 2007-01-24 | D21: 334000 | J21: 37500 | K21: 5016 | L21: 41205 | N21: 2007-01-24 | Q21: 377500 | R21: 377500 | T21: 450 | U21: 240000 | V21: =V19/V12-1 ->  | AQ21: 2005-01-25 | AT21: 2004-02-04 | AU21: 27.75 | AV21: 25.75 | AX21: 25.75 | BB21: =BB19/BB12-1 ->  | BC21: =BC19/BC12-1 ->  | BD21: =BD19/BD12-1 -> 
C22: 2007-01-25 | D22: 335500 | J22: 38200 | K22: 4950 | L22: 41305 | N22: 2007-01-25 | Q22: 377500 | R22: 385000 | T22: 450 | U22: 240000 | V22: =V19/V10-1 ->  | AP22: =AP19/AP10-1 ->  | AQ22: 2005-01-26 | AT22: 2004-02-06 | AU22: 27.75 | AV22: 25.875
C23: 2007-01-26 | D23: 337500 | J23: 38075 | K23: 4878 | L23: 40500 | N23: 2007-01-26 | Q23: 377500 | R23: 390000 | T23: 450 | U23: 240000 | V23: =V21/V14-1 ->  | AQ23: 2005-01-27 | AT23: 2004-02-11 | AU23: 27.75 | AV23: 25.875 | AX23: 25.75
C24: 2007-01-29 | D24: 352500 | J24: 37380 | K24: 4278 | L24: 40995 | N24: 2007-01-29 | Q24: 382500 | R24: 390000 | T24: 510 | U24: 240000 | AQ24: 2005-01-28 | AT24: 2004-02-13 | AU24: 27.5 | AV24: 25
C25: 2007-01-30 | D25: 351500 | J25: 35750 | K25: 4278 | L25: 40355 | N25: 2007-01-30 | Q25: 382500 | R25: 390000 | T25: 510 | U25: 240000 | AQ25: 2005-01-31 | AT25: 2004-02-18 | AU25: 27.5 | AV25: 25
C26: 2007-01-31 | D26: 339000 | J26: 36900 | K26: 3972 | L26: 39100 | N26: 2007-01-31 | Q26: 382500 | R26: 395000 | T26: 510 | U26: 240000 | AQ26: 2005-02-01 | AT26: 2004-02-25 | AU26: 27.5 | AV26: 24.75
C27: 2007-02-01 | D27: 344000 | J27: 36700 | K27: 3366 | L27: 39500 | N27: 2007-02-01 | Q27: 382500 | R27: 412500 | T27: 510 | U27: 240000 | AQ27: 2005-02-02 | AT27: 2004-02-27 | AU27: 27.5 | AV27: 24.75
C28: 2007-02-02 | D28: 348500 | J28: 37400 | K28: 3222 | L28: 40800 | N28: 2007-02-02 | Q28: 382500 | R28: 412500 | T28: 510 | U28: 240000 | AQ28: 2005-02-03 | AT28: 2004-03-03 | AU28: 27.25 | AV28: 24.75
C29: 2007-02-05 | D29: 352000 | J29: 35750 | K29: 3222 | L29: 41400 | N29: 2007-02-05 | Q29: 387500 | R29: 415000 | T29: 510 | U29: 240000 | AQ29: 2005-02-04 | AT29: 2004-03-05 | AU29: 27.75 | AV29: 24.75
C30: 2007-02-06 | D30: 351000 | J30: 36000 | K30: 2982 | L30: 39900 | N30: 2007-02-06 | Q30: 387500 | R30: 415000 | T30: 510 | U30: 240000 | AQ30: 2005-02-16 | AT30: 2004-03-10 | AU30: 27.5 | AV30: 24.75
C31: 2007-02-07 | D31: 354500 | J31: 35700 | K31: 3120 | L31: 38950 | N31: 2007-02-07 | Q31: 392500 | R31: 415000 | T31: 510 | U31: 240000 | AQ31: 2005-02-17 | AT31: 2004-03-17 | AU31: 27.75 | AV31: 25
C32: 2007-02-08 | D32: 356500 | J32: 35750 | K32: 3654 | L32: 37900 | N32: 2007-02-08 | Q32: 392500 | R32: 415000 | T32: 510 | U32: 240000 | AQ32: 2005-02-18 | AT32: 2004-03-19 | AU32: 27.75 | AV32: 25
C33: 2007-02-09 | D33: 356500 | J33: 36050 | K33: 3678 | L33: 38505 | N33: 2007-02-09 | Q33: 392500 | R33: 410000 | T33: 510 | AQ33: 2005-02-21 | AT33: 2004-03-24 | AU33: 27.5 | AV33: 25.25
C34: 2007-02-12 | D34: 352500 | J34: 35400 | K34: 3750 | L34: 38410 | N34: 2007-02-12 | Q34: 402500 | R34: 410000 | T34: 510 | U34: 240000 | AQ34: 2005-02-22 | AT34: 2004-03-26 | AU34: 27.5 | AV34: 25.25
C35: 2007-02-13 | D35: 351500 | J35: 36200 | K35: 3768 | L35: 38700 | N35: 2007-02-13 | Q35: 402500 | R35: 410000 | T35: 510 | U35: 240000 | AQ35: 2005-02-23 | AT35: 2004-03-31 | AU35: 27.5 | AV35: 25.25
C36: 2007-02-14 | D36: 353500 | J36: 37500 | K36: 3924 | L36: 40280 | N36: 2007-02-14 | Q36: 402500 | R36: 440000 | T36: 510 | U36: 240000 | AQ36: 2005-02-24 | AT36: 2004-04-07 | AU36: 27.1 | AV36: 25.5
C37: 2007-02-15 | D37: 355500 | J37: 39250 | K37: 3990 | L37: 41605 | N37: 2007-02-15 | Q37: 417500 | R37: 440000 | T37: 510 | U37: 240000 | AQ37: 2005-02-25 | AT37: 2004-04-14 | AU37: 27.1 | AV37: 25.5
C38: 2007-02-16 | D38: 359500 | J38: 39200 | N38: 2007-02-16 | Q38: 417500 | R38: 440000 | T38: 510 | U38: 240000 | AQ38: 2005-02-28 | AT38: 2004-04-16 | AU38: 26.6 | AV38: 25.5
C39: 2007-02-19 | J39: 38800 | N39: 2007-02-25 | Q39: 447500 | AQ39: 2005-03-01 | AT39: 2004-04-21 | AU39: 26.6 | AV39: 25.35
C40: 2007-02-20 | J40: 39950 | N40: 2007-02-26 | Q40: 447500 | R40: 465000 | T40: 510 | U40: 250000 | AQ40: 2005-03-02 | AT40: 2004-04-23 | AU40: 26.6 | AV40: 25.35
C41: 2007-02-21 | J41: 39800 | N41: 2007-02-27 | Q41: 467500 | R41: 465000 | T41: 510 | U41: 250000 | AQ41: 2005-03-03 | AT41: 2004-04-28 | AU41: 26.6 | AV41: 25.35
C42: 2007-02-22 | J42: 39400 | N42: 2007-02-28 | Q42: 467500 | R42: 480000 | T42: 510 | U42: 250000 | AQ42: 2005-03-04 | AT42: 2004-04-30 | AU42: 26.6 | AV42: 25.65
C43: 2007-02-23 | J43: 40950 | K43: 3492 | L43: 43300 | N43: 2007-03-01 | Q43: 467500 | R43: 480000 | T43: 510 | U43: 250000 | AQ43: 2005-03-07 | AT43: 2004-05-05 | AU43: 26.05 | AV43: 25.35
C44: 2007-02-26 | D44: 375500 | J44: 41250 | K44: 3510 | L44: 44110 | N44: 2007-03-02 | Q44: 467500 | R44: 480000 | T44: 565 | U44: 260000 | AQ44: 2005-03-08 | AT44: 2004-05-07 | AU44: 26.2 | AV44: 25.35
C45: 2007-02-27 | D45: 381000 | J45: 41600 | K45: 3282 | L45: 44500 | N45: 2007-03-05 | Q45: 467500 | R45: 480000 | T45: 565 | U45: 265000 | AQ45: 2005-03-09 | AT45: 2004-05-12 | AU45: 25.35 | AV45: 25.125
C46: 2007-02-28 | D46: 382500 | J46: 41340 | K46: 3294 | L46: 44405 | N46: 2007-03-06 | Q46: 485000 | R46: 480000 | T46: 565 | U46: 265000 | AQ46: 2005-03-10 | AT46: 2004-05-14 | AU46: 25.35 | AV46: 25.125
C47: 2007-03-01 | D47: 381500 | J47: 41600 | K47: 3342 | L47: 45340 | N47: 2007-03-07 | Q47: 485000 | R47: 480000 | T47: 565 | U47: 335000 | AQ47: 2005-03-11 | AT47: 2004-05-19 | AU47: 26 | AV47: 25.125
C48: 2007-03-02 | D48: 382500 | J48: 40900 | K48: 3486 | L48: 44310 | N48: 2007-03-08 | Q48: 485000 | R48: 490000 | T48: 565 | U48: 335000 | AQ48: 2005-03-14 | AT48: 2004-05-21 | AU48: 26 | AV48: 25.125
C49: 2007-03-05 | D49: 381500 | J49: 39050 | K49: 3690 | L49: 42475 | N49: 2007-03-09 | Q49: 485000 | R49: 490000 | T49: 565 | AQ49: 2005-03-15 | AT49: 2004-05-26 | AU49: 26 | AV49: 25
C50: 2007-03-06 | D50: 375000 | J50: 40500 | K50: 3810 | L50: 43600 | N50: 2007-03-12 | Q50: 485000 | R50: 490000 | T50: 565 | U50: 335000 | AQ50: 2005-03-16 | AT50: 2004-05-28 | AU50: 26 | AV50: 24.575
C51: 2007-03-07 | D51: 377000 | J51: 41900 | K51: 3648 | L51: 44800 | N51: 2007-03-13 | Q51: 485000 | R51: 490000 | T51: 565 | U51: 335000 | AQ51: 2005-03-17 | AT51: 2004-06-02 | AU51: 26 | AV51: 24.575
C52: 2007-03-08 | D52: 383500 | J52: 42800 | K52: 3426 | L52: 45545 | N52: 2007-03-14 | Q52: 495000 | R52: 490000 | T52: 565 | U52: 335000 | AQ52: 2005-03-18 | AT52: 2004-06-04 | AU52: 26 | AV52: 24.5
C53: 2007-03-09 | D53: 387500 | J53: 42500 | K53: 3870 | L53: 45050 | N53: 2007-03-15 | Q53: 495000 | R53: 480000 | T53: 565 | U53: 325000 | AQ53: 2005-03-21 | AT53: 2004-06-09 | AU53: 25.6 | AV53: 24.5
C54: 2007-03-12 | D54: 387500 | J54: 44000 | K54: 3948 | L54: 46600 | N54: 2007-03-16 | Q54: 495000 | R54: 480000 | T54: 565 | U54: 325000 | AQ54: 2005-03-22 | AT54: 2004-06-11 | AU54: 25.5 | AV54: 24.2
C55: 2007-03-13 | D55: 392500 | J55: 43600 | K55: 3876 | L55: 47200 | N55: 2007-03-19 | Q55: 495000 | R55: 480000 | T55: 565 | U55: 325000 | AQ55: 2005-03-23 | AT55: 2004-06-16 | AU55: 25.5 | AV55: 24.6
C56: 2007-03-14 | D56: 399500 | J56: 44800 | K56: 3816 | L56: 47405 | N56: 2007-03-20 | Q56: 495000 | R56: 480000 | T56: 565 | U56: 325000 | AQ56: 2005-03-24 | AT56: 2004-06-18 | AU56: 25.5 | AV56: 24
C57: 2007-03-15 | D57: 402500 | J57: 47300 | K57: 3594 | L57: 49300 | N57: 2007-03-21 | Q57: 495000 | R57: 480000 | T57: 565 | U57: 325000 | AQ57: 2005-03-25 | AT57: 2004-06-23 | AU57: 25.5 | AV57: 24
C58: 2007-03-16 | D58: 419000 | J58: 47700 | K58: 3564 | L58: 49500 | N58: 2007-03-22 | Q58: 485000 | R58: 480000 | T58: 565 | U58: 325000 | AQ58: 2005-03-28 | AT58: 2004-06-25 | AU58: 25.5 | AV58: 24
C59: 2007-03-19 | D59: 442500 | J59: 46600 | K59: 3702 | L59: 50345 | N59: 2007-03-23 | Q59: 485000 | R59: 480000 | T59: 565 | U59: 325000 | AQ59: 2005-03-29 | AT59: 2004-06-30 | AU59: 25.5 | AV59: 24
C60: 2007-03-20 | D60: 437500 | J60: 44200 | K60: 3648 | L60: 49400 | N60: 2007-03-26 | Q60: 485000 | R60: 480000 | T60: 565 | U60: 325000 | AQ60: 2005-03-30 | AT60: 2004-07-02 | AU60: 25.5 | AV60: 24
C61: 2007-03-21 | D61: 427500 | J61: 43900 | K61: 4302 | L61: 47200 | N61: 2007-03-27 | Q61: 485000 | R61: 480000 | T61: 565 | U61: 325000 | AQ61: 2005-03-31 | AT61: 2004-07-07 | AU61: 25.5 | AV61: 24
C62: 2007-03-22 | D62: 419000 | J62: 45210 | K62: 4314 | L62: 47650 | N62: 2007-03-28 | Q62: 485000 | R62: 480000 | T62: 565 | U62: 325000 | AQ62: 2005-04-01 | AT62: 2004-07-09 | AU62: 25.5 | AV62: 24
C63: 2007-03-23 | D63: 426500 | J63: 42400 | K63: 4932 | L63: 45610 | N63: 2007-03-29 | Q63: 485000 | R63: 480000 | T63: 565 | U63: 325000 | AQ63: 2005-04-04 | AT63: 2004-07-14 | AU63: 25.05 | AV63: 23.875
C64: 2007-03-26 | D64: 417500 | J64: 42650 | K64: 4902 | L64: 45500 | N64: 2007-03-30 | Q64: 485000 | R64: 480000 | T64: 565 | U64: 325000 | AQ64: 2005-04-05 | AT64: 2004-07-16 | AU64: 24.95 | AV64: 23.75
C65: 2007-03-27 | D65: 418500 | J65: 43000 | K65: 5370 | L65: 45700 | N65: 2007-04-02 | Q65: 485000 | R65: 480000 | T65: 565 | U65: 325000 | AQ65: 2005-04-06 | AT65: 2004-07-21 | AU65: 24.95 | AV65: 23.75
C66: 2007-03-28 | D66: 416500 | J66: 43600 | K66: 5496 | L66: 45515 | N66: 2007-04-03 | Q66: 485000 | R66: 480000 | T66: 565 | U66: 325000 | AQ66: 2005-04-07 | AT66: 2004-07-23 | AU66: 24.75 | AV66: 23.5
C67: 2007-03-29 | D67: 412500 | J67: 43950 | K67: 5292 | L67: 45600 | N67: 2007-04-04 | Q67: 485000 | R67: 480000 | T67: 565 | U67: 325000 | AQ67: 2005-04-08 | AT67: 2004-07-28 | AU67: 24.45 | AV67: 23.375
C68: 2007-03-30 | D68: 411500 | J68: 44650 | K68: 5418 | L68: 45500 | N68: 2007-04-05 | Q68: 485000 | R68: 489000 | T68: 565 | U68: 325000 | AQ68: 2005-04-11 | AT68: 2004-07-30 | AU68: 24.25 | AV68: 23.3
C69: 2007-04-02 | D69: 416000 | J69: 45600 | K69: 5232 | L69: 47650 | N69: 2007-04-06 | Q69: 485000 | R69: 489000 | T69: 565 | U69: 325000 | AQ69: 2005-04-12 | AT69: 2004-08-04 | AU69: 24.25 | AV69: 23.3
C70: 2007-04-03 | D70: 423000 | J70: 48700 | K70: 5166 | L70: 49755 | N70: 2007-04-09 | Q70: 495000 | R70: 507500 | T70: 565 | U70: 325000 | AQ70: 2005-04-13 | AT70: 2004-08-06 | AU70: 24.25 | AV70: 23.3
C71: 2007-04-04 | D71: 436000 | J71: 49150 | K71: 5124 | L71: 50680 | N71: 2007-04-10 | Q71: 495000 | R71: 507500 | T71: 565 | U71: 325000 | AQ71: 2005-04-14 | AT71: 2004-08-11 | AU71: 24.25 | AV71: 23.3
C72: 2007-04-05 | D72: 439000 | J72: 49000 | K72: 4812 | L72: 52375 | N72: 2007-04-11 | Q72: 495000 | R72: 507500 | T72: 565 | U72: 325000 | AQ72: 2005-04-15 | AT72: 2004-08-13 | AU72: 24.25 | AV72: 23.3
C73: 2007-04-06 | D73: 436500 | N73: 2007-04-12 | Q73: 495000 | R73: 507500 | T73: 565 | U73: 325000 | AQ73: 2005-04-18 | AT73: 2004-08-17 | AU73: 24.25 | AV73: 23.3
C74: 2007-04-09 | D74: 436500 | N74: 2007-04-13 | Q74: 495000 | R74: 507500 | T74: 565 | U74: 325000 | AQ74: 2005-04-19 | AT74: 2004-08-20 | AU74: 24.025 | AV74: 23.15
C75: 2007-04-10 | D75: 436000 | J75: 48600 | K75: 4632 | L75: 52350 | N75: 2007-04-16 | Q75: 502500 | R75: 507500 | T75: 565 | U75: 325000 | AQ75: 2005-04-20 | AT75: 2004-08-25 | AU75: 24.025 | AV75: 23.15
C76: 2007-04-11 | D76: 435500 | J76: 47100 | K76: 4494 | L76: 50805 | N76: 2007-04-17 | Q76: 502500 | R76: 507500 | T76: 565 | U76: 330000 | AQ76: 2005-04-21 | AT76: 2004-08-27 | AU76: 24.025 | AV76: 23.15
C77: 2007-04-12 | D77: 431000 | J77: 46500 | K77: 4458 | L77: 48900 | N77: 2007-04-18 | Q77: 502500 | R77: 507500 | T77: 565 | U77: 330000 | AQ77: 2005-04-22 | AT77: 2004-09-01 | AU77: 24.025 | AV77: 23.15
C78: 2007-04-13 | D78: 424000 | J78: 46900 | K78: 4374 | L78: 49900 | N78: 2007-04-19 | Q78: 502500 | R78: 507500 | T78: 565 | U78: 330000 | AQ78: 2005-04-25 | AT78: 2004-09-03 | AU78: 24.025 | AV78: 23.15
C79: 2007-04-16 | D79: 426000 | J79: 46700 | K79: 4272 | L79: 50200 | N79: 2007-04-20 | Q79: 502500 | R79: 520000 | T79: 565 | U79: 330000 | AQ79: 2005-04-26 | AT79: 2004-09-08 | AU79: 23.8 | AV79: 22.75
B80: 【东吴电新】锂电材料价格每日涨跌（20180322） | C80: 2007-04-17 | D80: 430000 | J80: 48300 | K80: 4020 | L80: 49900 | N80: 2007-04-23 | Q80: 502500 | R80: 520000 | T80: 565 | U80: 330000 | AQ80: 2005-04-27 | AT80: 2004-09-10 | AU80: 23.8 | AV80: 22.75
C81: 2007-04-18 | D81: 439500 | J81: 47900 | K81: 4458 | L81: 50050 | N81: 2007-04-24 | Q81: 502500 | R81: 520000 | T81: 565 | U81: 330000 | AQ81: 2005-04-28 | AT81: 2004-09-15 | AU81: 23.6 | AV81: 22.575
C82: 2018-03-16 | D82: 43178 | E82: 43179 | F82: 43180 | G82: 43181 | J82: 47800 | K82: 4266 | L82: 50105 | N82: 2007-04-25 | O82: 2018-03-16 | P82: 43178 | Q82: 43179 | R82: 43180 | S82: 43181 | AQ82: 2005-04-29 | AT82: 2004-09-17 | AU82: 23.3 | AV82: 22.375
C83: 2007-01-16 | D83: 39099 | E83: 39100 | F83: 39101 | G83: 39104 | H83: =G83/F83-1 -> 7.672438045e-05 | J83: 48800 | K83: 4056 | L83: 50600 | N83: 2007-04-26 | O83: 39098 | P83: 39099 | Q83: 39100 | R83: 39101 | S83: 39104 | T83: 39105 | U83: 39106 | V83: 39107 | AQ83: 2005-05-09 | AT83: 2004-09-22 | AU83: 23.3 | AV83: 22.375
C84: 2747-05-19 | D84: 310500 | E84: 318500 | F84: 316000 | G84: 318500 | H84: =G84/F84-1 -> 0.007911392405 | J84: 49500 | K84: 4074 | L84: =G84/F84-1 -> 0.007911392405 | N84: 2007-04-27 | O84: 309500 | P84: 310500 | Q84: 318500 | R84: 316000 | S84: 318500 | T84: 329000 | U84: 334000 | V84: 335500 | AB84: =16.3/13.9-1 -> 0.1726618705 | AC84: =15.5/14.3-1 -> 0.08391608392 | AQ84: 2005-05-10 | AT84: 2004-09-24 | AU84: 23.25 | AV84: 22.15
J85: 48000 | K85: 4314 | L85: 51805 | N85: 2007-04-28 | AQ85: 2005-05-11 | AT85: 2004-09-29 | AU85: 22.75 | AV85: 21.75
J86: 47300 | K86: 4842 | L86: 49800 | N86: 2007-04-29 | AQ86: 2005-05-13 | AT86: 2004-10-01 | AU86: 22.75 | AV86: 21.75
J87: 47000 | K87: 5052 | L87: 48700 | N87: 2007-04-30 | AQ87: 2005-05-16 | AT87: 2004-10-06 | AU87: 22.75 | AV87: 21.25
J88: 48775 | K88: 5112 | L88: 50095 | N88: 2007-05-08 | AQ88: 2005-05-17 | AT88: 2004-10-08 | AU88: 22.75 | AV88: 21.25
J89: 48095 | N89: 2007-05-09 | AQ89: 2005-05-18 | AT89: 2004-10-13 | AU89: 22.75 | AV89: 21.25
C90: 1991-12-28 | D90: 35500 | E90: 35200 | F90: 36200 | G90: 37150 | J90: 48650 | N90: 2007-05-10 | O90: 33600 | P90: 35500 | Q90: 35200 | R90: 36200 | S90: 37150 | T90: 37800 | U90: 37500 | V90: 38200 | AQ90: 2005-05-19 | AT90: 2004-10-15 | AU90: 22.375 | AV90: 20.925
J91: 49350 | N91: 2007-05-11 | O91: 5406 | P91: 5316 | Q91: 5322 | R91: 5178 | S91: 5052 | T91: 5064 | U91: 5016 | V91: 4950 | AQ91: 2005-05-20 | AT91: 2004-10-20 | AU91: 22.375 | AV91: 20.925
J92: 49850 | N92: 2007-05-14 | O92: 35940 | P92: 35880 | Q92: 36600 | R92: 37300 | S92: 38650 | T92: 40605 | U92: 41205 | V92: 41305 | AQ92: 2005-05-23 | AT92: 2004-10-22 | AU92: 22 | AV92: 20.5
J93: 51100 | N93: 2007-05-15 | AQ93: 2005-05-24 | AT93: 2004-10-27 | AU93: 20.5 | AV93: 20.05
C94: 2007-01-16 | D94: 39099 | E94: 39100 | F94: 39101 | G94: 39104 | J94: 51000 | K94: 4632 | L94: 52805 | N94: 2007-05-16 | O94: 39098 | P94: 39099 | Q94: 39100 | R94: 39101 | S94: 39104 | T94: 39105 | U94: 39106 | V94: 39107 | AQ94: 2005-05-25 | AT94: 2004-10-29 | AU94: 19.5 | AV94: 19.25
J95: 49400 | K95: 4458 | L95: 53000 | N95: 2007-05-17 | AQ95: 2005-05-26 | AT95: 2004-11-03 | AU95: 18.5 | AV95: 18
J96: 49850 | K96: 4446 | L96: 52750 | N96: 2007-05-18 | AQ96: 2005-05-27 | AT96: 2004-11-05 | AU96: 18 | AV96: 17.625
C97: 2926-09-17 | D97: 375000 | E97: 375000 | F97: 375000 | G97: 375000 | J97: 50600 | K97: 4698 | L97: 53500 | N97: 2007-05-21 | O97: 375000 | P97: 375000 | Q97: 375000 | R97: 375000 | S97: 375000 | U97: 377500 | V97: 377500 | AQ97: 2005-05-30 | AT97: 2004-11-10 | AU97: 18 | AV97: 17.625
C98: 2947-03-31 | D98: 382500 | E98: 380000 | F98: 15.7 | G98: 15.7 | H98: =G98/F98-1 -> 0 | J98: 49300 | K98: 4740 | L98: 53200 | N98: 2007-05-22 | O98: 382500 | P98: 382500 | Q98: 380000 | R98: 15.7 | S98: 15.7 | T98: -0.9999589542 | U98: 377500 | V98: 385000 | AQ98: 2005-05-31 | AT98: 2004-11-12 | AU98: 16.6 | AV98: 16.6
J99: 50900 | K99: 4674 | L99: 53995 | N99: 2007-05-23 | AQ99: 2005-06-01 | AT99: 2004-11-17 | AU99: 16.35 | AV99: 16.35
C100: 1901-03-25 | E100: 450 | F100: 450 | G100: 450 | J100: 49900 | K100: 4872 | L100: 54200 | N100: 2007-05-24 | O100: 450 | Q100: 450 | R100: 450 | S100: 450 | T100: 450 | U100: 450 | V100: 450 | AQ100: 2005-06-02 | AT100: 2004-11-19 | AU100: 16 | AV100: 16
C101: 2543-05-28 | D101: 235000 | E101: 15 | F101: 235000 | G101: 235000 | J101: 48800 | K101: 4866 | L101: 52490 | N101: 2007-05-25 | O101: 235000 | P101: 235000 | Q101: 15 | R101: 235000 | S101: 235000 | T101: 0 | U101: 240000 | V101: 240000 | AQ101: 2005-06-03 | AT101: 2004-11-24 | AU101: 16.3 | AV101: 16.3
C102: 1900-01-16 | D102: 16 | E102: 16 | F102: 16 | G102: 16 | J102: 50375 | K102: 4824 | L102: 52300 | N102: 2007-05-28 | O102: 16 | P102: 16 | Q102: 16 | R102: 16 | S102: 16 | T102: 0 | AQ102: 2005-06-06 | AT102: 2004-11-26 | AU102: 16.3 | AV102: 16.3
J103: 50475 | K103: 4986 | L103: 54100 | N103: 2007-05-29 | AQ103: 2005-06-07 | AT103: 2004-12-01 | AU103: 16.75 | AV103: 16.4
H104: =G104/F104-1 ->  | J104: 48100 | K104: 5388 | L104: 53735 | N104: 2007-05-30 | AQ104: 2005-06-08 | AT104: 2004-12-03 | AU104: 17.25 | AV104: 16.625
H105: =G105/F105-1 ->  | J105: 46200 | K105: 6834 | L105: 50200 | N105: 2007-05-31 | AQ105: 2005-06-09 | AT105: 2004-12-08 | AU105: 17.5 | AV105: 16.625
G106: 48.5 | H106: =G106/F106-1 ->  | J106: 45200 | K106: 7200 | L106: 50305 | N106: 2007-06-01 | S106: 48.5 | AQ106: 2005-06-13 | AT106: 2004-12-10 | AU106: 17.875 | AV106: 16.875
J107: 46700 | K107: 7452 | L107: 51000 | N107: 2007-06-04 | AQ107: 2005-06-14 | AT107: 2004-12-15 | AU107: 18.5 | AV107: 17.4
N108: 2007-06-05 | AQ108: 2005-06-15 | AT108: 2004-12-17 | AU108: 18.7 | AV108: 17.6
H109: =G109/F109-1 ->  | I109: 0 | J109: 14.80% | K109: 21.60% | L109: 50995 | N109: 2007-06-06 | AQ109: 2005-06-16 | AT109: 2004-12-22 | AU109: 19 | AV109: 18.05
J110: 46800 | K110: 7698 | L110: 50590 | N110: 2007-06-07 | AQ110: 2005-06-17 | AT110: 2004-12-29 | AU110: 19 | AV110: 18.05
J111: 46400 | K111: 7872 | L111: 50900 | N111: 2007-06-08 | AQ111: 2005-06-20 | AT111: 2004-12-31 | AU111: 19 | AV111: 18.05
J112: 47200 | K112: 7914 | L112: 50450 | N112: 2007-06-11 | AQ112: 2005-06-21 | AT112: 2005-01-05 | AU112: 19 | AV112: 18.05
J113: 47750 | K113: 7956 | L113: 50310 | N113: 2007-06-12 | AQ113: 2005-06-23 | AT113: 2005-01-07 | AU113: 19.2 | AV113: 18.35
J114: 46490 | K114: 8460 | L114: 49355 | N114: 2007-06-13 | AQ114: 2005-06-24 | AT114: 2005-01-12 | AU114: 19.2 | AV114: 18.35
J115: 45800 | K115: 8406 | L115: 48405 | N115: 2007-06-14 | AQ115: 2005-06-27 | AT115: 2005-01-14 | AU115: 19.2 | AV115: 18.55
D116: 51 | J116: 43400 | K116: 8604 | L116: 44510 | N116: 2007-06-15 | P116: 50.5 | AQ116: 2005-06-28 | AT116: 2005-01-19 | AU116: 19.2 | AV116: 18.55
J117: 42750 | K117: 8856 | L117: 43800 | N117: 2007-06-18 | AQ117: 2005-06-29 | AT117: 2005-01-21 | AU117: 19.2 | AV117: 18.55
J118: 42400 | K118: 8880 | L118: 44115 | N118: 2007-06-19 | AQ118: 2005-06-30 | AT118: 2005-01-26 | AU118: 19 | AV118: 18.35
J119: 39900 | K119: 8922 | L119: 41205 | N119: 2007-06-20 | AQ119: 2005-07-01 | AT119: 2005-01-28 | AU119: 18.75 | AV119: 18.25
J120: 39850 | K120: 9048 | L120: 41100 | N120: 2007-06-21 | AQ120: 2005-07-04 | AT120: 2005-02-02 | AU120: 18.75 | AV120: 18.175
J121: 41850 | K121: 9126 | L121: 41100 | N121: 2007-06-22 | S121: 8.5 | AQ121: 2005-07-05 | AT121: 2005-02-04 | AU121: 18.75 | AV121: 18.175
J122: 42200 | K122: 9288 | L122: 41300 | N122: 2007-06-25 | AQ122: 2005-07-06 | AT122: 2005-02-09 | AU122: 18.75 | AV122: 18.175
C123: 2005-01-14 | D123: 38370 | E123: 38371 | F123: 38372 | G123: 38373 | J123: 40200 | K123: 9288 | L123: 41900 | N123: 2007-06-26 | O123: 38366 | P123: 38370 | Q123: 38371 | R123: 38372 | S123: 38373 | T123: 38376 | U123: 38377 | V123: 38378 | AQ123: 2005-07-07 | AT123: 2005-02-11 | AU123: 18.65 | AV123: 17.95
J124: 38000 | K124: 9276 | L124: 39240 | N124: 2007-06-27 | AQ124: 2005-07-08 | AT124: 2005-02-16 | AU124: 18.35 | AV124: 17.7
C125: 1900-01-30 | D125: 30 | E125: 30 | F125: 30 | G125: 30 | J125: 36550 | K125: 9042 | L125: 38705 | N125: 2007-06-28 | O125: 30 | P125: 30 | Q125: 30 | R125: 30 | S125: 30 | T125: 30 | U125: 30 | V125: 30 | AQ125: 2005-07-11 | AT125: 2005-02-18 | AU125: 18.15 | AV125: 17.6
J126: 37500 | K126: 9048 | L126: 36800 | N126: 2007-06-29 | AQ126: 2005-07-12 | AT126: 2005-02-23 | AU126: 17.65 | AV126: 17.2
C127: 2004-01-14 | D127: 38002 | E127: 38007 | F127: 38009 | G127: 38014 | J127: 37600 | K127: 9030 | L127: 37605 | N127: 2007-07-02 | O127: 38000 | P127: 38002 | Q127: 38007 | R127: 38009 | S127: 38014 | T127: 38016 | U127: 38021 | V127: 38023 | AQ127: 2005-07-13 | AT127: 2005-02-25 | AU127: 17.375 | AV127: 17.075
C128: 2007-06-25 | D128: 348000 | J128: 38900 | K128: 8550 | L128: 37710 | N128: 2007-07-03 | O128: 28.25 | P128: 28.25 | Q128: 27.75 | R128: 27.75 | S128: 27.75 | T128: 27.75 | U128: 28 | V128: 27.75 | AQ128: 2005-07-14 | AT128: 2005-03-02 | AU128: 17.275 | AV128: 17.025
C129: 2007-06-26 | D129: 348000 | J129: 37600 | K129: 8418 | L129: 38400 | N129: 2007-07-04 | O129: 24 | P129: 24.75 | Q129: 25 | R129: 25.5 | S129: 25.75 | T129: 25.75 | U129: 26 | V129: 25.875 | AQ129: 2005-07-15 | AT129: 2005-03-03 | AU129: 16.65 | AV129: 16.15
C130: 2007-06-27 | D130: 344000 | L130: 36800 | N130: 2007-07-05 | AQ130: 2005-07-18 | AT130: 2005-03-09 | AU130: 16.25 | AV130: 15.8
C131: 2007-06-28 | D131: 343000 | J131: 36750 | K131: 9066 | L131: 37430 | N131: 2007-07-06 | O131: 3 | P131: 3 | Q131: 3 | R131: 3 | S131: 3 | T131: 0 | U131: 26 | AQ131: 2005-07-19 | AT131: 2005-03-11 | AU131: 15.75 | AV131: 15.25
C132: 2007-06-29 | D132: 341000 | J132: 36200 | K132: 8910 | L132: 35850 | N132: 2007-07-09 | AQ132: 2005-07-20 | AT132: 2005-03-16 | AU132: 15.75 | AV132: 15.25
C133: 2007-07-02 | D133: 339000 | J133: 36150 | K133: 8856 | L133: 36950 | N133: 2007-07-10 | AQ133: 2005-07-28 | AT133: 2005-03-18 | AU133: 15.1 | AV133: 14.55
C134: 2007-07-03 | D134: 331500 | J134: 36200 | K134: 8886 | L134: 36355 | N134: 2007-07-11 | AQ134: 2005-07-29 | AT134: 2005-03-23 | AU134: 15.4 | AV134: 14.85
C135: 2007-07-04 | D135: 331500 | J135: 36125 | K135: 9114 | L135: 36475 | N135: 2007-07-12 | AQ135: 2005-08-01 | AT135: 2005-03-30 | AU135: 17.125 | AV135: 16.425
C136: 2007-07-05 | D136: 329000 | J136: 36150 | K136: 9090 | L136: 36200 | N136: 2007-07-13 | AQ136: 2005-08-02 | AT136: 2005-04-01 | AU136: 17.125 | AV136: 16.425
C137: 2007-07-06 | D137: 326500 | J137: 35445 | N137: 2007-07-16 | AQ137: 2005-08-03 | AT137: 2005-04-06 | AU137: 17.75 | AV137: 16.75
C138: 2007-07-09 | D138: 323000 | J138: 34250 | K138: 9882 | L138: 34860 | N138: 2007-07-17 | AQ138: 2005-08-04 | AT138: 2005-04-08 | AU138: 17.75 | AV138: 16.85
C139: 2007-07-10 | D139: 306500 | J139: 32600 | K139: 9954 | L139: 32700 | N139: 2007-07-18 | AQ139: 2005-08-05 | AT139: 2005-04-13 | AU139: 17.75 | AV139: 16.85
C140: 2007-07-11 | D140: 276000 | J140: 33245 | K140: 10080 | L140: 33150 | N140: 2007-07-19 | Q140: 492500 | R140: 492500 | T140: 590 | U140: 337500 | AQ140: 2005-08-08 | AT140: 2005-04-15 | AU140: 17.75 | AV140: 16.85
C141: 2007-07-12 | D141: 272000 | J141: 33300 | K141: 10302 | L141: 33405 | N141: 2007-07-20 | Q141: 492500 | R141: 492500 | T141: 590 | U141: 337500 | AQ141: 2005-08-09 | AT141: 2005-04-20 | AU141: 17.15 | AV141: 16.5
C142: 2007-07-13 | D142: 268000 | J142: 32750 | K142: 10314 | L142: 32605 | N142: 2007-07-23 | Q142: 492500 | R142: 492500 | T142: 590 | U142: 337500 | AQ142: 2005-08-10 | AT142: 2005-04-23 | AU142: 16.95 | AV142: 16.5
C143: 2007-07-16 | D143: 264500 | J143: 32150 | K143: 10524 | L143: 31910 | N143: 2007-07-24 | Q143: 492500 | R143: 492500 | T143: 590 | U143: 337500 | AQ143: 2005-08-11 | AT143: 2005-04-27 | AU143: 16.95 | AV143: 16.5
C144: 2007-07-17 | D144: 262500 | J144: 32350 | K144: 10524 | L144: 31800 | N144: 2007-07-25 | Q144: 492500 | R144: 492500 | T144: 590 | U144: 337500 | AQ144: 2005-08-12 | AT144: 2005-04-29 | AU144: 16.95 | AV144: 16.5
C145: 2007-07-18 | D145: 262000 | J145: 33000 | K145: 10824 | L145: 32155 | N145: 2007-07-26 | Q145: 492500 | R145: 492500 | T145: 590 | U145: 337500 | AQ145: 2005-08-15 | AT145: 2005-05-04 | AU145: 16.175 | AV145: 15.875
C146: 2007-07-19 | D146: 262000 | J146: 34100 | K146: 10950 | L146: 33800 | N146: 2007-07-27 | Q146: 492500 | R146: 492500 | T146: 590 | U146: 337500 | AQ146: 2005-08-16 | AT146: 2005-05-06 | AU146: 16.175 | AV146: 15.875
C147: 2007-07-20 | D147: 263000 | J147: 34850 | K147: 11346 | L147: 34600 | N147: 2007-07-30 | Q147: 492500 | R147: 492500 | T147: 590 | U147: 337500 | AQ147: 2005-08-17 | AT147: 2005-05-11 | AU147: 15.5 | AV147: 15.25
C148: 2007-07-23 | D148: 269000 | J148: 33275 | K148: 11838 | L148: 34525 | N148: 2007-07-31 | Q148: 492500 | R148: 492500 | T148: 590 | U148: 337500 | AQ148: 2005-08-18 | AT148: 2005-05-13 | AU148: 15.175 | AV148: 14.975
C149: 2007-07-24 | D149: 269000 | J149: 32200 | K149: 12642 | L149: 32355 | N149: 2007-08-01 | Q149: 492500 | R149: 492500 | T149: 590 | U149: 337500 | AQ149: 2005-08-19 | AT149: 2005-05-18 | AU149: 15.6 | AV149: 14.975
C150: 2007-07-25 | D150: 269000 | J150: 31320 | K150: 12612 | L150: 31850 | N150: 2007-08-02 | Q150: 492500 | R150: 492500 | T150: 590 | U150: 337500 | AQ150: 2005-08-22 | AT150: 2005-05-20 | AU150: 15.6 | AV150: 14.75
C151: 2007-07-26 | D151: 268500 | J151: 31100 | K151: 13086 | L151: 31275 | N151: 2007-08-03 | Q151: 492500 | R151: 492500 | T151: 590 | U151: 337500 | AQ151: 2005-08-23 | AT151: 2005-05-25 | AU151: 15.6 | AV151: 14.75
C152: 2007-07-27 | D152: 274000 | J152: 30559 | K152: 13686 | L152: 30805 | N152: 2007-08-06 | Q152: 492500 | R152: 492500 | T152: 575 | U152: 337500 | AQ152: 2005-08-24 | AT152: 2005-05-27 | AU152: 15.6 | AV152: 14.75
C153: 2007-07-30 | D153: 279000 | J153: 30500 | K153: 14100 | L153: 30415 | N153: 2007-08-07 | Q153: 492500 | R153: 492500 | T153: 575 | U153: 337500 | AQ153: 2005-08-25 | AT153: 2005-06-01 | AU153: 15.6 | AV153: 14.675
C154: 2007-07-31 | D154: 279500 | J154: 31400 | K154: 13980 | L154: 31550 | N154: 2007-08-08 | Q154: 492500 | R154: 487500 | T154: 575 | U154: 337500 | AQ154: 2005-08-26 | AT154: 2005-06-03 | AU154: 15.6 | AV154: 14.675
C155: 2007-08-01 | D155: 285000 | J155: 30800 | K155: 14412 | L155: 30760 | N155: 2007-08-09 | Q155: 482500 | R155: 487500 | T155: 575 | U155: 337500 | AQ155: 2005-08-29 | AT155: 2005-06-08 | AU155: 15.05 | AV155: 14.125
C156: 2007-08-02 | D156: 283500 | J156: 29800 | K156: 14808 | L156: 30600 | N156: 2007-08-10 | Q156: 482500 | R156: 487500 | T156: 575 | U156: 337500 | AQ156: 2005-08-30 | AT156: 2005-06-10 | AU156: 14.75 | AV156: 13.85
C157: 2007-08-03 | D157: 279500 | J157: 29400 | K157: 15138 | L157: 29450 | N157: 2007-08-13 | Q157: 482500 | R157: 487500 | T157: 575 | U157: 332500 | AQ157: 2005-08-31 | AT157: 2005-06-15 | AU157: 14.1 | AV157: 13.35
C158: 2007-08-06 | D158: 274000 | J158: 29300 | K158: 15948 | L158: 29230 | N158: 2007-08-14 | Q158: 482500 | R158: 487500 | T158: 575 | U158: 332500 | AQ158: 2005-09-01 | AT158: 2005-06-17 | AU158: 13.8 | AV158: 12.825
C159: 2007-08-07 | D159: 269000 | J159: 29200 | K159: 16674 | L159: 29325 | N159: 2007-08-15 | Q159: 482500 | R159: 487500 | T159: 575 | U159: 332500 | AQ159: 2005-09-02 | AT159: 2005-06-22 | AU159: 13.1 | AV159: 12.35
C160: 2007-08-08 | D160: 267000 | J160: 28300 | K160: 17826 | L160: 28305 | N160: 2007-08-16 | Q160: 482500 | R160: 487500 | T160: 575 | U160: 332500 | AQ160: 2005-09-05 | AT160: 2005-06-24 | AU160: 13.1 | AV160: 12
C161: 2007-08-09 | D161: 257000 | J161: 27000 | K161: 18324 | L161: 26780 | N161: 2007-08-17 | Q161: 482500 | R161: 487500 | T161: 575 | U161: 332500 | AQ161: 2005-09-06 | AT161: 2005-06-29 | AU161: 13.2 | AV161: 11.9
C162: 2007-08-10 | D162: 249000 | J162: 26750 | K162: 18804 | L162: 25405 | N162: 2007-08-20 | Q162: 482500 | R162: 487500 | T162: 575 | U162: 332500 | AQ162: 2005-09-07 | AT162: 2005-07-01 | AU162: 13.2 | AV162: 11.9
C163: 2007-08-13 | D163: 248000 | J163: 27480 | K163: 19224 | L163: 26205 | N163: 2007-08-21 | Q163: 482500 | R163: 487500 | T163: 575 | U163: 332500 | AQ163: 2005-09-09 | AT163: 2005-07-06 | AU163: 13.3 | AV163: 11.9
C164: 2007-08-14 | D164: 250000 | J164: 27000 | K164: 19086 | L164: 27800 | N164: 2007-08-22 | Q164: 482500 | R164: 487500 | T164: 575 | U164: 332500 | AQ164: 2005-09-12 | AT164: 2005-07-08 | AU164: 13.45 | AV164: 11.975
C165: 2007-08-15 | D165: 249500 | J165: 26500 | K165: 19458 | L165: 26510 | N165: 2007-08-23 | Q165: 482500 | R165: 487500 | T165: 575 | U165: 332500 | AQ165: 2005-09-13 | AT165: 2005-07-13 | AU165: 13.45 | AV165: 12.075
C166: 2007-08-16 | D166: 248500 | J166: 25000 | K166: 19752 | L166: 25055 | N166: 2007-08-24 | Q166: 482500 | R166: 487500 | T166: 575 | U166: 332500 | AQ166: 2005-09-14 | AT166: 2005-07-15 | AU166: 13.65 | AV166: 12.075
C167: 2007-08-17 | D167: 242000 | J167: 26250 | K167: 20304 | L167: 25525 | N167: 2007-08-27 | Q167: 482500 | R167: 482500 | T167: 575 | U167: 332500 | AQ167: 2005-09-15 | AT167: 2005-07-20 | AU167: 13.65 | AV167: 12.225
C168: 2007-08-20 | D168: 240000 | J168: 26250 | K168: 20262 | L168: 26130 | N168: 2007-08-28 | Q168: 482500 | R168: 482500 | T168: 575 | U168: 332500 | AQ168: 2005-09-16 | AT168: 2005-07-22 | AU168: 13.725 | AV168: 12.3
C169: 2007-08-21 | D169: 240500 | J169: 27350 | K169: 20454 | L169: 26150 | N169: 2007-08-29 | Q169: 482500 | R169: 482500 | T169: 575 | U169: 332500 | AQ169: 2005-09-19 | AT169: 2005-07-27 | AU169: 13.8 | AV169: 12.45
C170: 2007-08-22 | D170: 245000 | J170: 28150 | K170: 20466 | L170: 27800 | N170: 2007-08-30 | Q170: 482500 | R170: 482500 | T170: 575 | U170: 332500 | AQ170: 2005-09-20 | AT170: 2005-07-29 | AU170: 14.35 | AV170: 13.1
C171: 2007-08-23 | D171: 254500 | J171: 28101 | K171: 21078 | L171: 28100 | N171: 2007-08-31 | Q171: 482500 | R171: 482500 | T171: 575 | U171: 332500 | AQ171: 2005-09-21 | AT171: 2005-08-03 | AU171: 14.75 | AV171: 13.2
C172: 2007-08-24 | D172: 259000 | J172: 28100 | K172: 21126 | L172: 26605 | N172: 2007-09-03 | Q172: 482500 | R172: 482500 | T172: 575 | U172: 332500 | AQ172: 2005-09-22 | AT172: 2005-08-05 | AU172: 15.5 | AV172: 13.6
C173: 2007-08-27 | D173: 256500 | N173: 2007-09-04 | Q173: 482500 | R173: 497500 | T173: 575 | U173: 350000 | AQ173: 2005-09-23 | AT173: 2005-08-10 | AU173: 15.75 | AV173: 13.85
C174: 2007-08-28 | D174: 256000 | J174: 27700 | K174: 23106 | L174: 27390 | N174: 2007-09-05 | Q174: 482500 | R174: 497500 | T174: 575 | U174: 350000 | AQ174: 2005-09-26 | AT174: 2005-08-12 | AU174: 16 | AV174: 13.95
C175: 2007-08-29 | D175: 251000 | J175: 27850 | K175: 23436 | L175: 27200 | N175: 2007-09-06 | Q175: 482500 | R175: 497500 | T175: 575 | U175: 350000 | AQ175: 2005-09-27 | AT175: 2005-08-17 | AU175: 16 | AV175: 13.95
C176: 2007-08-30 | D176: 248000 | J176: 28500 | K176: 23286 | L176: 27775 | N176: 2007-09-07 | Q176: 482500 | R176: 510000 | T176: 575 | U176: 350000 | AQ176: 2005-09-28 | AT176: 2005-08-19 | AU176: 16.25 | AV176: 13.95
C177: 2007-08-31 | D177: 251500 | J177: 29850 | K177: 24126 | L177: 30250 | N177: 2007-09-10 | Q177: 482500 | R177: 520000 | T177: 575 | U177: 350000 | AQ177: 2005-09-29 | AT177: 2005-08-24 | AU177: 16.5 | AV177: 14.15
C178: 2007-09-03 | D178: 258000 | J178: 29835 | K178: 24324 | L178: 29405 | N178: 2007-09-11 | Q178: 482500 | R178: 520000 | T178: 575 | U178: 350000 | AQ178: 2005-09-30 | AT178: 2005-08-26 | AU178: 16.5 | AV178: 14.15
C179: 2007-09-04 | D179: 257500 | J179: 28550 | K179: 24804 | L179: 28050 | N179: 2007-09-12 | Q179: 482500 | R179: 520000 | T179: 575 | U179: 350000 | AQ179: 2005-10-10 | AT179: 2005-08-31 | AU179: 16.5 | AV179: 14.15
C180: 2007-09-05 | D180: 252000 | J180: 27500 | K180: 25086 | L180: 27725 | N180: 2007-09-13 | Q180: 482500 | R180: 520000 | T180: 575 | U180: 350000 | AQ180: 2005-10-11 | AT180: 2005-09-02 | AU180: 16.5 | AV180: 14.15
C181: 2007-09-06 | D181: 248500 | J181: 27500 | K181: 25548 | L181: 26700 | N181: 2007-09-14 | Q181: 512500 | R181: 520000 | T181: 575 | U181: 350000 | AQ181: 2005-10-12 | AT181: 2005-09-07 | AU181: 16.5 | AV181: 14.15
C182: 2007-09-07 | D182: 247000 | J182: 27200 | K182: 25932 | L182: 27305 | N182: 2007-09-17 | Q182: 542500 | R182: 535000 | T182: 575 | U182: 350000 | AQ182: 2005-10-13 | AT182: 2005-09-09 | AU182: 16.5 | AV182: 14.15
C183: 2007-09-10 | D183: 248500 | J183: 26800 | K183: 26760 | L183: 26330 | N183: 2007-09-18 | Q183: 542500 | R183: 535000 | T183: 640 | U183: 385000 | AQ183: 2005-10-14 | AT183: 2005-09-14 | AU183: 16.5 | AV183: 14.15
C184: 2007-09-11 | D184: 248000 | J184: 27250 | K184: 27246 | L184: 26800 | N184: 2007-09-19 | Q184: 542500 | R184: 535000 | T184: 640 | U184: 385000 | AQ184: 2005-10-17 | AT184: 2005-09-16 | AU184: 16.25 | AV184: 14.15
C185: 2007-09-12 | D185: 251000 | J185: 27175 | K185: 27744 | L185: 27050 | N185: 2007-09-20 | Q185: 542500 | R185: 535000 | T185: 640 | U185: 385000 | AQ185: 2005-10-18 | AT185: 2005-09-21 | AU185: 16.25 | AV185: 14.15
C186: 2007-09-13 | D186: 252000 | J186: 28100 | K186: 28404 | L186: 27000 | N186: 2007-09-21 | Q186: 542500 | R186: 550000 | T186: 640 | U186: 385000 | AQ186: 2005-10-19 | AT186: 2005-09-23 | AU186: 16 | AV186: 14.15
C187: 2007-09-14 | D187: 256500 | J187: 28600 | K187: 29190 | L187: 28000 | N187: 2007-09-24 | Q187: 542500 | R187: 550000 | T187: 640 | U187: 385000 | AQ187: 2005-10-20 | AT187: 2005-09-28 | AU187: 16 | AV187: 14.15
C188: 2007-09-17 | D188: 261000 | J188: 29000 | K188: 29964 | L188: 28055 | N188: 2007-09-25 | Q188: 555000 | R188: 550000 | T188: 640 | U188: 385000 | AQ188: 2005-10-21 | AT188: 2005-09-30 | AU188: 15.75 | AV188: 13.875
C189: 2007-09-18 | D189: 267000 | J189: 30800 | K189: 29958 | L189: 29210 | N189: 2007-09-26 | Q189: 555000 | R189: 550000 | T189: 640 | U189: 385000 | AQ189: 2005-10-24 | AT189: 2005-10-05 | AU189: 15.5 | AV189: 13.725
C190: 2007-09-19 | D190: 273500 | J190: 31175 | K190: 29736 | L190: 32060 | N190: 2007-09-27 | Q190: 555000 | R190: 550000 | T190: 640 | U190: 385000 | AQ190: 2005-10-25 | AT190: 2005-10-07 | AU190: 15.05 | AV190: 13.575
C191: 2007-09-20 | D191: 286500 | J191: 32650 | K191: 29760 | L191: 32975 | N191: 2007-09-28 | Q191: 555000 | R191: 555000 | T191: 640 | U191: 385000 | AQ191: 2005-10-26 | AT191: 2005-10-12 | AU191: 15.05 | AV191: 13.575
C192: 2007-09-21 | D192: 282500 | J192: 32450 | K192: 29892 | L192: 32605 | N192: 2007-09-29 | Q192: 555000 | AQ192: 2005-10-27 | AT192: 2005-10-14 | AU192: 14.4 | AV192: 13.1
C193: 2007-09-24 | D193: 281000 | J193: 33150 | K193: 30660 | L193: 32655 | N193: 2007-09-30 | Q193: 555000 | AQ193: 2005-10-28 | AT193: 2005-10-19 | AU193: 13.25 | AV193: 12.45
C194: 2007-09-25 | D194: 288000 | J194: 32450 | K194: 30954 | L194: 32505 | N194: 2007-10-08 | Q194: 562500 | R194: 555000 | T194: 640 | U194: 385000 | AQ194: 2005-10-31 | AT194: 2005-10-21 | AU194: 13.25 | AV194: 12.25
C195: 2007-09-26 | D195: 284000 | J195: 32350 | K195: 31734 | L195: 32760 | N195: 2007-10-09 | Q195: 562500 | R195: 555000 | T195: 640 | U195: 385000 | AQ195: 2005-11-01 | AT195: 2005-10-26 | AU195: 13.25 | AV195: 12.25
C196: 2007-09-27 | D196: 281000 | J196: 31950 | K196: 32304 | L196: 32510 | N196: 2007-10-10 | Q196: 562500 | R196: 575000 | T196: 640 | U196: 405000 | AQ196: 2005-11-02 | AT196: 2005-10-28 | AU196: 13.25 | AV196: 12.25
C197: 2007-09-28 | D197: 274000 | J197: 30501 | K197: 35250 | L197: 30035 | N197: 2007-10-11 | Q197: 575000 | R197: 575000 | T197: 640 | U197: 405000 | AQ197: 2005-11-03 | AT197: 2005-11-02 | AU197: 13.25 | AV197: 12.15
C198: 2007-10-01 | J198: 30550 | N198: 2007-10-12 | Q198: 575000 | R198: 585000 | T198: 640 | U198: 405000 | AQ198: 2005-11-04 | AT198: 2005-11-04 | AU198: 13.25 | AV198: 12.15
C199: 2007-10-02 | J199: 31050 | N199: 2007-10-15 | Q199: 575000 | R199: 585000 | T199: 640 | U199: 405000 | AQ199: 2005-11-07 | AT199: 2005-11-09 | AU199: 13.25 | AV199: 11.95
C200: 2007-10-03 | J200: 31650 | N200: 2007-10-16 | Q200: 575000 | R200: 585000 | T200: 640 | U200: 405000 | AQ200: 2005-11-08 | AT200: 2005-11-11 | AU200: 12.8 | AV200: 11.625
C201: 2007-10-04 | J201: 30800 | N201: 2007-10-17 | Q201: 575000 | R201: 585000 | T201: 700 | U201: 405000 | AQ201: 2005-11-09 | AT201: 2005-11-16 | AU201: 12.8 | AV201: 11.625
... 2049 more rows

Sheet 碳酸二甲酯
B1: 返回首页
B3: 来源：Wind | C3: 工业级 | M3: CIAPS | N3: CIAPS
B4: 来源 | C4: 石大胜华 | D4: 东营海科 | E4: 铜陵金泰 | F4: 灵谷精细化工 | G4: 山东维尔斯 | H4: 华南地区 | I4: 华东地区 | J4: 华北地区 | K4: EC | N4: 电池级DMC（最高价） | O4: SMM电池级DMC（最高价） | DV4: ）
B5: 指标 | C5: 出厂价 | D5: 出厂价 | E5: 出厂价 | F5: 出厂价 | G5: 出厂价 | H5: 平均价 | I5: 平均价 | J5: 平均价 | K5: 最低价 | L5: 最高价 | M5: 平均价 | N5: 最高价 | O5: 最高价
B6: 单位 | C6: 元/吨 | D6: 元/吨 | E6: 元/吨 | F6: 元/吨 | G6: 元/吨 | H6: 元/吨 | I6: 元/吨 | J6: 元/吨 | K6: 元/吨 | L6: 元/吨 | M6: 元/吨 | N6: 元/吨 | O6: 万元/吨
B7: 2011-08-28 | H7: 7000 | I7: 7400 | J7: 7300
B8: 2011-09-04 | H8: 6880 | I8: 7320 | J8: 7300
B9: 2011-09-11 | H9: 6950 | I9: 7300 | J9: 7300
B10: 2011-09-18 | H10: 7000 | I10: 7300 | J10: 7300
B11: 2011-09-25 | H11: 7000 | I11: 7340 | J11: 7300
B12: 2011-10-02 | H12: 7000 | I12: 7400 | J12: 7300
B13: 2011-10-16 | H13: 7000 | I13: 7400 | J13: 7300
B14: 2011-10-23 | H14: 6940 | I14: 7300 | J14: 7260 | N14: 10.35 | AJ14: 46.5 | AK14: 46.5 | AP14: =MEDIAN(VLOOKUP(锂电材料价格变化汇总表!B14,正极材料价格!#REF!,4,FALSE),VLOOKUP(锂电材料价格变化汇总表!B14,正极材料价格!#REF!,7,FALSE),VLOOKUP(锂电材料价格变化汇总表!B14,正极材料价格!#REF!,10,FALSE),VLOOKUP(锂电材料价格变化汇总表!B14,正极材料价格!#REF!,13,FALSE),VLOOKUP(锂电材料价格变化汇总表!B14,正极材料价格!#REF!,16,FALSE),VLOOKUP(锂电材料价格变化汇总表!B14,正极材料价格!#REF!,19,FALSE),VLOOKUP(锂电材料价格变化汇总表!B14,正极材料价格!#REF!,22,FALSE),VLOOKUP(锂电材料价格变化汇总表!B14,正极材料价格!#REF!,25,FALSE))/10000 ->  | AU14: 4.25 | AZ14: 3
B15: 2018-03-16 | H15: 6620 | I15: 7020 | J15: 7020 | AP15: =MEDIAN(VLOOKUP(锂电材料价格变化汇总表!B15,正极材料价格!#REF!,4,FALSE),VLOOKUP(锂电材料价格变化汇总表!B15,正极材料价格!#REF!,7,FALSE),VLOOKUP(锂电材料价格变化汇总表!B15,正极材料价格!#REF!,10,FALSE),VLOOKUP(锂电材料价格变化汇总表!B15,正极材料价格!#REF!,13,FALSE),VLOOKUP(锂电材料价格变化汇总表!B15,正极材料价格!#REF!,16,FALSE),VLOOKUP(锂电材料价格变化汇总表!B15,正极材料价格!#REF!,19,FALSE),VLOOKUP(锂电材料价格变化汇总表!B15,正极材料价格!#REF!,22,FALSE),VLOOKUP(锂电材料价格变化汇总表!B15,正极材料价格!#REF!,25,FALSE))/10000 ->  | AZ15: 3
B16: 2018-03-19 | H16: 6400 | I16: 6920 | J16: 6920 | AK16: =IF(VLOOKUP(锂电材料价格变化汇总表!B16,正极材料价格!$B$473:$B$4534,16,FALSE)/10000=0,"",VLOOKUP(锂电材料价格变化汇总表!B16,正极材料价格!$B$473:$B$4534,16,FALSE)/10000) ->  | AP16: =MEDIAN(VLOOKUP(锂电材料价格变化汇总表!B16,正极材料价格!#REF!,4,FALSE),VLOOKUP(锂电材料价格变化汇总表!B16,正极材料价格!#REF!,7,FALSE),VLOOKUP(锂电材料价格变化汇总表!B16,正极材料价格!#REF!,10,FALSE),VLOOKUP(锂电材料价格变化汇总表!B16,正极材料价格!#REF!,13,FALSE),VLOOKUP(锂电材料价格变化汇总表!B16,正极材料价格!#REF!,16,FALSE),VLOOKUP(锂电材料价格变化汇总表!B16,正极材料价格!#REF!,19,FALSE),VLOOKUP(锂电材料价格变化汇总表!B16,正极材料价格!#REF!,22,FALSE),VLOOKUP(锂电材料价格变化汇总表!B16,正极材料价格!#REF!,25,FALSE))/10000 ->  | AZ16: 3
B17: 2018-03-20 | H17: 6360 | I17: 6820 | J17: 6860 | AP17: =MEDIAN(VLOOKUP(锂电材料价格变化汇总表!B17,正极材料价格!#REF!,4,FALSE),VLOOKUP(锂电材料价格变化汇总表!B17,正极材料价格!#REF!,7,FALSE),VLOOKUP(锂电材料价格变化汇总表!B17,正极材料价格!#REF!,10,FALSE),VLOOKUP(锂电材料价格变化汇总表!B17,正极材料价格!#REF!,13,FALSE),VLOOKUP(锂电材料价格变化汇总表!B17,正极材料价格!#REF!,16,FALSE),VLOOKUP(锂电材料价格变化汇总表!B17,正极材料价格!#REF!,19,FALSE),VLOOKUP(锂电材料价格变化汇总表!B17,正极材料价格!#REF!,22,FALSE),VLOOKUP(锂电材料价格变化汇总表!B17,正极材料价格!#REF!,25,FALSE))/10000 ->  | AZ17: 3
B18: 2018-03-21 | H18: 6000 | I18: 6700 | J18: 6700 | S18: =IF(VLOOKUP(锂电材料价格变化汇总表!B18,前驱体价格!$G$4:$S$2480,13,FALSE)/10=0,"",VLOOKUP(锂电材料价格变化汇总表!B18,前驱体价格!$G$4:$S$2480,13,FALSE)/10) -> 47.2 | AP18: =MEDIAN(VLOOKUP(锂电材料价格变化汇总表!B18,正极材料价格!#REF!,4,FALSE),VLOOKUP(锂电材料价格变化汇总表!B18,正极材料价格!#REF!,7,FALSE),VLOOKUP(锂电材料价格变化汇总表!B18,正极材料价格!#REF!,10,FALSE),VLOOKUP(锂电材料价格变化汇总表!B18,正极材料价格!#REF!,13,FALSE),VLOOKUP(锂电材料价格变化汇总表!B18,正极材料价格!#REF!,16,FALSE),VLOOKUP(锂电材料价格变化汇总表!B18,正极材料价格!#REF!,19,FALSE),VLOOKUP(锂电材料价格变化汇总表!B18,正极材料价格!#REF!,22,FALSE),VLOOKUP(锂电材料价格变化汇总表!B18,正极材料价格!#REF!,25,FALSE))/10000 ->  | AZ18: 3
B19: 2018-03-22 | H19: 6000 | I19: 6700 | J19: 6425 | S19: =IF(VLOOKUP(锂电材料价格变化汇总表!B19,前驱体价格!$G$4:$S$2480,13,FALSE)/10=0,"",VLOOKUP(锂电材料价格变化汇总表!B19,前驱体价格!$G$4:$S$2480,13,FALSE)/10) -> 47.2 | AP19: 8.5 | AZ19: 3
B20: 2011-12-04 | H20: 5800 | I20: 6300 | J20: 6300 | S20: =IF(ISNUMBER(S19),S19/S14-1,S18/S14-1) ->  | AZ20: =IF(ISNUMBER(AZ19),AZ19/AZ14-1,AZ18/AZ14-1) -> 0
B21: 2011-12-11 | H21: 5780 | I21: 6240 | J21: 6220 | BD21: =BD19/BD12-1 ->  | BE21: =BE19/BE12-1 ->  | BF21: =BF19/BF12-1 -> 
B22: 2011-12-18 | H22: 5640 | I22: 6000 | J22: 6200 | AP22: =AP19/AP10-1 ->  | AQ22: =AQ19/AQ10-1 -> 
B23: 2011-12-19 | C23: 5750 | D23: 5700 | E23: 5850 | G23: 5750
B24: 2011-12-20 | C24: 5750 | D24: 5700 | E24: 5850 | G24: 5750
B25: 2011-12-21 | C25: 5750 | D25: 5700 | E25: 5750 | G25: 5750
B26: 2011-12-22 | C26: 5750 | D26: 5700 | E26: 5750 | G26: 5750
B27: 2011-12-23 | C27: 5750 | D27: 5700 | E27: 5750 | G27: 5750
B28: 2011-12-25 | H28: 5600 | I28: 5920 | J28: 6040
B29: 2011-12-26 | C29: 5750 | D29: 5700 | E29: 5750 | G29: 5750
B30: 2011-12-27 | C30: 5750 | D30: 5700 | E30: 5750 | G30: 5750
B31: 2011-12-28 | C31: 5750 | D31: 5700 | E31: 5750 | G31: 5750
B32: 2011-12-29 | C32: 5650 | D32: 5650 | E32: 5700 | G32: 5650
B33: 2011-12-30 | C33: 5650 | D33: 5650 | E33: 5700 | G33: 5650
B34: 2011-12-31 | C34: 5650 | D34: 5650 | E34: 5700 | G34: 5650
B35: 2012-01-01 | H35: 5450 | I35: 5800 | J35: 5900
B36: 2012-01-04 | C36: 5700 | D36: 5700 | E36: 5750 | G36: 5700
B37: 2012-01-05 | C37: 5700 | D37: 5700 | E37: 5750 | G37: 5700
B38: 2012-01-06 | C38: 5700 | D38: 5700 | E38: 5750 | G38: 5700
B39: 2012-01-08 | H39: 5480 | I39: 5880 | J39: 5940
B40: 2012-01-09 | C40: 5700 | D40: 5700 | E40: 5750 | G40: 5700
B41: 2012-01-10 | C41: 5750 | D41: 5700 | E41: 5750 | G41: 5750
B42: 2012-01-11 | C42: 5800 | D42: 5700 | E42: 5750 | G42: 5800
B43: 2012-01-12 | C43: 5800 | D43: 5700 | E43: 5750 | G43: 5800
B44: 2012-01-13 | C44: 5850 | D44: 5750 | E44: 5850 | G44: 5900
B45: 2012-01-15 | H45: 5600 | I45: 6000 | J45: 6000
B46: 2012-01-16 | C46: 5850 | D46: 5750 | E46: 5850 | G46: 6000
B47: 2012-01-17 | C47: 6000 | D47: 5850 | E47: 5900 | G47: 6000
B48: 2012-01-18 | C48: 6000 | D48: 5850 | E48: 5900 | G48: 6000
B49: 2012-01-19 | C49: 6000 | D49: 5850 | E49: 5900 | G49: 6000
B50: 2012-01-20 | C50: 6000 | D50: 5850 | E50: 5900 | G50: 6000
B51: 2012-01-29 | C51: 6000 | D51: 5850 | E51: 5900 | G51: 6000 | H51: 6000 | I51: 6133 | J51: 6367
B52: 2012-01-30 | C52: 6100 | D52: 6050 | E52: 5900 | G52: 6050
B53: 2012-01-31 | C53: 6100 | D53: 6050 | E53: 6100 | G53: 6050
B54: 2012-02-01 | C54: 6150 | D54: 6150 | E54: 6150 | G54: 6150
B55: 2012-02-02 | C55: 6150 | D55: 6150 | E55: 6150 | G55: 6150
B56: 2012-02-03 | C56: 6150 | D56: 6150 | E56: 6150 | G56: 6150
B57: 2012-02-05 | H57: 6200 | I57: 6520 | J57: 6580
B58: 2012-02-06 | C58: 6200 | D58: 6250 | E58: 6150 | G58: 6200
B59: 2012-02-07 | C59: 6200 | D59: 6250 | E59: 6150 | G59: 6200
B60: 2012-02-08 | C60: 6200 | D60: 6250 | E60: 6150 | G60: 6200
B61: 2012-02-09 | C61: 6200 | D61: 6250 | E61: 6150 | G61: 6200
B62: 2012-02-10 | C62: 6200 | D62: 6250 | E62: 6150 | G62: 6200
B63: 2012-02-12 | C63: 6100 | D63: 6250 | E63: 6100 | G63: 6150 | H63: 6120 | I63: 6420 | J63: 6400
B64: 2012-02-13 | C64: 6100 | D64: 6250 | E64: 6100 | G64: 6150
B65: 2012-02-14 | C65: 6100 | D65: 6250 | E65: 6100 | G65: 6150
B66: 2012-02-15 | C66: 6050 | D66: 6250 | E66: 6100 | G66: 6100
B67: 2012-02-16 | C67: 6050 | D67: 6250 | E67: 6100 | G67: 6100
B68: 2012-02-17 | C68: 5950 | D68: 6050 | E68: 6000 | G68: 6050
B69: 2012-02-19 | H69: 5800 | I69: 6200 | J69: 6300
B70: 2012-02-20 | C70: 5950 | D70: 5950 | E70: 5900 | G70: 5950
B71: 2012-02-21 | C71: 5900 | D71: 5900 | E71: 5900 | G71: 5900
B72: 2012-02-22 | C72: 5900 | D72: 5900 | E72: 5900 | G72: 5900
B73: 2012-02-23 | C73: 5850 | D73: 5850 | E73: 5850 | G73: 5850
B74: 2012-02-24 | C74: 5850 | D74: 5850 | E74: 5850 | G74: 5850
B75: 2012-02-26 | H75: 5680 | I75: 6340 | J75: 6180
B76: 2012-02-27 | C76: 5900 | D76: 6050 | E76: 5900 | G76: 5900
B77: 2012-02-28 | C77: 5900 | D77: 6050 | E77: 5900 | G77: 5900
B78: 2012-02-29 | C78: 5900 | D78: 6050 | E78: 5900 | G78: 5900
B79: 2012-03-01 | C79: 5900 | D79: 6050 | E79: 5900 | G79: 5900
B80: 【东吴电新】锂电材料价格每日涨跌（20180322） | C80: 5900 | D80: 6050 | E80: 5900 | G80: 5900
B81: 2012-03-04 | H81: 5700 | I81: 6400 | J81: 6200
B82: 2012-03-05 | C82: 43175 | D82: 43178 | E82: 43179 | F82: 43180 | G82: 43181 | Q82: 43178 | R82: 43179 | S82: 43180
B83: 2012-03-06 | H83: =G83/F83-1 -> 
B84: 2012-03-07 | H84: =G84/F84-1 -> 
B85: 2012-03-08
B86: 2012-03-09
B87: 2012-03-11 | I87: 6240 | J87: 6040
B88: 2012-03-12 | C88: 6620 | D88: 6400 | E88: 6360 | F88: 6000 | G88: 6000 | Q88: 6400 | R88: 6360 | S88: 6000
B89: 2012-03-13 | C89: 7020 | D89: 6920 | E89: 6820 | F89: 6700 | G89: 6700 | Q89: 6920 | R89: 6820 | S89: 6700
B90: 2012-03-14 | C90: 7020 | D90: 6920 | E90: 6860 | F90: 6700 | G90: 6425 | Q90: 6920 | R90: 6860 | S90: 6700
B91: 2012-03-15
B92: 2012-03-16
B93: 2012-03-18 | H93: 5520 | I93: 6120 | J93: 5880
B94: 2012-03-19
B95: 2012-03-20
B96: 2012-03-21
B97: 2012-03-22
B98: 2012-03-23 | F98: 15.7 | G98: 15.7 | H98: =G98/F98-1 -> 0 | S98: 15.7
B99: 2012-03-25 | H99: 5400 | I99: 5833 | J99: 5700
B100: 2012-03-26
B101: 2012-03-27 | E101: 15 | R101: 15
B102: 2012-03-28 | C102: 16 | D102: 16 | E102: 16 | F102: 16 | G102: 16 | Q102: 16 | R102: 16 | S102: 16
B103: 2012-03-29
B104: 2012-03-30 | H104: =G104/F104-1 -> 
B105: 2012-03-31 | H105: =G105/F105-1 -> 
B106: 2012-04-01 | G106: 48.5 | H106: =G106/F106-1 ->  | I106: 5750 | J106: 5700
B107: 2012-04-05
B108: 2012-04-06
B109: 2012-04-08 | H109: =G109/F109-1 ->  | I109: 9% | J109: 0
B110: 2012-04-09
B111: 2012-04-10
B112: 2012-04-11
B113: 2012-04-12
B114: 2012-04-13
B115: 2012-04-15 | H115: 5400 | I115: 5700 | J115: 5700
B116: 2012-04-16 | D116: 50.5 | Q116: 50.5
B117: 2012-04-17
B118: 2012-04-18
B119: 2012-04-19
B120: 2012-04-20
B121: 2012-04-22 | H121: 5400 | I121: 5700 | J121: 5700
B122: 2012-04-23
B123: 2012-04-24
B124: 2012-04-25
B125: 2012-04-26
B126: 2012-04-27
B127: 2012-04-28
B128: 2012-04-29 | H128: 5400 | I128: 5700 | J128: 5700
B129: 2012-05-02 | C129: 5600 | D129: 5600 | E129: 5700 | G129: 5600
B130: 2012-05-03 | C130: 5600 | D130: 5600
B131: 2012-05-04 | C131: 5600 | D131: 5600 | E131: 5700 | G131: 5600 | Q131: 3 | R131: 3 | S131: 3
B132: 2012-05-06 | H132: 5400 | I132: 5700 | J132: 5700
B133: 2012-05-07 | C133: 5600 | D133: 5600 | E133: 5700 | G133: 5600
B134: 2012-05-08 | C134: 5600 | D134: 5550 | E134: 5700 | G134: 5600
B135: 2012-05-09 | C135: 5600 | D135: 5550 | E135: 5700 | G135: 5600
B136: 2012-05-10 | C136: 5500 | D136: 5500 | E136: 5500 | G136: 5500
B137: 2012-05-11 | C137: 5500 | D137: 5500 | E137: 5500 | G137: 5500
B138: 2012-05-13 | H138: 5360 | I138: 5700 | J138: 5600
B139: 2012-05-14 | C139: 5500 | D139: 5500 | E139: 5500 | G139: 5500
B140: 2012-05-15 | C140: 5450 | D140: 5450 | E140: 5450 | G140: 5450
B141: 2012-05-16 | C141: 5350 | D141: 5300 | E141: 5450 | G141: 5350
B142: 2012-05-17 | C142: 5250 | D142: 5250 | E142: 5450 | G142: 5250
B143: 2012-05-18 | C143: 5250 | D143: 5250 | E143: 5450 | G143: 5250
B144: 2012-05-20 | H144: 4980 | I144: 5500 | J144: 5380
B145: 2012-05-21 | C145: 5250 | D145: 5250 | E145: 5450 | G145: 5250
B146: 2012-05-22 | C146: 5150 | D146: 5150 | E146: 5400 | G146: 5150
B147: 2012-05-23 | C147: 5100 | D147: 5100 | E147: 5400 | G147: 5100
B148: 2012-05-24 | C148: 5000 | D148: 5000 | E148: 5400 | G148: 5000
B149: 2012-05-25 | C149: 5000 | D149: 5000 | G149: 5000
B150: 2012-05-27 | H150: 4760 | I150: 5340 | J150: 5160
B151: 2012-05-28 | C151: 4950 | D151: 4950 | G151: 4950
B152: 2012-05-29 | C152: 4900 | D152: 4900 | G152: 4900
B153: 2012-05-30 | C153: 4800 | D153: 4800 | G153: 4800
B154: 2012-05-31 | C154: 4750 | D154: 4750 | G154: 4750
B155: 2012-06-01 | C155: 4750 | D155: 4750 | G155: 4750
B156: 2012-06-03 | H156: 4600 | I156: 5100 | J156: 5110
B157: 2012-06-04 | C157: 4750 | D157: 4750 | G157: 4750
B158: 2012-06-05 | C158: 4650 | D158: 4650 | G158: 4650
B159: 2012-06-06 | C159: 4650 | D159: 4650 | G159: 4650
B160: 2012-06-07 | C160: 4650 | D160: 4650 | G160: 4650
B161: 2012-06-08 | C161: 4650 | D161: 4675 | G161: 4650
B162: 2012-06-10 | H162: 4600 | I162: 5100 | J162: 4875
B163: 2012-06-11 | C163: 4650 | D163: 4650 | G163: 4650
B164: 2012-06-12 | C164: 4650 | D164: 4650 | G164: 4650
B165: 2012-06-14 | C165: 4650 | D165: 4650 | E165: 4650 | G165: 4650
B166: 2012-06-15 | C166: 4650 | D166: 4650 | E166: 4650 | G166: 4650
B167: 2012-06-17 | H167: 4750 | I167: 5000 | J167: 4900
B168: 2012-06-18 | C168: 4650 | D168: 4675 | E168: 4700 | G168: 4800
B169: 2012-06-19 | C169: 4800 | D169: 4850 | E169: 4800 | G169: 4900
B170: 2012-06-20 | D170: 4850 | E170: 4800 | G170: 4900
B171: 2012-06-21 | D171: 4900 | E171: 4850 | G171: 4900
B172: 2012-06-22 | D172: 4900 | E172: 4850 | G172: 4900
B173: 2012-06-24 | H173: 4900 | I173: 5000 | J173: 5060
B174: 2012-06-25 | D174: 4900 | E174: 4850 | G174: 4900
B175: 2012-06-26 | D175: 4900 | E175: 4850 | G175: 4900
B176: 2012-06-27 | D176: 4900 | E176: 4900 | G176: 4900
B177: 2012-06-28 | D177: 4900 | E177: 4900 | G177: 4900
B178: 2012-06-29 | D178: 4900 | E178: 4900 | G178: 4900
B179: 2012-07-01 | H179: 4900 | I179: 5000 | J179: 5100
B180: 2012-07-02 | D180: 4900 | E180: 4900 | G180: 4900
B181: 2012-07-03 | C181: 5000 | D181: 4900 | E181: 4900 | G181: 4900
B182: 2012-07-04 | C182: 5000 | D182: 4900 | E182: 4900 | G182: 4900
B183: 2012-07-05 | C183: 5100 | D183: 5000 | E183: 5000 | G183: 5000
B184: 2012-07-06 | C184: 5300 | D184: 5050 | E184: 5150 | G184: 5050
B185: 2012-07-08 | H185: 4960 | I185: 5180 | J185: 5340
B186: 2012-07-09 | C186: 5300 | D186: 5150 | E186: 5150 | G186: 5150
B187: 2012-07-10 | C187: 5300 | D187: 5150 | E187: 5150 | G187: 5150
B188: 2012-07-11 | C188: 5300 | D188: 5150 | E188: 5350 | G188: 5150
B189: 2012-07-12 | C189: 5400 | D189: 5250 | E189: 5350 | G189: 5250
B190: 2012-07-13 | C190: 5400 | D190: 5250 | E190: 5350 | G190: 5250
B191: 2012-07-15 | H191: 5100 | I191: 5340 | J191: 5500
B192: 2012-07-16 | C192: 5450 | D192: 5350 | E192: 5450 | G192: 5350
B193: 2012-07-17 | C193: 5450 | D193: 5450 | E193: 5450 | G193: 5400
B194: 2012-07-18 | C194: 5450 | D194: 5450 | E194: 5450 | G194: 5400
B195: 2012-07-19 | C195: 5450 | D195: 5450 | E195: 5450 | G195: 5400
B196: 2012-07-20 | C196: 5450 | D196: 5450 | E196: 5450 | G196: 5400
B197: 2012-07-22 | H197: 5100 | I197: 5500 | J197: 5500
B198: 2012-07-23 | C198: 5450 | D198: 5450 | E198: 5450 | G198: 5400
B199: 2012-07-24 | C199: 5425 | D199: 5400 | E199: 5450 | G199: 5400
B200: 2012-07-25 | C200: 5425 | D200: 5400 | E200: 5400 | G200: 5400
B201: 2012-07-26 | C201: 5425 | D201: 5400 | E201: 5400 | G201: 5400
... 3151 more rows

Sheet 锂电池价格
B4: SMM | C4: 523方形动力 | D4: 523软包动力 | E4: 方形铁锂动力 | F4: 18650圆柱2500mAh
B5: 2021-01-08 | C5: 0.57 | D5: 0.595 | E5: 0.445 | F5: 5.6
B6: 2021-01-15 | C6: 0.57 | D6: 0.6 | E6: 0.445 | F6: 5.6
B7: 2021-01-22 | C7: 0.57 | D7: 0.6 | E7: 0.445 | F7: 5.6
B8: 2021-01-29 | C8: 0.57 | D8: 0.6 | E8: 0.455 | F8: 5.6
B9: 2021-02-05 | C9: 0.57 | D9: 0.6 | E9: 0.46 | F9: 5.6
B10: 2021-02-19 | C10: 0.605 | D10: 0.635 | E10: 0.465 | F10: 6
B11: 2021-02-26 | C11: 0.615 | D11: 0.645 | E11: 0.465 | F11: 6
B12: 2021-03-05 | C12: 0.615 | D12: 0.645 | E12: 0.48 | F12: 6.5
B13: 2021-03-12 | C13: 0.615 | D13: 0.645 | E13: 0.49 | F13: 6.5
B14: 2021-03-19 | C14: 0.615 | D14: 0.645 | E14: 0.49 | F14: 6.5
B15: 2021-03-26 | C15: 0.615 | D15: 0.645 | E15: 0.49 | F15: 6.5
B16: 2021-04-02 | C16: 0.635 | D16: 0.665 | E16: 0.5 | F16: 6.5
B17: 2021-04-09 | C17: 0.635 | D17: 0.665 | E17: 0.5 | F17: 6.5
B18: 2021-04-16 | C18: 0.635 | D18: 0.665 | E18: 0.5 | F18: 6.5
B19: 2021-04-23 | C19: 0.635 | D19: 0.665 | E19: 0.5 | F19: 6.5
B20: 2021-04-30 | C20: 0.635 | D20: 0.665 | E20: 0.5 | F20: 6.5
B21: 2021-05-07 | C21: 0.635 | D21: 0.665 | E21: 0.5 | F21: 6.5
B22: 2021-05-14 | C22: 0.635 | D22: 0.665 | E22: 0.5 | F22: 6.5
B23: 2021-05-21 | C23: 0.635 | D23: 0.665 | E23: 0.5 | F23: 6.6
B24: 2021-05-24 | C24: 0.635 | D24: 0.665 | E24: 0.5 | F24: 6.6
B25: 2021-05-26 | C25: 0.635 | D25: 0.665 | E25: 0.5 | F25: 6.6
B26: 2021-05-28 | C26: 0.635 | D26: 0.665 | E26: 0.5 | F26: 6.6
B27: 2021-06-04 | C27: 0.635 | D27: 0.665 | E27: 0.5 | F27: 6.6
B28: 2021-06-11 | C28: 0.635 | D28: 0.665 | E28: 0.5 | F28: 6.6
B29: 2021-06-18 | C29: 0.635 | D29: 0.665 | E29: 0.5 | F29: 6.6
B30: 2021-06-25 | C30: 0.635 | D30: 0.665 | E30: 0.5 | F30: 6.6
B31: 2021-07-02 | C31: 0.635 | D31: 0.665 | E31: 0.5 | F31: 6.6
B32: 2021-07-09 | C32: 0.635 | D32: 0.665 | E32: 0.5 | F32: 6.6
B33: 2021-07-16 | C33: 0.635 | D33: 0.665 | E33: 0.5 | F33: 6.6
B34: 2021-07-23 | C34: 0.645 | D34: 0.675 | E34: 0.51 | F34: 6.7
B35: 2021-07-30 | C35: 0.645 | D35: 0.675 | E35: 0.51 | F35: 6.7
B36: 2021-08-06 | C36: 0.655 | D36: 0.685 | E36: 0.52 | F36: 6.8
B37: 2021-08-13 | C37: 0.665 | D37: 0.695 | E37: 0.53 | F37: 6.9
B38: 2021-08-20 | C38: 0.665 | D38: 0.695 | E38: 0.53 | F38: 6.9
B39: 2021-08-27 | C39: 0.675 | D39: 0.705 | E39: 0.54 | F39: 7
B40: 2021-09-03 | C40: 0.685 | D40: 0.715 | E40: 0.55 | F40: 7.1
B41: 2021-09-10 | C41: 0.695 | D41: 0.725 | E41: 0.56 | F41: 7.2
B42: 2021-09-17 | C42: 0.695 | D42: 0.725 | E42: 0.56 | F42: 7.2
B43: 2021-09-24 | C43: 0.705 | D43: 0.74 | E43: 0.57 | F43: 7.3
B44: 2021-09-30 | C44: 0.725 | D44: 0.76 | E44: 0.59 | F44: 7.5
B45: 2021-10-08 | C45: 0.725 | D45: 0.76 | E45: 0.59 | F45: 7.5
B46: 2021-10-15 | C46: 0.735 | D46: 0.77 | E46: 0.6 | F46: 7.6
B47: 2021-10-22 | C47: 0.745 | D47: 0.78 | E47: 0.61 | F47: 7.7
B48: 2021-10-29 | C48: 0.755 | D48: 0.79 | E48: 0.62 | F48: 7.8
B49: 2021-11-05 | C49: 0.765 | D49: 0.8 | E49: 0.63 | F49: 7.9
B50: 2021-11-12 | C50: 0.775 | D50: 0.81 | E50: 0.64 | F50: 8
B51: 2021-11-19 | C51: 0.785 | D51: 0.82 | E51: 0.65 | F51: 8.1
B52: 2021-11-26 | C52: 0.795 | D52: 0.83 | E52: 0.66 | F52: 8.2
B53: 2021-12-03 | C53: 0.805 | D53: 0.84 | E53: 0.67 | F53: 8.3
B54: 2021-12-10 | C54: 0.815 | D54: 0.85 | E54: 0.68 | F54: 8.4
B55: 2021-12-17 | C55: 0.825 | D55: 0.86 | E55: 0.7 | F55: 8.5
B56: 2021-12-24 | C56: 0.835 | D56: 0.87 | E56: 0.72 | F56: 8.6
B57: 2021-12-31 | C57: 0.845 | D57: 0.88 | E57: 0.74 | F57: 8.65
B58: 2022-01-04 | C58: 0.855 | D58: 0.89 | E58: 0.75 | F58: 8.75
B59: 2022-01-05 | C59: 0.855 | D59: 0.89 | E59: 0.75 | F59: 8.75
B60: 2022-01-06 | C60: 0.855 | D60: 0.89 | E60: 0.75 | F60: 8.75
B61: 2022-01-07 | C61: 0.855 | D61: 0.89 | E61: 0.75 | F61: 8.75
B62: 2022-01-14 | C62: 0.865 | D62: 0.9 | E62: 0.76 | F62: 8.85
B63: 2022-01-21 | C63: 0.875 | D63: 0.91 | E63: 0.77 | F63: 8.95
B64: 2022-01-28 | C64: 0.885 | D64: 0.92 | E64: 0.78 | F64: 8.95
B65: 2022-02-11 | C65: 0.92 | D65: 0.955 | E65: 0.82 | F65: 9.25
B66: 2022-02-18 | C66: 0.95 | D66: 0.985 | E66: 0.85 | F66: 9.45
B67: 2022-02-25 | C67: 0.975 | D67: 1.01 | E67: 0.875 | F67: 9.65
B68: 2022-03-04 | C68: 1 | D68: 1.035 | E68: 0.905 | F68: 9.85
B69: 2022-03-11 | C69: 1.04 | D69: 1.08 | E69: 0.945 | F69: 10.2
B70: 2022-03-18 | C70: 1.065 | D70: 1.11 | E70: 0.965 | F70: 10.5
B71: 2022-03-25 | C71: 1.085 | D71: 1.13 | E71: 0.98 | F71: 10.7
B72: 2022-04-01 | C72: 1.095 | D72: 1.14 | E72: 0.99 | F72: 10.7
B73: 2022-04-06 | C73: 1.095 | D73: 1.14 | E73: 0.99 | F73: 10.7
B74: 2022-04-07 | C74: 1.095 | D74: 1.14 | E74: 0.99 | F74: 10.7
B75: 2022-04-08 | C75: 1.095 | D75: 1.14 | E75: 0.99 | F75: 10.7
B76: 2022-04-11 | C76: 1.095 | D76: 1.14 | E76: 0.99 | F76: 10.7
B77: 2022-04-12 | C77: 1.095 | D77: 1.14 | E77: 0.99 | F77: 10.7
B78: 2022-04-13 | C78: 1.095 | D78: 1.14 | E78: 0.99 | F78: 10.7
B79: 2022-04-14 | C79: 1.095 | D79: 1.14 | E79: 0.99 | F79: 10.7
B80: 2022-04-15 | C80: 1.095 | D80: 1.14 | E80: 0.99 | F80: 10.7
B81: 2022-04-18 | C81: 1.095 | D81: 1.14 | E81: 0.99 | F81: 10.7
B82: 2022-04-19 | C82: 1.095 | D82: 1.14 | E82: 0.99 | F82: 10.7
B83: 2022-04-20 | C83: 1.095 | D83: 1.14 | E83: 0.99 | F83: 10.7
B84: 2022-04-21 | C84: 1.095 | D84: 1.14 | E84: 0.99 | F84: 10.7
B85: 2022-04-22 | C85: 1.095 | D85: 1.14 | E85: 0.99 | F85: 10.7
B86: 2022-04-25 | C86: 1.095 | D86: 1.14 | E86: 0.99 | F86: 10.7
B87: 2022-04-26 | C87: 1.095 | D87: 1.14 | E87: 0.99 | F87: 10.7
B88: 2022-04-27 | C88: 1.095 | D88: 1.14 | E88: 0.99 | F88: 10.7
B89: 2022-04-28 | C89: 1.095 | D89: 1.14 | E89: 0.99 | F89: 10.7
B90: 2022-04-29 | C90: 1.095 | D90: 1.14 | E90: 0.99 | F90: 10.7
B91: 2022-05-05 | C91: 1.095 | D91: 1.14 | E91: 0.99 | F91: 10.7
B92: 2022-05-06 | C92: 1.095 | D92: 1.14 | E92: 0.99 | F92: 10.7
B93: 2022-05-09 | C93: 1.095 | D93: 1.14 | E93: 0.99 | F93: 10.7
B94: 2022-05-10 | C94: 1.095 | D94: 1.14 | E94: 0.99 | F94: 10.7
B95: 2022-05-11 | C95: 1.095 | D95: 1.14 | E95: 0.99 | F95: 10.7
B96: 2022-05-12 | C96: 1.095 | D96: 1.14 | E96: 0.99 | F96: 10.7
B97: 2022-05-13 | C97: 1.095 | D97: 1.14 | E97: 0.99 | F97: 10.7
B98: 2022-05-16 | C98: 1.095 | D98: 1.14 | E98: 0.99 | F98: 10.7
B99: 2022-05-17 | C99: 1.095 | D99: 1.14 | E99: 0.99 | F99: 10.7
B100: 2022-05-18 | C100: 1.095 | D100: 1.14 | E100: 0.99 | F100: 10.7
B101: 2022-05-19 | C101: 1.095 | D101: 1.14 | E101: 0.99 | F101: 10.7
B102: 2022-05-20 | C102: 1.095 | D102: 1.14 | E102: 0.99 | F102: 10.7
B103: 2022-05-23 | C103: 1.095 | D103: 1.14 | E103: 0.99 | F103: 10.7
B104: 2022-05-24 | C104: 1.095 | D104: 1.14 | E104: 0.99 | F104: 10.7
B105: 2022-05-25 | C105: 1.095 | D105: 1.14 | E105: 0.99 | F105: 10.7
B106: 2022-05-26 | C106: 1.095 | D106: 1.14 | E106: 0.99 | F106: 10.7
B107: 2022-05-27 | C107: 1.095 | D107: 1.14 | E107: 0.99 | F107: 10.7
B108: 2022-05-30 | C108: 1.095 | D108: 1.14 | E108: 0.99 | F108: 10.7
B109: 2022-05-31 | C109: 1.095 | D109: 1.14 | E109: 0.99 | F109: 10.7
B110: 2022-06-01 | C110: 1.095 | D110: 1.14 | E110: 0.99 | F110: 10.7
B111: 2022-06-02 | C111: 1.095 | D111: 1.14 | E111: 0.99 | F111: 10.7
B112: 2022-06-06 | C112: 1.095 | D112: 1.14 | E112: 0.99 | F112: 10.7
B113: 2022-06-07 | C113: 1.095 | D113: 1.14 | E113: 0.99 | F113: 10.7
B114: 2022-06-08 | C114: 1.095 | D114: 1.14 | E114: 0.99 | F114: 10.7
B115: 2022-06-09 | C115: 1.095 | D115: 1.14 | E115: 0.99 | F115: 10.7
B116: 2022-06-10 | C116: 1.095 | D116: 1.14 | E116: 0.99 | F116: 10.7
B117: 2022-06-13 | C117: 1.095 | D117: 1.14 | E117: 0.99 | F117: 10.7
B118: 2022-06-14 | C118: 1.095 | D118: 1.14 | E118: 0.99 | F118: 10.7
B119: 2022-06-15 | C119: 1.095 | D119: 1.14 | E119: 0.99 | F119: 10.7
B120: 2022-06-16 | C120: 1.095 | D120: 1.14 | E120: 0.99 | F120: 10.7
B121: 2022-06-17 | C121: 1.095 | D121: 1.14 | E121: 0.99 | F121: 10.4
B122: 2022-06-20 | C122: 1.095 | D122: 1.14 | E122: 0.99 | F122: 10.4
B123: 2022-06-21 | C123: 1.095 | D123: 1.14 | E123: 0.99 | F123: 10.4
B124: 2022-06-22 | C124: 1.095 | D124: 1.14 | E124: 0.99 | F124: 10.4
B125: 2022-06-23 | C125: 1.095 | D125: 1.14 | E125: 0.99 | F125: 10.4
B126: 2022-06-24 | C126: 1.095 | D126: 1.14 | E126: 0.99 | F126: 10.4
B127: 2022-06-27 | C127: 1.095 | D127: 1.14 | E127: 0.99 | F127: 10.4
B128: 2022-06-28 | C128: 1.095 | D128: 1.14 | E128: 0.99 | F128: 10.4
B129: 2022-06-29 | C129: 1.095 | D129: 1.14 | E129: 0.99 | F129: 10.4
B130: 2022-06-30 | C130: 1.095 | D130: 1.14 | E130: 0.99 | F130: 10.4
B131: 2022-07-01 | C131: 1.095 | D131: 1.14 | E131: 0.99 | F131: 10.4
B132: 2022-07-04 | C132: 1.095 | D132: 1.14 | E132: 0.99 | F132: 10.4
B133: 2022-07-05 | C133: 1.095 | D133: 1.14 | E133: 0.99 | F133: 10.4
B134: 2022-07-06 | C134: 1.095 | D134: 1.14 | E134: 0.99 | F134: 10.4
B135: 2022-07-07 | C135: 1.095 | D135: 1.14 | E135: 0.99 | F135: 10.4
B136: 2022-07-08 | C136: 1.095 | D136: 1.14 | E136: 0.99 | F136: 10.4
B137: 2022-07-11 | C137: 1.095 | D137: 1.14 | E137: 0.99 | F137: 10.4
B138: 2022-07-12 | C138: 1.095 | D138: 1.14 | E138: 0.99 | F138: 10.4
B139: 2022-07-13 | C139: 1.095 | D139: 1.14 | E139: 0.99 | F139: 10.4
B140: 2022-07-14 | C140: 1.095 | D140: 1.14 | E140: 0.99 | F140: 10.4
B141: 2022-07-15 | C141: 1.095 | D141: 1.14 | E141: 0.99 | F141: 10.4
B142: 2022-07-18 | C142: 1.095 | D142: 1.14 | E142: 0.99 | F142: 10.4
B143: 2022-07-19 | C143: 1.095 | D143: 1.14 | E143: 0.99 | F143: 10.4
B144: 2022-07-20 | C144: 1.095 | D144: 1.14 | E144: 0.99 | F144: 10.4
B145: 2022-07-21 | C145: 1.095 | D145: 1.14 | E145: 0.99 | F145: 10.4
B146: 2022-07-22 | C146: 1.095 | D146: 1.14 | E146: 0.99 | F146: 10.4
B147: 2022-07-25 | C147: 1.095 | D147: 1.14 | E147: 0.99 | F147: 10.4
B148: 2022-07-26 | C148: 1.095 | D148: 1.14 | E148: 0.99 | F148: 10.4
B149: 2022-07-27 | C149: 1.095 | D149: 1.14 | E149: 0.99 | F149: 10.4
B150: 2022-07-28 | C150: 1.095 | D150: 1.14 | E150: 0.99 | F150: 10.4
B151: 2022-07-29 | C151: 1.095 | D151: 1.14 | E151: 0.99 | F151: 10.4
B152: 2022-08-01 | C152: 1.095 | D152: 1.14 | E152: 0.99 | F152: 10.4
B153: 2022-08-02 | C153: 1.095 | D153: 1.14 | E153: 0.99 | F153: 10.4
B154: 2022-08-03 | C154: 1.095 | D154: 1.14 | E154: 0.99 | F154: 10.4
B155: 2022-08-04 | C155: 1.095 | D155: 1.14 | E155: 0.99 | F155: 10.4
B156: 2022-08-05 | C156: 1.095 | D156: 1.14 | E156: 0.99 | F156: 10.3
B157: 2022-08-08 | C157: 1.095 | D157: 1.14 | E157: 0.99 | F157: 10.3
B158: 2022-08-09 | C158: 1.095 | D158: 1.14 | E158: 0.99 | F158: 10.3
B159: 2022-08-10 | C159: 1.095 | D159: 1.14 | E159: 0.99 | F159: 10.3
B160: 2022-08-11 | C160: 1.095 | D160: 1.14 | E160: 0.99 | F160: 10.3
B161: 2022-08-12 | C161: 1.095 | D161: 1.14 | E161: 0.99 | F161: 10.3
B162: 2022-08-15 | C162: 1.095 | D162: 1.14 | E162: 0.99 | F162: 10.3
B163: 2022-08-16 | C163: 1.095 | D163: 1.14 | E163: 0.99 | F163: 10.3
B164: 2022-08-17 | C164: 1.095 | D164: 1.14 | E164: 0.99 | F164: 10.3
B165: 2022-08-18 | C165: 1.095 | D165: 1.14 | E165: 0.99 | F165: 10.3
B166: 2022-08-19 | C166: 1.095 | D166: 1.14 | E166: 0.99 | F166: 10.3
B167: 2022-08-22 | C167: 1.095 | D167: 1.14 | E167: 0.99 | F167: 10.3
B168: 2022-08-23 | C168: 1.095 | D168: 1.14 | E168: 0.99 | F168: 10.3
B169: 2022-08-24 | C169: 1.095 | D169: 1.14 | E169: 0.99 | F169: 10.3
B170: 2022-08-25 | C170: 1.095 | D170: 1.14 | E170: 0.99 | F170: 10.3
B171: 2022-08-26 | C171: 1.095 | D171: 1.14 | E171: 0.99 | F171: 10.3
B172: 2022-08-29 | C172: 1.095 | D172: 1.14 | E172: 0.99 | F172: 10.3
B173: 2022-08-30 | C173: 1.095 | D173: 1.14 | E173: 0.99 | F173: 10.3
B174: 2022-08-31 | C174: 1.095 | D174: 1.14 | E174: 0.99 | F174: 10.3
B175: 2022-09-01 | C175: 1.095 | D175: 1.14 | E175: 0.99 | F175: 10.3
B176: 2022-09-02 | C176: 1.095 | D176: 1.14 | E176: 0.99 | F176: 10.3
B177: 2022-09-05 | C177: 1.095 | D177: 1.14 | E177: 0.99 | F177: 10.3
B178: 2022-09-06 | C178: 1.095 | D178: 1.14 | E178: 0.99 | F178: 10.3
B179: 2022-09-07 | C179: 1.095 | D179: 1.14 | E179: 0.99 | F179: 10.3
B180: 2022-09-08 | C180: 1.095 | D180: 1.14 | E180: 0.99 | F180: 10.3
B181: 2022-09-09 | C181: 1.095 | D181: 1.14 | E181: 0.99 | F181: 10.3
B182: 2022-09-13 | C182: 1.095 | D182: 1.14 | E182: 0.99 | F182: 10.3
B183: 2022-09-14 | C183: 1.095 | D183: 1.14 | E183: 0.99 | F183: 10.3
B184: 2022-09-15 | C184: 1.095 | D184: 1.14 | E184: 0.99 | F184: 10.3
B185: 2022-09-16 | C185: 1.095 | D185: 1.14 | E185: 0.99 | F185: 10.3
B186: 2022-09-19 | C186: 1.095 | D186: 1.14 | E186: 0.99 | F186: 10.3
B187: 2022-09-20 | C187: 1.095 | D187: 1.14 | E187: 0.99 | F187: 10.3
B188: 2022-09-21 | C188: 1.095 | D188: 1.14 | E188: 0.99 | F188: 10.3
B189: 2022-09-22 | C189: 1.095 | D189: 1.14 | E189: 0.99 | F189: 10.3
B190: 2022-09-23 | C190: 1.095 | D190: 1.14 | E190: 0.99 | F190: 10.3
B191: 2022-09-26 | C191: 1.095 | D191: 1.14 | E191: 0.99 | F191: 10.3
B192: 2022-09-27 | C192: 1.095 | D192: 1.14 | E192: 0.99 | F192: 10.3
B193: 2022-09-28 | C193: 1.095 | D193: 1.14 | E193: 0.99 | F193: 10.3
B194: 2022-09-29 | C194: 1.095 | D194: 1.14 | E194: 0.99 | F194: 10.3
B195: 2022-09-30 | C195: 1.095 | D195: 1.14 | E195: 0.99 | F195: 10.3
B196: 2022-10-10 | C196: 1.095 | D196: 1.14 | E196: 0.99 | F196: 10.3
B197: 2022-10-11 | C197: 1.095 | D197: 1.14 | E197: 0.99 | F197: 10.3
B198: 2022-10-12 | C198: 1.095 | D198: 1.14 | E198: 0.99 | F198: 10.3
B199: 2022-10-13 | C199: 1.095 | D199: 1.14 | E199: 0.99 | F199: 10.3
B200: 2022-10-14 | C200: 1.095 | D200: 1.14 | E200: 0.99 | F200: 10.3
B201: 2022-10-17 | C201: 1.095 | D201: 1.14 | E201: 0.99 | F201: 10.3
B202: 2022-10-18 | C202: 1.095 | D202: 1.14 | E202: 0.99 | F202: 10.3
B203: 2022-10-19 | C203: 1.095 | D203: 1.14 | E203: 0.99 | F203: 10.3
... 132 more rows

Sheet 锂电辅料价格
A1: 极耳价格 | B1: 国产（元/对） | E1: 国产（元/对） | H1: 近日 | I1: 铝箔价格 | J1: 国产（元/公斤） | M1: 加工费（万元/吨） | Q1: 铜箔 | R1: 赣州逸豪（元/公斤） | U1: 赣州逸豪（元/公斤） | X1: 加工费 | AA1: 加工费 | AE1: 铝塑膜 | AF1: DNP（元/平方米） | AI1: 上海紫江（元/平方米） | AL1: 凸版印刷（元/平方米） | AO1: 大仓（元/平方米） | AR1: 昭和电工（元/平方米） | AU1: 栗村（元/平方米） | AX1: 道明光学 （元/平方米） | BB1: PVDF | BC1: 国产（万元/吨） | BF1: 进口（万元/吨） | BI1: LFP（万元/吨） | BL1: 三元（万元/吨）
A2: 日期\规格 | B2: 1.55mm | E2: 方形动力 | I2: 日期\规格 | J2: 16u | M2: 12u加工费 | Q2: 日期\规格 | R2: 8um | U2: 6um | X2: 8um | AA2: 6um | AE2: 日期\规格 | AF2: 日本 | AI2: 中国 | AL2: 日本 | AO2: 日本 | AR2: 日本 | AU2: 韩国 | AX2: 中国 | BB2: 日期\规格 | BC2: 中端 | BF2: 高端
A3: 价格 | B3: Low | C3: High | D3: Avg | J3: Low | K3: High | L3: Avg | M3: Low | N3: High | O3: Avg | R3: Low | S3: High | T3: Avg | U3: Low | V3: High | W3: Avg | X3: Low | Y3: High | Z3: Avg | AA3: Low | AB3: High | AC3: Avg | AF3: Low | AG3: High | AH3: Avg | AI3: Low | AJ3: High | AK3: Avg | AL3: Low | AM3: High | AN3: Avg | AO3: Low | AP3: High | AQ3: Avg | AR3: Low | AS3: High | AT3: Avg | AU3: Low | AV3: High | AW3: Avg | AX3: Low | AY3: High | AZ3: Avg | BC3: Low | BD3: High | BE3: Avg | BF3: Low | BG3: High | BH3: Avg | BI3: Low | BJ3: High | BK3: Avg | BL3: Low | BM3: High | BN3: Avg
A4: 2018-05-14 | B4: 0.2 | C4: 0.21 | D4: =(B4+C4)/2 -> 0.205 | I4: 2018-05-14 | J4: 23.5 | K4: 24.5 | L4: =AVERAGE(J4:K4) -> 24 | Q4: 2018-05-14 | R4: 91 | S4: 92 | T4: =AVERAGE(R4:S4) -> 91.5 | U4: 91 | V4: 92 | W4: =AVERAGE(U4:V4) -> 91.5 | AE4: 2018-05-14 | AF4: 35 | AG4: 39 | AH4: =AVERAGE(AF4:AG4) -> 37 | AI4: 25 | AJ4: 26 | AK4: =AVERAGE(AI4:AJ4) -> 25.5 | AL4: 28 | AM4: 33 | AN4: =AVERAGE(AL4:AM4) -> 30.5 | AO4: 28 | AP4: 33 | AQ4: =AVERAGE(AO4:AP4) -> 30.5 | AR4: 30 | AS4: 35 | AT4: =AVERAGE(AR4:AS4) -> 32.5 | AU4: 28 | AV4: 33 | AW4: =AVERAGE(AU4:AV4) -> 30.5 | AX4: 24 | AY4: 26 | AZ4: =AVERAGE(AX4:AY4) -> 25 | BB4: 2018-05-14 | BC4: 35 | BD4: 39 | BE4: =AVERAGE(BC4:BD4) -> 37 | BF4: 25 | BG4: 26 | BH4: =AVERAGE(BF4:BG4) -> 25.5 | BI4: 35 | BJ4: 39 | BK4: =AVERAGE(BI4:BJ4) -> 37 | BL4: 25 | BM4: 26 | BN4: =AVERAGE(BL4:BM4) -> 25.5
A5: 2018-05-15 | B5: 0.2 | C5: 0.21 | D5: =(B5+C5)/2 -> 0.205 | I5: 2018-05-15 | J5: 23.5 | K5: 24.5 | L5: =AVERAGE(J5:K5) -> 24 | Q5: 2018-05-15 | R5: 91 | S5: 92 | T5: =AVERAGE(R5:S5) -> 91.5 | U5: 91 | V5: 92 | W5: =AVERAGE(U5:V5) -> 91.5 | AE5: 2018-05-15 | AF5: 35 | AG5: 39 | AH5: =AVERAGE(AF5:AG5) -> 37 | AI5: 25 | AJ5: 26 | AK5: =AVERAGE(AI5:AJ5) -> 25.5 | AL5: 28 | AM5: 33 | AN5: =AVERAGE(AL5:AM5) -> 30.5 | AO5: 28 | AP5: 33 | AQ5: =AVERAGE(AO5:AP5) -> 30.5 | AR5: 30 | AS5: 35 | AT5: =AVERAGE(AR5:AS5) -> 32.5 | AU5: 28 | AV5: 33 | AW5: =AVERAGE(AU5:AV5) -> 30.5 | AX5: 24 | AY5: 26 | AZ5: =AVERAGE(AX5:AY5) -> 25 | BB5: 2018-05-15 | BC5: 35 | BD5: 39 | BE5: =AVERAGE(BC5:BD5) -> 37 | BF5: 25 | BG5: 26 | BH5: =AVERAGE(BF5:BG5) -> 25.5 | BI5: 35 | BJ5: 39 | BK5: =AVERAGE(BI5:BJ5) -> 37 | BL5: 25 | BM5: 26 | BN5: =AVERAGE(BL5:BM5) -> 25.5
A6: 2018-05-16 | B6: 0.2 | C6: 0.21 | D6: 0.205 | I6: 2018-05-16 | J6: 23.5 | K6: 24.5 | L6: 24 | Q6: 2018-05-16 | R6: 91 | S6: 92 | T6: 91.5 | U6: 91 | V6: 92 | W6: 91.5 | AE6: 2018-05-16 | AF6: 35 | AG6: 39 | AH6: 37 | AI6: 25 | AJ6: 26 | AK6: 25.5 | AL6: 28 | AM6: 33 | AN6: 30.5 | AO6: 28 | AP6: 33 | AQ6: 30.5 | AR6: 30 | AS6: 35 | AT6: 32.5 | AU6: 28 | AV6: 33 | AW6: 30.5 | AX6: 24 | AY6: 26 | AZ6: 25 | BB6: 2018-05-16 | BC6: 35 | BD6: 39 | BE6: 37 | BF6: 25 | BG6: 26 | BH6: 25.5 | BI6: 35 | BJ6: 39 | BK6: 37 | BL6: 25 | BM6: 26 | BN6: 25.5
A7: 2018-05-17 | B7: 0.2 | C7: 0.21 | D7: 0.205 | I7: 2018-05-17 | J7: 23.5 | K7: 24.5 | L7: 24 | Q7: 2018-05-17 | R7: 91 | S7: 92 | T7: 91.5 | U7: 91 | V7: 92 | W7: 91.5 | AE7: 2018-05-17 | AF7: 35 | AG7: 39 | AH7: 37 | AI7: 25 | AJ7: 26 | AK7: 25.5 | AL7: 28 | AM7: 33 | AN7: 30.5 | AO7: 28 | AP7: 33 | AQ7: 30.5 | AR7: 30 | AS7: 35 | AT7: 32.5 | AU7: 28 | AV7: 33 | AW7: 30.5 | AX7: 24 | AY7: 26 | AZ7: 25 | BB7: 2018-05-17 | BC7: 35 | BD7: 39 | BE7: 37 | BF7: 25 | BG7: 26 | BH7: 25.5 | BI7: 35 | BJ7: 39 | BK7: 37 | BL7: 25 | BM7: 26 | BN7: 25.5
A8: 2018-05-18 | B8: 0.2 | C8: 0.21 | D8: 0.205 | I8: 2018-05-18 | J8: 23.5 | K8: 24.5 | L8: 24 | Q8: 2018-05-18 | R8: 91 | S8: 92 | T8: 91.5 | U8: 91 | V8: 92 | W8: 91.5 | AE8: 2018-05-18 | AF8: 35 | AG8: 39 | AH8: 37 | AI8: 25 | AJ8: 26 | AK8: 25.5 | AL8: 28 | AM8: 33 | AN8: 30.5 | AO8: 28 | AP8: 33 | AQ8: 30.5 | AR8: 30 | AS8: 35 | AT8: 32.5 | AU8: 28 | AV8: 33 | AW8: 30.5 | AX8: 24 | AY8: 26 | AZ8: 25 | BB8: 2018-05-18 | BC8: 35 | BD8: 39 | BE8: 37 | BF8: 25 | BG8: 26 | BH8: 25.5 | BI8: 35 | BJ8: 39 | BK8: 37 | BL8: 25 | BM8: 26 | BN8: 25.5
A9: 2018-05-21 | B9: 0.2 | C9: 0.21 | D9: 0.205 | I9: 2018-05-21 | J9: 23.5 | K9: 24.5 | L9: 24 | Q9: 2018-05-21 | R9: 91 | S9: 92 | T9: 91.5 | U9: 91 | V9: 92 | W9: 91.5 | AE9: 2018-05-21 | AF9: 35 | AG9: 39 | AH9: 37 | AI9: 25 | AJ9: 26 | AK9: 25.5 | AL9: 28 | AM9: 33 | AN9: 30.5 | AO9: 28 | AP9: 33 | AQ9: 30.5 | AR9: 30 | AS9: 35 | AT9: 32.5 | AU9: 28 | AV9: 33 | AW9: 30.5 | AX9: 24 | AY9: 26 | AZ9: 25 | BB9: 2018-05-21 | BC9: 35 | BD9: 39 | BE9: 37 | BF9: 25 | BG9: 26 | BH9: 25.5 | BI9: 35 | BJ9: 39 | BK9: 37 | BL9: 25 | BM9: 26 | BN9: 25.5
A10: 2018-05-22 | B10: 0.2 | C10: 0.21 | D10: 0.205 | I10: 2018-05-22 | J10: 23.5 | K10: 24.5 | L10: 24 | Q10: 2018-05-22 | R10: 91 | S10: 92 | T10: 91.5 | U10: 91 | V10: 92 | W10: 91.5 | AE10: 2018-05-22 | AF10: 35 | AG10: 39 | AH10: 37 | AI10: 25 | AJ10: 26 | AK10: 25.5 | AL10: 28 | AM10: 33 | AN10: 30.5 | AO10: 28 | AP10: 33 | AQ10: 30.5 | AR10: 30 | AS10: 35 | AT10: 32.5 | AU10: 28 | AV10: 33 | AW10: 30.5 | AX10: 24 | AY10: 26 | AZ10: 25 | BB10: 2018-05-22 | BC10: 35 | BD10: 39 | BE10: 37 | BF10: 25 | BG10: 26 | BH10: 25.5 | BI10: 35 | BJ10: 39 | BK10: 37 | BL10: 25 | BM10: 26 | BN10: 25.5
A11: 2018-05-23 | B11: 0.2 | C11: 0.21 | D11: 0.205 | I11: 2018-05-23 | J11: 23.5 | K11: 24.5 | L11: 24 | Q11: 2018-05-23 | R11: 91 | S11: 92 | T11: 91.5 | U11: 91 | V11: 92 | W11: 91.5 | AE11: 2018-05-23 | AF11: 35 | AG11: 39 | AH11: 37 | AI11: 25 | AJ11: 26 | AK11: 25.5 | AL11: 28 | AM11: 33 | AN11: 30.5 | AO11: 28 | AP11: 33 | AQ11: 30.5 | AR11: 30 | AS11: 35 | AT11: 32.5 | AU11: 28 | AV11: 33 | AW11: 30.5 | AX11: 24 | AY11: 26 | AZ11: 25 | BB11: 2018-05-23 | BC11: 35 | BD11: 39 | BE11: 37 | BF11: 25 | BG11: 26 | BH11: 25.5 | BI11: 35 | BJ11: 39 | BK11: 37 | BL11: 25 | BM11: 26 | BN11: 25.5
A12: 2018-05-24 | B12: 0.2 | C12: 0.21 | D12: 0.205 | I12: 2018-05-24 | J12: 23.5 | K12: 24.5 | L12: 24 | Q12: 2018-05-24 | R12: 91 | S12: 92 | T12: 91.5 | U12: 91 | V12: 92 | W12: 91.5 | AE12: 2018-05-24 | AF12: 35 | AG12: 39 | AH12: 37 | AI12: 25 | AJ12: 26 | AK12: 25.5 | AL12: 28 | AM12: 33 | AN12: 30.5 | AO12: 28 | AP12: 33 | AQ12: 30.5 | AR12: 30 | AS12: 35 | AT12: 32.5 | AU12: 28 | AV12: 33 | AW12: 30.5 | AX12: 24 | AY12: 26 | AZ12: 25 | BB12: 2018-05-24 | BC12: 35 | BD12: 39 | BE12: 37 | BF12: 25 | BG12: 26 | BH12: 25.5 | BI12: 35 | BJ12: 39 | BK12: 37 | BL12: 25 | BM12: 26 | BN12: 25.5
A13: 2018-05-25 | B13: 0.2 | C13: 0.21 | D13: 0.205 | I13: 2018-05-25 | J13: 23.5 | K13: 24.5 | L13: 24 | Q13: 2018-05-25 | R13: 91 | S13: 92 | T13: 91.5 | U13: 91 | V13: 92 | W13: 91.5 | AE13: 2018-05-25 | AF13: 35 | AG13: 39 | AH13: 37 | AI13: 25 | AJ13: 26 | AK13: 25.5 | AL13: 28 | AM13: 33 | AN13: 30.5 | AO13: 28 | AP13: 33 | AQ13: 30.5 | AR13: 30 | AS13: 35 | AT13: 32.5 | AU13: 28 | AV13: 33 | AW13: 30.5 | AX13: 24 | AY13: 26 | AZ13: 25 | BB13: 2018-05-25 | BC13: 35 | BD13: 39 | BE13: 37 | BF13: 25 | BG13: 26 | BH13: 25.5 | BI13: 35 | BJ13: 39 | BK13: 37 | BL13: 25 | BM13: 26 | BN13: 25.5
A14: 2018-05-28 | B14: 0.2 | C14: 0.21 | D14: 0.205 | I14: 2018-05-28 | J14: 23.5 | K14: 24.5 | L14: 24 | Q14: 2018-05-28 | R14: 91 | S14: 92 | T14: 91.5 | U14: 91 | V14: 92 | W14: 91.5 | AE14: 2018-05-28 | AF14: 35 | AG14: 39 | AH14: 37 | AI14: 25 | AJ14: 26 | AK14: 25.5 | AL14: 28 | AM14: 33 | AN14: 30.5 | AO14: 28 | AP14: 33 | AQ14: 30.5 | AR14: 30 | AS14: 35 | AT14: 32.5 | AU14: 28 | AV14: 33 | AW14: 30.5 | AX14: 24 | AY14: 26 | AZ14: 25 | BB14: 2018-05-28 | BC14: 35 | BD14: 39 | BE14: 37 | BF14: 25 | BG14: 26 | BH14: 25.5 | BI14: 35 | BJ14: 39 | BK14: 37 | BL14: 25 | BM14: 26 | BN14: 25.5
A15: 2018-05-29 | B15: 0.2 | C15: 0.21 | D15: 0.205 | I15: 2018-05-29 | J15: 23.5 | K15: 24.5 | L15: 24 | Q15: 2018-05-29 | R15: 91 | S15: 92 | T15: 91.5 | U15: 91 | V15: 92 | W15: 91.5 | AE15: 2018-05-29 | AF15: 35 | AG15: 39 | AH15: 37 | AI15: 25 | AJ15: 26 | AK15: 25.5 | AL15: 28 | AM15: 33 | AN15: 30.5 | AO15: 28 | AP15: 33 | AQ15: 30.5 | AR15: 30 | AS15: 35 | AT15: 32.5 | AU15: 28 | AV15: 33 | AW15: 30.5 | AX15: 24 | AY15: 26 | AZ15: 25 | BB15: 2018-05-29 | BC15: 35 | BD15: 39 | BE15: 37 | BF15: 25 | BG15: 26 | BH15: 25.5 | BI15: 35 | BJ15: 39 | BK15: 37 | BL15: 25 | BM15: 26 | BN15: 25.5
A16: 2018-05-30 | B16: 0.2 | C16: 0.21 | D16: 0.205 | I16: 2018-05-30 | J16: 23.5 | K16: 24.5 | L16: 24 | Q16: 2018-05-30 | R16: 91 | S16: 92 | T16: 91.5 | U16: 91 | V16: 92 | W16: 91.5 | AE16: 2018-05-30 | AF16: 35 | AG16: 39 | AH16: 37 | AI16: 25 | AJ16: 26 | AK16: 25.5 | AL16: 28 | AM16: 33 | AN16: 30.5 | AO16: 28 | AP16: 33 | AQ16: 30.5 | AR16: 30 | AS16: 35 | AT16: 32.5 | AU16: 28 | AV16: 33 | AW16: 30.5 | AX16: 24 | AY16: 26 | AZ16: 25 | BB16: 2018-05-30 | BC16: 35 | BD16: 39 | BE16: 37 | BF16: 25 | BG16: 26 | BH16: 25.5 | BI16: 35 | BJ16: 39 | BK16: 37 | BL16: 25 | BM16: 26 | BN16: 25.5
A17: 2018-05-31 | B17: 0.2 | C17: 0.21 | D17: 0.205 | I17: 2018-05-31 | J17: 23.5 | K17: 24.5 | L17: 24 | Q17: 2018-05-31 | R17: 91 | S17: 92 | T17: 91.5 | U17: 91 | V17: 92 | W17: 91.5 | AE17: 2018-05-31 | AF17: 35 | AG17: 39 | AH17: 37 | AI17: 25 | AJ17: 26 | AK17: 25.5 | AL17: 28 | AM17: 33 | AN17: 30.5 | AO17: 28 | AP17: 33 | AQ17: 30.5 | AR17: 30 | AS17: 35 | AT17: 32.5 | AU17: 28 | AV17: 33 | AW17: 30.5 | AX17: 24 | AY17: 26 | AZ17: 25 | BB17: 2018-05-31 | BC17: 35 | BD17: 39 | BE17: 37 | BF17: 25 | BG17: 26 | BH17: 25.5 | BI17: 35 | BJ17: 39 | BK17: 37 | BL17: 25 | BM17: 26 | BN17: 25.5
A18: 2018-06-01 | B18: 0.2 | C18: 0.21 | D18: 0.205 | I18: 2018-06-01 | J18: 23.5 | K18: 24.5 | L18: 24 | Q18: 2018-06-01 | R18: 91 | S18: 92 | T18: 91.5 | U18: 91 | V18: 92 | W18: 91.5 | AE18: 2018-06-01 | AF18: 35 | AG18: 39 | AH18: 37 | AI18: 25 | AJ18: 26 | AK18: 25.5 | AL18: 28 | AM18: 33 | AN18: 30.5 | AO18: 28 | AP18: 33 | AQ18: 30.5 | AR18: 30 | AS18: 35 | AT18: 32.5 | AU18: 28 | AV18: 33 | AW18: 30.5 | AX18: 24 | AY18: 26 | AZ18: 25 | BB18: 2018-06-01 | BC18: 35 | BD18: 39 | BE18: 37 | BF18: 25 | BG18: 26 | BH18: 25.5 | BI18: 35 | BJ18: 39 | BK18: 37 | BL18: 25 | BM18: 26 | BN18: 25.5
A19: 2018-06-04 | B19: 0.2 | C19: 0.21 | D19: 0.205 | I19: 2018-06-04 | J19: 23.5 | K19: 24.5 | L19: 24 | Q19: 2018-06-04 | R19: 91 | S19: 92 | T19: 91.5 | U19: 91 | V19: 92 | W19: 91.5 | AE19: 2018-06-04 | AF19: 35 | AG19: 39 | AH19: 37 | AI19: 25 | AJ19: 26 | AK19: 25.5 | AL19: 28 | AM19: 33 | AN19: 30.5 | AO19: 28 | AP19: 33 | AQ19: 30.5 | AR19: 30 | AS19: 35 | AT19: 32.5 | AU19: 28 | AV19: 33 | AW19: 30.5 | AX19: 24 | AY19: 26 | AZ19: 25 | BB19: 2018-06-04 | BC19: 35 | BD19: 39 | BE19: 37 | BF19: 25 | BG19: 26 | BH19: 25.5 | BI19: 35 | BJ19: 39 | BK19: 37 | BL19: 25 | BM19: 26 | BN19: 25.5
A20: 2018-06-05 | B20: 0.2 | C20: 0.21 | D20: 0.205 | I20: 2018-06-05 | J20: 23.5 | K20: 24.5 | L20: 24 | Q20: 2018-06-05 | R20: 91 | S20: 92 | T20: 91.5 | U20: 91 | V20: 92 | W20: 91.5 | AE20: 2018-06-05 | AF20: 35 | AG20: 39 | AH20: 37 | AI20: 25 | AJ20: 26 | AK20: 25.5 | AL20: 28 | AM20: 33 | AN20: 30.5 | AO20: 28 | AP20: 33 | AQ20: 30.5 | AR20: 30 | AS20: 35 | AT20: 32.5 | AU20: 28 | AV20: 33 | AW20: 30.5 | AX20: 24 | AY20: 26 | AZ20: 25 | BB20: 2018-06-05 | BC20: 35 | BD20: 39 | BE20: 37 | BF20: 25 | BG20: 26 | BH20: 25.5 | BI20: 35 | BJ20: 39 | BK20: 37 | BL20: 25 | BM20: 26 | BN20: 25.5
A21: 2018-06-06 | B21: 0.2 | C21: 0.21 | D21: 0.205 | I21: 2018-06-06 | J21: 23.5 | K21: 24.5 | L21: 24 | Q21: 2018-06-06 | R21: 91 | S21: 92 | T21: 91.5 | U21: 91 | V21: 92 | W21: 91.5 | AE21: 2018-06-06 | AF21: 35 | AG21: 39 | AH21: 37 | AI21: 25 | AJ21: 26 | AK21: 25.5 | AL21: 28 | AM21: 33 | AN21: 30.5 | AO21: 28 | AP21: 33 | AQ21: 30.5 | AR21: 30 | AS21: 35 | AT21: 32.5 | AU21: 28 | AV21: 33 | AW21: 30.5 | AX21: 24 | AY21: 26 | AZ21: 25 | BB21: 2018-06-06 | BC21: 35 | BD21: 39 | BE21: 37 | BF21: 25 | BG21: 26 | BH21: 25.5 | BI21: 35 | BJ21: 39 | BK21: 37 | BL21: 25 | BM21: 26 | BN21: 25.5
A22: 2018-06-07 | B22: 0.2 | C22: 0.21 | D22: 0.205 | I22: 2018-06-07 | J22: 23.5 | K22: 24.5 | L22: 24 | Q22: 2018-06-07 | R22: 91 | S22: 92 | T22: 91.5 | U22: 91 | V22: 92 | W22: 91.5 | AE22: 2018-06-07 | AF22: 35 | AG22: 39 | AH22: 37 | AI22: 25 | AJ22: 26 | AK22: 25.5 | AL22: 28 | AM22: 33 | AN22: 30.5 | AO22: 28 | AP22: 33 | AQ22: 30.5 | AR22: 30 | AS22: 35 | AT22: 32.5 | AU22: 28 | AV22: 33 | AW22: 30.5 | AX22: 24 | AY22: 26 | AZ22: 25 | BB22: 2018-06-07 | BC22: 35 | BD22: 39 | BE22: 37 | BF22: 25 | BG22: 26 | BH22: 25.5 | BI22: 35 | BJ22: 39 | BK22: 37 | BL22: 25 | BM22: 26 | BN22: 25.5
A23: 2018-06-08 | B23: 0.2 | C23: 0.21 | D23: 0.205 | I23: 2018-06-08 | J23: 23.5 | K23: 24.5 | L23: 24 | Q23: 2018-06-08 | R23: 91 | S23: 92 | T23: 91.5 | U23: 91 | V23: 92 | W23: 91.5 | AE23: 2018-06-08 | AF23: 35 | AG23: 39 | AH23: 37 | AI23: 25 | AJ23: 26 | AK23: 25.5 | AL23: 28 | AM23: 33 | AN23: 30.5 | AO23: 28 | AP23: 33 | AQ23: 30.5 | AR23: 30 | AS23: 35 | AT23: 32.5 | AU23: 28 | AV23: 33 | AW23: 30.5 | AX23: 24 | AY23: 26 | AZ23: 25 | BB23: 2018-06-08 | BC23: 35 | BD23: 39 | BE23: 37 | BF23: 25 | BG23: 26 | BH23: 25.5 | BI23: 35 | BJ23: 39 | BK23: 37 | BL23: 25 | BM23: 26 | BN23: 25.5
A24: 2018-06-11 | B24: 0.2 | C24: 0.21 | D24: 0.205 | I24: 2018-06-11 | J24: 23.5 | K24: 24.5 | L24: 24 | Q24: 2018-06-11 | R24: 91 | S24: 92 | T24: 91.5 | U24: 91 | V24: 92 | W24: 91.5 | AE24: 2018-06-11 | AF24: 35 | AG24: 39 | AH24: 37 | AI24: 25 | AJ24: 26 | AK24: 25.5 | AL24: 28 | AM24: 33 | AN24: 30.5 | AO24: 28 | AP24: 33 | AQ24: 30.5 | AR24: 30 | AS24: 35 | AT24: 32.5 | AU24: 28 | AV24: 33 | AW24: 30.5 | AX24: 24 | AY24: 26 | AZ24: 25 | BB24: 2018-06-11 | BC24: 35 | BD24: 39 | BE24: 37 | BF24: 25 | BG24: 26 | BH24: 25.5 | BI24: 35 | BJ24: 39 | BK24: 37 | BL24: 25 | BM24: 26 | BN24: 25.5
A25: 2018-06-12 | B25: 0.2 | C25: 0.21 | D25: 0.205 | I25: 2018-06-12 | J25: 23.5 | K25: 24.5 | L25: 24 | Q25: 2018-06-12 | R25: 91 | S25: 92 | T25: 91.5 | U25: 91 | V25: 92 | W25: 91.5 | AE25: 2018-06-12 | AF25: 35 | AG25: 39 | AH25: 37 | AI25: 25 | AJ25: 26 | AK25: 25.5 | AL25: 28 | AM25: 33 | AN25: 30.5 | AO25: 28 | AP25: 33 | AQ25: 30.5 | AR25: 30 | AS25: 35 | AT25: 32.5 | AU25: 28 | AV25: 33 | AW25: 30.5 | AX25: 24 | AY25: 26 | AZ25: 25 | BB25: 2018-06-12 | BC25: 35 | BD25: 39 | BE25: 37 | BF25: 25 | BG25: 26 | BH25: 25.5 | BI25: 35 | BJ25: 39 | BK25: 37 | BL25: 25 | BM25: 26 | BN25: 25.5
A26: 2018-06-13 | B26: 0.2 | C26: 0.21 | D26: 0.205 | I26: 2018-06-13 | J26: 23.5 | K26: 24.5 | L26: 24 | Q26: 2018-06-13 | R26: 91 | S26: 92 | T26: 91.5 | U26: 91 | V26: 92 | W26: 91.5 | AE26: 2018-06-13 | AF26: 35 | AG26: 39 | AH26: 37 | AI26: 25 | AJ26: 26 | AK26: 25.5 | AL26: 28 | AM26: 33 | AN26: 30.5 | AO26: 28 | AP26: 33 | AQ26: 30.5 | AR26: 30 | AS26: 35 | AT26: 32.5 | AU26: 28 | AV26: 33 | AW26: 30.5 | AX26: 24 | AY26: 26 | AZ26: 25 | BB26: 2018-06-13 | BC26: 35 | BD26: 39 | BE26: 37 | BF26: 25 | BG26: 26 | BH26: 25.5 | BI26: 35 | BJ26: 39 | BK26: 37 | BL26: 25 | BM26: 26 | BN26: 25.5
A27: 2018-06-14 | B27: 0.2 | C27: 0.21 | D27: 0.205 | I27: 2018-06-14 | J27: 23.5 | K27: 24.5 | L27: 24 | Q27: 2018-06-14 | R27: 91 | S27: 92 | T27: 91.5 | U27: 91 | V27: 92 | W27: 91.5 | AE27: 2018-06-14 | AF27: 35 | AG27: 39 | AH27: 37 | AI27: 25 | AJ27: 26 | AK27: 25.5 | AL27: 28 | AM27: 33 | AN27: 30.5 | AO27: 28 | AP27: 33 | AQ27: 30.5 | AR27: 30 | AS27: 35 | AT27: 32.5 | AU27: 28 | AV27: 33 | AW27: 30.5 | AX27: 24 | AY27: 26 | AZ27: 25 | BB27: 2018-06-14 | BC27: 35 | BD27: 39 | BE27: 37 | BF27: 25 | BG27: 26 | BH27: 25.5 | BI27: 35 | BJ27: 39 | BK27: 37 | BL27: 25 | BM27: 26 | BN27: 25.5
A28: 2018-06-15 | B28: 0.2 | C28: 0.21 | D28: 0.205 | I28: 2018-06-15 | J28: 23.5 | K28: 24.5 | L28: 24 | Q28: 2018-06-15 | R28: 91 | S28: 92 | T28: 91.5 | U28: 91 | V28: 92 | W28: 91.5 | AE28: 2018-06-15 | AF28: 35 | AG28: 39 | AH28: 37 | AI28: 25 | AJ28: 26 | AK28: 25.5 | AL28: 28 | AM28: 33 | AN28: 30.5 | AO28: 28 | AP28: 33 | AQ28: 30.5 | AR28: 30 | AS28: 35 | AT28: 32.5 | AU28: 28 | AV28: 33 | AW28: 30.5 | AX28: 24 | AY28: 26 | AZ28: 25 | BB28: 2018-06-15 | BC28: 35 | BD28: 39 | BE28: 37 | BF28: 25 | BG28: 26 | BH28: 25.5 | BI28: 35 | BJ28: 39 | BK28: 37 | BL28: 25 | BM28: 26 | BN28: 25.5
A29: 2018-06-19 | B29: 0.2 | C29: 0.21 | D29: 0.205 | I29: 2018-06-19 | J29: 23.5 | K29: 24.5 | L29: 24 | Q29: 2018-06-19 | R29: 91 | S29: 92 | T29: 91.5 | U29: 91 | V29: 92 | W29: 91.5 | AE29: 2018-06-19 | AF29: 35 | AG29: 39 | AH29: 37 | AI29: 25 | AJ29: 26 | AK29: 25.5 | AL29: 28 | AM29: 33 | AN29: 30.5 | AO29: 28 | AP29: 33 | AQ29: 30.5 | AR29: 30 | AS29: 35 | AT29: 32.5 | AU29: 28 | AV29: 33 | AW29: 30.5 | AX29: 24 | AY29: 26 | AZ29: 25 | BB29: 2018-06-19 | BC29: 35 | BD29: 39 | BE29: 37 | BF29: 25 | BG29: 26 | BH29: 25.5 | BI29: 35 | BJ29: 39 | BK29: 37 | BL29: 25 | BM29: 26 | BN29: 25.5
A30: 2018-06-20 | B30: 0.2 | C30: 0.21 | D30: 0.205 | I30: 2018-06-20 | J30: 23.5 | K30: 24.5 | L30: 24 | Q30: 2018-06-20 | R30: 91 | S30: 92 | T30: 91.5 | U30: 91 | V30: 92 | W30: 91.5 | AE30: 2018-06-20 | AF30: 35 | AG30: 39 | AH30: 37 | AI30: 25 | AJ30: 26 | AK30: 25.5 | AL30: 28 | AM30: 33 | AN30: 30.5 | AO30: 28 | AP30: 33 | AQ30: 30.5 | AR30: 30 | AS30: 35 | AT30: 32.5 | AU30: 28 | AV30: 33 | AW30: 30.5 | AX30: 24 | AY30: 26 | AZ30: 25 | BB30: 2018-06-20 | BC30: 35 | BD30: 39 | BE30: 37 | BF30: 25 | BG30: 26 | BH30: 25.5 | BI30: 35 | BJ30: 39 | BK30: 37 | BL30: 25 | BM30: 26 | BN30: 25.5
A31: 2018-06-21 | B31: 0.2 | C31: 0.21 | D31: 0.205 | I31: 2018-06-21 | J31: 23.5 | K31: 24.5 | L31: 24 | Q31: 2018-06-21 | R31: 91 | S31: 92 | T31: 91.5 | U31: 91 | V31: 92 | W31: 91.5 | AE31: 2018-06-21 | AF31: 35 | AG31: 39 | AH31: 37 | AI31: 25 | AJ31: 26 | AK31: 25.5 | AL31: 28 | AM31: 33 | AN31: 30.5 | AO31: 28 | AP31: 33 | AQ31: 30.5 | AR31: 30 | AS31: 35 | AT31: 32.5 | AU31: 28 | AV31: 33 | AW31: 30.5 | AX31: 24 | AY31: 26 | AZ31: 25 | BB31: 2018-06-21 | BC31: 35 | BD31: 39 | BE31: 37 | BF31: 25 | BG31: 26 | BH31: 25.5 | BI31: 35 | BJ31: 39 | BK31: 37 | BL31: 25 | BM31: 26 | BN31: 25.5
A32: 2018-06-22 | B32: 0.2 | C32: 0.21 | D32: 0.205 | I32: 2018-06-22 | J32: 23.5 | K32: 24.5 | L32: 24 | Q32: 2018-06-22 | R32: 91 | S32: 92 | T32: 91.5 | U32: 91 | V32: 92 | W32: 91.5 | AE32: 2018-06-22 | AF32: 35 | AG32: 39 | AH32: 37 | AI32: 25 | AJ32: 26 | AK32: 25.5 | AL32: 28 | AM32: 33 | AN32: 30.5 | AO32: 28 | AP32: 33 | AQ32: 30.5 | AR32: 30 | AS32: 35 | AT32: 32.5 | AU32: 28 | AV32: 33 | AW32: 30.5 | AX32: 24 | AY32: 26 | AZ32: 25 | BB32: 2018-06-22 | BC32: 35 | BD32: 39 | BE32: 37 | BF32: 25 | BG32: 26 | BH32: 25.5 | BI32: 35 | BJ32: 39 | BK32: 37 | BL32: 25 | BM32: 26 | BN32: 25.5
A33: 2018-06-25 | B33: 0.2 | C33: 0.21 | D33: 0.205 | I33: 2018-06-25 | J33: 23.5 | K33: 24.5 | L33: 24 | Q33: 2018-06-25 | R33: 91 | S33: 92 | T33: 91.5 | U33: 91 | V33: 92 | W33: 91.5 | AE33: 2018-06-25 | AF33: 35 | AG33: 39 | AH33: 37 | AI33: 25 | AJ33: 26 | AK33: 25.5 | AL33: 28 | AM33: 33 | AN33: 30.5 | AO33: 28 | AP33: 33 | AQ33: 30.5 | AR33: 30 | AS33: 35 | AT33: 32.5 | AU33: 28 | AV33: 33 | AW33: 30.5 | AX33: 24 | AY33: 26 | AZ33: 25 | BB33: 2018-06-25 | BC33: 35 | BD33: 39 | BE33: 37 | BF33: 25 | BG33: 26 | BH33: 25.5 | BI33: 35 | BJ33: 39 | BK33: 37 | BL33: 25 | BM33: 26 | BN33: 25.5
A34: 2018-06-26 | B34: 0.2 | C34: 0.21 | D34: 0.205 | I34: 2018-06-26 | J34: 23.5 | K34: 24.5 | L34: 24 | Q34: 2018-06-26 | R34: 91 | S34: 92 | T34: 91.5 | U34: 91 | V34: 92 | W34: 91.5 | AE34: 2018-06-26 | AF34: 35 | AG34: 39 | AH34: 37 | AI34: 25 | AJ34: 26 | AK34: 25.5 | AL34: 28 | AM34: 33 | AN34: 30.5 | AO34: 28 | AP34: 33 | AQ34: 30.5 | AR34: 30 | AS34: 35 | AT34: 32.5 | AU34: 28 | AV34: 33 | AW34: 30.5 | AX34: 24 | AY34: 26 | AZ34: 25 | BB34: 2018-06-26 | BC34: 35 | BD34: 39 | BE34: 37 | BF34: 25 | BG34: 26 | BH34: 25.5 | BI34: 35 | BJ34: 39 | BK34: 37 | BL34: 25 | BM34: 26 | BN34: 25.5
A35: 2018-06-27 | B35: 0.2 | C35: 0.21 | D35: 0.205 | I35: 2018-06-27 | J35: 23.5 | K35: 24.5 | L35: 24 | Q35: 2018-06-27 | R35: 91 | S35: 92 | T35: 91.5 | U35: 91 | V35: 92 | W35: 91.5 | AE35: 2018-06-27 | AF35: 35 | AG35: 39 | AH35: 37 | AI35: 25 | AJ35: 26 | AK35: 25.5 | AL35: 28 | AM35: 33 | AN35: 30.5 | AO35: 28 | AP35: 33 | AQ35: 30.5 | AR35: 30 | AS35: 35 | AT35: 32.5 | AU35: 28 | AV35: 33 | AW35: 30.5 | AX35: 24 | AY35: 26 | AZ35: 25 | BB35: 2018-06-27 | BC35: 35 | BD35: 39 | BE35: 37 | BF35: 25 | BG35: 26 | BH35: 25.5 | BI35: 35 | BJ35: 39 | BK35: 37 | BL35: 25 | BM35: 26 | BN35: 25.5
A36: 2018-06-28 | B36: 0.2 | C36: 0.21 | D36: 0.205 | I36: 2018-06-28 | J36: 23.5 | K36: 24.5 | L36: 24 | Q36: 2018-06-28 | R36: 91 | S36: 92 | T36: 91.5 | U36: 91 | V36: 92 | W36: 91.5 | AE36: 2018-06-28 | AF36: 35 | AG36: 39 | AH36: 37 | AI36: 25 | AJ36: 26 | AK36: 25.5 | AL36: 28 | AM36: 33 | AN36: 30.5 | AO36: 28 | AP36: 33 | AQ36: 30.5 | AR36: 30 | AS36: 35 | AT36: 32.5 | AU36: 28 | AV36: 33 | AW36: 30.5 | AX36: 24 | AY36: 26 | AZ36: 25 | BB36: 2018-06-28 | BC36: 35 | BD36: 39 | BE36: 37 | BF36: 25 | BG36: 26 | BH36: 25.5 | BI36: 35 | BJ36: 39 | BK36: 37 | BL36: 25 | BM36: 26 | BN36: 25.5
A37: 2018-06-29 | B37: 0.2 | C37: 0.21 | D37: 0.205 | I37: 2018-06-29 | J37: 23.5 | K37: 24.5 | L37: 24 | Q37: 2018-06-29 | R37: 91 | S37: 92 | T37: 91.5 | U37: 91 | V37: 92 | W37: 91.5 | AE37: 2018-06-29 | AF37: 35 | AG37: 39 | AH37: 37 | AI37: 25 | AJ37: 26 | AK37: 25.5 | AL37: 28 | AM37: 33 | AN37: 30.5 | AO37: 28 | AP37: 33 | AQ37: 30.5 | AR37: 30 | AS37: 35 | AT37: 32.5 | AU37: 28 | AV37: 33 | AW37: 30.5 | AX37: 24 | AY37: 26 | AZ37: 25 | BB37: 2018-06-29 | BC37: 35 | BD37: 39 | BE37: 37 | BF37: 25 | BG37: 26 | BH37: 25.5 | BI37: 35 | BJ37: 39 | BK37: 37 | BL37: 25 | BM37: 26 | BN37: 25.5
A38: 2018-07-02 | B38: 0.2 | C38: 0.21 | D38: 0.205 | I38: 2018-07-02 | J38: 23.5 | K38: 24.5 | L38: 24 | Q38: 2018-07-02 | R38: 91 | S38: 92 | T38: 91.5 | U38: 91 | V38: 92 | W38: 91.5 | AE38: 2018-07-02 | AF38: 35 | AG38: 39 | AH38: 37 | AI38: 25 | AJ38: 26 | AK38: 25.5 | AL38: 28 | AM38: 33 | AN38: 30.5 | AO38: 28 | AP38: 33 | AQ38: 30.5 | AR38: 30 | AS38: 35 | AT38: 32.5 | AU38: 28 | AV38: 33 | AW38: 30.5 | AX38: 24 | AY38: 26 | AZ38: 25 | BB38: 2018-07-02 | BC38: 35 | BD38: 39 | BE38: 37 | BF38: 25 | BG38: 26 | BH38: 25.5 | BI38: 35 | BJ38: 39 | BK38: 37 | BL38: 25 | BM38: 26 | BN38: 25.5
A39: 2018-07-03 | B39: 0.2 | C39: 0.21 | D39: 0.205 | I39: 2018-07-03 | J39: 23.5 | K39: 24.5 | L39: 24 | Q39: 2018-07-03 | R39: 91 | S39: 92 | T39: 91.5 | U39: 91 | V39: 92 | W39: 91.5 | AE39: 2018-07-03 | AF39: 35 | AG39: 39 | AH39: 37 | AI39: 25 | AJ39: 26 | AK39: 25.5 | AL39: 28 | AM39: 33 | AN39: 30.5 | AO39: 28 | AP39: 33 | AQ39: 30.5 | AR39: 30 | AS39: 35 | AT39: 32.5 | AU39: 28 | AV39: 33 | AW39: 30.5 | AX39: 24 | AY39: 26 | AZ39: 25 | BB39: 2018-07-03 | BC39: 35 | BD39: 39 | BE39: 37 | BF39: 25 | BG39: 26 | BH39: 25.5 | BI39: 35 | BJ39: 39 | BK39: 37 | BL39: 25 | BM39: 26 | BN39: 25.5
A40: 2018-07-04 | B40: 0.2 | C40: 0.21 | D40: 0.205 | I40: 2018-07-04 | J40: 23.5 | K40: 24.5 | L40: 24 | Q40: 2018-07-04 | R40: 91 | S40: 92 | T40: 91.5 | U40: 91 | V40: 92 | W40: 91.5 | AE40: 2018-07-04 | AF40: 35 | AG40: 39 | AH40: 37 | AI40: 25 | AJ40: 26 | AK40: 25.5 | AL40: 28 | AM40: 33 | AN40: 30.5 | AO40: 28 | AP40: 33 | AQ40: 30.5 | AR40: 30 | AS40: 35 | AT40: 32.5 | AU40: 28 | AV40: 33 | AW40: 30.5 | AX40: 24 | AY40: 26 | AZ40: 25 | BB40: 2018-07-04 | BC40: 35 | BD40: 39 | BE40: 37 | BF40: 25 | BG40: 26 | BH40: 25.5 | BI40: 35 | BJ40: 39 | BK40: 37 | BL40: 25 | BM40: 26 | BN40: 25.5
A41: 2018-07-05 | B41: 0.2 | C41: 0.21 | D41: 0.205 | I41: 2018-07-05 | J41: 23.5 | K41: 24.5 | L41: 24 | Q41: 2018-07-05 | R41: 91 | S41: 92 | T41: 91.5 | U41: 91 | V41: 92 | W41: 91.5 | AE41: 2018-07-05 | AF41: 35 | AG41: 39 | AH41: 37 | AI41: 25 | AJ41: 26 | AK41: 25.5 | AL41: 28 | AM41: 33 | AN41: 30.5 | AO41: 28 | AP41: 33 | AQ41: 30.5 | AR41: 30 | AS41: 35 | AT41: 32.5 | AU41: 28 | AV41: 33 | AW41: 30.5 | AX41: 24 | AY41: 26 | AZ41: 25 | BB41: 2018-07-05 | BC41: 35 | BD41: 39 | BE41: 37 | BF41: 25 | BG41: 26 | BH41: 25.5 | BI41: 35 | BJ41: 39 | BK41: 37 | BL41: 25 | BM41: 26 | BN41: 25.5
A42: 2018-07-06 | B42: 0.2 | C42: 0.21 | D42: 0.205 | I42: 2018-07-06 | J42: 23.5 | K42: 24.5 | L42: 24 | Q42: 2018-07-06 | R42: 91 | S42: 92 | T42: 91.5 | U42: 91 | V42: 92 | W42: 91.5 | AE42: 2018-07-06 | AF42: 35 | AG42: 39 | AH42: 37 | AI42: 25 | AJ42: 26 | AK42: 25.5 | AL42: 28 | AM42: 33 | AN42: 30.5 | AO42: 28 | AP42: 33 | AQ42: 30.5 | AR42: 30 | AS42: 35 | AT42: 32.5 | AU42: 28 | AV42: 33 | AW42: 30.5 | AX42: 24 | AY42: 26 | AZ42: 25 | BB42: 2018-07-06 | BC42: 35 | BD42: 39 | BE42: 37 | BF42: 25 | BG42: 26 | BH42: 25.5 | BI42: 35 | BJ42: 39 | BK42: 37 | BL42: 25 | BM42: 26 | BN42: 25.5
A43: 2018-07-09 | B43: 0.2 | C43: 0.21 | D43: 0.205 | I43: 2018-07-09 | J43: 23.5 | K43: 24.5 | L43: 24 | Q43: 2018-07-09 | R43: 91 | S43: 92 | T43: 91.5 | U43: 91 | V43: 92 | W43: 91.5 | AE43: 2018-07-09 | AF43: 35 | AG43: 39 | AH43: 37 | AI43: 25 | AJ43: 26 | AK43: 25.5 | AL43: 28 | AM43: 33 | AN43: 30.5 | AO43: 28 | AP43: 33 | AQ43: 30.5 | AR43: 30 | AS43: 35 | AT43: 32.5 | AU43: 28 | AV43: 33 | AW43: 30.5 | AX43: 24 | AY43: 26 | AZ43: 25 | BB43: 2018-07-09 | BC43: 35 | BD43: 39 | BE43: 37 | BF43: 25 | BG43: 26 | BH43: 25.5 | BI43: 35 | BJ43: 39 | BK43: 37 | BL43: 25 | BM43: 26 | BN43: 25.5
A44: 2018-07-10 | B44: 0.2 | C44: 0.21 | D44: 0.205 | I44: 2018-07-10 | J44: 23.5 | K44: 24.5 | L44: 24 | Q44: 2018-07-10 | R44: 91 | S44: 92 | T44: 91.5 | U44: 91 | V44: 92 | W44: 91.5 | AE44: 2018-07-10 | AF44: 35 | AG44: 39 | AH44: 37 | AI44: 25 | AJ44: 26 | AK44: 25.5 | AL44: 28 | AM44: 33 | AN44: 30.5 | AO44: 28 | AP44: 33 | AQ44: 30.5 | AR44: 30 | AS44: 35 | AT44: 32.5 | AU44: 28 | AV44: 33 | AW44: 30.5 | AX44: 24 | AY44: 26 | AZ44: 25 | BB44: 2018-07-10 | BC44: 35 | BD44: 39 | BE44: 37 | BF44: 25 | BG44: 26 | BH44: 25.5 | BI44: 35 | BJ44: 39 | BK44: 37 | BL44: 25 | BM44: 26 | BN44: 25.5
A45: 2018-07-11 | B45: 0.2 | C45: 0.21 | D45: 0.205 | I45: 2018-07-11 | J45: 23.5 | K45: 24.5 | L45: 24 | Q45: 2018-07-11 | R45: 91 | S45: 92 | T45: 91.5 | U45: 91 | V45: 92 | W45: 91.5 | AE45: 2018-07-11 | AF45: 35 | AG45: 39 | AH45: 37 | AI45: 25 | AJ45: 26 | AK45: 25.5 | AL45: 28 | AM45: 33 | AN45: 30.5 | AO45: 28 | AP45: 33 | AQ45: 30.5 | AR45: 30 | AS45: 35 | AT45: 32.5 | AU45: 28 | AV45: 33 | AW45: 30.5 | AX45: 24 | AY45: 26 | AZ45: 25 | BB45: 2018-07-11 | BC45: 35 | BD45: 39 | BE45: 37 | BF45: 25 | BG45: 26 | BH45: 25.5 | BI45: 35 | BJ45: 39 | BK45: 37 | BL45: 25 | BM45: 26 | BN45: 25.5
A46: 2018-07-12 | B46: 0.2 | C46: 0.21 | D46: 0.205 | I46: 2018-07-12 | J46: 23.5 | K46: 24.5 | L46: 24 | Q46: 2018-07-12 | R46: 91 | S46: 92 | T46: 91.5 | U46: 91 | V46: 92 | W46: 91.5 | AE46: 2018-07-12 | AF46: 35 | AG46: 39 | AH46: 37 | AI46: 25 | AJ46: 26 | AK46: 25.5 | AL46: 28 | AM46: 33 | AN46: 30.5 | AO46: 28 | AP46: 33 | AQ46: 30.5 | AR46: 30 | AS46: 35 | AT46: 32.5 | AU46: 28 | AV46: 33 | AW46: 30.5 | AX46: 24 | AY46: 26 | AZ46: 25 | BB46: 2018-07-12 | BC46: 35 | BD46: 39 | BE46: 37 | BF46: 25 | BG46: 26 | BH46: 25.5 | BI46: 35 | BJ46: 39 | BK46: 37 | BL46: 25 | BM46: 26 | BN46: 25.5
A47: 2018-07-13 | B47: 0.2 | C47: 0.21 | D47: 0.205 | I47: 2018-07-13 | J47: 23.5 | K47: 24.5 | L47: 24 | Q47: 2018-07-13 | R47: 91 | S47: 92 | T47: 91.5 | U47: 91 | V47: 92 | W47: 91.5 | AE47: 2018-07-13 | AF47: 35 | AG47: 39 | AH47: 37 | AI47: 25 | AJ47: 26 | AK47: 25.5 | AL47: 28 | AM47: 33 | AN47: 30.5 | AO47: 28 | AP47: 33 | AQ47: 30.5 | AR47: 30 | AS47: 35 | AT47: 32.5 | AU47: 28 | AV47: 33 | AW47: 30.5 | AX47: 24 | AY47: 26 | AZ47: 25 | BB47: 2018-07-13 | BC47: 35 | BD47: 39 | BE47: 37 | BF47: 25 | BG47: 26 | BH47: 25.5 | BI47: 35 | BJ47: 39 | BK47: 37 | BL47: 25 | BM47: 26 | BN47: 25.5
A48: 2018-07-16 | B48: 0.2 | C48: 0.21 | D48: 0.205 | I48: 2018-07-16 | J48: 23.5 | K48: 24.5 | L48: 24 | Q48: 2018-07-16 | R48: 91 | S48: 92 | T48: 91.5 | U48: 91 | V48: 92 | W48: 91.5 | AE48: 2018-07-16 | AF48: 35 | AG48: 39 | AH48: 37 | AI48: 25 | AJ48: 26 | AK48: 25.5 | AL48: 28 | AM48: 33 | AN48: 30.5 | AO48: 28 | AP48: 33 | AQ48: 30.5 | AR48: 30 | AS48: 35 | AT48: 32.5 | AU48: 28 | AV48: 33 | AW48: 30.5 | AX48: 24 | AY48: 26 | AZ48: 25 | BB48: 2018-07-16 | BC48: 35 | BD48: 39 | BE48: 37 | BF48: 25 | BG48: 26 | BH48: 25.5 | BI48: 35 | BJ48: 39 | BK48: 37 | BL48: 25 | BM48: 26 | BN48: 25.5
A49: 2018-07-17 | B49: 0.2 | C49: 0.21 | D49: 0.205 | I49: 2018-07-17 | J49: 23.5 | K49: 24.5 | L49: 24 | Q49: 2018-07-17 | R49: 91 | S49: 92 | T49: 91.5 | U49: 91 | V49: 92 | W49: 91.5 | AE49: 2018-07-17 | AF49: 35 | AG49: 39 | AH49: 37 | AI49: 25 | AJ49: 26 | AK49: 25.5 | AL49: 28 | AM49: 33 | AN49: 30.5 | AO49: 28 | AP49: 33 | AQ49: 30.5 | AR49: 30 | AS49: 35 | AT49: 32.5 | AU49: 28 | AV49: 33 | AW49: 30.5 | AX49: 24 | AY49: 26 | AZ49: 25 | BB49: 2018-07-17 | BC49: 35 | BD49: 39 | BE49: 37 | BF49: 25 | BG49: 26 | BH49: 25.5 | BI49: 35 | BJ49: 39 | BK49: 37 | BL49: 25 | BM49: 26 | BN49: 25.5
A50: 2018-07-18 | B50: 0.2 | C50: 0.21 | D50: 0.205 | I50: 2018-07-18 | J50: 23.5 | K50: 24.5 | L50: 24 | Q50: 2018-07-18 | R50: 91 | S50: 92 | T50: 91.5 | U50: 91 | V50: 92 | W50: 91.5 | AE50: 2018-07-18 | AF50: 35 | AG50: 39 | AH50: 37 | AI50: 25 | AJ50: 26 | AK50: 25.5 | AL50: 28 | AM50: 33 | AN50: 30.5 | AO50: 28 | AP50: 33 | AQ50: 30.5 | AR50: 30 | AS50: 35 | AT50: 32.5 | AU50: 28 | AV50: 33 | AW50: 30.5 | AX50: 24 | AY50: 26 | AZ50: 25 | BB50: 2018-07-18 | BC50: 35 | BD50: 39 | BE50: 37 | BF50: 25 | BG50: 26 | BH50: 25.5 | BI50: 35 | BJ50: 39 | BK50: 37 | BL50: 25 | BM50: 26 | BN50: 25.5
A51: 2018-07-19 | B51: 0.2 | C51: 0.21 | D51: 0.205 | I51: 2018-07-19 | J51: 23.5 | K51: 24.5 | L51: 24 | Q51: 2018-07-19 | R51: 91 | S51: 92 | T51: 91.5 | U51: 91 | V51: 92 | W51: 91.5 | AE51: 2018-07-19 | AF51: 35 | AG51: 39 | AH51: 37 | AI51: 25 | AJ51: 26 | AK51: 25.5 | AL51: 28 | AM51: 33 | AN51: 30.5 | AO51: 28 | AP51: 33 | AQ51: 30.5 | AR51: 30 | AS51: 35 | AT51: 32.5 | AU51: 28 | AV51: 33 | AW51: 30.5 | AX51: 24 | AY51: 26 | AZ51: 25 | BB51: 2018-07-19 | BC51: 35 | BD51: 39 | BE51: 37 | BF51: 25 | BG51: 26 | BH51: 25.5 | BI51: 35 | BJ51: 39 | BK51: 37 | BL51: 25 | BM51: 26 | BN51: 25.5
A52: 2018-07-20 | B52: 0.2 | C52: 0.21 | D52: 0.205 | I52: 2018-07-20 | J52: 23.5 | K52: 24.5 | L52: 24 | Q52: 2018-07-20 | R52: 91 | S52: 92 | T52: 91.5 | U52: 91 | V52: 92 | W52: 91.5 | AE52: 2018-07-20 | AF52: 35 | AG52: 39 | AH52: 37 | AI52: 25 | AJ52: 26 | AK52: 25.5 | AL52: 28 | AM52: 33 | AN52: 30.5 | AO52: 28 | AP52: 33 | AQ52: 30.5 | AR52: 30 | AS52: 35 | AT52: 32.5 | AU52: 28 | AV52: 33 | AW52: 30.5 | AX52: 24 | AY52: 26 | AZ52: 25 | BB52: 2018-07-20 | BC52: 35 | BD52: 39 | BE52: 37 | BF52: 25 | BG52: 26 | BH52: 25.5 | BI52: 35 | BJ52: 39 | BK52: 37 | BL52: 25 | BM52: 26 | BN52: 25.5
A53: 2018-07-23 | B53: 0.2 | C53: 0.21 | D53: 0.205 | I53: 2018-07-23 | J53: 23 | K53: 24 | L53: 23.5 | Q53: 2018-07-23 | R53: 91 | S53: 92 | T53: 91.5 | U53: 91 | V53: 92 | W53: 91.5 | AE53: 2018-07-23 | AF53: 35 | AG53: 39 | AH53: 37 | AI53: 25 | AJ53: 26 | AK53: 25.5 | AL53: 28 | AM53: 33 | AN53: 30.5 | AO53: 28 | AP53: 33 | AQ53: 30.5 | AR53: 30 | AS53: 35 | AT53: 32.5 | AU53: 28 | AV53: 33 | AW53: 30.5 | AX53: 24 | AY53: 26 | AZ53: 25 | BB53: 2018-07-23 | BC53: 35 | BD53: 39 | BE53: 37 | BF53: 25 | BG53: 26 | BH53: 25.5 | BI53: 35 | BJ53: 39 | BK53: 37 | BL53: 25 | BM53: 26 | BN53: 25.5
A54: 2018-07-24 | B54: 0.2 | C54: 0.21 | D54: 0.205 | I54: 2018-07-24 | J54: 23 | K54: 24 | L54: 23.5 | Q54: 2018-07-24 | R54: 91 | S54: 92 | T54: 91.5 | U54: 91 | V54: 92 | W54: 91.5 | AE54: 2018-07-24 | AF54: 35 | AG54: 39 | AH54: 37 | AI54: 25 | AJ54: 26 | AK54: 25.5 | AL54: 28 | AM54: 33 | AN54: 30.5 | AO54: 28 | AP54: 33 | AQ54: 30.5 | AR54: 30 | AS54: 35 | AT54: 32.5 | AU54: 28 | AV54: 33 | AW54: 30.5 | AX54: 24 | AY54: 26 | AZ54: 25 | BB54: 2018-07-24 | BC54: 35 | BD54: 39 | BE54: 37 | BF54: 25 | BG54: 26 | BH54: 25.5 | BI54: 35 | BJ54: 39 | BK54: 37 | BL54: 25 | BM54: 26 | BN54: 25.5
A55: 2018-07-25 | B55: 0.2 | C55: 0.21 | D55: 0.205 | I55: 2018-07-25 | J55: 23 | K55: 24 | L55: 23.5 | Q55: 2018-07-25 | R55: 91 | S55: 92 | T55: 91.5 | U55: 91 | V55: 92 | W55: 91.5 | AE55: 2018-07-25 | AF55: 35 | AG55: 39 | AH55: 37 | AI55: 25 | AJ55: 26 | AK55: 25.5 | AL55: 28 | AM55: 33 | AN55: 30.5 | AO55: 28 | AP55: 33 | AQ55: 30.5 | AR55: 30 | AS55: 35 | AT55: 32.5 | AU55: 28 | AV55: 33 | AW55: 30.5 | AX55: 24 | AY55: 26 | AZ55: 25 | BB55: 2018-07-25 | BC55: 35 | BD55: 39 | BE55: 37 | BF55: 25 | BG55: 26 | BH55: 25.5 | BI55: 35 | BJ55: 39 | BK55: 37 | BL55: 25 | BM55: 26 | BN55: 25.5
A56: 2018-07-26 | B56: 0.2 | C56: 0.21 | D56: 0.205 | I56: 2018-07-26 | J56: 23 | K56: 24 | L56: 23.5 | Q56: 2018-07-26 | R56: 91 | S56: 92 | T56: 91.5 | U56: 91 | V56: 92 | W56: 91.5 | AE56: 2018-07-26 | AF56: 35 | AG56: 39 | AH56: 37 | AI56: 25 | AJ56: 26 | AK56: 25.5 | AL56: 28 | AM56: 33 | AN56: 30.5 | AO56: 28 | AP56: 33 | AQ56: 30.5 | AR56: 30 | AS56: 35 | AT56: 32.5 | AU56: 28 | AV56: 33 | AW56: 30.5 | AX56: 24 | AY56: 26 | AZ56: 25 | BB56: 2018-07-26 | BC56: 35 | BD56: 39 | BE56: 37 | BF56: 25 | BG56: 26 | BH56: 25.5 | BI56: 35 | BJ56: 39 | BK56: 37 | BL56: 25 | BM56: 26 | BN56: 25.5
A57: 2018-07-27 | B57: 0.2 | C57: 0.21 | D57: 0.205 | I57: 2018-07-27 | J57: 23 | K57: 24 | L57: 23.5 | Q57: 2018-07-27 | R57: 91 | S57: 92 | T57: 91.5 | U57: 91 | V57: 92 | W57: 91.5 | AE57: 2018-07-27 | AF57: 35 | AG57: 39 | AH57: 37 | AI57: 25 | AJ57: 26 | AK57: 25.5 | AL57: 28 | AM57: 33 | AN57: 30.5 | AO57: 28 | AP57: 33 | AQ57: 30.5 | AR57: 30 | AS57: 35 | AT57: 32.5 | AU57: 28 | AV57: 33 | AW57: 30.5 | AX57: 24 | AY57: 26 | AZ57: 25 | BB57: 2018-07-27 | BC57: 35 | BD57: 39 | BE57: 37 | BF57: 25 | BG57: 26 | BH57: 25.5 | BI57: 35 | BJ57: 39 | BK57: 37 | BL57: 25 | BM57: 26 | BN57: 25.5
A58: 2018-07-30 | B58: 0.2 | C58: 0.21 | D58: 0.205 | I58: 2018-07-30 | J58: 23 | K58: 24 | L58: 23.5 | Q58: 2018-07-30 | R58: 91 | S58: 92 | T58: 91.5 | U58: 91 | V58: 92 | W58: 91.5 | AE58: 2018-07-30 | AF58: 35 | AG58: 39 | AH58: 37 | AI58: 25 | AJ58: 26 | AK58: 25.5 | AL58: 28 | AM58: 33 | AN58: 30.5 | AO58: 28 | AP58: 33 | AQ58: 30.5 | AR58: 30 | AS58: 35 | AT58: 32.5 | AU58: 28 | AV58: 33 | AW58: 30.5 | AX58: 24 | AY58: 26 | AZ58: 25 | BB58: 2018-07-30 | BC58: 35 | BD58: 39 | BE58: 37 | BF58: 25 | BG58: 26 | BH58: 25.5 | BI58: 35 | BJ58: 39 | BK58: 37 | BL58: 25 | BM58: 26 | BN58: 25.5
A59: 2018-07-31 | B59: 0.2 | C59: 0.21 | D59: 0.205 | I59: 2018-07-31 | J59: 23 | K59: 24 | L59: 23.5 | Q59: 2018-07-31 | R59: 91 | S59: 92 | T59: 91.5 | U59: 91 | V59: 92 | W59: 91.5 | AE59: 2018-07-31 | AF59: 35 | AG59: 39 | AH59: 37 | AI59: 25 | AJ59: 26 | AK59: 25.5 | AL59: 28 | AM59: 33 | AN59: 30.5 | AO59: 28 | AP59: 33 | AQ59: 30.5 | AR59: 30 | AS59: 35 | AT59: 32.5 | AU59: 28 | AV59: 33 | AW59: 30.5 | AX59: 24 | AY59: 26 | AZ59: 25 | BB59: 2018-07-31 | BC59: 35 | BD59: 39 | BE59: 37 | BF59: 25 | BG59: 26 | BH59: 25.5 | BI59: 35 | BJ59: 39 | BK59: 37 | BL59: 25 | BM59: 26 | BN59: 25.5
A60: 2018-08-01 | B60: 0.2 | C60: 0.21 | D60: 0.205 | I60: 2018-08-01 | J60: 23 | K60: 24 | L60: 23.5 | Q60: 2018-08-01 | R60: 91 | S60: 92 | T60: 91.5 | U60: 91 | V60: 92 | W60: 91.5 | AE60: 2018-08-01 | AF60: 35 | AG60: 39 | AH60: 37 | AI60: 25 | AJ60: 26 | AK60: 25.5 | AL60: 28 | AM60: 33 | AN60: 30.5 | AO60: 28 | AP60: 33 | AQ60: 30.5 | AR60: 30 | AS60: 35 | AT60: 32.5 | AU60: 28 | AV60: 33 | AW60: 30.5 | AX60: 24 | AY60: 26 | AZ60: 25 | BB60: 2018-08-01 | BC60: 35 | BD60: 39 | BE60: 37 | BF60: 25 | BG60: 26 | BH60: 25.5 | BI60: 35 | BJ60: 39 | BK60: 37 | BL60: 25 | BM60: 26 | BN60: 25.5
A61: 2018-08-02 | B61: 0.2 | C61: 0.21 | D61: 0.205 | I61: 2018-08-02 | J61: 23 | K61: 24 | L61: 23.5 | Q61: 2018-08-02 | R61: 91 | S61: 92 | T61: 91.5 | U61: 91 | V61: 92 | W61: 91.5 | AE61: 2018-08-02 | AF61: 35 | AG61: 39 | AH61: 37 | AI61: 25 | AJ61: 26 | AK61: 25.5 | AL61: 28 | AM61: 33 | AN61: 30.5 | AO61: 28 | AP61: 33 | AQ61: 30.5 | AR61: 30 | AS61: 35 | AT61: 32.5 | AU61: 28 | AV61: 33 | AW61: 30.5 | AX61: 24 | AY61: 26 | AZ61: 25 | BB61: 2018-08-02 | BC61: 35 | BD61: 39 | BE61: 37 | BF61: 25 | BG61: 26 | BH61: 25.5 | BI61: 35 | BJ61: 39 | BK61: 37 | BL61: 25 | BM61: 26 | BN61: 25.5
A62: 2018-08-03 | B62: 0.2 | C62: 0.21 | D62: 0.205 | I62: 2018-08-03 | J62: 23 | K62: 24 | L62: 23.5 | Q62: 2018-08-03 | R62: 91 | S62: 92 | T62: 91.5 | U62: 91 | V62: 92 | W62: 91.5 | AE62: 2018-08-03 | AF62: 35 | AG62: 39 | AH62: 37 | AI62: 25 | AJ62: 26 | AK62: 25.5 | AL62: 28 | AM62: 33 | AN62: 30.5 | AO62: 28 | AP62: 33 | AQ62: 30.5 | AR62: 30 | AS62: 35 | AT62: 32.5 | AU62: 28 | AV62: 33 | AW62: 30.5 | AX62: 24 | AY62: 26 | AZ62: 25 | BB62: 2018-08-03 | BC62: 35 | BD62: 39 | BE62: 37 | BF62: 25 | BG62: 26 | BH62: 25.5 | BI62: 35 | BJ62: 39 | BK62: 37 | BL62: 25 | BM62: 26 | BN62: 25.5
A63: 2018-08-06 | B63: 0.2 | C63: 0.21 | D63: 0.205 | I63: 2018-08-06 | J63: 23 | K63: 24 | L63: 23.5 | Q63: 2018-08-06 | R63: 91 | S63: 92 | T63: 91.5 | U63: 91 | V63: 92 | W63: 91.5 | AE63: 2018-08-06 | AF63: 35 | AG63: 39 | AH63: 37 | AI63: 25 | AJ63: 26 | AK63: 25.5 | AL63: 28 | AM63: 33 | AN63: 30.5 | AO63: 28 | AP63: 33 | AQ63: 30.5 | AR63: 30 | AS63: 35 | AT63: 32.5 | AU63: 28 | AV63: 33 | AW63: 30.5 | AX63: 24 | AY63: 26 | AZ63: 25 | BB63: 2018-08-06 | BC63: 35 | BD63: 39 | BE63: 37 | BF63: 25 | BG63: 26 | BH63: 25.5 | BI63: 35 | BJ63: 39 | BK63: 37 | BL63: 25 | BM63: 26 | BN63: 25.5
A64: 2018-08-07 | B64: 0.2 | C64: 0.21 | D64: 0.205 | I64: 2018-08-07 | J64: 23 | K64: 24 | L64: 23.5 | Q64: 2018-08-07 | R64: 91 | S64: 92 | T64: 91.5 | U64: 91 | V64: 92 | W64: 91.5 | AE64: 2018-08-07 | AF64: 35 | AG64: 39 | AH64: 37 | AI64: 25 | AJ64: 26 | AK64: 25.5 | AL64: 28 | AM64: 33 | AN64: 30.5 | AO64: 28 | AP64: 33 | AQ64: 30.5 | AR64: 30 | AS64: 35 | AT64: 32.5 | AU64: 28 | AV64: 33 | AW64: 30.5 | AX64: 24 | AY64: 26 | AZ64: 25 | BB64: 2018-08-07 | BC64: 35 | BD64: 39 | BE64: 37 | BF64: 25 | BG64: 26 | BH64: 25.5 | BI64: 35 | BJ64: 39 | BK64: 37 | BL64: 25 | BM64: 26 | BN64: 25.5
A65: 2018-08-08 | B65: 0.2 | C65: 0.21 | D65: 0.205 | I65: 2018-08-08 | J65: 23 | K65: 24 | L65: 23.5 | Q65: 2018-08-08 | R65: 91 | S65: 92 | T65: 91.5 | U65: 91 | V65: 92 | W65: 91.5 | AE65: 2018-08-08 | AF65: 35 | AG65: 39 | AH65: 37 | AI65: 25 | AJ65: 26 | AK65: 25.5 | AL65: 28 | AM65: 33 | AN65: 30.5 | AO65: 28 | AP65: 33 | AQ65: 30.5 | AR65: 30 | AS65: 35 | AT65: 32.5 | AU65: 28 | AV65: 33 | AW65: 30.5 | AX65: 24 | AY65: 26 | AZ65: 25 | BB65: 2018-08-08 | BC65: 35 | BD65: 39 | BE65: 37 | BF65: 25 | BG65: 26 | BH65: 25.5 | BI65: 35 | BJ65: 39 | BK65: 37 | BL65: 25 | BM65: 26 | BN65: 25.5
A66: 2018-08-09 | B66: 0.2 | C66: 0.21 | D66: 0.205 | I66: 2018-08-09 | J66: 23 | K66: 24 | L66: 23.5 | Q66: 2018-08-09 | R66: 91 | S66: 92 | T66: 91.5 | U66: 91 | V66: 92 | W66: 91.5 | AE66: 2018-08-09 | AF66: 35 | AG66: 39 | AH66: 37 | AI66: 25 | AJ66: 26 | AK66: 25.5 | AL66: 28 | AM66: 33 | AN66: 30.5 | AO66: 28 | AP66: 33 | AQ66: 30.5 | AR66: 30 | AS66: 35 | AT66: 32.5 | AU66: 28 | AV66: 33 | AW66: 30.5 | AX66: 24 | AY66: 26 | AZ66: 25 | BB66: 2018-08-09 | BC66: 35 | BD66: 39 | BE66: 37 | BF66: 25 | BG66: 26 | BH66: 25.5 | BI66: 35 | BJ66: 39 | BK66: 37 | BL66: 25 | BM66: 26 | BN66: 25.5
A67: 2018-08-10 | B67: 0.2 | C67: 0.21 | D67: 0.205 | I67: 2018-08-10 | J67: 23 | K67: 24 | L67: 23.5 | Q67: 2018-08-10 | R67: 91 | S67: 92 | T67: 91.5 | U67: 91 | V67: 92 | W67: 91.5 | AE67: 2018-08-10 | AF67: 35 | AG67: 39 | AH67: 37 | AI67: 25 | AJ67: 26 | AK67: 25.5 | AL67: 28 | AM67: 33 | AN67: 30.5 | AO67: 28 | AP67: 33 | AQ67: 30.5 | AR67: 30 | AS67: 35 | AT67: 32.5 | AU67: 28 | AV67: 33 | AW67: 30.5 | AX67: 24 | AY67: 26 | AZ67: 25 | BB67: 2018-08-10 | BC67: 35 | BD67: 39 | BE67: 37 | BF67: 25 | BG67: 26 | BH67: 25.5 | BI67: 35 | BJ67: 39 | BK67: 37 | BL67: 25 | BM67: 26 | BN67: 25.5
A68: 2018-08-13 | B68: 0.2 | C68: 0.21 | D68: 0.205 | I68: 2018-08-13 | J68: 23 | K68: 24 | L68: 23.5 | Q68: 2018-08-13 | R68: 91 | S68: 92 | T68: 91.5 | U68: 91 | V68: 92 | W68: 91.5 | AE68: 2018-08-13 | AF68: 35 | AG68: 39 | AH68: 37 | AI68: 25 | AJ68: 26 | AK68: 25.5 | AL68: 28 | AM68: 33 | AN68: 30.5 | AO68: 28 | AP68: 33 | AQ68: 30.5 | AR68: 30 | AS68: 35 | AT68: 32.5 | AU68: 28 | AV68: 33 | AW68: 30.5 | AX68: 24 | AY68: 26 | AZ68: 25 | BB68: 2018-08-13 | BC68: 35 | BD68: 39 | BE68: 37 | BF68: 25 | BG68: 26 | BH68: 25.5 | BI68: 35 | BJ68: 39 | BK68: 37 | BL68: 25 | BM68: 26 | BN68: 25.5
A69: 2018-08-14 | B69: 0.2 | C69: 0.21 | D69: =(B69+C69)/2 -> 0.205 | I69: 2018-08-14 | J69: 23 | K69: 24 | L69: =AVERAGE(J69:K69) -> 23.5 | Q69: 2018-08-14 | R69: 91 | S69: 92 | T69: =AVERAGE(R69:S69) -> 91.5 | U69: 91 | V69: 92 | W69: =AVERAGE(U69:V69) -> 91.5 | AE69: 2018-08-14 | AF69: 35 | AG69: 39 | AH69: =AVERAGE(AF69:AG69) -> 37 | AI69: 25 | AJ69: 26 | AK69: =AVERAGE(AI69:AJ69) -> 25.5 | AL69: 28 | AM69: 33 | AN69: =AVERAGE(AL69:AM69) -> 30.5 | AO69: 28 | AP69: 33 | AQ69: =AVERAGE(AO69:AP69) -> 30.5 | AR69: 30 | AS69: 35 | AT69: =AVERAGE(AR69:AS69) -> 32.5 | AU69: 28 | AV69: 33 | AW69: =AVERAGE(AU69:AV69) -> 30.5 | AX69: 24 | AY69: 26 | AZ69: =AVERAGE(AX69:AY69) -> 25 | BB69: 2018-08-14 | BC69: 35 | BD69: 39 | BE69: =AVERAGE(BC69:BD69) -> 37 | BF69: 25 | BG69: 26 | BH69: =AVERAGE(BF69:BG69) -> 25.5 | BI69: 35 | BJ69: 39 | BK69: =AVERAGE(BI69:BJ69) -> 37 | BL69: 25 | BM69: 26 | BN69: =AVERAGE(BL69:BM69) -> 25.5
A70: 2018-08-15 | B70: 0.2 | C70: 0.21 | D70: 0.205 | I70: 2018-08-15 | J70: 23.5 | K70: 24.5 | L70: 24 | Q70: 2018-08-15 | R70: 91 | S70: 92 | T70: 91.5 | U70: 91 | V70: 92 | W70: 91.5 | AE70: 2018-08-15 | AF70: 35 | AG70: 39 | AH70: 37 | AI70: 25 | AJ70: 26 | AK70: 25.5 | AL70: 28 | AM70: 33 | AN70: 30.5 | AO70: 28 | AP70: 33 | AQ70: 30.5 | AR70: 30 | AS70: 35 | AT70: 32.5 | AU70: 28 | AV70: 33 | AW70: 30.5 | AX70: 24 | AY70: 26 | AZ70: 25 | BB70: 2018-08-15 | BC70: 35 | BD70: 39 | BE70: 37 | BF70: 25 | BG70: 26 | BH70: 25.5 | BI70: 35 | BJ70: 39 | BK70: 37 | BL70: 25 | BM70: 26 | BN70: 25.5
A71: 2018-08-16 | B71: 0.2 | C71: 0.21 | D71: 0.205 | I71: 2018-08-16 | J71: 23.5 | K71: 24.5 | L71: 24 | Q71: 2018-08-16 | R71: 91 | S71: 92 | T71: 91.5 | U71: 91 | V71: 92 | W71: 91.5 | AE71: 2018-08-16 | AF71: 35 | AG71: 39 | AH71: 37 | AI71: 25 | AJ71: 26 | AK71: 25.5 | AL71: 28 | AM71: 33 | AN71: 30.5 | AO71: 28 | AP71: 33 | AQ71: 30.5 | AR71: 30 | AS71: 35 | AT71: 32.5 | AU71: 28 | AV71: 33 | AW71: 30.5 | AX71: 24 | AY71: 26 | AZ71: 25 | BB71: 2018-08-16 | BC71: 35 | BD71: 39 | BE71: 37 | BF71: 25 | BG71: 26 | BH71: 25.5 | BI71: 35 | BJ71: 39 | BK71: 37 | BL71: 25 | BM71: 26 | BN71: 25.5
A72: 2018-08-17 | B72: 0.2 | C72: 0.21 | D72: 0.205 | I72: 2018-08-17 | J72: 23.5 | K72: 24.5 | L72: 24 | Q72: 2018-08-17 | R72: 90 | S72: 91 | T72: 90.5 | U72: 90 | V72: 91 | W72: 90.5 | AE72: 2018-08-17 | AF72: 35 | AG72: 39 | AH72: 37 | AI72: 25 | AJ72: 26 | AK72: 25.5 | AL72: 28 | AM72: 33 | AN72: 30.5 | AO72: 28 | AP72: 33 | AQ72: 30.5 | AR72: 30 | AS72: 35 | AT72: 32.5 | AU72: 28 | AV72: 33 | AW72: 30.5 | AX72: 24 | AY72: 26 | AZ72: 25 | BB72: 2018-08-17 | BC72: 35 | BD72: 39 | BE72: 37 | BF72: 25 | BG72: 26 | BH72: 25.5 | BI72: 35 | BJ72: 39 | BK72: 37 | BL72: 25 | BM72: 26 | BN72: 25.5
A73: 2018-08-20 | B73: 0.2 | C73: 0.21 | D73: 0.205 | I73: 2018-08-20 | J73: 23.5 | K73: 24.5 | L73: 24 | Q73: 2018-08-20 | R73: 90 | S73: 91 | T73: 90.5 | U73: 90 | V73: 91 | W73: 90.5 | AE73: 2018-08-20 | AF73: 35 | AG73: 39 | AH73: 37 | AI73: 25 | AJ73: 26 | AK73: 25.5 | AL73: 28 | AM73: 33 | AN73: 30.5 | AO73: 28 | AP73: 33 | AQ73: 30.5 | AR73: 30 | AS73: 35 | AT73: 32.5 | AU73: 28 | AV73: 33 | AW73: 30.5 | AX73: 24 | AY73: 26 | AZ73: 25 | BB73: 2018-08-20 | BC73: 35 | BD73: 39 | BE73: 37 | BF73: 25 | BG73: 26 | BH73: 25.5 | BI73: 35 | BJ73: 39 | BK73: 37 | BL73: 25 | BM73: 26 | BN73: 25.5
A74: 2018-08-21 | B74: 0.2 | C74: 0.21 | D74: 0.205 | I74: 2018-08-21 | J74: 23.5 | K74: 24.5 | L74: 24 | Q74: 2018-08-21 | R74: 90 | S74: 91 | T74: 90.5 | U74: 90 | V74: 91 | W74: 90.5 | AE74: 2018-08-21 | AF74: 35 | AG74: 39 | AH74: 37 | AI74: 25 | AJ74: 26 | AK74: 25.5 | AL74: 28 | AM74: 33 | AN74: 30.5 | AO74: 28 | AP74: 33 | AQ74: 30.5 | AR74: 30 | AS74: 35 | AT74: 32.5 | AU74: 28 | AV74: 33 | AW74: 30.5 | AX74: 24 | AY74: 26 | AZ74: 25 | BB74: 2018-08-21 | BC74: 35 | BD74: 39 | BE74: 37 | BF74: 25 | BG74: 26 | BH74: 25.5 | BI74: 35 | BJ74: 39 | BK74: 37 | BL74: 25 | BM74: 26 | BN74: 25.5
A75: 2018-08-22 | B75: 0.2 | C75: 0.21 | D75: 0.205 | I75: 2018-08-22 | J75: 23.5 | K75: 24.5 | L75: 24 | Q75: 2018-08-22 | R75: 90 | S75: 91 | T75: 90.5 | U75: 90 | V75: 91 | W75: 90.5 | AE75: 2018-08-22 | AF75: 35 | AG75: 39 | AH75: 37 | AI75: 25 | AJ75: 26 | AK75: 25.5 | AL75: 28 | AM75: 33 | AN75: 30.5 | AO75: 28 | AP75: 33 | AQ75: 30.5 | AR75: 30 | AS75: 35 | AT75: 32.5 | AU75: 28 | AV75: 33 | AW75: 30.5 | AX75: 24 | AY75: 26 | AZ75: 25 | BB75: 2018-08-22 | BC75: 35 | BD75: 39 | BE75: 37 | BF75: 25 | BG75: 26 | BH75: 25.5 | BI75: 35 | BJ75: 39 | BK75: 37 | BL75: 25 | BM75: 26 | BN75: 25.5
A76: 2018-08-23 | B76: 0.2 | C76: 0.21 | D76: 0.205 | I76: 2018-08-23 | J76: 23.5 | K76: 24.5 | L76: 24 | Q76: 2018-08-23 | R76: 90 | S76: 91 | T76: 90.5 | U76: 90 | V76: 91 | W76: 90.5 | AE76: 2018-08-23 | AF76: 35 | AG76: 39 | AH76: 37 | AI76: 25 | AJ76: 26 | AK76: 25.5 | AL76: 28 | AM76: 33 | AN76: 30.5 | AO76: 28 | AP76: 33 | AQ76: 30.5 | AR76: 30 | AS76: 35 | AT76: 32.5 | AU76: 28 | AV76: 33 | AW76: 30.5 | AX76: 24 | AY76: 26 | AZ76: 25 | BB76: 2018-08-23 | BC76: 35 | BD76: 39 | BE76: 37 | BF76: 25 | BG76: 26 | BH76: 25.5 | BI76: 35 | BJ76: 39 | BK76: 37 | BL76: 25 | BM76: 26 | BN76: 25.5
A77: 2018-08-24 | B77: 0.2 | C77: 0.21 | D77: 0.205 | I77: 2018-08-24 | J77: 23.5 | K77: 24.5 | L77: 24 | Q77: 2018-08-24 | R77: 90 | S77: 91 | T77: 90.5 | U77: 90 | V77: 91 | W77: 90.5 | AE77: 2018-08-24 | AF77: 35 | AG77: 39 | AH77: 37 | AI77: 25 | AJ77: 26 | AK77: 25.5 | AL77: 28 | AM77: 33 | AN77: 30.5 | AO77: 28 | AP77: 33 | AQ77: 30.5 | AR77: 30 | AS77: 35 | AT77: 32.5 | AU77: 28 | AV77: 33 | AW77: 30.5 | AX77: 24 | AY77: 26 | AZ77: 25 | BB77: 2018-08-24 | BC77: 35 | BD77: 39 | BE77: 37 | BF77: 25 | BG77: 26 | BH77: 25.5 | BI77: 35 | BJ77: 39 | BK77: 37 | BL77: 25 | BM77: 26 | BN77: 25.5
A78: 2018-08-27 | B78: 0.2 | C78: 0.21 | D78: 0.205 | I78: 2018-08-27 | J78: 23.5 | K78: 24.5 | L78: 24 | Q78: 2018-08-27 | R78: 90 | S78: 91 | T78: 90.5 | U78: 90 | V78: 91 | W78: 90.5 | AE78: 2018-08-27 | AF78: 35 | AG78: 39 | AH78: 37 | AI78: 25 | AJ78: 26 | AK78: 25.5 | AL78: 28 | AM78: 33 | AN78: 30.5 | AO78: 28 | AP78: 33 | AQ78: 30.5 | AR78: 30 | AS78: 35 | AT78: 32.5 | AU78: 28 | AV78: 33 | AW78: 30.5 | AX78: 24 | AY78: 26 | AZ78: 25 | BB78: 2018-08-27 | BC78: 35 | BD78: 39 | BE78: 37 | BF78: 25 | BG78: 26 | BH78: 25.5 | BI78: 35 | BJ78: 39 | BK78: 37 | BL78: 25 | BM78: 26 | BN78: 25.5
A79: 2018-08-28 | B79: 0.2 | C79: 0.21 | D79: 0.205 | I79: 2018-08-28 | J79: 23.5 | K79: 24.5 | L79: 24 | Q79: 2018-08-28 | R79: 90 | S79: 91 | T79: 90.5 | U79: 90 | V79: 91 | W79: 90.5 | AE79: 2018-08-28 | AF79: 35 | AG79: 39 | AH79: 37 | AI79: 25 | AJ79: 26 | AK79: 25.5 | AL79: 28 | AM79: 33 | AN79: 30.5 | AO79: 28 | AP79: 33 | AQ79: 30.5 | AR79: 30 | AS79: 35 | AT79: 32.5 | AU79: 28 | AV79: 33 | AW79: 30.5 | AX79: 24 | AY79: 26 | AZ79: 25 | BB79: 2018-08-28 | BC79: 35 | BD79: 39 | BE79: 37 | BF79: 25 | BG79: 26 | BH79: 25.5 | BI79: 35 | BJ79: 39 | BK79: 37 | BL79: 25 | BM79: 26 | BN79: 25.5
A80: 2018-08-29 | B80: 0.2 | C80: 0.21 | D80: 0.205 | I80: 2018-08-29 | J80: 23.5 | K80: 24.5 | L80: 24 | Q80: 2018-08-29 | R80: 90 | S80: 91 | T80: 90.5 | U80: 90 | V80: 91 | W80: 90.5 | AE80: 2018-08-29 | AF80: 35 | AG80: 39 | AH80: 37 | AI80: 25 | AJ80: 26 | AK80: 25.5 | AL80: 28 | AM80: 33 | AN80: 30.5 | AO80: 28 | AP80: 33 | AQ80: 30.5 | AR80: 30 | AS80: 35 | AT80: 32.5 | AU80: 28 | AV80: 33 | AW80: 30.5 | AX80: 24 | AY80: 26 | AZ80: 25 | BB80: 2018-08-29 | BC80: 35 | BD80: 39 | BE80: 37 | BF80: 25 | BG80: 26 | BH80: 25.5 | BI80: 35 | BJ80: 39 | BK80: 37 | BL80: 25 | BM80: 26 | BN80: 25.5
A81: 2018-08-30 | B81: 0.2 | C81: 0.21 | D81: 0.205 | I81: 2018-08-30 | J81: 23.5 | K81: 24.5 | L81: 24 | Q81: 2018-08-30 | R81: 90 | S81: 91 | T81: 90.5 | U81: 90 | V81: 91 | W81: 90.5 | AE81: 2018-08-30 | AF81: 35 | AG81: 39 | AH81: 37 | AI81: 25 | AJ81: 26 | AK81: 25.5 | AL81: 28 | AM81: 33 | AN81: 30.5 | AO81: 28 | AP81: 33 | AQ81: 30.5 | AR81: 30 | AS81: 35 | AT81: 32.5 | AU81: 28 | AV81: 33 | AW81: 30.5 | AX81: 24 | AY81: 26 | AZ81: 25 | BB81: 2018-08-30 | BC81: 35 | BD81: 39 | BE81: 37 | BF81: 25 | BG81: 26 | BH81: 25.5 | BI81: 35 | BJ81: 39 | BK81: 37 | BL81: 25 | BM81: 26 | BN81: 25.5
A82: 2018-08-31 | B82: 0.2 | C82: 0.21 | D82: 0.205 | I82: 2018-08-31 | J82: 23.5 | K82: 24.5 | L82: 24 | Q82: 2018-08-31 | R82: 90 | S82: 91 | T82: 90.5 | U82: 90 | V82: 91 | W82: 90.5 | AE82: 2018-08-31 | AF82: 35 | AG82: 39 | AH82: 37 | AI82: 25 | AJ82: 26 | AK82: 25.5 | AL82: 28 | AM82: 33 | AN82: 30.5 | AO82: 28 | AP82: 33 | AQ82: 30.5 | AR82: 30 | AS82: 35 | AT82: 32.5 | AU82: 28 | AV82: 33 | AW82: 30.5 | AX82: 24 | AY82: 26 | AZ82: 25 | BB82: 2018-08-31 | BC82: 35 | BD82: 39 | BE82: 37 | BF82: 25 | BG82: 26 | BH82: 25.5 | BI82: 35 | BJ82: 39 | BK82: 37 | BL82: 25 | BM82: 26 | BN82: 25.5
A83: 2018-09-03 | B83: 0.2 | C83: 0.21 | D83: 0.205 | I83: 2018-09-03 | J83: 23.5 | K83: 24.5 | L83: 24 | Q83: 2018-09-03 | R83: 90 | S83: 91 | T83: 90.5 | U83: 90 | V83: 91 | W83: 90.5 | AE83: 2018-09-03 | AF83: 35 | AG83: 39 | AH83: 37 | AI83: 25 | AJ83: 26 | AK83: 25.5 | AL83: 28 | AM83: 33 | AN83: 30.5 | AO83: 28 | AP83: 33 | AQ83: 30.5 | AR83: 30 | AS83: 35 | AT83: 32.5 | AU83: 28 | AV83: 33 | AW83: 30.5 | AX83: 24 | AY83: 26 | AZ83: 25 | BB83: 2018-09-03 | BC83: 35 | BD83: 39 | BE83: 37 | BF83: 25 | BG83: 26 | BH83: 25.5 | BI83: 35 | BJ83: 39 | BK83: 37 | BL83: 25 | BM83: 26 | BN83: 25.5
A84: 2018-09-04 | B84: 0.2 | C84: 0.21 | D84: 0.205 | I84: 2018-09-04 | J84: 23.5 | K84: 24.5 | L84: 24 | Q84: 2018-09-04 | R84: 90 | S84: 91 | T84: 90.5 | U84: 90 | V84: 91 | W84: 90.5 | AE84: 2018-09-04 | AF84: 35 | AG84: 39 | AH84: 37 | AI84: 25 | AJ84: 26 | AK84: 25.5 | AL84: 28 | AM84: 33 | AN84: 30.5 | AO84: 28 | AP84: 33 | AQ84: 30.5 | AR84: 30 | AS84: 35 | AT84: 32.5 | AU84: 28 | AV84: 33 | AW84: 30.5 | AX84: 24 | AY84: 26 | AZ84: 25 | BB84: 2018-09-04 | BC84: 35 | BD84: 39 | BE84: 37 | BF84: 25 | BG84: 26 | BH84: 25.5 | BI84: 35 | BJ84: 39 | BK84: 37 | BL84: 25 | BM84: 26 | BN84: 25.5
A85: 2018-09-05 | B85: 0.2 | C85: 0.21 | D85: 0.205 | I85: 2018-09-05 | J85: 23.5 | K85: 24.5 | L85: 24 | Q85: 2018-09-05 | R85: 90 | S85: 91 | T85: 90.5 | U85: 90 | V85: 91 | W85: 90.5 | AE85: 2018-09-05 | AF85: 35 | AG85: 39 | AH85: 37 | AI85: 25 | AJ85: 26 | AK85: 25.5 | AL85: 28 | AM85: 33 | AN85: 30.5 | AO85: 28 | AP85: 33 | AQ85: 30.5 | AR85: 30 | AS85: 35 | AT85: 32.5 | AU85: 28 | AV85: 33 | AW85: 30.5 | AX85: 24 | AY85: 26 | AZ85: 25 | BB85: 2018-09-05 | BC85: 35 | BD85: 39 | BE85: 37 | BF85: 25 | BG85: 26 | BH85: 25.5 | BI85: 35 | BJ85: 39 | BK85: 37 | BL85: 25 | BM85: 26 | BN85: 25.5
A86: 2018-09-06 | B86: 0.2 | C86: 0.21 | D86: 0.205 | I86: 2018-09-06 | J86: 23.5 | K86: 24.5 | L86: 24 | Q86: 2018-09-06 | R86: 90 | S86: 91 | T86: 90.5 | U86: 90 | V86: 91 | W86: 90.5 | AE86: 2018-09-06 | AF86: 35 | AG86: 39 | AH86: 37 | AI86: 25 | AJ86: 26 | AK86: 25.5 | AL86: 28 | AM86: 33 | AN86: 30.5 | AO86: 28 | AP86: 33 | AQ86: 30.5 | AR86: 30 | AS86: 35 | AT86: 32.5 | AU86: 28 | AV86: 33 | AW86: 30.5 | AX86: 24 | AY86: 26 | AZ86: 25 | BB86: 2018-09-06 | BC86: 35 | BD86: 39 | BE86: 37 | BF86: 25 | BG86: 26 | BH86: 25.5 | BI86: 35 | BJ86: 39 | BK86: 37 | BL86: 25 | BM86: 26 | BN86: 25.5
A87: 2018-09-07 | B87: 0.2 | C87: 0.21 | D87: 0.205 | I87: 2018-09-07 | J87: 23.5 | K87: 24.5 | L87: 24 | Q87: 2018-09-07 | R87: 90 | S87: 91 | T87: 90.5 | U87: 90 | V87: 91 | W87: 90.5 | AE87: 2018-09-07 | AF87: 35 | AG87: 39 | AH87: 37 | AI87: 25 | AJ87: 26 | AK87: 25.5 | AL87: 28 | AM87: 33 | AN87: 30.5 | AO87: 28 | AP87: 33 | AQ87: 30.5 | AR87: 30 | AS87: 35 | AT87: 32.5 | AU87: 28 | AV87: 33 | AW87: 30.5 | AX87: 24 | AY87: 26 | AZ87: 25 | BB87: 2018-09-07 | BC87: 35 | BD87: 39 | BE87: 37 | BF87: 25 | BG87: 26 | BH87: 25.5 | BI87: 35 | BJ87: 39 | BK87: 37 | BL87: 25 | BM87: 26 | BN87: 25.5
A88: 2018-09-10 | B88: 0.2 | C88: 0.21 | D88: 0.205 | I88: 2018-09-10 | J88: 23.5 | K88: 24.5 | L88: 24 | Q88: 2018-09-10 | R88: 90 | S88: 91 | T88: 90.5 | U88: 90 | V88: 91 | W88: 90.5 | AE88: 2018-09-10 | AF88: 35 | AG88: 39 | AH88: 37 | AI88: 25 | AJ88: 26 | AK88: 25.5 | AL88: 28 | AM88: 33 | AN88: 30.5 | AO88: 28 | AP88: 33 | AQ88: 30.5 | AR88: 30 | AS88: 35 | AT88: 32.5 | AU88: 28 | AV88: 33 | AW88: 30.5 | AX88: 24 | AY88: 26 | AZ88: 25 | BB88: 2018-09-10 | BC88: 35 | BD88: 39 | BE88: 37 | BF88: 25 | BG88: 26 | BH88: 25.5 | BI88: 35 | BJ88: 39 | BK88: 37 | BL88: 25 | BM88: 26 | BN88: 25.5
A89: 2018-09-11 | B89: 0.2 | C89: 0.21 | D89: 0.205 | I89: 2018-09-11 | J89: 23.5 | K89: 24.5 | L89: 24 | Q89: 2018-09-11 | R89: 90 | S89: 91 | T89: 90.5 | U89: 90 | V89: 91 | W89: 90.5 | AE89: 2018-09-11 | AF89: 35 | AG89: 39 | AH89: 37 | AI89: 25 | AJ89: 26 | AK89: 25.5 | AL89: 28 | AM89: 33 | AN89: 30.5 | AO89: 28 | AP89: 33 | AQ89: 30.5 | AR89: 30 | AS89: 35 | AT89: 32.5 | AU89: 28 | AV89: 33 | AW89: 30.5 | AX89: 24 | AY89: 26 | AZ89: 25 | BB89: 2018-09-11 | BC89: 35 | BD89: 39 | BE89: 37 | BF89: 25 | BG89: 26 | BH89: 25.5 | BI89: 35 | BJ89: 39 | BK89: 37 | BL89: 25 | BM89: 26 | BN89: 25.5
A90: 2018-09-12 | B90: 0.2 | C90: 0.21 | D90: 0.205 | I90: 2018-09-12 | J90: 23.5 | K90: 24.5 | L90: 24 | Q90: 2018-09-12 | R90: 90 | S90: 91 | T90: 90.5 | U90: 90 | V90: 91 | W90: 90.5 | AE90: 2018-09-12 | AF90: 35 | AG90: 39 | AH90: 37 | AI90: 25 | AJ90: 26 | AK90: 25.5 | AL90: 28 | AM90: 33 | AN90: 30.5 | AO90: 28 | AP90: 33 | AQ90: 30.5 | AR90: 30 | AS90: 35 | AT90: 32.5 | AU90: 28 | AV90: 33 | AW90: 30.5 | AX90: 24 | AY90: 26 | AZ90: 25 | BB90: 2018-09-12 | BC90: 35 | BD90: 39 | BE90: 37 | BF90: 25 | BG90: 26 | BH90: 25.5 | BI90: 35 | BJ90: 39 | BK90: 37 | BL90: 25 | BM90: 26 | BN90: 25.5
A91: 2018-09-13 | B91: 0.2 | C91: 0.21 | D91: 0.205 | I91: 2018-09-13 | J91: 23.5 | K91: 24.5 | L91: 24 | Q91: 2018-09-13 | R91: 90 | S91: 91 | T91: 90.5 | U91: 90 | V91: 91 | W91: 90.5 | AE91: 2018-09-13 | AF91: 35 | AG91: 39 | AH91: 37 | AI91: 25 | AJ91: 26 | AK91: 25.5 | AL91: 28 | AM91: 33 | AN91: 30.5 | AO91: 28 | AP91: 33 | AQ91: 30.5 | AR91: 30 | AS91: 35 | AT91: 32.5 | AU91: 28 | AV91: 33 | AW91: 30.5 | AX91: 24 | AY91: 26 | AZ91: 25 | BB91: 2018-09-13 | BC91: 35 | BD91: 39 | BE91: 37 | BF91: 25 | BG91: 26 | BH91: 25.5 | BI91: 35 | BJ91: 39 | BK91: 37 | BL91: 25 | BM91: 26 | BN91: 25.5
A92: 2018-09-14 | B92: 0.2 | C92: 0.21 | D92: 0.205 | I92: 2018-09-14 | J92: 23.5 | K92: 24.5 | L92: 24 | Q92: 2018-09-14 | R92: 90 | S92: 91 | T92: 90.5 | U92: 90 | V92: 91 | W92: 90.5 | AE92: 2018-09-14 | AF92: 35 | AG92: 39 | AH92: 37 | AI92: 25 | AJ92: 26 | AK92: 25.5 | AL92: 28 | AM92: 33 | AN92: 30.5 | AO92: 28 | AP92: 33 | AQ92: 30.5 | AR92: 30 | AS92: 35 | AT92: 32.5 | AU92: 28 | AV92: 33 | AW92: 30.5 | AX92: 24 | AY92: 26 | AZ92: 25 | BB92: 2018-09-14 | BC92: 35 | BD92: 39 | BE92: 37 | BF92: 25 | BG92: 26 | BH92: 25.5 | BI92: 35 | BJ92: 39 | BK92: 37 | BL92: 25 | BM92: 26 | BN92: 25.5
A93: 2018-09-17 | B93: 0.2 | C93: 0.21 | D93: 0.205 | I93: 2018-09-17 | J93: 23.5 | K93: 24.5 | L93: 24 | Q93: 2018-09-17 | R93: 89 | S93: 90 | T93: 89.5 | U93: 89 | V93: 90 | W93: 89.5 | AE93: 2018-09-17 | AF93: 35 | AG93: 39 | AH93: 37 | AI93: 25 | AJ93: 26 | AK93: 25.5 | AL93: 28 | AM93: 33 | AN93: 30.5 | AO93: 28 | AP93: 33 | AQ93: 30.5 | AR93: 30 | AS93: 35 | AT93: 32.5 | AU93: 28 | AV93: 33 | AW93: 30.5 | AX93: 24 | AY93: 26 | AZ93: 25 | BB93: 2018-09-17 | BC93: 35 | BD93: 39 | BE93: 37 | BF93: 25 | BG93: 26 | BH93: 25.5 | BI93: 35 | BJ93: 39 | BK93: 37 | BL93: 25 | BM93: 26 | BN93: 25.5
A94: 2018-09-18 | B94: 0.2 | C94: 0.21 | D94: 0.205 | I94: 2018-09-18 | J94: 23.5 | K94: 24.5 | L94: 24 | Q94: 2018-09-18 | R94: 89 | S94: 90 | T94: 89.5 | U94: 89 | V94: 90 | W94: 89.5 | AE94: 2018-09-18 | AF94: 35 | AG94: 39 | AH94: 37 | AI94: 25 | AJ94: 26 | AK94: 25.5 | AL94: 28 | AM94: 33 | AN94: 30.5 | AO94: 28 | AP94: 33 | AQ94: 30.5 | AR94: 30 | AS94: 35 | AT94: 32.5 | AU94: 28 | AV94: 33 | AW94: 30.5 | AX94: 24 | AY94: 26 | AZ94: 25 | BB94: 2018-09-18 | BC94: 35 | BD94: 39 | BE94: 37 | BF94: 25 | BG94: 26 | BH94: 25.5 | BI94: 35 | BJ94: 39 | BK94: 37 | BL94: 25 | BM94: 26 | BN94: 25.5
A95: 2018-09-19 | B95: 0.2 | C95: 0.21 | D95: 0.205 | I95: 2018-09-19 | J95: 23.5 | K95: 24.5 | L95: 24 | Q95: 2018-09-19 | R95: 89 | S95: 90 | T95: 89.5 | U95: 89 | V95: 90 | W95: 89.5 | AE95: 2018-09-19 | AF95: 35 | AG95: 39 | AH95: 37 | AI95: 25 | AJ95: 26 | AK95: 25.5 | AL95: 28 | AM95: 33 | AN95: 30.5 | AO95: 28 | AP95: 33 | AQ95: 30.5 | AR95: 30 | AS95: 35 | AT95: 32.5 | AU95: 28 | AV95: 33 | AW95: 30.5 | AX95: 24 | AY95: 26 | AZ95: 25 | BB95: 2018-09-19 | BC95: 35 | BD95: 39 | BE95: 37 | BF95: 25 | BG95: 26 | BH95: 25.5 | BI95: 35 | BJ95: 39 | BK95: 37 | BL95: 25 | BM95: 26 | BN95: 25.5
A96: 2018-09-20 | B96: 0.2 | C96: 0.21 | D96: 0.205 | I96: 2018-09-20 | J96: 23.5 | K96: 24.5 | L96: 24 | Q96: 2018-09-20 | R96: 89 | S96: 90 | T96: 89.5 | U96: 89 | V96: 90 | W96: 89.5 | AE96: 2018-09-20 | AF96: 35 | AG96: 39 | AH96: 37 | AI96: 25 | AJ96: 26 | AK96: 25.5 | AL96: 28 | AM96: 33 | AN96: 30.5 | AO96: 28 | AP96: 33 | AQ96: 30.5 | AR96: 30 | AS96: 35 | AT96: 32.5 | AU96: 28 | AV96: 33 | AW96: 30.5 | AX96: 24 | AY96: 26 | AZ96: 25 | BB96: 2018-09-20 | BC96: 35 | BD96: 39 | BE96: 37 | BF96: 25 | BG96: 26 | BH96: 25.5 | BI96: 35 | BJ96: 39 | BK96: 37 | BL96: 25 | BM96: 26 | BN96: 25.5
A97: 2018-09-21 | B97: 0.2 | C97: 0.21 | D97: 0.205 | I97: 2018-09-21 | J97: 23.5 | K97: 24.5 | L97: 24 | Q97: 2018-09-21 | R97: 89 | S97: 90 | T97: 89.5 | U97: 89 | V97: 90 | W97: 89.5 | AE97: 2018-09-21 | AF97: 35 | AG97: 39 | AH97: 37 | AI97: 25 | AJ97: 26 | AK97: 25.5 | AL97: 28 | AM97: 33 | AN97: 30.5 | AO97: 28 | AP97: 33 | AQ97: 30.5 | AR97: 30 | AS97: 35 | AT97: 32.5 | AU97: 28 | AV97: 33 | AW97: 30.5 | AX97: 24 | AY97: 26 | AZ97: 25 | BB97: 2018-09-21 | BC97: 35 | BD97: 39 | BE97: 37 | BF97: 25 | BG97: 26 | BH97: 25.5 | BI97: 35 | BJ97: 39 | BK97: 37 | BL97: 25 | BM97: 26 | BN97: 25.5
A98: 2018-09-24 | B98: 0.2 | C98: 0.21 | D98: 0.205 | I98: 2018-09-24 | J98: 23.5 | K98: 24.5 | L98: 24 | Q98: 2018-09-24 | R98: 89 | S98: 90 | T98: 89.5 | U98: 89 | V98: 90 | W98: 89.5 | AE98: 2018-09-24 | AF98: 35 | AG98: 39 | AH98: 37 | AI98: 25 | AJ98: 26 | AK98: 25.5 | AL98: 28 | AM98: 33 | AN98: 30.5 | AO98: 28 | AP98: 33 | AQ98: 30.5 | AR98: 30 | AS98: 35 | AT98: 32.5 | AU98: 28 | AV98: 33 | AW98: 30.5 | AX98: 24 | AY98: 26 | AZ98: 25 | BB98: 2018-09-24 | BC98: 35 | BD98: 39 | BE98: 37 | BF98: 25 | BG98: 26 | BH98: 25.5 | BI98: 35 | BJ98: 39 | BK98: 37 | BL98: 25 | BM98: 26 | BN98: 25.5
A99: 2018-09-25 | B99: 0.2 | C99: 0.21 | D99: 0.205 | I99: 2018-09-25 | J99: 23.5 | K99: 24.5 | L99: 24 | Q99: 2018-09-25 | R99: 89 | S99: 90 | T99: 89.5 | U99: 89 | V99: 90 | W99: 89.5 | AE99: 2018-09-25 | AF99: 35 | AG99: 39 | AH99: 37 | AI99: 25 | AJ99: 26 | AK99: 25.5 | AL99: 28 | AM99: 33 | AN99: 30.5 | AO99: 28 | AP99: 33 | AQ99: 30.5 | AR99: 30 | AS99: 35 | AT99: 32.5 | AU99: 28 | AV99: 33 | AW99: 30.5 | AX99: 24 | AY99: 26 | AZ99: 25 | BB99: 2018-09-25 | BC99: 35 | BD99: 39 | BE99: 37 | BF99: 25 | BG99: 26 | BH99: 25.5 | BI99: 35 | BJ99: 39 | BK99: 37 | BL99: 25 | BM99: 26 | BN99: 25.5
A100: 2018-09-26 | B100: 0.2 | C100: 0.21 | D100: 0.205 | I100: 2018-09-26 | J100: 23.5 | K100: 24.5 | L100: 24 | Q100: 2018-09-26 | R100: 89 | S100: 90 | T100: 89.5 | U100: 89 | V100: 90 | W100: 89.5 | AE100: 2018-09-26 | AF100: 35 | AG100: 39 | AH100: 37 | AI100: 25 | AJ100: 26 | AK100: 25.5 | AL100: 28 | AM100: 33 | AN100: 30.5 | AO100: 28 | AP100: 33 | AQ100: 30.5 | AR100: 30 | AS100: 35 | AT100: 32.5 | AU100: 28 | AV100: 33 | AW100: 30.5 | AX100: 24 | AY100: 26 | AZ100: 25 | BB100: 2018-09-26 | BC100: 35 | BD100: 39 | BE100: 37 | BF100: 25 | BG100: 26 | BH100: 25.5 | BI100: 35 | BJ100: 39 | BK100: 37 | BL100: 25 | BM100: 26 | BN100: 25.5
A101: 2018-09-27 | B101: 0.2 | C101: 0.21 | D101: 0.205 | I101: 2018-09-27 | J101: 23.5 | K101: 24.5 | L101: 24 | Q101: 2018-09-27 | R101: 89 | S101: 90 | T101: 89.5 | U101: 89 | V101: 90 | W101: 89.5 | AE101: 2018-09-27 | AF101: 35 | AG101: 39 | AH101: 37 | AI101: 25 | AJ101: 26 | AK101: 25.5 | AL101: 28 | AM101: 33 | AN101: 30.5 | AO101: 28 | AP101: 33 | AQ101: 30.5 | AR101: 30 | AS101: 35 | AT101: 32.5 | AU101: 28 | AV101: 33 | AW101: 30.5 | AX101: 24 | AY101: 26 | AZ101: 25 | BB101: 2018-09-27 | BC101: 35 | BD101: 39 | BE101: 37 | BF101: 25 | BG101: 26 | BH101: 25.5 | BI101: 35 | BJ101: 39 | BK101: 37 | BL101: 25 | BM101: 26 | BN101: 25.5
A102: 2018-09-28 | B102: 0.2 | C102: 0.21 | D102: 0.205 | I102: 2018-09-28 | J102: 23.5 | K102: 24.5 | L102: 24 | Q102: 2018-09-28 | R102: 89 | S102: 90 | T102: 89.5 | U102: 89 | V102: 90 | W102: 89.5 | AE102: 2018-09-28 | AF102: 35 | AG102: 39 | AH102: 37 | AI102: 25 | AJ102: 26 | AK102: 25.5 | AL102: 28 | AM102: 33 | AN102: 30.5 | AO102: 28 | AP102: 33 | AQ102: 30.5 | AR102: 30 | AS102: 35 | AT102: 32.5 | AU102: 28 | AV102: 33 | AW102: 30.5 | AX102: 24 | AY102: 26 | AZ102: 25 | BB102: 2018-09-28 | BC102: 35 | BD102: 39 | BE102: 37 | BF102: 25 | BG102: 26 | BH102: 25.5 | BI102: 35 | BJ102: 39 | BK102: 37 | BL102: 25 | BM102: 26 | BN102: 25.5
A103: 2018-10-08 | B103: 0.2 | C103: 0.21 | D103: 0.205 | I103: 2018-10-08 | J103: 23.5 | K103: 24.5 | L103: 24 | Q103: 2018-10-08 | R103: 89 | S103: 90 | T103: 89.5 | U103: 89 | V103: 90 | W103: 89.5 | AE103: 2018-10-08 | AF103: 35 | AG103: 39 | AH103: 37 | AI103: 25 | AJ103: 26 | AK103: 25.5 | AL103: 28 | AM103: 33 | AN103: 30.5 | AO103: 28 | AP103: 33 | AQ103: 30.5 | AR103: 30 | AS103: 35 | AT103: 32.5 | AU103: 28 | AV103: 33 | AW103: 30.5 | AX103: 24 | AY103: 26 | AZ103: 25 | BB103: 2018-10-08 | BC103: 35 | BD103: 39 | BE103: 37 | BF103: 25 | BG103: 26 | BH103: 25.5 | BI103: 35 | BJ103: 39 | BK103: 37 | BL103: 25 | BM103: 26 | BN103: 25.5
A104: 2018-10-09 | B104: 0.2 | C104: 0.21 | D104: 0.205 | I104: 2018-10-09 | J104: 23.5 | K104: 24.5 | L104: 24 | Q104: 2018-10-09 | R104: 89 | S104: 90 | T104: 89.5 | U104: 89 | V104: 90 | W104: 89.5 | AE104: 2018-10-09 | AF104: 35 | AG104: 39 | AH104: 37 | AI104: 25 | AJ104: 26 | AK104: 25.5 | AL104: 28 | AM104: 33 | AN104: 30.5 | AO104: 28 | AP104: 33 | AQ104: 30.5 | AR104: 30 | AS104: 35 | AT104: 32.5 | AU104: 28 | AV104: 33 | AW104: 30.5 | AX104: 24 | AY104: 26 | AZ104: 25 | BB104: 2018-10-09 | BC104: 35 | BD104: 39 | BE104: 37 | BF104: 25 | BG104: 26 | BH104: 25.5 | BI104: 35 | BJ104: 39 | BK104: 37 | BL104: 25 | BM104: 26 | BN104: 25.5
A105: 2018-10-10 | B105: 0.2 | C105: 0.21 | D105: 0.205 | I105: 2018-10-10 | J105: 23.5 | K105: 24.5 | L105: 24 | Q105: 2018-10-10 | R105: 89 | S105: 90 | T105: 89.5 | U105: 89 | V105: 90 | W105: 89.5 | AE105: 2018-10-10 | AF105: 35 | AG105: 39 | AH105: 37 | AI105: 25 | AJ105: 26 | AK105: 25.5 | AL105: 28 | AM105: 33 | AN105: 30.5 | AO105: 28 | AP105: 33 | AQ105: 30.5 | AR105: 30 | AS105: 35 | AT105: 32.5 | AU105: 28 | AV105: 33 | AW105: 30.5 | AX105: 24 | AY105: 26 | AZ105: 25 | BB105: 2018-10-10 | BC105: 35 | BD105: 39 | BE105: 37 | BF105: 25 | BG105: 26 | BH105: 25.5 | BI105: 35 | BJ105: 39 | BK105: 37 | BL105: 25 | BM105: 26 | BN105: 25.5
A106: 2018-10-11 | B106: 0.2 | C106: 0.21 | D106: 0.205 | I106: 2018-10-11 | J106: 23.5 | K106: 24.5 | L106: 24 | Q106: 2018-10-11 | R106: 89 | S106: 90 | T106: 89.5 | U106: 89 | V106: 90 | W106: 89.5 | AE106: 2018-10-11 | AF106: 35 | AG106: 39 | AH106: 37 | AI106: 25 | AJ106: 26 | AK106: 25.5 | AL106: 28 | AM106: 33 | AN106: 30.5 | AO106: 28 | AP106: 33 | AQ106: 30.5 | AR106: 30 | AS106: 35 | AT106: 32.5 | AU106: 28 | AV106: 33 | AW106: 30.5 | AX106: 24 | AY106: 26 | AZ106: 25 | BB106: 2018-10-11 | BC106: 35 | BD106: 39 | BE106: 37 | BF106: 25 | BG106: 26 | BH106: 25.5 | BI106: 35 | BJ106: 39 | BK106: 37 | BL106: 25 | BM106: 26 | BN106: 25.5
A107: 2018-10-12 | B107: 0.2 | C107: 0.21 | D107: 0.205 | I107: 2018-10-12 | J107: 23.5 | K107: 24.5 | L107: 24 | Q107: 2018-10-12 | R107: 89 | S107: 90 | T107: 89.5 | U107: 89 | V107: 90 | W107: 89.5 | AE107: 2018-10-12 | AF107: 35 | AG107: 39 | AH107: 37 | AI107: 25 | AJ107: 26 | AK107: 25.5 | AL107: 28 | AM107: 33 | AN107: 30.5 | AO107: 28 | AP107: 33 | AQ107: 30.5 | AR107: 30 | AS107: 35 | AT107: 32.5 | AU107: 28 | AV107: 33 | AW107: 30.5 | AX107: 24 | AY107: 26 | AZ107: 25 | BB107: 2018-10-12 | BC107: 35 | BD107: 39 | BE107: 37 | BF107: 25 | BG107: 26 | BH107: 25.5 | BI107: 35 | BJ107: 39 | BK107: 37 | BL107: 25 | BM107: 26 | BN107: 25.5
A108: 2018-10-15 | B108: 0.2 | C108: 0.21 | D108: 0.205 | I108: 2018-10-15 | J108: 23.5 | K108: 24.5 | L108: 24 | Q108: 2018-10-15 | R108: 89 | S108: 90 | T108: 89.5 | U108: 89 | V108: 90 | W108: 89.5 | AE108: 2018-10-15 | AF108: 35 | AG108: 39 | AH108: 37 | AI108: 25 | AJ108: 26 | AK108: 25.5 | AL108: 28 | AM108: 33 | AN108: 30.5 | AO108: 28 | AP108: 33 | AQ108: 30.5 | AR108: 30 | AS108: 35 | AT108: 32.5 | AU108: 28 | AV108: 33 | AW108: 30.5 | AX108: 24 | AY108: 26 | AZ108: 25 | BB108: 2018-10-15 | BC108: 35 | BD108: 39 | BE108: 37 | BF108: 25 | BG108: 26 | BH108: 25.5 | BI108: 35 | BJ108: 39 | BK108: 37 | BL108: 25 | BM108: 26 | BN108: 25.5
A109: 2018-10-16 | B109: 0.2 | C109: 0.21 | D109: 0.205 | I109: 2018-10-16 | J109: 23.5 | K109: 24.5 | L109: 24 | Q109: 2018-10-16 | R109: 89 | S109: 90 | T109: 89.5 | U109: 89 | V109: 90 | W109: 89.5 | AE109: 2018-10-16 | AF109: 35 | AG109: 39 | AH109: 37 | AI109: 25 | AJ109: 26 | AK109: 25.5 | AL109: 28 | AM109: 33 | AN109: 30.5 | AO109: 28 | AP109: 33 | AQ109: 30.5 | AR109: 30 | AS109: 35 | AT109: 32.5 | AU109: 28 | AV109: 33 | AW109: 30.5 | AX109: 24 | AY109: 26 | AZ109: 25 | BB109: 2018-10-16 | BC109: 35 | BD109: 39 | BE109: 37 | BF109: 25 | BG109: 26 | BH109: 25.5 | BI109: 35 | BJ109: 39 | BK109: 37 | BL109: 25 | BM109: 26 | BN109: 25.5
A110: 2018-10-17 | B110: 0.2 | C110: 0.21 | D110: 0.205 | I110: 2018-10-17 | J110: 23.5 | K110: 24.5 | L110: 24 | Q110: 2018-10-17 | R110: 89 | S110: 90 | T110: 89.5 | U110: 89 | V110: 90 | W110: 89.5 | AE110: 2018-10-17 | AF110: 35 | AG110: 39 | AH110: 37 | AI110: 25 | AJ110: 26 | AK110: 25.5 | AL110: 28 | AM110: 33 | AN110: 30.5 | AO110: 28 | AP110: 33 | AQ110: 30.5 | AR110: 30 | AS110: 35 | AT110: 32.5 | AU110: 28 | AV110: 33 | AW110: 30.5 | AX110: 24 | AY110: 26 | AZ110: 25 | BB110: 2018-10-17 | BC110: 35 | BD110: 39 | BE110: 37 | BF110: 25 | BG110: 26 | BH110: 25.5 | BI110: 35 | BJ110: 39 | BK110: 37 | BL110: 25 | BM110: 26 | BN110: 25.5
A111: 2018-10-18 | B111: 0.2 | C111: 0.21 | D111: 0.205 | I111: 2018-10-18 | J111: 23.5 | K111: 24.5 | L111: 24 | Q111: 2018-10-18 | R111: 89 | S111: 90 | T111: 89.5 | U111: 89 | V111: 90 | W111: 89.5 | AE111: 2018-10-18 | AF111: 35 | AG111: 39 | AH111: 37 | AI111: 25 | AJ111: 26 | AK111: 25.5 | AL111: 28 | AM111: 33 | AN111: 30.5 | AO111: 28 | AP111: 33 | AQ111: 30.5 | AR111: 30 | AS111: 35 | AT111: 32.5 | AU111: 28 | AV111: 33 | AW111: 30.5 | AX111: 24 | AY111: 26 | AZ111: 25 | BB111: 2018-10-18 | BC111: 35 | BD111: 39 | BE111: 37 | BF111: 25 | BG111: 26 | BH111: 25.5 | BI111: 35 | BJ111: 39 | BK111: 37 | BL111: 25 | BM111: 26 | BN111: 25.5
A112: 2018-10-19 | B112: 0.2 | C112: 0.21 | D112: 0.205 | I112: 2018-10-19 | J112: 23.5 | K112: 24.5 | L112: 24 | Q112: 2018-10-19 | R112: 89 | S112: 90 | T112: 89.5 | U112: 89 | V112: 90 | W112: 89.5 | AE112: 2018-10-19 | AF112: 35 | AG112: 39 | AH112: 37 | AI112: 25 | AJ112: 26 | AK112: 25.5 | AL112: 28 | AM112: 33 | AN112: 30.5 | AO112: 28 | AP112: 33 | AQ112: 30.5 | AR112: 30 | AS112: 35 | AT112: 32.5 | AU112: 28 | AV112: 33 | AW112: 30.5 | AX112: 24 | AY112: 26 | AZ112: 25 | BB112: 2018-10-19 | BC112: 35 | BD112: 39 | BE112: 37 | BF112: 25 | BG112: 26 | BH112: 25.5 | BI112: 35 | BJ112: 39 | BK112: 37 | BL112: 25 | BM112: 26 | BN112: 25.5
A113: =A112+3 -> 2018-10-22 | B113: 0.2 | C113: 0.21 | D113: 0.205 | I113: =I112+3 -> 2018-10-22 | J113: 23.5 | K113: 24.5 | L113: 24 | Q113: =Q112+3 -> 2018-10-22 | R113: 89 | S113: 90 | T113: 89.5 | U113: 89 | V113: 90 | W113: 89.5 | AE113: =AE112+3 -> 2018-10-22 | AF113: 35 | AG113: 39 | AH113: 37 | AI113: 25 | AJ113: 26 | AK113: 25.5 | AL113: 28 | AM113: 33 | AN113: 30.5 | AO113: 28 | AP113: 33 | AQ113: 30.5 | AR113: 30 | AS113: 35 | AT113: 32.5 | AU113: 28 | AV113: 33 | AW113: 30.5 | AX113: 24 | AY113: 26 | AZ113: 25 | BB113: =BB112+3 -> 2018-10-22 | BC113: 35 | BD113: 39 | BE113: 37 | BF113: 25 | BG113: 26 | BH113: 25.5 | BI113: 35 | BJ113: 39 | BK113: 37 | BL113: 25 | BM113: 26 | BN113: 25.5
A114: =A113+1 -> 2018-10-23 | B114: 0.2 | C114: 0.21 | D114: 0.205 | I114: =I113+1 -> 2018-10-23 | J114: 23.5 | K114: 24.5 | L114: 24 | Q114: =Q113+1 -> 2018-10-23 | R114: 89 | S114: 90 | T114: 89.5 | U114: 89 | V114: 90 | W114: 89.5 | AE114: =AE113+1 -> 2018-10-23 | AF114: 35 | AG114: 39 | AH114: 37 | AI114: 25 | AJ114: 26 | AK114: 25.5 | AL114: 28 | AM114: 33 | AN114: 30.5 | AO114: 28 | AP114: 33 | AQ114: 30.5 | AR114: 30 | AS114: 35 | AT114: 32.5 | AU114: 28 | AV114: 33 | AW114: 30.5 | AX114: 24 | AY114: 26 | AZ114: 25 | BB114: =BB113+1 -> 2018-10-23 | BC114: 35 | BD114: 39 | BE114: 37 | BF114: 25 | BG114: 26 | BH114: 25.5 | BI114: 35 | BJ114: 39 | BK114: 37 | BL114: 25 | BM114: 26 | BN114: 25.5
A115: =A114+1 -> 2018-10-24 | B115: 0.2 | C115: 0.21 | D115: 0.205 | I115: =I114+1 -> 2018-10-24 | J115: 23.5 | K115: 24.5 | L115: 24 | Q115: =Q114+1 -> 2018-10-24 | R115: 89 | S115: 90 | T115: 89.5 | U115: 89 | V115: 90 | W115: 89.5 | AE115: =AE114+1 -> 2018-10-24 | AF115: 35 | AG115: 39 | AH115: 37 | AI115: 25 | AJ115: 26 | AK115: 25.5 | AL115: 28 | AM115: 33 | AN115: 30.5 | AO115: 28 | AP115: 33 | AQ115: 30.5 | AR115: 30 | AS115: 35 | AT115: 32.5 | AU115: 28 | AV115: 33 | AW115: 30.5 | AX115: 24 | AY115: 26 | AZ115: 25 | BB115: =BB114+1 -> 2018-10-24 | BC115: 35 | BD115: 39 | BE115: 37 | BF115: 25 | BG115: 26 | BH115: 25.5 | BI115: 35 | BJ115: 39 | BK115: 37 | BL115: 25 | BM115: 26 | BN115: 25.5
A116: =A115+1 -> 2018-10-25 | B116: 0.2 | C116: 0.21 | D116: 0.205 | I116: =I115+1 -> 2018-10-25 | J116: 23.5 | K116: 24.5 | L116: 24 | Q116: =Q115+1 -> 2018-10-25 | R116: 89 | S116: 90 | T116: 89.5 | U116: 89 | V116: 90 | W116: 89.5 | AE116: =AE115+1 -> 2018-10-25 | AF116: 35 | AG116: 39 | AH116: 37 | AI116: 25 | AJ116: 26 | AK116: 25.5 | AL116: 28 | AM116: 33 | AN116: 30.5 | AO116: 28 | AP116: 33 | AQ116: 30.5 | AR116: 30 | AS116: 35 | AT116: 32.5 | AU116: 28 | AV116: 33 | AW116: 30.5 | AX116: 24 | AY116: 26 | AZ116: 25 | BB116: =BB115+1 -> 2018-10-25 | BC116: 35 | BD116: 39 | BE116: 37 | BF116: 25 | BG116: 26 | BH116: 25.5 | BI116: 35 | BJ116: 39 | BK116: 37 | BL116: 25 | BM116: 26 | BN116: 25.5
A117: =A116+1 -> 2018-10-26 | B117: 0.2 | C117: 0.21 | D117: 0.205 | I117: =I116+1 -> 2018-10-26 | J117: 23.5 | K117: 24.5 | L117: 24 | Q117: =Q116+1 -> 2018-10-26 | R117: 89 | S117: 90 | T117: 89.5 | U117: 89 | V117: 90 | W117: 89.5 | AE117: =AE116+1 -> 2018-10-26 | AF117: 35 | AG117: 39 | AH117: 37 | AI117: 25 | AJ117: 26 | AK117: 25.5 | AL117: 28 | AM117: 33 | AN117: 30.5 | AO117: 28 | AP117: 33 | AQ117: 30.5 | AR117: 30 | AS117: 35 | AT117: 32.5 | AU117: 28 | AV117: 33 | AW117: 30.5 | AX117: 24 | AY117: 26 | AZ117: 25 | BB117: =BB116+1 -> 2018-10-26 | BC117: 35 | BD117: 39 | BE117: 37 | BF117: 25 | BG117: 26 | BH117: 25.5 | BI117: 35 | BJ117: 39 | BK117: 37 | BL117: 25 | BM117: 26 | BN117: 25.5
A118: =A117+3 -> 2018-10-29 | B118: 0.2 | C118: 0.21 | D118: 0.205 | I118: =I117+3 -> 2018-10-29 | J118: 23.5 | K118: 24.5 | L118: 24 | Q118: =Q117+3 -> 2018-10-29 | R118: 89 | S118: 90 | T118: 89.5 | U118: 89 | V118: 90 | W118: 89.5 | AE118: =AE117+3 -> 2018-10-29 | AF118: 35 | AG118: 39 | AH118: 37 | AI118: 25 | AJ118: 26 | AK118: 25.5 | AL118: 28 | AM118: 33 | AN118: 30.5 | AO118: 28 | AP118: 33 | AQ118: 30.5 | AR118: 30 | AS118: 35 | AT118: 32.5 | AU118: 28 | AV118: 33 | AW118: 30.5 | AX118: 24 | AY118: 26 | AZ118: 25 | BB118: =BB117+3 -> 2018-10-29 | BC118: 35 | BD118: 39 | BE118: 37 | BF118: 25 | BG118: 26 | BH118: 25.5 | BI118: 35 | BJ118: 39 | BK118: 37 | BL118: 25 | BM118: 26 | BN118: 25.5
